Workbook

Sheet Complete List
G1: NFL Combine | N1: 2011 College Football Season | AB1: 2010 College Football Season | AP1: Total College Stats | BJ1: 5 (Years Qualified) | BK1: 4 | BL1: 3 | BM1: 2 | BN1: 1
O2: Passing | X2: Rushing | AC2: Passing | AL2: Rushing | AQ2: Passing | AZ2: Rushing | BJ2: 1 | BK2: 0.95 | BL2: 0.9 | BM2: 0.85 | BN2: 0.8
A3: Class | B3: Position | C3: Name | D3: College | E3: PFF Score | F3: Years Qualified | G3: 40 Yard Dash | H3: Benchpress | I3: Vertical Jump | J3: Three Cone Drill | K3: 20 Yard Shuttle | L3: Broad Jump | M3: Wonderlic | N3: Games | O3: Completions | P3: Attempts | Q3: Comp. Pct | R3: Yards | S3: Y/A | T3: AY/A | U3: TD | V3: Int | W3: Rate | X3: Attempts | Y3: Yards | Z3: Average | AA3: TD | AB3: Games | AC3: Completions | AD3: Attempts | AE3: Comp. Pct | AF3: Yards | AG3: Y/A | AH3: AY/A | AI3: TD | AJ3: Int | AK3: Rate | AL3: Attempts | AM3: Yards | AN3: Average | AO3: TD | AP3: Games | AQ3: Completions | AR3: Attempts | AS3: Comp. Pct | AT3: Yards | AU3: Y/A | AV3: AY/A | AW3: TD | AX3: Int | AY3: Rate | AZ3: Attempts | BA3: Yards | BB3: Average | BC3: TD | BD3: College Mult. | BE3: Weighted PFF
A4: 2012 | B4: QB | C4: B.J. Coleman | D4: Tenn-Chattanooga | E4: DNP | F4: 0 | J4: 7.07 | K4: 4.38 | L4: 109 | N4: 7 | O4: 137 | P4: 225 | Q4: 60.9 | R4: 1527 | S4: 6.79 | U4: 9 | V4: 9 | W4: 123.1 | X4: 25 | Y4: -34 | Z4: -1.4 | AA4: 1 | AB4: 11 | AC4: 215 | AD4: 382 | AE4: 56.3 | AF4: 2996 | AG4: 7.8 | AI4: 26 | AJ4: 13 | AK4: 137.8 | AL4: 37 | AM4: -17 | AN4: -0.5 | AO4: 4 | AP4: =SUM(N4, AB4) -> 18 | AQ4: =SUM(O4,AC4) -> 352 | AR4: =SUM(P4,AD4) -> 607 | AS4: =(AQ4/AR4)*100 -> 57.99011532 | AT4: =SUM(R4,AF4) -> 4523 | AU4: =AT4/AR4 -> 7.451400329 | AV4: =(AT4+(20*AW4)-(45*AX4))/AR4 -> 6.973640857 | AW4: =SUM(U4,AI4) -> 35 | AX4: =SUM(V4,AJ4) -> 22 | AY4: =((8.4*AT4)+(330*AW4)-(200*AX4)+(100*AQ4))/AR4 -> 132.3611203 | AZ4: =SUM(X4,AL4) -> 62 | BA4: =SUM(Y4,AM4) -> -51 | BB4: =BA4/AZ4 -> -0.8225806452 | BC4: =SUM(AA4,AO4) -> 5 | BD4: 0 | BE4: =IF(F4=0,E4*0,IF(F4=1,E4*$BN$2,IF(F4=2,E4*$BM$2,IF(F4=3,E4*$BL$2,IF(F4=4,E4*$BK$2,E4*$BJ$2))))) -> 
C5: Aaron Corp | D5: Richmond | F5: 0 | G5: 4.72 | I5: 31.5 | J5: 7.03 | K5: 4.3 | L5: 106 | N5: 11 | O5: 247 | P5: 388 | Q5: 64 | R5: 2682 | S5: 6.9 | U5: 17 | V5: 13 | W5: 129.5 | X5: 54 | Y5: -29 | Z5: -0.5 | AA5: 0 | AB5: 5 | AC5: 67 | AD5: 123 | AE5: 54 | AF5: 645 | AG5: 5.2 | AI5: 3 | AJ5: 4 | AK5: 100.1 | AL5: 19 | AM5: 51 | AN5: 2.7 | AO5: 0 | AP5: 16 | AQ5: 314 | AR5: 511 | AS5: 61.4481409 | AT5: 3327 | AU5: 6.510763209 | AV5: 5.796477495 | AW5: 20 | AX5: 17 | AY5: 122.4007828 | AZ5: 73 | BA5: 22 | BB5: 0.301369863 | BC5: 0 | BD5: 0 | BE5: =IF(F5=0,E5*0,IF(F5=1,E5*$BN$2,IF(F5=2,E5*$BM$2,IF(F5=3,E5*$BL$2,IF(F5=4,E5*$BK$2,E5*$BJ$2))))) -> 0 | BI5: college mult. | BJ5: 1 for power 5 | BK5: 0 for non.
C6: Kirk Cousins | D6: Michigan State | E6: 81.68 | F6: 5 | G6: 4.93 | I6: 28.5 | J6: 7.05 | K6: 4.5 | L6: 109 | M6: 33 | N6: 14 | O6: 267 | P6: 419 | Q6: 63.7 | R6: 3316 | S6: 7.9 | T6: 8 | U6: 25 | V6: 10 | W6: 145.1 | X6: 37 | Y6: -39 | Z6: -1.1 | AA6: 0 | AB6: 13 | AC6: 226 | AD6: 338 | AE6: 66.9 | AF6: 2825 | AG6: 8.4 | AH6: 8.2 | AI6: 20 | AJ6: 10 | AK6: 150.7 | AL6: 40 | AM6: -136 | AN6: -3.4 | AO6: 1 | AP6: 27 | AQ6: 493 | AR6: 757 | AS6: 65.12549538 | AT6: 6141 | AU6: 8.112285337 | AV6: 8.112285337 | AW6: 45 | AX6: 20 | AY6: 147.6015852 | AZ6: 77 | BA6: -175 | BB6: -2.272727273 | BC6: 1 | BD6: 1 | BE6: 81.68
C7: Austin Davis | D7: Southern Miss | E7: 53.9 | F7: 2 | G7: 4.76 | I7: 31 | J7: 6.73 | K7: 4.11 | L7: 109 | N7: 14 | O7: 286 | P7: 475 | Q7: 60.2 | R7: 3496 | S7: 7.4 | T7: 7.6 | U7: 30 | V7: 11 | W7: 138.2 | X7: 110 | Y7: 352 | Z7: 3.2 | AA7: 4 | AB7: 13 | AC7: 278 | AD7: 442 | AE7: 62.9 | AF7: 3103 | AG7: 7 | AH7: 7.3 | AI7: 20 | AJ7: 6 | AK7: 134.1 | AL7: 145 | AM7: 452 | AN7: 3.1 | AO7: 10 | AP7: 27 | AQ7: 564 | AR7: 917 | AS7: 61.50490731 | AT7: 6599 | AU7: 7.196292257 | AV7: 7.452562704 | AW7: 50 | AX7: 17 | AY7: 136.2394766 | AZ7: 255 | BA7: 804 | BB7: 3.152941176 | BC7: 14 | BD7: 0 | BE7: 45.815
C8: Nick Foles | D8: Arizona | E8: 72.36 | F8: 5 | G8: 5.14 | I8: 30.5 | L8: 112 | M8: 29 | N8: 12 | O8: 387 | P8: 560 | Q8: 69.1 | R8: 4334 | S8: 7.7 | T8: 7.6 | U8: 28 | V8: 14 | W8: 145.6 | X8: 43 | Y8: -103 | Z8: -2.4 | AA8: 0 | AB8: 11 | AC8: 286 | AD8: 426 | AE8: 67.1 | AF8: 3191 | AG8: 7.5 | AH8: 7.4 | AI8: 20 | AJ8: 10 | AK8: 140.9 | AL8: 35 | AM8: -113 | AN8: -3.2 | AO8: 1 | AP8: 23 | AQ8: 673 | AR8: 986 | AS8: 68.25557809 | AT8: 7525 | AU8: 7.631845842 | AV8: 7.510141988 | AW8: 48 | AX8: 24 | AY8: 143.5598377 | AZ8: 78 | BA8: -216 | BB8: -2.769230769 | BC8: 1 | BD8: 1 | BE8: 72.36
C9: Robert Griffin | D9: Baylor | E9: 63.13 | F9: 2 | G9: 4.41 | I9: 39 | L9: 120 | M9: 24 | N9: 13 | O9: 291 | P9: 402 | Q9: 72.4 | R9: 4293 | S9: 10.7 | T9: 11.8 | U9: 37 | V9: 6 | W9: 189.5 | X9: 179 | Y9: 699 | Z9: 3.9 | AA9: 10 | AB9: 13 | AC9: 304 | AD9: 454 | AE9: 67 | AF9: 3501 | AG9: 7.7 | AH9: 7.9 | AI9: 22 | AJ9: 8 | AK9: 144.2 | AL9: 149 | AM9: 635 | AN9: 4.3 | AO9: 8 | AP9: 26 | AQ9: 595 | AR9: 856 | AS9: 69.50934579 | AT9: 7794 | AU9: 9.105140187 | AV9: 9.747663551 | AW9: 59 | AX9: 14 | AY9: 165.4668224 | AZ9: 328 | BA9: 1334 | BB9: 4.067073171 | BC9: 18 | BD9: 1 | BE9: 53.6605
C10: Chandler Harnish | D10: Northern Illinois | F10: 0 | G10: 4.76 | I10: 32.5 | J10: 6.78 | K10: 4.15 | L10: 112 | N10: 14 | O10: 237 | P10: 384 | Q10: 61.7 | R10: 3216 | S10: 8.4 | T10: 9.1 | U10: 28 | V10: 6 | W10: 153 | X10: 194 | Y10: 1379 | Z10: 7.1 | AA10: 11 | AB10: 13 | AC10: 189 | AD10: 292 | AE10: 64.7 | AF10: 2530 | AG10: 8.7 | AH10: 9.3 | AI10: 21 | AJ10: 5 | AK10: 157.8 | AL10: 137 | AM10: 836 | AN10: 6.1 | AO10: 7 | AP10: 27 | AQ10: 426 | AR10: 676 | AS10: 63.01775148 | AT10: 5746 | AU10: 8.5 | AV10: 9.217455621 | AW10: 49 | AX10: 11 | AY10: 155.083432 | AZ10: 331 | BA10: 2215 | BB10: 6.6918429 | BC10: 18 | BD10: 0 | BE10: 0
C11: Jacory Harris | D11: Miami (FL) | F11: 0 | G11: 4.72 | I11: 37 | J11: 7.1 | K11: 4.4 | L11: 113 | N11: 11 | O11: 195 | P11: 300 | Q11: 65 | R11: 2486 | S11: 8.3 | T11: 8.3 | U11: 20 | V11: 9 | W11: 150.6 | X11: 53 | Y11: 88 | Z11: 1.7 | AA11: 0 | AB11: 10 | AC11: 148 | AD11: 270 | AE11: 54.8 | AF11: 1793 | AG11: 6.6 | AH11: 5.2 | AI11: 14 | AJ11: 15 | AK11: 116.6 | AL11: 29 | AM11: 27 | AN11: 0.9 | AO11: 2 | AP11: 21 | AQ11: 343 | AR11: 570 | AS11: 60.1754386 | AT11: 4279 | AU11: 7.507017544 | AV11: 6.805263158 | AW11: 34 | AX11: 24 | AY11: 134.4975439 | AZ11: 82 | BA11: 115 | BB11: 1.402439024 | BC11: 2 | BD11: 1 | BE11: 0
C12: Jordan Jefferson | D12: LSU | F12: 0 | G12: 4.65 | H12: 14 | I12: 36.5 | J12: 6.81 | K12: 4.06 | L12: 116 | N12: 10 | O12: 61 | P12: 100 | Q12: 61 | R12: 747 | S12: 7.4 | T12: 7.7 | U12: 6 | V12: 2 | W12: 138.7 | X12: 75 | Y12: 263 | Z12: 3.51 | AA12: 3 | AB12: 13 | AC12: 118 | AD12: 209 | AE12: 56.5 | AF12: 1411 | AG12: 6.8 | AH12: 5.3 | AI12: 7 | AJ12: 10 | AK12: 114.7 | AL12: 123 | AM12: 450 | AN12: 3.7 | AO12: 7 | AP12: 23 | AQ12: 179 | AR12: 309 | AS12: 57.92880259 | AT12: 2158 | AU12: 6.98381877 | AV12: 6.077669903 | AW12: 13 | AX12: 12 | AY12: 122.7093851 | AZ12: 198 | BA12: 713 | BB12: 3.601010101 | BC12: 10 | BD12: 1 | BE12: 0
C13: Case Keenum | D13: Houston | E13: 68.18 | F13: 5 | G13: 4.82 | I13: 32.5 | L13: 103 | N13: 14 | O13: 428 | P13: 603 | Q13: 71 | R13: 5631 | S13: 9.3 | T13: 10.6 | U13: 48 | V13: 5 | W13: 174 | X13: 57 | Y13: 35 | Z13: 0.6 | AA13: 3 | AB13: 3 | AC13: 42 | AD13: 64 | AE13: 65.6 | AF13: 636 | AG13: 9.9 | AH13: 8 | AI13: 5 | AJ13: 5 | AK13: 159.3 | AL13: 4 | AM13: 71 | AN13: 17.8 | AO13: 0 | AP13: 17 | AQ13: 470 | AR13: 667 | AS13: 70.46476762 | AT13: 6267 | AU13: 9.395802099 | AV13: 10.31034483 | AW13: 53 | AX13: 10 | AY13: 172.6128936 | AZ13: 61 | BA13: 106 | BB13: 1.737704918 | BC13: 3 | BD13: 0 | BE13: 68.18
C14: Ryan Lindley | D14: San Diego State | E14: 37.35 | F14: 2 | G14: 4.86 | I14: 29.5 | J14: 7.52 | K14: 4.45 | L14: 108 | M14: 35 | N14: 13 | O14: 237 | P14: 447 | Q14: 53 | R14: 3153 | S14: 7.1 | T14: 7.3 | U14: 23 | V14: 8 | W14: 125.7 | X14: 18 | Y14: -51 | Z14: -2.8 | AA14: 0 | AB14: 13 | AC14: 243 | AD14: 421 | AE14: 57.7 | AF14: 3830 | AG14: 9.1 | AH14: 8.9 | AI14: 28 | AJ14: 14 | AK14: 149.4 | AL14: 19 | AM14: -31 | AN14: -1.6 | AO14: 0 | AP14: 26 | AQ14: 480 | AR14: 868 | AS14: 55.29953917 | AT14: 6983 | AU14: 8.044930876 | AV14: 8.079493088 | AW14: 51 | AX14: 22 | AY14: 137.197235 | AZ14: 37 | BA14: -82 | BB14: -2.216216216 | BC14: 0 | BD14: 0 | BE14: 31.7475
C15: Andrew Luck | D15: Stanford | E15: 81.06 | F15: 5 | G15: 4.67 | I15: 36 | J15: 6.8 | K15: 4.28 | L15: 124 | M15: 37 | N15: 13 | O15: 288 | P15: 404 | Q15: 71.3 | R15: 3517 | S15: 8.7 | T15: 9.4 | U15: 37 | V15: 10 | W15: 169.7 | X15: 47 | Y15: 150 | Z15: 3.2 | AA15: 2 | AB15: 13 | AC15: 263 | AD15: 372 | AE15: 70.7 | AF15: 3338 | AG15: 9 | AH15: 9.7 | AI15: 32 | AJ15: 8 | AK15: 170.2 | AL15: 55 | AM15: 453 | AN15: 8.2 | AO15: 3 | AP15: 26 | AQ15: 551 | AR15: 776 | AS15: 71.00515464 | AT15: 6855 | AU15: 8.833762887 | AV15: 9.568298969 | AW15: 69 | AX15: 18 | AY15: 169.9123711 | AZ15: 102 | BA15: 603 | BB15: 5.911764706 | BC15: 5 | BD15: 1 | BE15: 81.06
C16: Kellen Moore | D16: Boise State | F16: 0 | G16: 4.94 | I16: 27 | J16: 7.41 | K16: 4.56 | L16: 99 | M16: 26 | N16: 13 | O16: 326 | P16: 439 | Q16: 74.3 | R16: 3800 | S16: 8.7 | T16: 9.7 | U16: 43 | V16: 9 | W16: 175.2 | X16: 20 | Y16: -66 | Z16: -3.3 | AA16: 0 | AB16: 13 | AC16: 273 | AD16: 383 | AE16: 71.3 | AF16: 3845 | AG16: 10 | AH16: 11.2 | AI16: 35 | AJ16: 6 | AK16: 182.6 | AL16: 19 | AM16: -32 | AN16: -1.7 | AO16: 1 | AP16: 26 | AQ16: 599 | AR16: 822 | AS16: 72.87104623 | AT16: 7645 | AU16: 9.300486618 | AV16: 10.37712895 | AW16: 78 | AX16: 15 | AY16: 178.6593674 | AZ16: 39 | BA16: -98 | BB16: -2.512820513 | BC16: 1 | BD16: 0 | BE16: 0
C17: Brock Osweiler | D17: Arizona State | E17: 53.93 | F17: 4 | G17: 4.83 | M17: 25 | N17: 13 | O17: 326 | P17: 516 | Q17: 63.2 | R17: 4036 | S17: 7.8 | T17: 7.7 | U17: 26 | V17: 13 | W17: 140.5 | X17: 83 | Y17: 90 | Z17: 1.1 | AA17: 3 | AB17: 6 | AC17: 62 | AD17: 109 | AE17: 56.9 | AF17: 797 | AG17: 7.3 | AH17: 8.2 | AI17: 5 | AJ17: 0 | AK17: 133.4 | AL17: 80 | AM17: 81 | AN17: 1 | AO17: 2 | AP17: 19 | AQ17: 388 | AR17: 625 | AS17: 62.08 | AT17: 4833 | AU17: 7.7328 | AV17: 7.7888 | AW17: 31 | AX17: 13 | AY17: 139.24352 | AZ17: 163 | BA17: 171 | BB17: 1.049079755 | BC17: 5 | BD17: 1 | BE17: 51.2335
C18: Ryan Tannehill | D18: Texas A&M | E18: 82.2 | F18: 5 | G18: 4.65 | N18: 13 | O18: 327 | P18: 531 | Q18: 61.6 | R18: 3744 | S18: 7.1 | T18: 6.9 | U18: 29 | V18: 15 | W18: 133.2 | X18: 58 | Y18: 306 | Z18: 5.3 | AA18: 4 | AB18: 13 | AC18: 152 | AD18: 234 | AE18: 65 | AF18: 1638 | AG18: 7 | AH18: 7 | AI18: 13 | AJ18: 6 | AK18: 137 | AL18: 51 | AM18: 76 | AN18: 1.5 | AO18: 1 | AP18: 26 | AQ18: 479 | AR18: 765 | AS18: 62.61437908 | AT18: 5382 | AU18: 7.035294118 | AV18: 6.898039216 | AW18: 42 | AX18: 21 | AY18: 134.3383007 | AZ18: 109 | BA18: 382 | BB18: 3.504587156 | BC18: 5 | BD18: 1 | BE18: 82.2
C19: Darron Thomas | D19: Oregon | F19: 0 | G19: 4.8 | H19: 14 | I19: 36 | J19: 7.17 | K19: 4.28 | L19: 121 | N19: 13 | O19: 211 | P19: 339 | Q19: 62.2 | R19: 2761 | S19: 8.1 | T19: 9.2 | U19: 33 | V19: 7 | W19: 158.7 | X19: 56 | Y19: 206 | Z19: 3.7 | AA19: 3 | AB19: 13 | AC19: 222 | AD19: 361 | AE19: 61.5 | AF19: 2881 | AG19: 8 | AH19: 8.5 | AI19: 30 | AJ19: 9 | AK19: 151 | AL19: 93 | AM19: 486 | AN19: 5.2 | AO19: 5 | AP19: 26 | AQ19: 433 | AR19: 700 | AS19: 61.85714286 | AT19: 5642 | AU19: 8.06 | AV19: 8.831428571 | AW19: 63 | AX19: 16 | AY19: 154.6897143 | AZ19: 149 | BA19: 692 | BB19: 4.644295302 | BC19: 8 | BD19: 1 | BE19: 0
C20: Brandon Weeden | D20: Oklahoma State | E20: 60.17 | F20: 3 | N20: 13 | O20: 409 | P20: 565 | Q20: 72.4 | R20: 4727 | S20: 8.4 | T20: 8.6 | U20: 37 | V20: 13 | W20: 159.7 | X20: 17 | Y20: -102 | Z20: -6 | AA20: 1 | AB20: 13 | AC20: 342 | AD20: 511 | AE20: 66.9 | AF20: 4277 | AG20: 8.4 | AH20: 8.6 | AI20: 34 | AJ20: 13 | AK20: 154.1 | AL20: 17 | AM20: -68 | AN20: -4 | AO20: 0 | AP20: 26 | AQ20: 751 | AR20: 1076 | AS20: 69.79553903 | AT20: 9004 | AU20: 8.36802974 | AV20: 8.600371747 | AW20: 71 | AX20: 26 | AY20: 157.029368 | AZ20: 34 | BA20: -170 | BB20: -5 | BC20: 1 | BD20: 1 | BE20: 54.153
C21: Russell Wilson | D21: Wisconsin | E21: 89.14 | F21: 5 | G21: 4.55 | I21: 34 | J21: 6.97 | K21: 4.09 | L21: 118 | N21: 14 | O21: 225 | P21: 309 | Q21: 72.8 | R21: 3175 | S21: 10.3 | T21: 11.8 | U21: 33 | V21: 4 | W21: 191.8 | X21: 79 | Y21: 338 | Z21: 4.3 | AA21: 6 | AB21: 13 | AC21: 308 | AD21: 527 | AE21: 58.4 | AF21: 3563 | AG21: 6.8 | AH21: 6.6 | AI21: 28 | AJ21: 14 | AK21: 127.5 | AL21: 143 | AM21: 435 | AN21: 3 | AO21: 9 | AP21: 27 | AQ21: 533 | AR21: 836 | AS21: 63.75598086 | AT21: 6738 | AU21: 8.059808612 | AV21: 8.550239234 | AW21: 61 | AX21: 18 | AY21: 151.2311005 | AZ21: 222 | BA21: 773 | BB21: 3.481981982 | BC21: 15 | BD21: 1 | BE21: 89.14
C22: Patrick Witt | D22: Yale | F22: 0 | I22: 31.5 | J22: 7.14 | K22: 4.37 | L22: 101 | N22: 10 | O22: 199 | P22: 321 | Q22: 62 | R22: 2368 | U22: 17 | AB22: 9 | AC22: 212 | AD22: 351 | AE22: 60.4 | AF22: 2216 | AG22: 6.31 | AI22: 12 | AJ22: 12 | AK22: 117.9 | AL22: 35 | AM22: -98 | AN22: -2.8 | AO22: 2 | AP22: 19 | AQ22: 411 | AR22: 672 | AS22: 61.16071429 | AT22: 4584 | AU22: 6.821428571 | AV22: 6.880952381 | AW22: 29 | AX22: 12 | AY22: 129.1303571 | AZ22: 35 | BA22: -98 | BB22: -2.8 | BC22: 2 | BD22: 0 | BE22: 0
O23: Rushing | S23: Receiving | W23: Scrimmage | AC23: Rushing | AG23: Receiving | AK23: Scrimmage | AQ23: Rushing | AU23: Receiving | AY23: Scrimmage
N24: Games | O24: Attempts | P24: Yards | Q24: Average | R24: TD | S24: Receptions | T24: Yards | U24: Average | V24: TD | W24: Plays | X24: Yards | Y24: Average | Z24: TD | AB24: Games | AC24: Attempts | AD24: Yards | AE24: Average | AF24: TD | AG24: Receptions | AH24: Yards | AI24: Average | AJ24: TD | AK24: Plays | AL24: Yards | AM24: Average | AN24: TD | AP24: Games | AQ24: Attempts | AR24: Yards | AS24: Average | AT24: TD | AU24: Receptions | AV24: Yards | AW24: Average | AX24: TD | AY24: Plays | AZ24: Yards | BA24: Average | BB24: TD
B25: RB | C25: Edwin Baker | D25: Michigan State | F25: 0 | G25: 4.53 | H25: 20 | I25: 35 | J25: 7.27 | K25: 4.31 | L25: 111 | N25: 14 | O25: 170 | P25: 665 | Q25: 3.9 | R25: 5 | S25: 5 | T25: 60 | U25: 12 | V25: 1 | W25: 175 | X25: 725 | Y25: 4.1 | Z25: 6 | AB25: 13 | AC25: 207 | AD25: 1201 | AE25: 5.8 | AF25: 13 | AG25: 3 | AH25: 22 | AI25: 7.3 | AJ25: 0 | AK25: 210 | AL25: 1223 | AM25: 5.8 | AN25: 13 | AP25: =SUM(N25,AB25) -> 27 | AQ25: =SUM(O25,AC25) -> 377 | AR25: =SUM(P25,AD25) -> 1866 | AS25: =AR25/AQ25 -> 4.949602122 | AT25: =SUM(R25,AF25) -> 18 | AU25: =SUM(S25,AG25) -> 8 | AV25: =SUM(T25,AH25) -> 82 | AW25: =AV25/AU25 -> 10.25 | AX25: =SUM(V25,AJ25) -> 1 | AY25: =SUM(W25,AK25) -> 385 | AZ25: =SUM(X25,AL25) -> 1948 | BA25: =AZ25/AY25 -> 5.05974026 | BB25: =SUM(Z25,AN25) -> 19 | BD25: 1 | BE25: 0
C26: Mike Ball | D26: Nevada | F26: 0 | G26: 4.65 | H26: 21 | I26: 36 | J26: 7.1 | K26: 4.23 | L26: 112 | N26: 9 | O26: 135 | P26: 704 | Q26: 5.2 | R26: 3 | S26: 11 | T26: 42 | U26: 3.8 | V26: 2 | W26: 146 | X26: 746 | Y26: 5.1 | Z26: 5 | AB26: 11 | AC26: 38 | AD26: 259 | AE26: 6.8 | AF26: 4 | AG26: 11 | AH26: 73 | AI26: 6.6 | AJ26: 2 | AK26: 49 | AL26: 332 | AM26: 6.8 | AN26: 6 | AP26: 20 | AQ26: 173 | AR26: 963 | AS26: 5.566473988 | AT26: 7 | AU26: 22 | AV26: 115 | AW26: 5.227272727 | AX26: 4 | AY26: 195 | AZ26: 1078 | BA26: 5.528205128 | BB26: 11 | BD26: 0 | BE26: 0
C27: Vick Ballard | D27: Mississippi State | E27: 71.4 | F27: 1 | G27: 4.65 | H27: 23 | I27: 33 | J27: 7.03 | K27: 4.19 | L27: 115 | N27: 13 | O27: 193 | P27: 1189 | Q27: 6.2 | R27: 10 | S27: 20 | T27: 187 | U27: 9.4 | V27: 1 | W27: 213 | X27: 1376 | Y27: 6.5 | Z27: 11 | AB27: 12 | AC27: 186 | AD27: 968 | AE27: 5.2 | AF27: 19 | AG27: 10 | AH27: 106 | AI27: 10.6 | AJ27: 1 | AK27: 196 | AL27: 1074 | AM27: 5.5 | AN27: 20 | AP27: 25 | AQ27: 379 | AR27: 2157 | AS27: 5.691292876 | AT27: 29 | AU27: 30 | AV27: 293 | AW27: 9.766666667 | AX27: 2 | AY27: 409 | AZ27: 2450 | BA27: 5.990220049 | BB27: 31 | BD27: 1 | BE27: 57.12
C28: Brandon Bolden | D28: Mississippi | E28: 58.25 | F28: 2 | G28: 4.66 | H28: 21 | I28: 38 | J28: 6.96 | K28: 4.44 | L28: 119 | N28: 10 | O28: 96 | P28: 462 | Q28: 4.8 | R28: 4 | S28: 14 | T28: 147 | U28: 10.5 | V28: 1 | W28: 110 | X28: 609 | Y28: 5.5 | Z28: 5 | AB28: 12 | AC28: 163 | AD28: 976 | AE28: 6 | AF28: 14 | AG28: 32 | AH28: 344 | AI28: 10.8 | AJ28: 3 | AK28: 195 | AL28: 1320 | AM28: 6.8 | AN28: 17 | AP28: 22 | AQ28: 259 | AR28: 1438 | AS28: 5.552123552 | AT28: 18 | AU28: 46 | AV28: 491 | AW28: 10.67391304 | AX28: 4 | AY28: 305 | AZ28: 1929 | BA28: 6.324590164 | BB28: 22 | BD28: 1 | BE28: 49.5125
C29: Lennon Creer | D29: Louisiana Tech | F29: 0 | G29: 4.71 | H29: 21 | I29: 33.5 | J29: 7.26 | K29: 4.4 | L29: 110 | N29: 10 | O29: 198 | P29: 838 | Q29: 4.2 | R29: 9 | S29: 18 | T29: 93 | U29: 5.2 | V29: 1 | W29: 216 | X29: 931 | Y29: 4.3 | Z29: 10 | AB29: 12 | AC29: 212 | AD29: 1181 | AE29: 5.6 | AF29: 10 | AG29: 25 | AH29: 181 | AI29: 7.2 | AJ29: 0 | AK29: 237 | AL29: 1362 | AM29: 5.7 | AN29: 10 | AP29: 22 | AQ29: 410 | AR29: 2019 | AS29: 4.924390244 | AT29: 19 | AU29: 43 | AV29: 274 | AW29: 6.372093023 | AX29: 1 | AY29: 453 | AZ29: 2293 | BA29: 5.061810155 | BB29: 20 | BD29: 0 | BE29: 0
C30: Jeff Demps | D30: Florida | F30: 0 | N30: 12 | O30: 98 | P30: 569 | Q30: 5.8 | R30: 6 | S30: 16 | T30: 172 | U30: 10.8 | V30: 0 | W30: 114 | X30: 741 | Y30: 6.5 | Z30: 6 | AB30: 11 | AC30: 92 | AD30: 551 | AE30: 6 | AF30: 3 | AG30: 18 | AH30: 116 | AI30: 6.4 | AJ30: 0 | AK30: 110 | AL30: 667 | AM30: 6.1 | AN30: 3 | AP30: 23 | AQ30: 190 | AR30: 1120 | AS30: 5.894736842 | AT30: 9 | AU30: 34 | AV30: 288 | AW30: 8.470588235 | AX30: 0 | AY30: 224 | AZ30: 1408 | BA30: 6.285714286 | BB30: 9 | BD30: 1 | BE30: 0
C31: Bradie Ewing | D31: Wisconsin | F31: 0 | G31: 4.76 | H31: 14 | I31: 36.5 | J31: 7.14 | K31: 4.16 | L31: 120 | N31: 14 | O31: 0 | P31: 0 | Q31: 0 | R31: 0 | S31: 20 | T31: 246 | U31: 12.3 | V31: 0 | W31: 20 | X31: 246 | Y31: 12.3 | Z31: 0 | AB31: 13 | AC31: 3 | AD31: 19 | AE31: 6.3 | AF31: 1 | AG31: 8 | AH31: 82 | AI31: 10.3 | AJ31: 2 | AK31: 11 | AL31: 101 | AM31: 9.18 | AN31: 3 | AP31: 27 | AQ31: 3 | AR31: 19 | AS31: 6.333333333 | AT31: 1 | AU31: 28 | AV31: 328 | AW31: 11.71428571 | AX31: 2 | AY31: 31 | AZ31: 347 | BA31: 11.19354839 | BB31: 3 | BD31: 1 | BE31: 0
C32: Terrance Ganaway | D32: Baylor | F32: 0 | G32: 4.67 | I32: 37.5 | J32: 7.15 | K32: 4.25 | L32: 119 | N32: 13 | O32: 250 | P32: 1547 | Q32: 6.2 | R32: 21 | S32: 6 | T32: 52 | U32: 8.7 | V32: 1 | W32: 256 | X32: 1599 | Y32: 6.2 | Z32: 22 | AB32: 13 | AC32: 46 | AD32: 295 | AE32: 6.4 | AF32: 2 | AG32: 4 | AH32: 44 | AI32: 11 | AJ32: 0 | AK32: 50 | AL32: 339 | AM32: 6.8 | AN32: 2 | AP32: 26 | AQ32: 296 | AR32: 1842 | AS32: 6.222972973 | AT32: 23 | AU32: 10 | AV32: 96 | AW32: 9.6 | AX32: 1 | AY32: 306 | AZ32: 1938 | BA32: 6.333333333 | BB32: 24 | BD32: 1 | BE32: 0
C33: Cyrus Gray | D33: Texas A&M | F33: 0 | G33: 4.47 | H33: 21 | I33: 32.5 | J33: 7.17 | L33: 114 | N33: 11 | O33: 198 | P33: 1045 | Q33: 5.3 | R33: 12 | S33: 31 | T33: 239 | U33: 7.7 | V33: 3 | W33: 229 | X33: 1284 | Y33: 5.6 | Z33: 15 | AB33: 13 | AC33: 200 | AD33: 1133 | AE33: 5.7 | AF33: 12 | AG33: 34 | AH33: 251 | AI33: 7.4 | AJ33: 1 | AK33: 234 | AL33: 1384 | AM33: 5.9 | AN33: 13 | AP33: 24 | AQ33: 398 | AR33: 2178 | AS33: 5.472361809 | AT33: 24 | AU33: 65 | AV33: 490 | AW33: 7.538461538 | AX33: 4 | AY33: 463 | AZ33: 2668 | BA33: 5.762419006 | BB33: 28 | BD33: 1 | BE33: 0
C34: Jonas Gray | D34: Notre Dame | E34: 75.75 | F34: 2 | H34: 20 | N34: 11 | O34: 114 | P34: 791 | Q34: 6.9 | R34: 12 | S34: 6 | T34: 38 | U34: 6.3 | V34: 0 | W34: 120 | X34: 829 | Y34: 6.9 | Z34: 12 | AB34: 7 | AC34: 20 | AD34: 100 | AE34: 5 | AF34: 0 | AG34: 1 | AH34: 13 | AI34: 13 | AJ34: 0 | AK34: 21 | AL34: 113 | AM34: 5.4 | AN34: 0 | AP34: 18 | AQ34: 134 | AR34: 891 | AS34: 6.649253731 | AT34: 12 | AU34: 7 | AV34: 51 | AW34: 7.285714286 | AX34: 0 | AY34: 141 | AZ34: 942 | BA34: 6.680851064 | BB34: 12 | BD34: 1 | BE34: 64.3875
C35: Jewel Hampton | D35: Southern Illinois | F35: 0 | H35: 26 | N35: 11 | O35: 230 | P35: 1121 | Q35: 4.9 | R35: 17 | S35: 19 | T35: 163 | U35: 8.6 | V35: 0 | W35: 249 | X35: 1284 | Y35: 5.2 | Z35: 17 | AB35: 2 | AC35: 27 | AD35: 114 | AE35: 4.2 | AF35: 1 | AG35: 3 | AH35: 6 | AI35: 2 | AJ35: 1 | AK35: 30 | AL35: 120 | AM35: 4 | AN35: 2 | AP35: 13 | AQ35: 257 | AR35: 1235 | AS35: 4.805447471 | AT35: 18 | AU35: 22 | AV35: 169 | AW35: 7.681818182 | AY35: =SUM(W35,AK35) -> 279 | AZ35: =SUM(X35,AL35) -> 1404 | BA35: 5.032258065 | BB35: 19 | BD35: 0 | BE35: 0
C36: Dan Herron | D36: Ohio State | E36: 62.5 | F36: 1 | G36: 4.66 | H36: 22 | I36: 35 | J36: 6.97 | K36: 4.04 | L36: 117 | N36: 7 | O36: 134 | P36: 675 | Q36: 5 | R36: 3 | S36: 8 | T36: 34 | U36: 4.3 | V36: 0 | W36: 142 | X36: 709 | Y36: 5 | Z36: 3 | AB36: 13 | AC36: 216 | AD36: 1155 | AE36: 5.3 | AF36: 16 | AG36: 19 | AH36: 180 | AI36: 9.5 | AJ36: 0 | AK36: 235 | AL36: 1335 | AM36: 5.7 | AN36: 16 | AP36: 20 | AQ36: 350 | AR36: 1830 | AS36: 5.228571429 | AT36: 19 | AU36: 27 | AV36: 214 | AW36: 7.925925926 | AX36: =SUM(V36,AJ36) -> 0 | AY36: 377 | AZ36: 2044 | BA36: 5.421750663 | BB36: 19 | BD36: 1 | BE36: 50
C37: Ronnie Hillman | D37: San Diego State | E37: 57.58 | F37: 5 | G37: 4.45 | H37: 17 | I37: 37 | N37: 13 | O37: 311 | P37: 1711 | Q37: 5.5 | R37: 19 | S37: 24 | T37: 270 | U37: 11.3 | V37: 1 | W37: 335 | X37: 1981 | Y37: 5.9 | Z37: 20 | AB37: 13 | AC37: 262 | AD37: 1532 | AE37: 5.8 | AF37: 17 | AG37: 9 | AH37: 68 | AI37: 7.6 | AJ37: 1 | AK37: 271 | AL37: 1600 | AM37: 5.9 | AN37: 18 | AP37: 26 | AQ37: 573 | AR37: 3243 | AS37: 5.659685864 | AT37: 36 | AU37: 33 | AV37: 338 | AW37: 10.24242424 | AX37: 2 | AY37: 606 | AZ37: 3581 | BA37: 5.909240924 | BB37: 38 | BD37: 0 | BE37: 57.58
C38: LaMichael James | D38: Oregon | E38: 65.3 | F38: 1 | G38: 4.45 | H38: 15 | I38: 35 | J38: 6.88 | K38: 4.12 | L38: 123 | N38: 12 | O38: 247 | P38: 1805 | Q38: 7.3 | R38: 18 | S38: 17 | T38: 210 | U38: 12.4 | V38: 1 | W38: 264 | X38: 2015 | Y38: 7.6 | Z38: 19 | AB38: 12 | AC38: 294 | AD38: 1731 | AE38: 5.9 | AF38: 21 | AG38: 17 | AH38: 208 | AI38: 12.2 | AJ38: 3 | AK38: 311 | AL38: 1939 | AM38: 6.2 | AN38: 24 | AP38: 24 | AQ38: 541 | AR38: 3536 | AS38: 6.536044362 | AT38: 39 | AU38: 34 | AV38: 418 | AW38: 12.29411765 | AX38: 4 | AY38: 575 | AZ38: 3954 | BA38: 6.876521739 | BB38: 43 | BD38: 1 | BE38: 52.24
C39: Doug Martin | D39: Boise State | E39: 70.6 | F39: 5 | G39: 4.55 | H39: 28 | I39: 36 | J39: 6.79 | K39: 4.16 | L39: 120 | N39: 13 | O39: 263 | P39: 1299 | Q39: 4.9 | R39: 16 | S39: 28 | T39: 255 | U39: 9.1 | V39: 2 | W39: 291 | X39: 1554 | Y39: 5.3 | Z39: 18 | AB39: 13 | AC39: 201 | AD39: 1260 | AE39: 6.3 | AF39: 12 | AG39: 28 | AH39: 338 | AI39: 12.1 | AJ39: 2 | AK39: 229 | AL39: 1598 | AM39: 7 | AN39: 14 | AP39: 26 | AQ39: 464 | AR39: 2559 | AS39: 5.515086207 | AT39: 28 | AU39: 56 | AV39: 593 | AW39: 10.58928571 | AX39: 4 | AY39: 520 | AZ39: 3152 | BA39: 6.061538462 | BB39: 32 | BD39: 0 | BE39: 70.6
C40: Davin Meggett | D40: Maryland | G40: 4.53 | H40: 23 | I40: 35 | J40: 7.14 | K40: 4.32 | L40: 118 | N40: 12 | O40: 171 | P40: 896 | Q40: 5.2 | R40: 4 | S40: 17 | T40: 141 | U40: 8.3 | V40: 1 | W40: 188 | X40: 1037 | Y40: 5.5 | Z40: 5 | AB40: 13 | AC40: 126 | AD40: 720 | AE40: 5.7 | AF40: 4 | AG40: 6 | AH40: 59 | AI40: 9.8 | AJ40: 0 | AK40: 132 | AL40: 779 | AM40: 5.9 | AN40: 4 | AP40: 25 | AQ40: 297 | AR40: 1616 | AS40: 5.441077441 | AT40: 8 | AU40: 23 | AV40: 200 | AW40: 8.695652174 | AX40: 1 | AY40: 320 | AZ40: 1816 | BA40: 5.675 | BB40: 9 | BD40: 1 | BE40: 0
C41: Lamar Miller | D41: Miami (FL) | E41: 72.1 | F41: 5 | G41: 4.4 | I41: 33 | N41: 12 | O41: 227 | P41: 1272 | Q41: 5.6 | R41: 9 | S41: 17 | T41: 85 | U41: 5 | V41: 1 | W41: 244 | X41: 1357 | Y41: 5.6 | Z41: 10 | AB41: 11 | AC41: 108 | AD41: 646 | AE41: 6 | AF41: 6 | AG41: 11 | AH41: 96 | AI41: 8.7 | AJ41: 0 | AK41: 119 | AL41: 742 | AM41: 6.2 | AN41: 6 | AP41: 23 | AQ41: 335 | AR41: 1918 | AS41: 5.725373134 | AT41: 15 | AU41: 28 | AV41: 181 | AW41: 6.464285714 | AX41: 1 | AY41: 363 | AZ41: 2099 | BA41: 5.782369146 | BB41: 16 | BD41: 1 | BE41: 72.1
C42: Alfred Morris | D42: Florida Atlantic | E42: 73.56 | F42: 5 | G42: 4.67 | H42: 16 | I42: 35.5 | J42: 7.01 | K42: 4.19 | L42: 117 | N42: 12 | O42: 236 | P42: 1186 | Q42: 5 | R42: 9 | S42: 15 | T42: 139 | U42: 9.3 | V42: 1 | W42: 251 | X42: 1325 | Y42: 5.3 | Z42: 10 | AB42: 12 | AC42: 227 | AD42: 928 | AE42: 4.1 | AF42: 7 | AG42: 8 | AH42: 47 | AI42: 5.9 | AJ42: 1 | AK42: 235 | AL42: 975 | AM42: 4.1 | AN42: 8 | AP42: 24 | AQ42: 463 | AR42: 2114 | AS42: 4.56587473 | AT42: 16 | AU42: 23 | AV42: 186 | AW42: 8.086956522 | AX42: 2 | AY42: 486 | AZ42: 2300 | BA42: 4.732510288 | BB42: 18 | BD42: 0 | BE42: 73.56
C43: Isaiah Pead | D43: Cincinnati | G43: 4.47 | I43: 33 | J43: 6.95 | K43: 4.32 | L43: 116 | N43: 13 | O43: 237 | P43: 1259 | Q43: 5.3 | R43: 12 | S43: 39 | T43: 319 | U43: 8.2 | V43: 3 | W43: 276 | X43: 1578 | Y43: 5.7 | Z43: 15 | AB43: 11 | AC43: 157 | AD43: 1029 | AE43: 6.6 | AF43: 6 | AG43: 26 | AH43: 190 | AI43: 7.3 | AJ43: 1 | AK43: 183 | AL43: 1219 | AM43: 6.7 | AN43: 7 | AP43: 24 | AQ43: 394 | AR43: 2288 | AS43: 5.807106599 | AT43: 18 | AU43: 65 | AV43: 509 | AW43: 7.830769231 | AX43: 4 | AY43: 459 | AZ43: 2797 | BA43: 6.093681917 | BB43: 22 | BD43: 0 | BE43: 0
C44: Bernard Pierce | D44: Temple | E44: 69.37 | F44: 3 | G44: 4.49 | H44: 17 | I44: 36.5 | J44: 7.07 | K44: 4.28 | L44: 123 | N44: 12 | O44: 273 | P44: 1481 | Q44: 5.4 | R44: 27 | S44: 3 | T44: 52 | U44: 17.3 | V44: 0 | W44: 276 | X44: 1533 | Y44: 5.6 | Z44: 27 | AB44: 10 | AC44: 154 | AD44: 728 | AE44: 4.7 | AF44: 10 | AG44: 8 | AH44: 87 | AI44: 10.9 | AJ44: 1 | AK44: 162 | AL44: 815 | AM44: 5 | AN44: 11 | AP44: 22 | AQ44: 427 | AR44: 2209 | AS44: 5.173302108 | AT44: 37 | AU44: 11 | AV44: 139 | AW44: 12.63636364 | AX44: 1 | AY44: 438 | AZ44: 2348 | BA44: 5.360730594 | BB44: 38 | BD44: 0 | BE44: 62.433
C45: Chris Polk | D45: Washington | E45: 53.4 | F45: 1 | G45: 4.57 | I45: 31.5 | J45: 7.13 | K45: 4.21 | L45: 111 | N45: 13 | O45: 293 | P45: 1488 | Q45: 5.1 | R45: 12 | S45: 31 | T45: 332 | U45: 10.7 | V45: 4 | W45: 324 | X45: 1820 | Y45: 5.6 | Z45: 16 | AB45: 13 | AC45: 260 | AD45: 1415 | AE45: 5.4 | AF45: 9 | AG45: 22 | AH45: 180 | AI45: 8.2 | AJ45: 0 | AK45: 282 | AL45: 1595 | AM45: 5.7 | AN45: 9 | AP45: 26 | AQ45: 553 | AR45: 2903 | AS45: 5.24954792 | AT45: 21 | AU45: 53 | AV45: 512 | AW45: 9.660377358 | AX45: 4 | AY45: 606 | AZ45: 3415 | BA45: 5.635313531 | BB45: 25 | BD45: 1 | BE45: 42.72
C46: Tauren Poole | D46: Tennessee | G46: 4.54 | H46: 24 | I46: 34 | J46: 7.36 | K46: 4.19 | L46: 118 | N46: 12 | O46: 187 | P46: 693 | Q46: 3.7 | R46: 5 | S46: 21 | T46: 164 | U46: 7.8 | V46: 0 | W46: 208 | X46: 857 | Y46: 4.1 | Z46: 5 | AB46: 13 | AC46: 204 | AD46: 1034 | AE46: 5.1 | AF46: 11 | AG46: 22 | AH46: 171 | AI46: 7.8 | AJ46: 1 | AK46: 226 | AL46: 1205 | AM46: 5.3 | AN46: 12 | AP46: 25 | AQ46: 391 | AR46: 1727 | AS46: 4.416879795 | AT46: 16 | AU46: 43 | AV46: 335 | AW46: 7.790697674 | AX46: 1 | AY46: 434 | AZ46: 2062 | BA46: 4.751152074 | BB46: 17 | BD46: 1 | BE46: 0
C47: Chris Rainey | D47: Florida | E47: 50.9 | F47: 1 | G47: 4.45 | H47: 16 | I47: 36.5 | J47: 6.5 | K47: 3.93 | L47: 120 | N47: 12 | O47: 171 | P47: 861 | Q47: 5 | R47: 2 | S47: 31 | T47: 381 | U47: 12.3 | V47: 2 | W47: 202 | X47: 1242 | Y47: 6.1 | Z47: 4 | AB47: 8 | AC47: 51 | AD47: 366 | AE47: 7.2 | AF47: 2 | AG47: 25 | AH47: 216 | AI47: 8.6 | AJ47: 3 | AK47: 76 | AL47: 582 | AM47: 7.7 | AN47: 5 | AP47: 20 | AQ47: 222 | AR47: 1227 | AS47: 5.527027027 | AT47: 4 | AU47: 56 | AV47: 597 | AW47: 10.66071429 | AX47: 5 | AY47: 278 | AZ47: 1824 | BA47: 6.561151079 | BB47: 9 | BD47: 1 | BE47: 40.72
C48: Trent Richardson | D48: Alabama | E48: 65.47 | F48: 3 | N48: 13 | O48: 283 | P48: 1679 | Q48: 5.9 | R48: 21 | S48: 29 | T48: 338 | U48: 11.7 | V48: 3 | W48: 312 | X48: 2017 | Y48: 6.5 | Z48: 24 | AB48: 11 | AC48: 112 | AD48: 700 | AE48: 6.3 | AF48: 6 | AG48: 23 | AH48: 266 | AI48: 11.6 | AJ48: 4 | AK48: 135 | AL48: 966 | AM48: 7.2 | AN48: 10 | AP48: 24 | AQ48: 395 | AR48: 2379 | AS48: 6.02278481 | AT48: 27 | AU48: 52 | AV48: 604 | AW48: 11.61538462 | AX48: 7 | AY48: 447 | AZ48: 2983 | BA48: 6.673378076 | BB48: 34 | BD48: 1 | BE48: 58.923
C49: Darrell Scott | D49: South Florida | G49: 4.73 | I49: 31.5 | N49: 11 | O49: 153 | P49: 814 | Q49: 5.3 | R49: 5 | S49: 15 | T49: 169 | U49: 11.3 | V49: 1 | W49: 168 | X49: 983 | Y49: 5.9 | Z49: 6 | AB49: 13 | AC49: 122 | AD49: 708 | AE49: 5.8 | AF49: 5 | AG49: 14 | AH49: 170 | AI49: 12.1 | AJ49: 3 | AK49: 136 | AL49: 878 | AM49: 6.5 | AN49: 8 | AP49: 24 | AQ49: 275 | AR49: 1522 | AS49: 5.534545455 | AT49: 10 | AU49: 29 | AV49: 339 | AW49: 11.68965517 | AX49: 4 | AY49: 304 | AZ49: 1861 | BA49: 6.121710526 | BB49: 14 | BD49: 1 | BE49: 0
C50: Robert Turbin | D50: Utah State | E50: 69.36 | F50: 5 | G50: 4.5 | H50: 28 | I50: 36 | J50: 7.16 | K50: 4.31 | L50: 122 | N50: 13 | O50: 249 | P50: 1517 | Q50: 6.1 | R50: 19 | S50: 17 | T50: 171 | U50: 10.1 | V50: 4 | W50: 266 | X50: 1688 | Y50: 6.3 | Z50: 23 | AB50: 12 | AC50: 207 | AD50: 1296 | AE50: 6.3 | AF50: 13 | AG50: 30 | AH50: 418 | AI50: 13.9 | AJ50: 5 | AK50: 237 | AL50: 1714 | AM50: 7.2 | AN50: 18 | AP50: 25 | AQ50: 456 | AR50: 2813 | AS50: 6.168859649 | AT50: 32 | AU50: 47 | AV50: 589 | AW50: 12.53191489 | AX50: 9 | AY50: 503 | AZ50: 3402 | BA50: 6.763419483 | BB50: 41 | BD50: 0 | BE50: 69.36
C51: Marc Tyler | D51: USC | G51: 4.76 | H51: 19 | I51: 30.5 | L51: 110 | N51: 10 | O51: 122 | P51: 568 | Q51: 4.7 | R51: 4 | S51: 11 | T51: 108 | U51: 9.8 | V51: 0 | W51: 133 | X51: 676 | Y51: 5.1 | Z51: 4 | AB51: 13 | AC51: 171 | AD51: 913 | AE51: 5.3 | AF51: 9 | AG51: 17 | AH51: 127 | AI51: 7.5 | AJ51: 1 | AK51: 188 | AL51: 1040 | AM51: 5.5 | AN51: 10 | AP51: 23 | AQ51: 293 | AR51: 1481 | AS51: 5.054607509 | AT51: 13 | AU51: 28 | AV51: 235 | AW51: 8.392857143 | AX51: 1 | AY51: 321 | AZ51: 1716 | BA51: 5.345794393 | BB51: 14 | BD51: 1 | BE51: 0
C52: Foswhitt Whittaker | D52: Texas | E52: 62.13 | F52: 3 | H52: 20 | N52: 9 | O52: 66 | P52: 386 | Q52: 5.8 | R52: 6 | S52: 16 | T52: 145 | U52: 9.1 | V52: 1 | W52: 82 | X52: 531 | Y52: 6.5 | Z52: 7 | AB52: 11 | AC52: 80 | AD52: 351 | AE52: 4.4 | AF52: 2 | AG52: 34 | AH52: 217 | AI52: 6.4 | AJ52: 0 | AK52: 114 | AL52: 568 | AM52: 5 | AN52: 2 | AP52: 20 | AQ52: 146 | AR52: 737 | AS52: 5.047945205 | AT52: 8 | AU52: 50 | AV52: 362 | AW52: 7.24 | AX52: 1 | AY52: 196 | AZ52: 1099 | BA52: 5.607142857 | BB52: 9 | BD52: 1 | BE52: 55.917
C53: David Wilson | D53: Virginia Tech | E53: 64.85 | F53: 2 | G53: 4.49 | I53: 41 | J53: 7.09 | K53: 4.12 | L53: 132 | N53: 14 | O53: 290 | P53: 1709 | Q53: 5.9 | R53: 9 | S53: 22 | T53: 129 | U53: 5.9 | V53: 1 | W53: 312 | X53: 1838 | Y53: 5.9 | Z53: 10 | AB53: 13 | AC53: 113 | AD53: 619 | AE53: 5.5 | AF53: 5 | AG53: 15 | AH53: 234 | AI53: 15.6 | AJ53: 4 | AK53: 128 | AL53: 853 | AM53: 6.7 | AN53: 9 | AP53: 27 | AQ53: 403 | AR53: 2328 | AS53: 5.776674938 | AT53: 14 | AU53: 37 | AV53: 363 | AW53: 9.810810811 | AX53: 5 | AY53: 440 | AZ53: 2691 | BA53: 6.115909091 | BB53: 19 | BD53: 1 | BE53: 55.1225
O54: Receiving | S54: Rushing | W54: Scrimmage | AC54: Receiving | AG54: Rushing | AK54: Scrimmage | AQ54: Receiving | AU54: Rushing | AY54: Scrimmage
N55: Games | O55: Receptions | P55: Yards | Q55: Average | R55: TD | S55: Attempts | T55: Yards | U55: Average | V55: TD | W55: Plays | X55: Yards | Y55: Average | Z55: TD | AB55: Games | AC55: Receptions | AD55: Yards | AE55: Average | AF55: TD | AG55: Attempts | AH55: Yards | AI55: Average | AJ55: TD | AK55: Plays | AL55: Yards | AM55: Average | AN55: TD | AP55: Games | AQ55: Receptions | AR55: Yards | AS55: Average | AT55: TD | AU55: Attempts | AV55: Yards | AW55: Average | AX55: TD | AY55: Plays | AZ55: Yards | BA55: Average | BB55: TD
B56: TE | C56: Dwayne Allen | D56: Clemson | E56: 67.32 | F56: 5 | G56: 4.89 | H56: 27 | I56: 32 | J56: 7.12 | K56: 4.37 | L56: 110 | N56: 14 | O56: 50 | P56: 598 | Q56: 12 | R56: 8 | S56: 0 | T56: 0 | U56: 0 | V56: 0 | W56: 50 | X56: 598 | Y56: 12 | Z56: 8 | AB56: 13 | AC56: 33 | AD56: 373 | AE56: 11.3 | AF56: 1 | AG56: 0 | AH56: 0 | AI56: 0 | AJ56: 0 | AK56: 33 | AL56: 373 | AM56: 11.3 | AN56: 1 | AP56: =SUM(N56,AB56) -> 27 | AQ56: =SUM(O56,AC56) -> 83 | AR56: =SUM(P56,AD56) -> 971 | AS56: =AR56/AQ56 -> 11.69879518 | AT56: =SUM(R56,AF56) -> 9 | AU56: =S56+AG56 -> 0 | AV56: =AH56+T56 -> 0 | AW56: =(U56+AI56)/2 -> 0 | AX56: =AJ56+V56 -> 0 | AY56: =SUM(W56,AK56) -> 83 | AZ56: =SUM(X56,AL56) -> 971 | BA56: =AZ56/AY56 -> 11.69879518 | BB56: =SUM(Z56,AN56) -> 9 | BD56: 1 | BE56: 67.32
C57: Orson Charles | D57: Georgia | E57: 53.5 | F57: 2 | H57: 35 | N57: 14 | O57: 45 | P57: 574 | Q57: 12.8 | R57: 5 | S57: 0 | T57: 0 | U57: 0 | V57: 0 | W57: 45 | X57: 574 | Y57: 12.8 | Z57: 5 | AB57: 13 | AC57: 26 | AD57: 422 | AE57: 16.2 | AF57: 2 | AG57: 0 | AH57: 0 | AI57: 0 | AJ57: 0 | AK57: 26 | AL57: 422 | AM57: 16.2 | AN57: 2 | AP57: 27 | AQ57: 71 | AR57: 996 | AS57: 14.02816901 | AT57: 7 | AU57: 0 | AV57: 0 | AW57: 0 | AX57: 0 | AY57: 71 | AZ57: 996 | BA57: 14.02816901 | BB57: 7 | BD57: 1 | BE57: 45.475
C58: Drake Dunsmore | D58: Missouri | F58: 0 | G58: 4.64 | H58: 21 | I58: 35.5 | J58: 6.73 | K58: 4.03 | L58: 117 | N58: 13 | O58: 45 | P58: 522 | Q58: 11.6 | R58: 6 | S58: 0 | T58: 0 | U58: 0 | V58: 0 | W58: 45 | X58: 522 | Y58: 11.6 | Z58: 6 | AB58: 13 | AC58: 40 | AD58: 381 | AE58: 9.5 | AF58: 5 | AG58: 0 | AH58: 0 | AI58: 0 | AJ58: 0 | AK58: 40 | AL58: 381 | AM58: 9.5 | AN58: 5 | AP58: 26 | AQ58: 85 | AR58: 903 | AS58: 10.62352941 | AT58: 11 | AU58: 0 | AV58: 0 | AW58: 0 | AX58: 0 | AY58: 85 | AZ58: 903 | BA58: 10.62352941 | BB58: 11 | BD58: 1 | BE58: 0
C59: Rhett Ellison | D59: USC | E59: 77.2 | F59: 5 | G59: 4.88 | I59: 31.5 | L59: 109 | N59: 12 | O59: 22 | P59: 133 | Q59: 6 | R59: 2 | S59: 1 | T59: -5 | U59: -5 | V59: 0 | W59: 23 | X59: 128 | Y59: 5.6 | Z59: 2 | AB59: 13 | AC59: 21 | AD59: 239 | AE59: 11.4 | AF59: 3 | AG59: 0 | AH59: 0 | AI59: 0 | AJ59: 0 | AK59: 21 | AL59: 239 | AM59: 11.4 | AN59: 3 | AP59: 25 | AQ59: 43 | AR59: 372 | AS59: 8.651162791 | AT59: 5 | AU59: 1 | AV59: -5 | AW59: -2.5 | AX59: 0 | AY59: 44 | AZ59: 367 | BA59: 8.340909091 | BB59: 5 | BD59: 1 | BE59: 77.2
C60: Michael Egnew | D60: USC | E60: 59.4 | F60: 1 | G60: 4.62 | H60: 21 | I60: 36 | J60: 7.03 | K60: 4.32 | L60: 131 | N60: 13 | O60: 50 | P60: 523 | Q60: 10.5 | R60: 3 | S60: 3 | T60: 8 | U60: 2.7 | V60: 0 | W60: 53 | X60: 531 | Y60: 10 | Z60: 3 | AB60: 13 | AC60: 90 | AD60: 762 | AE60: 8.5 | AF60: 5 | AG60: 0 | AH60: 0 | AI60: 0 | AJ60: 0 | AK60: 90 | AL60: 762 | AM60: 8.5 | AN60: 5 | AP60: 26 | AQ60: 140 | AR60: 1285 | AS60: 9.178571429 | AT60: 8 | AU60: 3 | AV60: 8 | AW60: 1.35 | AX60: 0 | AY60: 143 | AZ60: 1293 | BA60: 9.041958042 | BB60: 8 | BD60: 1 | BE60: 47.52
C61: Coby Fleener | D61: Stanford | E61: 66.8 | F61: 5 | H61: 27 | N61: 13 | O61: 34 | P61: 667 | Q61: 19.6 | R61: 10 | S61: 0 | T61: 0 | U61: 0 | V61: 0 | W61: 34 | X61: 667 | Y61: 19.6 | Z61: 10 | AB61: 13 | AC61: 28 | AD61: 434 | AE61: 15.5 | AF61: 7 | AG61: 0 | AH61: 0 | AI61: 0 | AJ61: 0 | AK61: 28 | AL61: 434 | AM61: 15.5 | AN61: 7 | AP61: 26 | AQ61: 62 | AR61: 1101 | AS61: 17.75806452 | AT61: 17 | AU61: 0 | AV61: 0 | AW61: 0 | AX61: 0 | AY61: 62 | AZ61: 1101 | BA61: 17.75806452 | BB61: 17 | BD61: 1 | BE61: 66.8
C62: Ladarius Green | D62: Louisiana-Lafayette | G62: 4.53 | H62: 16 | I62: 34.5 | J62: 7.12 | K62: 4.47 | L62: 124 | N62: 12 | O62: 51 | P62: 606 | Q62: 11.9 | R62: 8 | S62: 1 | T62: 20 | U62: 20 | V62: 0 | W62: 52 | X62: 626 | Y62: 12 | Z62: 8 | AB62: 10 | AC62: 44 | AD62: 794 | AE62: 18 | AF62: 7 | AG62: 0 | AH62: 0 | AI62: 0 | AJ62: 0 | AK62: 44 | AL62: 794 | AM62: 18 | AN62: 7 | AP62: 22 | AQ62: 95 | AR62: 1400 | AS62: 14.73684211 | AT62: 15 | AU62: 1 | AV62: 20 | AW62: 10 | AX62: 0 | AY62: 96 | AZ62: 1420 | BA62: 14.79166667 | BB62: 15 | BD62: 0 | BE62: 0
C63: James Hanna | D63: Oklahoma | E63: 63.46 | F63: 5 | G63: 4.49 | H63: 24 | I63: 36 | J63: 6.76 | K63: 4.11 | L63: 122 | N63: 13 | O63: 27 | P63: 381 | Q63: 14.1 | R63: 2 | S63: 0 | T63: 0 | U63: 0 | V63: 0 | W63: 27 | X63: 381 | Y63: 14.1 | Z63: 2 | AB63: 14 | AC63: 18 | AD63: 292 | AE63: 16.2 | AF63: 7 | AG63: 0 | AH63: 0 | AI63: 0 | AJ63: 0 | AK63: 18 | AL63: 292 | AM63: 16.2 | AN63: 7 | AP63: 27 | AQ63: 45 | AR63: 673 | AS63: 14.95555556 | AT63: 9 | AU63: 0 | AV63: 0 | AW63: 0 | AX63: 0 | AY63: 45 | AZ63: 673 | BA63: 14.95555556 | BB63: 9 | BD63: 1 | BE63: 63.46
C64: Cory Harkey | D64: UCLA | E64: 68.35 | F64: 4 | G64: 5.11 | H64: 13 | I64: 26.5 | J64: 7.4 | K64: 4.69 | L64: 109 | N64: 14 | O64: 1 | P64: 10 | Q64: 10 | R64: 0 | S64: 0 | T64: 0 | U64: 0 | V64: 0 | W64: 1 | X64: 10 | Y64: 10 | Z64: 0 | AB64: 12 | AC64: 14 | AD64: 140 | AE64: 10 | AF64: 0 | AG64: 0 | AH64: 0 | AI64: 0 | AJ64: 0 | AK64: 14 | AL64: 140 | AM64: 10 | AN64: 0 | AP64: 26 | AQ64: 15 | AR64: 150 | AS64: 10 | AT64: 0 | AU64: 0 | AV64: 0 | AW64: 0 | AX64: 0 | AY64: 15 | AZ64: 150 | BA64: 10 | BB64: 0 | BD64: 1 | BE64: 64.9325
C65: David Paulson | D65: Oregon | E65: 48.95 | F65: 2 | G65: 4.93 | H65: 21 | I65: 32 | J65: 7.18 | K65: 4.4 | L65: 110 | N65: 14 | O65: 31 | P65: 438 | Q65: 14.1 | R65: 6 | S65: 0 | T65: 0 | U65: 0 | V65: 0 | W65: 31 | X65: 438 | Y65: 14.1 | Z65: 6 | AB65: 13 | AC65: 24 | AD65: 418 | AE65: 17.4 | AF65: 4 | AG65: 0 | AH65: 0 | AI65: 0 | AJ65: 0 | AK65: 24 | AL65: 418 | AM65: 17.4 | AN65: 4 | AP65: 27 | AQ65: 55 | AR65: 856 | AS65: 15.56363636 | AT65: 10 | AU65: 0 | AV65: 0 | AW65: 0 | AX65: 0 | AY65: 55 | AZ65: 856 | BA65: 15.56363636 | BB65: 10 | BD65: 1 | BE65: 41.6075
C66: Deangelo Peterson | D66: LSU | F66: 0 | G66: 4.76 | H66: 18 | I66: 36 | J66: 7.19 | L66: 121 | N66: 14 | O66: 18 | P66: 179 | Q66: 9.9 | R66: 1 | S66: 1 | T66: -8 | U66: -8 | V66: 0 | W66: 19 | X66: 171 | Y66: 9 | Z66: 1 | AB66: 10 | AC66: 16 | AD66: 198 | AE66: 12.4 | AF66: 0 | AG66: 1 | AH66: 23 | AI66: 23 | AJ66: 0 | AK66: 17 | AL66: 221 | AM66: 13 | AN66: 0 | AP66: 24 | AQ66: 34 | AR66: 377 | AS66: 11.08823529 | AT66: 1 | AU66: 2 | AV66: 15 | AW66: 7.5 | AX66: 0 | AY66: 36 | AZ66: 392 | BA66: 10.88888889 | BB66: 1 | BD66: 1 | BE66: 0
C67: Nick Provo | D67: Syracuse | F67: 0 | N67: 12 | O67: 51 | P67: 537 | Q67: 10.5 | R67: 7 | S67: 1 | T67: 1 | U67: 1 | V67: 0 | W67: 52 | X67: 538 | Y67: 10.3 | Z67: 7 | AB67: 13 | AC67: 33 | AD67: 365 | AE67: 11.1 | AF67: 1 | AG67: 0 | AH67: 0 | AI67: 0 | AJ67: 0 | AK67: 33 | AL67: 365 | AM67: 11.1 | AN67: 1 | AP67: 25 | AQ67: 84 | AR67: 902 | AS67: 10.73809524 | AT67: 8 | AU67: 1 | AV67: 1 | AW67: 0.5 | AX67: 0 | AY67: 85 | AZ67: 903 | BA67: 10.62352941 | BB67: 8 | BD67: 1 | BE67: 0
C68: Beau Reliford | D68: Florida State | F68: 0 | N68: 12 | O68: 7 | P68: 69 | Q68: 9.9 | R68: 0 | S68: 0 | T68: 0 | U68: 0 | V68: 0 | W68: 7 | X68: 69 | Y68: 9.9 | Z68: 0 | AB68: 13 | AC68: 17 | AD68: 198 | AE68: 11.6 | AF68: 1 | AG68: 0 | AH68: 0 | AI68: 0 | AJ68: 0 | AK68: 17 | AL68: 198 | AM68: 11.6 | AN68: 1 | AP68: 25 | AQ68: 24 | AR68: 267 | AS68: 11.125 | AT68: 1 | AU68: 0 | AV68: 0 | AW68: 0 | AX68: 0 | AY68: 24 | AZ68: 267 | BA68: 11.125 | BB68: 1 | BD68: 1 | BE68: 0
C69: Evan Rodriguez | D69: Temple | E69: 67 | F69: 1 | G69: 4.58 | H69: 18 | I69: 36 | J69: 6.94 | K69: 4.28 | L69: 119 | N69: 13 | O69: 35 | P69: 479 | Q69: 13.7 | R69: 2 | S69: 0 | T69: 0 | U69: 0 | V69: 0 | W69: 35 | X69: 479 | Y69: 13.7 | Z69: 2 | AB69: 11 | AC69: 211 | AD69: 247 | AE69: 11.8 | AF69: 2 | AG69: 1 | AH69: 1 | AI69: 1 | AJ69: 0 | AK69: 22 | AL69: 248 | AM69: 11.3 | AN69: 2 | AP69: 24 | AQ69: 246 | AR69: 726 | AS69: 2.951219512 | AT69: 4 | AU69: 1 | AV69: 1 | AW69: 0.5 | AX69: 0 | AY69: 57 | AZ69: 727 | BA69: 12.75438596 | BB69: 4 | BD69: 0 | BE69: =IF(F69=0,E69*0,IF(F69=1,E69*$BN$2,IF(F69=2,E69*$BM$2,IF(F69=3,E69*$BL$2,IF(F69=4,E69*$BK$2,E69*$BJ$2))))) -> 53.6
O70: Receiving | S70: Rushing | W70: Scrimmage | AC70: Receiving | AG70: Rushing | AK70: Scrimmage | AQ70: Receiving | AU70: Rushing | AY70: Scrimmage
N71: Games | O71: Receptions | P71: Yards | Q71: Average | R71: TD | S71: Attempts | T71: Yards | U71: Average | V71: TD | W71: Plays | X71: Yards | Y71: Average | Z71: TD | AB71: Games | AC71: Receptions | AD71: Yards | AE71: Average | AF71: TD | AG71: Attempts | AH71: Yards | AI71: Average | AJ71: TD | AK71: Plays | AL71: Yards | AM71: Average | AN71: TD | AP71: Games | AQ71: Receptions | AR71: Yards | AS71: Average | AT71: TD | AU71: Attempts | AV71: Yards | AW71: Average | AX71: TD | AY71: Plays | AZ71: Yards | BA71: Average | BB71: TD
B72: WR | C72: Joe Adams | D72: Arkansas | F72: 0 | G72: 4.55 | I72: 36 | J72: 7.09 | L72: 123 | N72: 13 | O72: 54 | P72: 652 | Q72: 12.1 | R72: 3 | S72: 10 | T72: 139 | U72: 13.9 | V72: 1 | W72: 64 | X72: 791 | Y72: 12.4 | Z72: 4 | AB72: 12 | AC72: 50 | AD72: 813 | AE72: 16.3 | AF72: 6 | AG72: 6 | AH72: 32 | AI72: 5.3 | AJ72: 0 | AK72: 56 | AL72: 845 | AM72: 15.1 | AN72: 6 | AP72: =SUM(N72,AB72) -> 25 | AQ72: =SUM(O72,AC72) -> 104 | AR72: =SUM(P72,AD72) -> 1465 | AS72: =AR72/AQ72 -> 14.08653846 | AT72: =SUM(R72,AF72) -> 9 | AU72: =SUM(S72,AG72) -> 16 | AV72: =SUM(T72,AH72) -> 171 | AW72: =AV72/AU72 -> 10.6875 | AX72: =SUM(V72,AJ72) -> 1 | AY72: =SUM(W72,AK72) -> 120 | AZ72: =SUM(X72,AL72) -> 1636 | BA72: =AZ72/AY72 -> 13.63333333 | BB72: =SUM(Z72,AN72) -> 10 | BD72: 1 | BE72: 0
C73: Tim Benford | D73: Tennessee Tech | F73: 0 | G73: 4.59 | H73: 15 | AP73: 0 | AQ73: 0 | AR73: 0 | AT73: 0 | AU73: 0 | AV73: 0 | AW73: 0 | AX73: 0 | AY73: 0 | AZ73: 0 | BB73: 0 | BD73: 0 | BE73: 0
C74: Travis Benjamin | D74: Miami (FL) | E74: 67.12 | F74: 5 | G74: 4.36 | H74: 14 | I74: 38 | L74: 119 | N74: 11 | O74: 41 | P74: 609 | Q74: 14.9 | R74: 3 | S74: 8 | T74: 19 | U74: 2.4 | V74: 0 | W74: 49 | X74: 628 | Y74: 12.8 | Z74: 3 | AB74: 13 | AC74: 43 | AD74: 743 | AE74: 17.3 | AF74: 3 | AG74: 3 | AH74: 44 | AI74: 14.7 | AJ74: 0 | AK74: 46 | AL74: 787 | AM74: 17.1 | AN74: 3 | AP74: 24 | AQ74: 84 | AR74: 1352 | AS74: 16.0952381 | AT74: 6 | AU74: 11 | AV74: 63 | AW74: =AV74/AU74 -> 5.727272727 | AX74: 0 | AY74: 95 | AZ74: 1415 | BA74: 14.89473684 | BB74: 6 | BD74: 1 | BE74: 67.12
C75: Justin Blackmon | D75: Oklahoma State | E75: 68.8 | F75: 2 | H75: 14 | N75: 13 | O75: 122 | P75: 1522 | Q75: 12.5 | R75: 18 | S75: 4 | T75: 7 | U75: 1.8 | V75: 0 | W75: 126 | X75: 1529 | Y75: 12.1 | Z75: 18 | AB75: 12 | AC75: 111 | AD75: 1782 | AE75: 16.1 | AF75: 20 | AG75: 4 | AH75: 77 | AI75: 19.3 | AJ75: 1 | AK75: 115 | AL75: 1859 | AM75: 16.2 | AN75: 21 | AP75: 25 | AQ75: 233 | AR75: 3304 | AS75: 14.18025751 | AT75: 38 | AU75: 8 | AV75: 84 | AW75: =AV75/AU75 -> 10.5 | AX75: 1 | AY75: 241 | AZ75: 3388 | BA75: 14.05809129 | BB75: 39 | BD75: 1 | BE75: 58.48
C76: Jarrett Boykin | D76: Virginia Tech | E76: 58.7 | F76: 2 | G76: 4.74 | H76: 11 | I76: 36 | J76: 7.12 | K76: 4.28 | L76: 123 | N76: 13 | O76: 61 | P76: 761 | Q76: 12.5 | R76: 5 | S76: 0 | T76: 0 | U76: 0 | V76: 0 | W76: 61 | X76: 761 | Y76: 12.5 | Z76: 5 | AB76: 14 | AC76: 53 | AD76: 847 | AE76: 16 | AF76: 6 | AG76: 0 | AH76: 0 | AI76: 0 | AJ76: 0 | AK76: 53 | AL76: 847 | AM76: 16 | AN76: 6 | AP76: 27 | AQ76: 114 | AR76: 1608 | AS76: 14.10526316 | AT76: 11 | AU76: 0 | AV76: 0 | AW76: 0 | AX76: 0 | AY76: 114 | AZ76: 1608 | BA76: 14.10526316 | BB76: 11 | BD76: 1 | BE76: 49.895
C77: LaVon Brazill | D77: Ohio | E77: 61.15 | F77: 2 | G77: 4.48 | H77: 11 | I77: 32.5 | N77: 14 | O77: 72 | P77: 1150 | Q77: 16 | R77: 11 | S77: 5 | T77: 73 | U77: 14.6 | V77: 1 | W77: 77 | X77: 1223 | Y77: 15.9 | Z77: 12 | AB77: 3 | AC77: 12 | AD77: 78 | AE77: 6.5 | AF77: 0 | AG77: 3 | AH77: 5 | AI77: 1.7 | AJ77: 0 | AK77: 15 | AL77: 83 | AM77: 5.5 | AN77: 0 | AP77: 17 | AQ77: 84 | AR77: 1228 | AS77: 14.61904762 | AT77: 11 | AU77: 8 | AV77: 78 | AW77: =AV77/AU77 -> 9.75 | AX77: 1 | AY77: 92 | AZ77: 1306 | BA77: 14.19565217 | BB77: 12 | BD77: 0 | BE77: 51.9775
C78: Ryan Broyles | D78: Oklahoma | E78: 60.95 | F78: 2 | H78: 21 | N78: 9 | O78: 83 | P78: 1157 | Q78: 13.9 | R78: 10 | S78: 1 | T78: 3 | U78: 3 | V78: 0 | W78: 84 | X78: 1160 | Y78: 13.8 | Z78: 10 | AB78: 14 | AC78: 131 | AD78: 1622 | AE78: 12.4 | AF78: 14 | AG78: 0 | AH78: 0 | AI78: 0 | AJ78: 0 | AK78: 131 | AL78: 1622 | AM78: 12.4 | AN78: 14 | AP78: 23 | AQ78: 214 | AR78: 2779 | AS78: 12.98598131 | AT78: 24 | AU78: 1 | AV78: 3 | AW78: =AV78/AU78 -> 3 | AX78: 0 | AY78: 215 | AZ78: 2782 | BA78: 12.93953488 | BB78: 24 | BD78: 1 | BE78: 51.8075
C79: Greg Childs | D79: Arkansas | F79: 0 | G79: 4.55 | H79: 19 | I79: 36.5 | L79: 125 | N79: 11 | O79: 21 | P79: 240 | Q79: 11.4 | R79: 0 | S79: 0 | T79: 0 | U79: 0 | V79: 0 | W79: 21 | X79: 240 | Y79: 11.4 | Z79: 0 | AB79: 8 | AC79: 46 | AD79: 659 | AE79: 14.3 | AF79: 6 | AG79: 0 | AH79: 0 | AI79: 0 | AJ79: 0 | AK79: 46 | AL79: 659 | AM79: 14.3 | AN79: 6 | AP79: 19 | AQ79: 67 | AR79: 899 | AS79: 13.41791045 | AT79: 6 | AU79: 0 | AV79: 0 | AW79: 0 | AX79: 0 | AY79: 67 | AZ79: 899 | BA79: 13.41791045 | BB79: 6 | BD79: 1 | BE79: 0
C80: Danny Coale | D80: Virginia Tech | F80: 0 | G80: 4.5 | H80: 12 | I80: 35 | J80: 6.69 | K80: 4.15 | L80: 115 | N80: 14 | O80: 60 | P80: 904 | Q80: 15.1 | R80: 3 | S80: 4 | T80: 26 | U80: 6.5 | V80: 0 | W80: 64 | X80: 930 | Y80: 14.5 | Z80: 3 | AB80: 14 | AC80: 39 | AD80: 732 | AE80: 18.8 | AF80: 3 | AG80: 1 | AH80: -3 | AI80: -3 | AJ80: 0 | AK80: 40 | AL80: 729 | AM80: 18.2 | AN80: 3 | AP80: 28 | AQ80: 99 | AR80: 1636 | AS80: 16.52525253 | AT80: 6 | AU80: 5 | AV80: 23 | AW80: =AV80/AU80 -> 4.6 | AX80: 0 | AY80: 104 | AZ80: 1659 | BA80: 15.95192308 | BB80: 6 | BD80: 1 | BE80: 0
C81: Josh Cooper | D81: Oklahoma State | E81: 67.9 | F81: 1 | H81: 11 | N81: 12 | O81: 71 | P81: 715 | Q81: 10.1 | R81: 3 | S81: 2 | T81: 3 | U81: 1.5 | V81: 0 | W81: 73 | X81: 718 | Y81: 9.8 | Z81: 3 | AB81: 13 | AC81: 68 | AD81: 736 | AE81: 10.8 | AF81: 5 | AG81: 3 | AH81: 39 | AI81: 13 | AJ81: 0 | AK81: 71 | AL81: 775 | AM81: 10.9 | AN81: 5 | AP81: 25 | AQ81: 139 | AR81: 1451 | AS81: 10.43884892 | AT81: 8 | AU81: 5 | AV81: 42 | AW81: 8.4 | AX81: 0 | AY81: 144 | AZ81: 1493 | BA81: 10.36805556 | BB81: 8 | BD81: 1 | BE81: 54.32
C82: Juron Criner | D82: Arizona | E82: 72.4 | F82: 1 | G82: 4.68 | H82: 17 | I82: 38 | J82: 7.15 | K82: 4.3 | L82: 117 | N82: 11 | O82: 75 | P82: 956 | Q82: 12.7 | R82: 11 | S82: 1 | T82: 0 | U82: 0 | V82: 0 | W82: 76 | X82: 956 | Y82: 12.6 | Z82: 11 | AB82: 13 | AC82: 82 | AD82: 1233 | AE82: 15 | AF82: 11 | AG82: 8 | AH82: 66 | AI82: 8.3 | AJ82: 0 | AK82: 90 | AL82: 1299 | AM82: 14.4 | AN82: 11 | AP82: 24 | AQ82: 157 | AR82: 2189 | AS82: 13.94267516 | AT82: 22 | AU82: 9 | AV82: 66 | AW82: 7.333333333 | AX82: 0 | AY82: 166 | AZ82: 2255 | BA82: 13.58433735 | BB82: 22 | BD82: 1 | BE82: 57.92
C83: B.J. Cunningham | D83: Michigan State | F83: 0 | G83: 4.59 | H83: 12 | I83: 31.5 | J83: 7.1 | L83: 116 | N83: 14 | O83: 79 | P83: 1306 | Q83: 16.5 | R83: 12 | S83: 3 | T83: 26 | U83: 8.7 | V83: 0 | W83: 82 | X83: 1332 | Y83: 16.2 | Z83: 12 | AB83: 12 | AC83: 50 | AD83: 611 | AE83: 12.2 | AF83: 9 | AG83: 1 | AH83: 0 | AI83: 0 | AJ83: 0 | AK83: 51 | AL83: 611 | AM83: 12 | AN83: 9 | AP83: 26 | AQ83: 129 | AR83: 1917 | AS83: 14.86046512 | AT83: 21 | AU83: 4 | AV83: 26 | AW83: 6.5 | AX83: 0 | AY83: 133 | AZ83: 1943 | BA83: 14.60902256 | BB83: 21 | BD83: 1 | BE83: 0
C84: Pat Edwards | D84: Houston | E84: 57.3 | F84: 1 | N84: 14 | O84: 89 | P84: 1752 | Q84: 19.7 | R84: 20 | S84: 2 | T84: 6 | U84: 3 | V84: 0 | W84: 91 | X84: 1758 | Y84: 19.3 | Z84: 20 | AB84: 12 | AC84: 71 | AD84: 1100 | AE84: 15.5 | AF84: 13 | AG84: 1 | AH84: -9 | AI84: -9 | AJ84: 0 | AK84: 72 | AL84: 1091 | AM84: 15.2 | AN84: 13 | AP84: 26 | AQ84: 160 | AR84: 2852 | AS84: 17.825 | AT84: 33 | AU84: 3 | AV84: -3 | AW84: -1 | AX84: 0 | AY84: 163 | AZ84: 2849 | BA84: 17.47852761 | BB84: 33 | BD84: 0 | BE84: 45.84
C85: Michael Floyd | D85: Notre Dame | E85: 72.06 | F85: 5 | G85: 4.47 | H85: 16 | I85: 36.5 | L85: 122 | N85: 13 | O85: 100 | P85: 1147 | Q85: 11.5 | R85: 9 | S85: 2 | T85: 13 | U85: 6.5 | V85: 1 | W85: 102 | X85: 1160 | Y85: 11.4 | Z85: 10 | AB85: 12 | AC85: 79 | AD85: 1025 | AE85: 13 | AF85: 12 | AG85: 1 | AH85: 9 | AI85: 9 | AJ85: 0 | AK85: 80 | AL85: 1034 | AM85: 12.9 | AN85: 12 | AP85: 25 | AQ85: 179 | AR85: 2172 | AS85: 12.13407821 | AT85: 21 | AU85: 3 | AV85: 22 | AW85: 7.333333333 | AX85: 1 | AY85: 182 | AZ85: 2194 | BA85: 12.05494505 | BB85: 22 | BD85: 1 | BE85: 72.06
C86: Jeff Fuller | D86: Texas A&M | F86: 0 | H86: 17 | N86: 13 | O86: 70 | P86: 828 | Q86: 11.8 | R86: 6 | S86: 0 | T86: 0 | U86: 0 | V86: 0 | W86: 70 | X86: 828 | Y86: 11.8 | Z86: 6 | AB86: 13 | AC86: 72 | AD86: 1066 | AE86: 14.8 | AF86: 12 | AG86: 0 | AH86: 0 | AI86: 0 | AJ86: 0 | AK86: 72 | AL86: 1066 | AM86: 14.8 | AN86: 12 | AP86: 26 | AQ86: 142 | AR86: 1894 | AS86: 13.33802817 | AT86: 18 | AU86: 0 | AV86: 0 | AW86: 0 | AX86: 0 | AY86: 142 | AZ86: 1894 | BA86: 13.33802817 | BB86: 18 | BD86: 1 | BE86: 0
C87: Chris Givens | D87: Wake Forest | E87: 62.03 | F87: 4 | G87: 4.41 | H87: 19 | I87: 33.5 | J87: 6.97 | K87: 4.23 | L87: 118 | N87: 13 | O87: 83 | P87: 1330 | Q87: 16 | R87: 9 | S87: 14 | T87: 77 | U87: 5.5 | V87: 0 | W87: 97 | X87: 1407 | Y87: 14.5 | Z87: 9 | AB87: 11 | AC87: 35 | AD87: 514 | AE87: 14.7 | AF87: 4 | AG87: 16 | AH87: 63 | AI87: 3.9 | AJ87: 2 | AK87: 51 | AL87: 577 | AM87: 11.3 | AN87: 6 | AP87: 24 | AQ87: 118 | AR87: 1844 | AS87: 15.62711864 | AT87: 13 | AU87: 30 | AV87: 140 | AW87: =AV87/AU87 -> 4.666666667 | AX87: 2 | AY87: 148 | AZ87: 1984 | BA87: 13.40540541 | BB87: 15 | BD87: 1 | BE87: 58.9285
C88: T.J. Graham | D88: North Carolina State | E88: 56.33 | F88: 3 | G88: 4.41 | H88: 8 | I88: 33.5 | J88: 6.77 | K88: 4.18 | L88: 120 | N88: 13 | O88: 46 | P88: 757 | Q88: 16.5 | R88: 7 | S88: 2 | T88: -5 | U88: -2.5 | V88: 0 | W88: 48 | X88: 752 | Y88: 15.7 | Z88: 7 | AB88: 13 | AC88: 25 | AD88: 316 | AE88: 12.6 | AF88: 4 | AG88: 1 | AH88: -7 | AI88: -7 | AJ88: 0 | AK88: 26 | AL88: 309 | AM88: 11.9 | AN88: 4 | AP88: 26 | AQ88: 71 | AR88: 1073 | AS88: 15.11267606 | AT88: 11 | AU88: 3 | AV88: -12 | AW88: =AV88/AU88 -> -4 | AX88: 0 | AY88: 74 | AZ88: 1061 | BA88: 14.33783784 | BB88: 11 | BD88: 1 | BE88: 50.697
C89: Darius Hanks | D89: Alabama | F89: 0 | G89: 4.66 | H89: 11 | I89: 34 | L89: 117 | N89: 10 | O89: 26 | P89: 328 | Q89: 12.6 | R89: 1 | S89: 0 | T89: 0 | U89: 0 | V89: 0 | W89: 26 | X89: 328 | Y89: 12.6 | Z89: 1 | AB89: 13 | AC89: 32 | AD89: 456 | AE89: 14.3 | AF89: 3 | AG89: 2 | AH89: 7 | AI89: 3.5 | AJ89: 0 | AK89: 34 | AL89: 463 | AM89: 13.6 | AN89: 3 | AP89: 23 | AQ89: 58 | AR89: 784 | AS89: 13.51724138 | AT89: 4 | AU89: 2 | AV89: 7 | AW89: =AV89/AU89 -> 3.5 | AX89: 0 | AY89: 60 | AZ89: 791 | BA89: 13.18333333 | BB89: 4 | BD89: 1 | BE89: 0
C90: Junior Hemingway | D90: Michigan | E90: 54.6 | F90: 2 | G90: 4.53 | H90: 21 | I90: 35.5 | J90: 6.59 | K90: 3.98 | L90: 124 | N90: 13 | O90: 34 | P90: 699 | Q90: 20.6 | R90: 4 | S90: 0 | T90: 0 | U90: 0 | V90: 0 | W90: 34 | X90: 699 | Y90: 20.6 | Z90: 4 | AB90: 10 | AC90: 32 | AD90: 593 | AE90: 18.5 | AF90: 4 | AG90: 0 | AH90: 0 | AI90: 0 | AJ90: 0 | AK90: 32 | AL90: 593 | AM90: 18.5 | AN90: 4 | AP90: 23 | AQ90: 66 | AR90: 1292 | AS90: 19.57575758 | AT90: 8 | AU90: 0 | AV90: 0 | AW90: 0 | AX90: 0 | AY90: 66 | AZ90: 1292 | BA90: 19.57575758 | BB90: 8 | BD90: 1 | BE90: 46.41
C91: Stephen Hill | D91: Georgia Tech | E91: 58.6 | F91: 2 | G91: 4.36 | H91: 14 | I91: 39.5 | J91: 6.88 | K91: 4.48 | L91: 133 | N91: 13 | O91: 28 | P91: 820 | Q91: 29.3 | R91: 5 | S91: 4 | T91: 29 | U91: 7.3 | V91: 0 | W91: 32 | X91: 849 | Y91: 26.5 | Z91: 5 | AB91: 12 | AC91: 15 | AD91: 291 | AE91: 19.4 | AF91: 3 | AG91: 3 | AH91: 34 | AI91: 11.3 | AJ91: 0 | AK91: 18 | AL91: 325 | AM91: 18.1 | AN91: 3 | AP91: 25 | AQ91: 43 | AR91: 1111 | AS91: 25.8372093 | AT91: 8 | AU91: 7 | AV91: 63 | AW91: =AV91/AU91 -> 9 | AX91: 0 | AY91: 50 | AZ91: 1174 | BA91: 23.48 | BB91: 8 | BD91: 1 | BE91: 49.81
C92: T.Y. Hilton | D92: Florida International | E92: 83.68 | F92: 5 | N92: 13 | O92: 72 | P92: 1038 | Q92: 14.4 | R92: 7 | S92: 19 | T92: 124 | U92: 6.5 | V92: 1 | W92: 91 | X92: 1162 | Y92: 12.8 | Z92: 8 | AB92: 13 | AC92: 59 | AD92: 848 | AE92: 14.4 | AF92: 5 | AG92: 30 | AH92: 282 | AI92: 9.4 | AJ92: 4 | AK92: 89 | AL92: 1130 | AM92: 12.7 | AN92: 9 | AP92: 26 | AQ92: 131 | AR92: 1886 | AS92: 14.39694656 | AT92: 12 | AU92: 49 | AV92: 406 | AW92: =AV92/AU92 -> 8.285714286 | AX92: 5 | AY92: 180 | AZ92: 2292 | BA92: 12.73333333 | BB92: 17 | BD92: 0 | BE92: 83.68
C93: Jerrell Jackson | D93: Missouri | F93: 0 | G93: 4.62 | H93: 22 | I93: 41 | J93: 6.82 | K93: 4.11 | L93: 127 | N93: 11 | O93: 17 | P93: 222 | Q93: 13.1 | R93: 1 | S93: 2 | T93: 8 | U93: 4 | V93: 0 | W93: 19 | X93: 230 | Y93: 12.1 | Z93: 1 | AB93: 12 | AC93: 50 | AD93: 656 | AE93: 13.1 | AF93: 3 | AG93: 4 | AH93: 22 | AI93: 5.5 | AJ93: 1 | AK93: 54 | AL93: 678 | AM93: 12.6 | AN93: 4 | AP93: 23 | AQ93: 67 | AR93: 878 | AS93: 13.10447761 | AT93: 4 | AU93: 6 | AV93: 30 | AW93: =AV93/AU93 -> 5 | AX93: 1 | AY93: 73 | AZ93: 908 | BA93: 12.43835616 | BB93: 5 | BD93: 1 | BE93: 0
C94: Alshon Jeffery | D94: South Carolina | E94: 82.3 | F94: 5 | N94: 13 | O94: 49 | P94: 762 | Q94: 15.6 | R94: 8 | S94: 0 | T94: 0 | U94: 0 | V94: 0 | W94: 49 | X94: 762 | Y94: 15.6 | Z94: 8 | AB94: 14 | AC94: 88 | AD94: 1517 | AE94: 17.2 | AF94: 9 | AG94: 0 | AH94: 0 | AI94: 0 | AJ94: 0 | AK94: 88 | AL94: 1517 | AM94: 17.2 | AN94: 9 | AP94: 27 | AQ94: 137 | AR94: 2279 | AS94: 16.6350365 | AT94: 17 | AU94: 0 | AV94: 0 | AW94: 0 | AX94: 0 | AY94: 137 | AZ94: 2279 | BA94: 16.6350365 | BB94: 17 | BD94: 1 | BE94: 82.3
C95: A.J. Jenkins | D95: Illinois | E95: 56.3 | F95: 2 | G95: 4.39 | H95: 12 | I95: 38.5 | L95: 124 | N95: 13 | O95: 90 | P95: 1276 | Q95: 14.2 | R95: 8 | S95: 5 | T95: 26 | U95: 5.2 | V95: 0 | W95: 95 | X95: 1302 | Y95: 13.7 | Z95: 8 | AB95: 13 | AC95: 56 | AD95: 746 | AE95: 13.3 | AF95: 7 | AG95: 0 | AH95: 0 | AI95: 0 | AJ95: 0 | AK95: 56 | AL95: 746 | AM95: 13.3 | AN95: 7 | AP95: 26 | AQ95: 146 | AR95: 2022 | AS95: 13.84931507 | AT95: 15 | AU95: 5 | AV95: 26 | AW95: =AV95/AU95 -> 5.2 | AX95: 0 | AY95: 151 | AZ95: 2048 | BA95: 13.56291391 | BB95: 15 | BD95: 1 | BE95: 47.855
C96: Dwight Jones | D96: North Carolina | F96: 0 | G96: 4.55 | H96: 14 | I96: 33 | L96: 109 | N96: 13 | O96: 85 | P96: 1196 | Q96: 14.1 | R96: 12 | S96: 2 | T96: 11 | U96: 5.5 | V96: 0 | W96: 87 | X96: 1207 | Y96: 13.9 | Z96: 12 | AB96: 13 | AC96: 62 | AD96: 946 | AE96: 15.3 | AF96: 4 | AG96: 0 | AH96: 0 | AI96: 0 | AJ96: 0 | AK96: 62 | AL96: 946 | AM96: 15.3 | AN96: 4 | AP96: 26 | AQ96: 147 | AR96: 2142 | AS96: 14.57142857 | AT96: 16 | AU96: 2 | AV96: 11 | AW96: 5.5 | AX96: 0 | AY96: 149 | AZ96: 2153 | BA96: 14.44966443 | BB96: 16 | BD96: 1 | BE96: 0
C97: Marvin Jones | D97: California | E97: 76.58 | F97: 5 | G97: 4.46 | H97: 22 | I97: 33 | J97: 6.81 | K97: 4.11 | L97: 112 | N97: 13 | O97: 62 | P97: 846 | Q97: 13.6 | R97: 3 | S97: 5 | T97: 22 | U97: 4.4 | V97: 0 | W97: 67 | X97: 868 | Y97: 13 | Z97: 3 | AB97: 12 | AC97: 50 | AD97: 765 | AE97: 15.3 | AF97: 4 | AG97: 6 | AH97: 94 | AI97: 15.7 | AJ97: 1 | AK97: 56 | AL97: 859 | AM97: 15.3 | AN97: 5 | AP97: 25 | AQ97: 112 | AR97: 1611 | AS97: 14.38392857 | AT97: 7 | AU97: 11 | AV97: 116 | AW97: 10.54545455 | AX97: 1 | AY97: 123 | AZ97: 1727 | BA97: 14.04065041 | BB97: 8 | BD97: 1 | BE97: 76.58
C98: Jermaine Kearse | D98: Washington | E98: 69.02 | F98: 5 | G98: 4.58 | H98: 14 | I98: 34 | J98: 7.03 | K98: 4.12 | L98: 119 | N98: 13 | O98: 47 | P98: 699 | Q98: 14.9 | R98: 7 | S98: 2 | T98: 13 | U98: 6.5 | V98: 1 | W98: 49 | X98: 712 | Y98: 14.5 | Z98: 8 | AB98: 13 | AC98: 63 | AD98: 1005 | AE98: 16 | AF98: 12 | AG98: 0 | AH98: 0 | AI98: 0 | AJ98: 0 | AK98: 63 | AL98: 1005 | AM98: 16 | AN98: 12 | AP98: 26 | AQ98: 110 | AR98: 1704 | AS98: 15.49090909 | AT98: 19 | AU98: 2 | AV98: 13 | AW98: 6.5 | AX98: 1 | AY98: 112 | AZ98: 1717 | BA98: 15.33035714 | BB98: 20 | BD98: 1 | BE98: 69.02
C99: Keshawn Martin | D99: Michigan State | E99: 55.93 | F99: 4 | G99: 4.45 | H99: 13 | I99: 39.5 | J99: 6.85 | K99: 4.13 | L99: 122 | N99: 14 | O99: 66 | P99: 777 | Q99: 11.8 | R99: 4 | S99: 19 | T99: 113 | U99: 5.9 | V99: 2 | W99: 85 | X99: 890 | Y99: 10.5 | Z99: 6 | AB99: 11 | AC99: 32 | AD99: 394 | AE99: 12.3 | AF99: 1 | AG99: 18 | AH99: 157 | AI99: 8.7 | AJ99: 0 | AK99: 50 | AL99: 551 | AM99: 11 | AN99: 1 | AP99: 25 | AQ99: 98 | AR99: 1171 | AS99: 11.94897959 | AT99: 5 | AU99: 37 | AV99: 270 | AW99: 7.297297297 | AX99: 2 | AY99: 135 | AZ99: 1441 | BA99: 10.67407407 | BB99: 7 | BD99: 1 | BE99: 53.1335
C100: Rishard Matthews | D100: Nevada | E100: 72.1 | F100: 5 | G100: 4.62 | H100: 20 | I100: 36 | J100: 6.88 | K100: 4.19 | N100: 12 | O100: 91 | P100: 1364 | Q100: 15 | R100: 8 | S100: 5 | T100: -1 | U100: -0.2 | V100: 0 | W100: 96 | X100: 1363 | Y100: 14.2 | Z100: 8 | AB100: 14 | AC100: 56 | AD100: 879 | AE100: 15.7 | AF100: 5 | AG100: 5 | AH100: 76 | AI100: 15.2 | AJ100: 2 | AK100: 61 | AL100: 955 | AM100: 15.7 | AN100: 7 | AP100: 26 | AQ100: 147 | AR100: 2243 | AS100: 15.2585034 | AT100: 13 | AU100: 10 | AV100: 75 | AW100: 7.5 | AX100: 2 | AY100: 157 | AZ100: 2318 | BA100: 14.76433121 | BB100: 15 | BD100: 0 | BE100: 72.1
C101: Maquis Maze | D101: Alabama | F101: 0 | G101: 4.51 | I101: 33.5 | L101: 112 | N101: 13 | O101: 56 | P101: 627 | Q101: 11.2 | R101: 1 | S101: 6 | T101: -6 | U101: -1 | V101: 0 | W101: 62 | X101: 621 | Y101: 10 | Z101: 1 | AB101: 13 | AC101: 38 | AD101: 557 | AE101: 14.7 | AF101: 3 | AG101: 3 | AH101: 15 | AI101: 5 | AJ101: 0 | AK101: 41 | AL101: 572 | AM101: 14 | AN101: 3 | AP101: 26 | AQ101: 94 | AR101: 1184 | AS101: 12.59574468 | AT101: 4 | AU101: 9 | AV101: 9 | AW101: 1 | AX101: 0 | AY101: 103 | AZ101: 1193 | BA101: 11.58252427 | BB101: 4 | BD101: 1 | BE101: 0
C102: Marvin McNutt | D102: Iowa | F102: 0 | G102: 4.54 | I102: 37 | J102: 7.15 | K102: 4.07 | L102: 122 | N102: 13 | O102: 82 | P102: 1315 | Q102: 16 | R102: 12 | S102: 6 | T102: 58 | U102: 9.7 | V102: 0 | W102: 88 | X102: 1373 | Y102: 15.6 | Z102: 12 | AB102: 13 | AC102: 53 | AD102: 861 | AE102: 16.2 | AF102: 8 | AG102: 1 | AH102: 5 | AI102: 5 | AJ102: 0 | AK102: 54 | AL102: 866 | AM102: 16 | AN102: 8 | AP102: 26 | AQ102: 135 | AR102: 2176 | AS102: 16.11851852 | AT102: 20 | AU102: 7 | AV102: 63 | AW102: 9 | AX102: 0 | AY102: 142 | AZ102: 2239 | BA102: 15.76760563 | BB102: 20 | BD102: 1 | BE102: 0
C103: Kashif Moore | D103: Connecticut | F103: 0 | G103: 4.42 | H103: 19 | I103: 43.5 | J103: 6.82 | K103: 4.05 | L103: 126 | N103: 12 | O103: 41 | P103: 604 | Q103: 14.7 | R103: 5 | S103: 9 | T103: 25 | U103: 2.8 | V103: 1 | W103: 50 | X103: 629 | Y103: 12.6 | Z103: 6 | AB103: 13 | AC103: 36 | AD103: 452 | AE103: 12.6 | AF103: 4 | AG103: 5 | AH103: 5 | AI103: 1 | AJ103: 0 | AK103: 41 | AL103: 457 | AM103: 11.1 | AN103: 4 | AP103: 25 | AQ103: 77 | AR103: 1056 | AS103: 13.71428571 | AT103: 9 | AU103: 14 | AV103: 30 | AW103: 2.142857143 | AX103: 1 | AY103: 91 | AZ103: 1086 | BA103: 11.93406593 | BB103: 10 | BD103: 1 | BE103: 0
C104: Derek Moye | D104: Penn State | F104: 0 | G104: 4.52 | H104: 10 | I104: 33.5 | K104: 4.23 | L104: 115 | N104: 11 | O104: 40 | P104: 654 | Q104: 16.4 | R104: 3 | S104: 2 | T104: 8 | U104: 4 | V104: 0 | W104: 42 | X104: 662 | Y104: 15.8 | Z104: 3 | AB104: 13 | AC104: 53 | AD104: 885 | AE104: 16.7 | AF104: 8 | AG104: 2 | AH104: 39 | AI104: 19.5 | AJ104: 0 | AK104: 55 | AL104: 924 | AM104: 16.8 | AN104: 8 | AP104: 24 | AQ104: 93 | AR104: 1539 | AS104: 16.5483871 | AT104: 11 | AU104: 4 | AV104: 47 | AW104: 11.75 | AX104: 0 | AY104: 97 | AZ104: 1586 | BA104: 16.35051546 | BB104: 11 | BD104: 1 | BE104: 0
C105: Chris Owusu | D105: Stanford | E105: 60.9 | F105: 3 | G105: 4.36 | H105: 19 | I105: 40.5 | J105: 6.85 | K105: 4.11 | L105: 129 | N105: 10 | O105: 35 | P105: 376 | Q105: 10.7 | R105: 2 | S105: 2 | T105: 78 | U105: 39 | V105: 0 | W105: 37 | X105: 454 | Y105: 12.3 | Z105: 2 | AB105: 7 | AC105: 25 | AD105: 396 | AE105: 15.8 | AF105: 3 | AG105: 2 | AH105: 32 | AI105: 16 | AJ105: 0 | AK105: 27 | AL105: 428 | AM105: 15.9 | AN105: 3 | AP105: 17 | AQ105: 60 | AR105: 772 | AS105: 12.86666667 | AT105: 5 | AU105: 4 | AV105: 110 | AW105: 27.5 | AX105: 0 | AY105: 64 | AZ105: 882 | BA105: 13.78125 | BB105: 5 | BD105: 1 | BE105: 54.81
C106: Eric Page | D106: Toledo | F106: 0 | G106: 4.6 | H106: 15 | I106: 30 | J106: 6.95 | K106: 3.98 | L106: 112 | N106: 13 | O106: 125 | P106: 1182 | Q106: 9.5 | R106: 10 | S106: 3 | T106: 10 | U106: 3.3 | V106: 0 | W106: 128 | X106: 1192 | Y106: 9.3 | Z106: 10 | AB106: 13 | AC106: 99 | AD106: 1105 | AE106: 11.2 | AF106: 8 | AG106: 2 | AH106: -13 | AI106: -6.5 | AJ106: 0 | AK106: 101 | AL106: 1092 | AM106: 10.8 | AN106: 8 | AP106: 26 | AQ106: 224 | AR106: 2287 | AS106: 10.20982143 | AT106: 18 | AU106: 5 | AV106: -3 | AW106: -0.6 | AX106: 0 | AY106: 229 | AZ106: 2284 | BA106: 9.973799127 | BB106: 18 | BD106: 0 | BE106: 0
C107: DeVier Posey | D107: Ohio State | E107: 57.35 | F107: 2 | G107: 4.5 | H107: 14 | I107: 36.5 | J107: 7.03 | K107: 4.15 | L107: 123 | N107: 4 | O107: 12 | P107: 162 | Q107: 13.5 | R107: 2 | S107: 1 | T107: -6 | U107: -6 | V107: 0 | W107: 13 | X107: 156 | Y107: 12 | Z107: 2 | AB107: 13 | AC107: 53 | AD107: 848 | AE107: 16 | AF107: 7 | AG107: 0 | AH107: 0 | AI107: 0 | AJ107: 0 | AK107: 53 | AL107: 848 | AM107: 16 | AN107: 7 | AP107: 17 | AQ107: 65 | AR107: 1010 | AS107: 15.53846154 | AT107: 9 | AU107: 1 | AV107: -6 | AW107: -6 | AX107: 0 | AY107: 66 | AZ107: 1004 | BA107: 15.21212121 | BB107: 9 | BD107: 1 | BE107: 48.7475
C108: Brian Quick | D108: Appalachian State | E108: 61.72 | F108: 5 | G108: 4.55 | H108: 15 | I108: 34 | J108: 7.1 | K108: 4.23 | L108: 119 | N108: 12 | O108: 71 | P108: 1096 | Q108: 15.4 | R108: 11 | S108: 0 | T108: 0 | U108: 0 | V108: 0 | W108: 71 | X108: 1096 | Y108: 15.4 | Z108: 11 | AB108: 13 | AC108: 47 | AD108: 844 | AE108: 18 | AF108: 9 | AG108: 0 | AH108: 0 | AI108: 0 | AJ108: 0 | AK108: 47 | AL108: 844 | AM108: 18 | AN108: 9 | AP108: 25 | AQ108: 118 | AR108: 1940 | AS108: 16.44067797 | AT108: 20 | AU108: 0 | AV108: 0 | AW108: 0 | AX108: 0 | AY108: 118 | AZ108: 1940 | BA108: 16.44067797 | BB108: 20 | BD108: 0 | BE108: 61.72
C109: Rueben Randle | D109: LSU | E109: 71.53 | F109: 4 | G109: 4.55 | H109: 15 | I109: 31 | J109: 6.99 | K109: 4.36 | L109: 121 | N109: 14 | O109: 53 | P109: 917 | Q109: 17.3 | R109: 8 | S109: 0 | T109: 0 | U109: 0 | V109: 0 | W109: 53 | X109: 917 | Y109: 17.3 | Z109: 8 | AB109: 13 | AC109: 33 | AD109: 544 | AE109: 16.5 | AF109: 3 | AG109: 0 | AH109: 0 | AI109: 0 | AJ109: 0 | AK109: 33 | AL109: 544 | AM109: 16.5 | AN109: 3 | AP109: 27 | AQ109: 86 | AR109: 1461 | AS109: 16.98837209 | AT109: 11 | AU109: 0 | AV109: 0 | AW109: 0 | AX109: 0 | AY109: 86 | AZ109: 1461 | BA109: 16.98837209 | BB109: 11 | BD109: 1 | BE109: 67.9535
C110: Gerell Robinson | D110: Arizona State | F110: 0 | G110: 4.62 | I110: 35.5 | K110: 4.15 | L110: 113 | N110: 13 | O110: 77 | P110: 1397 | Q110: 18.1 | R110: 7 | S110: 0 | T110: 0 | U110: 0 | V110: 0 | W110: 77 | X110: 1397 | Y110: 18.1 | Z110: 7 | AB110: 11 | AC110: 29 | AD110: 387 | AE110: 13.3 | AF110: 5 | AG110: 0 | AH110: 0 | AI110: 0 | AJ110: 0 | AK110: 29 | AL110: 387 | AM110: 13.3 | AN110: 5 | AP110: 24 | AQ110: 106 | AR110: 1784 | AS110: 16.83018868 | AT110: 12 | AU110: 0 | AV110: 0 | AW110: 0 | AX110: 0 | AY110: 106 | AZ110: 1784 | BA110: 16.83018868 | BB110: 12 | BD110: 1 | BE110: 0
C111: James Rodgers | D111: Oregon State | F111: 0 | G111: 4.67 | H111: 19 | I111: 37 | K111: 4.23 | L111: 115 | N111: 9 | O111: 45 | P111: 514 | Q111: 11.4 | R111: 3 | S111: 11 | T111: 75 | U111: 6.8 | V111: 0 | W111: 56 | X111: 589 | Y111: 10.5 | Z111: 3 | AB111: 4 | AC111: 16 | AD111: 215 | AE111: 13.4 | AF111: 2 | AG111: 8 | AH111: 38 | AI111: 4.8 | AJ111: 0 | AK111: 24 | AL111: 253 | AM111: 10.5 | AN111: 2 | AP111: 13 | AQ111: 61 | AR111: 729 | AS111: 11.95081967 | AT111: 5 | AU111: 19 | AV111: 113 | AW111: =AV111/AU111 -> 5.947368421 | AX111: 0 | AY111: 80 | AZ111: 842 | BA111: 10.525 | BB111: 5 | BD111: 1 | BE111: 0
C112: Mohamed Sanu | D112: Rutgers | E112: 73.56 | F112: 5 | G112: 4.67 | H112: 19 | I112: 36 | J112: 6.88 | K112: 4.22 | L112: 126 | N112: 13 | O112: 115 | P112: 1206 | Q112: 10.5 | R112: 7 | S112: 4 | T112: -2 | U112: -0.5 | V112: 0 | W112: 119 | X112: 1204 | Y112: 10.1 | Z112: 7 | AB112: 12 | AC112: 44 | AD112: 418 | AE112: 9.5 | AF112: 2 | AG112: 59 | AH112: 309 | AI112: 5.2 | AJ112: 4 | AK112: 103 | AL112: 727 | AM112: 7.1 | AN112: 6 | AP112: 25 | AQ112: 159 | AR112: 1624 | AS112: 10.21383648 | AT112: 9 | AU112: 63 | AV112: 307 | AW112: =AV112/AU112 -> 4.873015873 | AX112: 4 | AY112: 222 | AZ112: 1931 | BA112: 8.698198198 | BB112: 13 | BD112: 1 | BE112: 73.56
C113: Tommy Streeter | D113: Miami (FL) | F113: 0 | G113: 4.4 | H113: 17 | I113: 33 | J113: 7.08 | L113: 125 | N113: 12 | O113: 46 | P113: 811 | Q113: 17.6 | R113: 8 | S113: 0 | T113: 0 | U113: 0 | V113: 0 | W113: 46 | X113: 811 | Y113: 17.6 | Z113: 8 | AB113: 8 | AC113: 1 | AD113: 42 | AE113: 42 | AF113: 1 | AG113: 0 | AH113: 0 | AI113: 0 | AJ113: 0 | AK113: 1 | AL113: 42 | AM113: 42 | AN113: 1 | AP113: 20 | AQ113: 47 | AR113: 853 | AS113: 18.14893617 | AT113: 9 | AU113: 0 | AV113: 0 | AW113: 0 | AX113: 0 | AY113: 47 | AZ113: 853 | BA113: 18.14893617 | BB113: 9 | BD113: 1 | BE113: 0
C114: Nick Toon | D114: Wisconsin | E114: 58.05 | F114: 2 | G114: 4.54 | H114: 18 | I114: 37.5 | N114: 13 | O114: 64 | P114: 926 | Q114: 14.5 | R114: 10 | S114: 0 | T114: 0 | U114: 0 | V114: 0 | W114: 64 | X114: 926 | Y114: 14.5 | Z114: 10 | AB114: 9 | AC114: 36 | AD114: 459 | AE114: 12.8 | AF114: 3 | AG114: 2 | AH114: 10 | AI114: 5 | AJ114: 0 | AK114: 38 | AL114: 469 | AM114: 12.3 | AN114: 3 | AP114: 22 | AQ114: 100 | AR114: 1385 | AS114: 13.85 | AT114: 13 | AU114: 2 | AV114: 10 | AW114: =AV114/AU114 -> 5 | AX114: 0 | AY114: 102 | AZ114: 1395 | BA114: 13.67647059 | BB114: 13 | BD114: 1 | BE114: 49.3425
C115: Jordan White | D115: West. Michigan | F115: 0 | G115: 4.69 | H115: 14 | I115: 35 | J115: 6.84 | K115: 4.13 | L115: 119 | N115: 13 | O115: 140 | P115: 1911 | Q115: 13.7 | R115: 17 | S115: 1 | T115: 27 | U115: 27 | V115: 0 | W115: 141 | X115: 1938 | Y115: 13.7 | Z115: 17 | AB115: 12 | AC115: 94 | AD115: 1378 | AE115: 14.7 | AF115: 10 | AG115: 3 | AH115: 29 | AI115: 9.7 | AJ115: 0 | AK115: 97 | AL115: 1407 | AM115: 14.5 | AN115: 10 | AP115: 25 | AQ115: 234 | AR115: 3289 | AS115: 14.05555556 | AT115: 27 | AU115: 4 | AV115: 56 | AW115: =AV115/AU115 -> 14 | AX115: 0 | AY115: 238 | AZ115: 3345 | BA115: 14.05462185 | BB115: 27 | BD115: 0 | BE115: 0
C116: Jarius Wright | D116: Arkansas | E116: 69.54 | F116: 5 | G116: 4.42 | H116: 11 | I116: 38 | J116: 6.93 | K116: 4.03 | L116: 120 | N116: 12 | O116: 66 | P116: 1117 | Q116: 16.9 | R116: 12 | S116: 0 | T116: 0 | U116: 0 | V116: 0 | W116: 66 | X116: 1117 | Y116: 16.9 | Z116: 12 | AB116: 13 | AC116: 42 | AD116: 788 | AE116: 18.8 | AF116: 5 | AG116: 1 | AH116: 9 | AI116: 9 | AJ116: 0 | AK116: 43 | AL116: 797 | AM116: 18.5 | AN116: 5 | AP116: 25 | AQ116: 108 | AR116: 1905 | AS116: 17.63888889 | AT116: 17 | AU116: 1 | AV116: 9 | AW116: =AV116/AU116 -> 9 | AX116: 0 | AY116: 109 | AZ116: 1914 | BA116: 17.55963303 | BB116: 17 | BD116: 1 | BE116: 69.54
C117: Kendall Wright | D117: Baylor | E117: 73.44 | F117: 5 | G117: 4.61 | I117: 38.5 | J117: 6.93 | K117: 4.18 | L117: 121 | N117: 13 | O117: 108 | P117: 1663 | Q117: 15.4 | R117: 14 | S117: 10 | T117: 72 | U117: 7.2 | V117: 0 | W117: 118 | X117: 1735 | Y117: 14.7 | Z117: 14 | AB117: 13 | AC117: 78 | AD117: 952 | AE117: 12.2 | AF117: 7 | AG117: 8 | AH117: 53 | AI117: 6.6 | AJ117: 0 | AK117: 86 | AL117: 1005 | AM117: 11.7 | AN117: 7 | AP117: 26 | AQ117: 186 | AR117: 2615 | AS117: 14.05913978 | AT117: 21 | AU117: 18 | AV117: 125 | AW117: =AV117/AU117 -> 6.944444444 | AX117: 0 | AY117: 204 | AZ117: 2740 | BA117: 13.43137255 | BB117: 21 | BD117: 1 | BE117: 73.44
C118: Devon Wylie | D118: Fresno State | F118: 0 | G118: 4.39 | H118: 17 | I118: 39 | L118: 123 | N118: 13 | O118: 56 | P118: 716 | Q118: 12.8 | R118: 1 | S118: 8 | T118: 48 | U118: 6 | V118: 0 | W118: 64 | X118: 764 | Y118: 11.9 | Z118: 1 | AU118: =SUM(S118,AG118) -> 8 | AV118: =SUM(T118,AH118) -> 48 | AW118: =AV118/AU118 -> 6 | AX118: =SUM(V118,AJ118) -> 0 | BD118: 0 | BE118: 0
B121: OT | C121: Mike Adams | D121: Ohio State | E121: 62.27 | F121: 3 | G121: 5.4 | H121: 19 | I121: 28.5 | J121: 7.94 | K121: 4.95 | L121: 100 | BD121: 1 | BE121: 56.043
C122: Jeff Allen | D122: Illinois | E122: 64.66 | F122: 5 | G122: 5.28 | H122: 26 | I122: 27.5 | J122: 8.01 | K122: 4.9 | L122: 102 | BD122: 1 | BE122: 64.66
C123: Justin Anderson | D123: Georgia | F123: 0 | G123: 5.31 | H123: 32 | I123: 27 | J123: 8.04 | K123: 4.99 | L123: 101 | BD123: 1 | BE123: 0
C124: Tony Bergstrom | D124: Utah | E124: 58.46 | F124: 5 | G124: 5.27 | H124: 32 | I124: 29.5 | J124: 7.95 | K124: 4.84 | L124: 101 | BD124: 1 | BE124: 58.46
C125: Tom Compton | D125: South Dakota | E125: 64.06 | F125: 5 | G125: 5.11 | H125: 20 | I125: 30 | J125: 7.59 | K125: 4.6 | L125: 108 | BD125: 0 | BE125: 64.06
C126: Paul Cornick | D126: North Dakota State | E126: 63 | F126: 1 | H126: 25 | BD126: 0 | BE126: 50.4
C127: John Cullen | D127: Utah | F127: 0 | G127: 5.34 | H127: 23 | I127: 27 | J127: 7.58 | K127: 4.59 | L127: 102 | BD127: 1 | BE127: 0
C128: Andrew Datko | D128: Florida State | F128: 0 | G128: 5.32 | I128: 29.5 | J128: 7.71 | K128: 4.54 | L128: 100 | BD128: 1 | BE128: 0
C129: Taylor Dever | D129: Notre Dame | F129: 0 | G129: 5.46 | H129: 18 | I129: 28 | J129: 7.49 | K129: 4.9 | L129: 100 | BD129: 1 | BE129: 0
C130: Cordy Glenn | D130: Georgia | E130: 77.58 | F130: 5 | G130: 5.15 | H130: 31 | I130: 23.5 | J130: 8.13 | K130: 5 | L130: 93 | BD130: 1 | BE130: 77.58
C131: Lamar Holmes | D131: Southern Miss | E131: 60 | F131: 2 | G131: 5.41 | H131: 22 | I131: 27 | J131: 7.74 | K131: 4.8 | L131: 104 | BD131: 0 | BE131: 51
C132: Marcel Jones | D132: Nebraska | F132: 0 | G132: 5.44 | H132: 13 | I132: 30.5 | J132: 7.95 | K132: 4.74 | L132: 105 | BD132: 1 | BE132: 0
C133: Matt Kalil | D133: USC | E133: 69.78 | F133: 5 | G133: 4.99 | H133: 30 | I133: 27 | J133: 7.33 | K133: 4.65 | BD133: 1 | BE133: =IF(F133=0,E133*0,IF(F133=1,E133*$BN$2,IF(F133=2,E133*$BM$2,IF(F133=3,E133*$BL$2,IF(F133=4,E133*$BK$2,E133*$BJ$2))))) -> 69.78
C134: Jonathan Martin | D134: Stanford | E134: 61.57 | F134: 3 | BD134: 1 | BE134: 55.413
C135: Bobby Massie | D135: Mississippi | E135: 70.58 | F135: 5 | G135: 5.23 | H135: 22 | I135: 27.5 | J135: 7.7 | K135: 4.95 | L135: 103 | BD135: 1 | BE135: 70.58
C136: Matt McCants | D136: Ala-Birmingham | E136: 58.4 | F136: 2 | G136: 5.52 | H136: 17 | I136: 25.5 | L136: 97 | BD136: 0 | BE136: 49.64
C137: Brandon Mosley | D137: Auburn | F137: 0 | G137: 5.21 | H137: 30 | I137: 27 | J137: 7.43 | K137: 4.78 | L137: 103 | BD137: 1 | BE137: 0
C138: Josh Oglesby | D138: Virginia Tech | G138: 5.8 | H138: 22 | I138: 28.5 | BD138: 1 | BE138: 0
C139: Kelechi Osemele | D139: Iowa State | E139: 79.76 | F139: 5 | G139: 5.36 | H139: 32 | I139: 26.5 | J139: 7.91 | K139: 4.87 | L139: 104 | BD139: 1 | BE139: 79.76
C140: Nate Potter | D140: Boise State | E140: 54.7 | F140: 1 | G140: 5.36 | H140: 22 | I140: 28.5 | J140: 7.49 | K140: 4.67 | L140: 100 | BD140: 0 | BE140: 43.76
C141: Riley Reiff | D141: Iowa | E141: 77.96 | F141: 5 | G141: 5.23 | H141: 23 | I141: 26.5 | J141: 7.87 | K141: 4.75 | L141: 98 | BD141: 1 | BE141: 77.96
C142: Matt Reynolds | D142: BYU | F142: 0 | G142: 5.37 | H142: 25 | BD142: 0 | BE142: 0
C143: Zebrie Sanders | D143: Florida State | F143: 0 | G143: 5.41 | H143: 28 | I143: 27 | J143: 8.15 | K143: 4.99 | L143: 100 | BD143: 1 | BE143: 0
C144: Mitchell Schwartz | D144: California | E144: 80.7 | F144: 5 | G144: 5.45 | H144: 23 | I144: 26.5 | J144: 7.86 | K144: 4.87 | L144: 89 | BD144: 1 | BE144: 80.7
C145: Donald Stephenson | D145: Oklahoma | E145: 57.22 | F145: 5 | G145: 4.94 | H145: 19 | I145: 35.5 | J145: 7.52 | K145: 4.78 | L145: 114 | BD145: 1 | BE145: 57.22
C146: Dustin Waldron | D146: Portland State | F146: 0 | G146: 5.34 | H146: 29 | I146: 26 | J146: 7.93 | K146: 4.75 | L146: 103 | BD146: 0 | BE146: 0
C147: Markus Zusevics | D147: Iowa | F147: 0 | BD147: 1 | BE147: 0
B150: OG | C150: Mark Asper | D150: Oregon | F150: 0 | H150: 23 | BD150: 1 | BE150: 0
C151: Kelvin Beachum | D151: SMU | E151: 71.62 | F151: 5 | G151: 5.44 | H151: 19 | I151: 28.5 | J151: 7.79 | K151: 4.8 | L151: 101 | BD151: 0 | BE151: 71.62
C152: James Brown | D152: Troy | E152: 53.1 | F152: 1 | G152: 5.3 | H152: 24 | I152: 25.5 | J152: 7.7 | K152: 4.78 | L152: 102 | BD152: 0 | BE152: 42.48
C153: David DeCastro | D153: Stanford | E153: 83.2 | F153: 5 | G153: 5.43 | H153: 34 | I153: 29.5 | J153: 7.3 | K153: 4.56 | L153: 98 | BD153: 1 | BE153: 83.2
C154: Adam Gettis | D154: Iowa | F154: 0 | G154: 5 | I154: 31.5 | J154: 7.99 | K154: 4.65 | L154: 112 | BD154: 1 | BE154: 0
C155: Rishaw Johnson | D155: California (PA) | F155: 0 | G155: 5.24 | H155: 22 | I155: 31.5 | J155: 7.87 | K155: 4.53 | L155: 108 | BD155: 0 | BE155: 0
C156: Senio Kelemete | D156: Washington | E156: 61.06 | F156: 5 | G156: 5.52 | H156: 21 | I156: 25 | J156: 7.77 | K156: 4.58 | L156: 101 | BD156: 1 | BE156: 61.06
C157: Ronald Leary | D157: Memphis | E157: 74.2 | F157: 5 | G157: 5.36 | H157: 30 | I157: 29 | J157: 7.87 | K157: 4.91 | L157: 104 | BD157: 0 | BE157: 74.2
C158: Josh LeRibeus | D158: SMU | E158: 60.03 | F158: 4 | G158: 5.37 | H158: 29 | I158: 26 | J158: 7.64 | K158: 4.65 | L158: 96 | BD158: 0 | BE158: 57.0285
C159: Joe Looney | D159: Wake Forest | E159: 45.6 | F159: 5 | H159: 26 | BD159: 1 | BE159: 45.6
C160: Antoine McClain | D160: Clemson | F160: 0 | G160: 5.57 | H160: 19 | I160: 27 | J160: 8.13 | K160: 4.82 | L160: 91 | BD160: 1 | BE160: 0
C161: Ryan Miller | D161: Colorado | F161: 0 | G161: 5.27 | H161: 32 | I161: 28 | J161: 7.72 | K161: 4.78 | L161: 100 | BD161: 1 | BE161: 0
C162: Lucas Nix | D162: Pittsburgh | E162: 38.7 | F162: 1 | G162: 5.43 | I162: 29.5 | J162: 7.81 | K162: 4.9 | L162: 102 | BD162: 1 | BE162: 30.96
C163: Amini Silatolu | D163: Midwestern State | E163: 64.56 | F163: 5 | G163: 5.43 | H163: 28 | I163: 31.5 | J163: 7.95 | K163: 4.87 | L163: 107 | BD163: 0 | BE163: 64.56
C164: Andrew Tiller | D164: Syracuse | E164: 70.5 | F164: 2 | G164: 5.5 | H164: 16 | I164: 23 | J164: 7.92 | K164: 4.8 | L164: 85 | BD164: 1 | BE164: 59.925
C165: Johnnie Troutman | D165: Penn State | E165: 64.2 | F165: 2 | G165: 5.67 | H165: 31 | I165: 27.5 | J165: 7.96 | K165: 5 | BD165: 1 | BE165: 54.57
C166: Brandon Washington | D166: Miami (FL) | F166: 0 | G166: 5.25 | H166: 28 | I166: 25 | J166: 8.22 | K166: 4.87 | L166: 101 | BD166: 1 | BE166: 0
C167: Rokevious Watkins | D167: South Carolina | F167: 0 | G167: 5.39 | I167: 27 | J167: 7.87 | K167: 4.9 | L167: 102 | BD167: 1 | BE167: 0
C168: Desmond Wynn | D168: Rutgers | F168: 0 | G168: 5.05 | H168: 28 | I168: 32.5 | BD168: 1 | BE168: 0
C169: Kevin Zeitler | D169: Wisconsin | E169: 81.3 | F169: 5 | G169: 5.39 | H169: 32 | I169: 29 | J169: 7.77 | K169: 4.61 | L169: 101 | BD169: 1 | BE169: 81.3
B172: C | C172: Phillip Blake | D172: Baylor | F172: 0 | G172: 5.25 | H172: 22 | I172: 29.5 | J172: 7.86 | K172: 4.65 | L172: 105 | BD172: 1 | BE172: 0
C173: Michael Brewster | D173: Ohio State | F173: 0 | G173: 5.35 | H173: 29 | I173: 25 | J173: 7.73 | K173: 4.6 | L173: 96 | BD173: 1 | BE173: 0
C174: Garth Gerhart | D174: Arizona State | F174: 0 | G174: 5.42 | H174: 25 | I174: 30.5 | J174: 7.63 | K174: 4.65 | L174: 96 | BD174: 1 | BE174: 0
C175: Ben Jones | D175: Georgia | E175: 75.58 | F175: 5 | G175: 5.67 | H175: 29 | I175: 27.5 | J175: 8.03 | K175: 5.12 | L175: 95 | BD175: 1 | BE175: 75.58
C176: Peter Konz | D176: Wisconsin | E176: 58.07 | F176: 3 | H176: 18 | BD176: 1 | BE176: 52.263
C177: David Molk | D177: Michigan | E177: 63.4 | F177: 1 | H177: 41 | BD177: 1 | BE177: 50.72
C178: Quentin Saulsberry | D178: Mississippi State | F178: 0 | G178: 5.38 | H178: 26 | I178: 22 | J178: 8.19 | K178: 4.99 | L178: 90 | BD178: 1 | BE178: 0
N179: 2011 College Football Season | AB179: 2010 College Football Season | AP179: Total College Stats
N180: Games Played | O180: Total Tackles | P180: Tackles for Loss | Q180: Sacks | R180: Interceptions | S180: Passes Defended | T180: Forced Fumbles | U180: Fumble Recoveries | V180: TD | AB180: Games Played | AC180: Total Tackles | AD180: Tackles for Loss | AE180: Sacks | AF180: Interceptions | AG180: Passes Defended | AH180: Forced Fumbles | AI180: Fumble Recoveries | AJ180: TD | AP180: Games Played | AQ180: Total Tackles | AR180: Tackles for Loss | AS180: Sacks | AT180: Interceptions | AU180: Passes Defended | AV180: Forced Fumbles | AW180: Fumble Recoveries | AX180: TD
B181: DT | C181: Chas Alecxih | D181: Pittsburgh | F181: 0 | G181: 5.41 | H181: 19 | I181: 25.5 | J181: 7.74 | K181: 4.62 | L181: 99 | N181: 13 | O181: 57 | P181: 15.5 | Q181: 6.5 | R181: 1 | S181: 0 | T181: 0 | U181: 0 | V181: 0 | AB181: 13 | AC181: 57 | AD181: 9 | AE181: 7.5 | AF181: 0 | AG181: 3 | AH181: 0 | AI181: 0 | AJ181: 0 | AP181: =N181+AB181 -> 26 | AQ181: =O181+AC181 -> 114 | AR181: =P181+AD181 -> 24.5 | AS181: =Q181+AE181 -> 14 | AT181: =R181+AF181 -> 1 | AU181: =S181+AG181 -> 3 | AV181: =T181+AH181 -> 0 | AW181: =U181+AI181 -> 0 | AX181: =V181+AJ181 -> 0 | BD181: 1 | BE181: 0
C182: Michael Brockers | D182: LSU | E182: 73.32 | F182: 5 | G182: 5.36 | H182: 19 | I182: 26.5 | J182: 7.46 | K182: 4.81 | L182: 105 | N182: 14 | O182: 54 | P182: 10 | Q182: 2 | R182: 1 | S182: 2 | T182: 1 | U182: 0 | V182: 0 | AB182: 13 | AC182: 25 | AD182: 1 | AE182: 0 | AF182: 0 | AG182: 2 | AH182: 1 | AI182: 0 | AJ182: 0 | AP182: 27 | AQ182: 79 | AR182: 11 | AS182: 2 | AT182: 1 | AU182: 4 | AV182: 2 | AW182: 0 | AX182: 0 | BD182: 1 | BE182: 73.32
C183: Josh Chapman | D183: Alabama | E183: 63 | F183: 2 | N183: 12 | O183: 23 | P183: 3.5 | Q183: 1 | R183: 0 | S183: 2 | T183: 0 | U183: 0 | V183: 0 | AB183: 13 | AC183: 31 | AD183: 3.5 | AE183: 1 | AF183: 0 | AG183: 2 | AH183: 0 | AI183: 0 | AJ183: 0 | AP183: 25 | AQ183: 54 | AR183: 7 | AS183: 2 | AT183: 0 | AU183: 4 | AV183: 0 | AW183: 0 | AX183: 0 | BD183: 1 | BE183: 53.55
C184: Fletcher Cox | D184: Mississippi State | E184: 89.5 | F184: 5 | G184: 4.79 | H184: 30 | I184: 26 | J184: 7.07 | K184: 4.53 | L184: 103 | N184: 12 | O184: 56 | P184: 14.5 | Q184: 5 | R184: 0 | S184: 0 | T184: 1 | U184: 1 | V184: 0 | AB184: 12 | AC184: 29 | AD184: 6.5 | AE184: 2.5 | AF184: 0 | AG184: 0 | AH184: 1 | AI184: 0 | AJ184: 0 | AP184: 24 | AQ184: 85 | AR184: 21 | AS184: 7.5 | AT184: 0 | AU184: 0 | AV184: 2 | AW184: 1 | AX184: 0 | BD184: 1 | BE184: 89.5
C185: Jared Crick | D185: Nebraska | E185: 58.88 | F185: 5 | G185: 4.99 | I185: 31 | J185: 7.47 | K185: 4.4 | L185: 104 | N185: 5 | O185: 22 | P185: 2.5 | Q185: 1 | R185: 0 | S185: 1 | T185: 0 | U185: 0 | V185: 0 | AB185: 14 | AC185: 70 | AD185: 14.5 | AE185: 9.5 | AF185: 0 | AG185: 1 | AH185: 1 | AI185: 0 | AJ185: 0 | AP185: 19 | AQ185: 92 | AR185: 17 | AS185: 10.5 | AT185: 0 | AU185: 2 | AV185: 1 | AW185: 0 | AX185: 0 | BD185: 1 | BE185: 58.88
C186: Mike Daniels | D186: Iowa | E186: 78.52 | F186: 5 | N186: 13 | O186: 67 | P186: 13.5 | Q186: 9 | R186: 0 | S186: 1 | T186: 0 | U186: 0 | V186: 0 | AB186: 13 | AC186: 40 | AD186: 11 | AE186: 4 | AF186: 0 | AG186: 0 | AH186: 0 | AI186: 0 | AJ186: 0 | AP186: 26 | AQ186: 107 | AR186: 24.5 | AS186: 13 | AT186: 0 | AU186: 1 | AV186: 0 | AW186: 0 | AX186: 0 | BD186: 1 | BE186: 78.52
C187: Loni Fangupo | D187: BYU | F187: 0 | G187: 5.18 | H187: 36 | I187: 31.5 | J187: 7.94 | K187: 4.62 | L187: 99 | N187: 13 | O187: 26 | P187: 6 | Q187: 0 | R187: 0 | S187: 2 | T187: 0 | U187: 0 | V187: 0 | AB187: 7 | AC187: 4 | AD187: 0 | AE187: 0 | AF187: 0 | AG187: 0 | AH187: 0 | AI187: 0 | AJ187: 0 | AP187: 20 | AQ187: 30 | AR187: 6 | AS187: 0 | AT187: 0 | AU187: 2 | AV187: 0 | AW187: 0 | AX187: 0 | BD187: 0 | BE187: 0
C188: Marcus Forston | D188: Miami (FL) | F188: 0 | G188: 5.17 | H188: 35 | I188: 28 | J188: 7.64 | K188: 4.79 | L188: 105 | N188: 3 | O188: 5 | P188: 1 | Q188: 1 | R188: 0 | S188: 0 | T188: 1 | U188: 0 | V188: 0 | AB188: 13 | AC188: 37 | AD188: 12 | AE188: 3 | AF188: 1 | AG188: 0 | AH188: 0 | AI188: 0 | AJ188: 0 | AP188: 16 | AQ188: 42 | AR188: 13 | AS188: 4 | AT188: 1 | AU188: 0 | AV188: 1 | AW188: 0 | AX188: 0 | BD188: 1 | BE188: 0
C189: Dom Hamilton | D189: Missouri | F189: 0 | G189: 5.54 | H189: 31 | J189: 7.82 | K189: 4.78 | N189: 13 | O189: 56 | P189: 7 | Q189: 3 | R189: 0 | S189: 3 | T189: 1 | U189: 2 | V189: 0 | AB189: 7 | AC189: 20 | AD189: 2 | AE189: 1.5 | AF189: 0 | AG189: 0 | AH189: 0 | AI189: 0 | AJ189: 0 | AP189: 20 | AQ189: 76 | AR189: 9 | AS189: 4.5 | AT189: 0 | AU189: 3 | AV189: 1 | AW189: 2 | AX189: 0 | BD189: 1 | BE189: 0
C190: DaJohn Harris | D190: USC | F190: 0 | N190: 11 | O190: 22 | P190: 7 | Q190: 1.5 | R190: 0 | S190: 6 | T190: 0 | U190: 0 | V190: 0 | AB190: 13 | AC190: 35 | AD190: 5.5 | AE190: 3.5 | AF190: 1 | AG190: 1 | AH190: 1 | AI190: 0 | AJ190: 0 | AP190: 24 | AQ190: 57 | AR190: 12.5 | AS190: 5 | AT190: 1 | AU190: 7 | AV190: 1 | AW190: 0 | AX190: 0 | BD190: 1 | BE190: 0
C191: Akiem Hicks | D191: Regina | E191: 78.28 | F191: 5 | G191: 5.23 | H191: 26 | I191: 31.5 | J191: 7.75 | K191: 4.86 | L191: 108 | N191: 8 | O191: 42 | P191: 8 | Q191: 6.5 | R191: 0 | S191: 3 | T191: 2 | U191: 0 | V191: 0 | AB191: 8 | AC191: 29 | AD191: 4 | AE191: 1.5 | AF191: 0 | AG191: 1 | AH191: 2 | AI191: 0 | AJ191: 0 | AP191: 16 | AQ191: 71 | AR191: 12 | AS191: 8 | AT191: 0 | AU191: 4 | AV191: 4 | AW191: 0 | AX191: 0 | BD191: 0 | BE191: 78.28
C192: Jaye Howard | D192: Florida | E192: 62.37 | F192: 3 | G192: 4.82 | H192: 24 | I192: 27.5 | J192: 7.32 | K192: 4.47 | L192: 106 | N192: 13 | O192: 65 | P192: 10 | Q192: 5.5 | R192: 0 | S192: 2 | T192: 0 | U192: 2 | V192: 1 | AB192: 11 | AC192: 29 | AD192: 10 | AE192: 2.5 | AF192: 0 | AG192: 0 | AH192: 0 | AI192: 0 | AJ192: 0 | AP192: 24 | AQ192: 94 | AR192: 20 | AS192: 8 | AT192: 0 | AU192: 2 | AV192: 0 | AW192: 2 | AX192: 1 | BD192: 1 | BE192: 56.133
C193: John Hughes | D193: Cincinnati | E193: 66.44 | F193: 5 | H193: 28 | N193: 12 | O193: 51 | P193: 12.5 | Q193: 5 | R193: 0 | S193: 1 | T193: 0 | U193: 0 | V193: 0 | AB193: 12 | AC193: 47 | AD193: 4.5 | AE193: 0 | AF193: 0 | AG193: 1 | AH193: 0 | AI193: 0 | AJ193: 0 | AP193: 24 | AQ193: 98 | AR193: 17 | AS193: 5 | AT193: 0 | AU193: 2 | AV193: 0 | AW193: 0 | AX193: 0 | BD193: 0 | BE193: 66.44
C194: Markus Kuhn | D194: North Carolina State | E194: 50.53 | F194: 3 | G194: 4.89 | H194: 28 | I194: 34.5 | J194: 7.43 | K194: 4.41 | L194: 112 | N194: 13 | O194: 45 | P194: 9.5 | Q194: 4.5 | R194: 0 | S194: 3 | T194: 0 | U194: 0 | V194: 0 | AB194: 11 | AC194: 17 | AD194: 1.5 | AE194: 0 | AF194: 0 | AG194: 1 | AH194: 0 | AI194: 0 | AJ194: 0 | AP194: 24 | AQ194: 62 | AR194: 11 | AS194: 4.5 | AT194: 0 | AU194: 4 | AV194: 0 | AW194: 0 | AX194: 0 | BD194: 1 | BE194: 45.477
C195: Mike Martin | D195: Michigan | E195: 66 | F195: 3 | G195: 4.88 | H195: 36 | I195: 33.5 | J195: 7.19 | K195: 4.25 | L195: 113 | N195: 13 | O195: 64 | P195: 6 | Q195: 3.5 | R195: 0 | S195: 0 | T195: 0 | U195: 0 | V195: 0 | AB195: 12 | AC195: 37 | AD195: 6 | AE195: 2.5 | AF195: 0 | AG195: 0 | AH195: 0 | AI195: 0 | AJ195: 0 | AP195: 25 | AQ195: 101 | AR195: 12 | AS195: 6 | AT195: 0 | AU195: 0 | AV195: 0 | AW195: 0 | AX195: 0 | BD195: 1 | BE195: 59.4
C196: Vaughn Meatoga | D196: Hawaii | F196: 0 | G196: 5 | H196: 27 | I196: 30 | J196: 7.1 | K196: 4.21 | L196: 108 | N196: 13 | O196: 38 | P196: 4 | Q196: 3 | R196: 0 | S196: 0 | T196: 1 | U196: 0 | V196: 0 | AB196: 14 | AC196: 32 | AD196: 2.5 | AE196: 1 | AF196: 0 | AG196: 0 | AH196: 1 | AI196: 0 | AJ196: 0 | AP196: 27 | AQ196: 70 | AR196: 6.5 | AS196: 4 | AT196: 0 | AU196: 0 | AV196: 2 | AW196: 0 | AX196: 0 | BD196: 0 | BE196: 0
C197: Rennie Moore | D197: Clemson | F197: 0 | G197: 5.12 | H197: 21 | I197: 30.5 | K197: 4.53 | L197: 109 | N197: 14 | O197: 43 | P197: 9 | Q197: 4 | R197: 0 | S197: 2 | T197: 1 | U197: 1 | V197: 0 | AB197: 13 | AC197: 21 | AD197: 6 | AE197: 2 | AF197: 0 | AG197: 0 | AH197: 0 | AI197: 0 | AJ197: 0 | AP197: 27 | AQ197: 64 | AR197: 15 | AS197: 6 | AT197: 0 | AU197: 2 | AV197: 1 | AW197: 1 | AX197: 0 | BD197: 1 | BE197: =IF(F197=0,E197*0,IF(F197=1,E197*$BN$2,IF(F197=2,E197*$BM$2,IF(F197=3,E197*$BL$2,IF(F197=4,E197*$BK$2,E197*$BJ$2))))) -> 0
C198: Dontari Poe | D198: Memphis | E198: 70.74 | F198: 5 | G198: 4.98 | H198: 44 | I198: 29.5 | J198: 7.9 | K198: 4.56 | L198: 105 | N198: 12 | O198: 33 | P198: 8 | Q198: 1 | R198: 0 | S198: 3 | T198: 1 | U198: 0 | V198: 0 | AB198: 12 | AC198: 41 | AD198: 6.5 | AE198: 2 | AF198: 0 | AG198: 1 | AH198: 0 | AI198: 0 | AJ198: 0 | AP198: 24 | AQ198: 74 | AR198: 14.5 | AS198: 3 | AT198: 0 | AU198: 4 | AV198: 1 | AW198: 0 | AX198: 0 | BD198: 0 | BE198: 70.74
C199: Tydreke Powell | D199: North Carolina | F199: 0 | G199: 5.36 | H199: 29 | I199: 28.5 | J199: 7.31 | K199: 4.62 | L199: 99 | N199: 13 | O199: 46 | P199: 4.5 | Q199: 1 | R199: 1 | S199: 0 | T199: 0 | U199: 0 | V199: 0 | AB199: 13 | AC199: 47 | AD199: 3 | AE199: 2.5 | AF199: 0 | AG199: 1 | AH199: 1 | AI199: 0 | AJ199: 0 | AP199: 26 | AQ199: 93 | AR199: 7.5 | AS199: 3.5 | AT199: 1 | AU199: 1 | AV199: 1 | AW199: 0 | AX199: 0 | BD199: 1 | BE199: 0
C200: Kheeston Randall | D200: Texas | E200: 54.2 | F200: 1 | G200: 5 | H200: 28 | I200: 34 | J200: 7.49 | K200: 4.84 | L200: 111 | N200: 13 | O200: 31 | P200: 4 | Q200: 1 | R200: 0 | S200: 1 | T200: 0 | U200: 0 | V200: 0 | AB200: 12 | AC200: 33 | AD200: 10 | AE200: 1 | AF200: 0 | AG200: 2 | AH200: 0 | AI200: 0 | AJ200: 0 | AP200: 25 | AQ200: 64 | AR200: 14 | AS200: 2 | AT200: 0 | AU200: 3 | AV200: 0 | AW200: 0 | AX200: 0 | BD200: 1 | BE200: 43.36
C201: Kendall Reyes | D201: Connecticut | E201: 49.56 | F201: 5 | G201: 4.95 | H201: 36 | I201: 34.5 | J201: 7.43 | K201: 4.53 | L201: 113 | N201: 12 | O201: 46 | P201: 13.5 | Q201: 4.5 | R201: 0 | S201: 4 | T201: 0 | U201: 1 | V201: 1 | AB201: 13 | AC201: 39 | AD201: 10 | AE201: 2.5 | AF201: 4 | AG201: 2 | AH201: 1 | AI201: 0 | AJ201: 0 | AP201: 25 | AQ201: 85 | AR201: 23.5 | AS201: 7 | AT201: 4 | AU201: 6 | AV201: 1 | AW201: 1 | AX201: 1 | BD201: 0 | BE201: 49.56
C202: Travian Robertson | D202: South Carolina | F202: 0 | G202: 5.32 | H202: 30 | I202: 26 | L202: 102 | N202: 13 | O202: 49 | P202: 8 | Q202: 2.5 | R202: 0 | S202: 0 | T202: 0 | U202: 0 | V202: 0 | AB202: 14 | AC202: 42 | AD202: 10 | AE202: 4 | AF202: 0 | AG202: 2 | AH202: 1 | AI202: 0 | AJ202: 0 | AP202: 27 | AQ202: 91 | AR202: 18 | AS202: 6.5 | AT202: 0 | AU202: 2 | AV202: 1 | AW202: 0 | AX202: 0 | BD202: 1 | BE202: 0
C203: Brett Roy | D203: Nevada | F203: 0 | G203: 5.07 | H203: 32 | I203: 30.5 | J203: 7.31 | K203: 4.62 | L203: 108 | N203: 13 | O203: 66 | P203: 18.5 | Q203: 10 | R203: 0 | S203: 6 | T203: 0 | U203: 1 | V203: 0 | AB203: 14 | AC203: 50 | AD203: 14.5 | AE203: 8 | AF203: 0 | AG203: 3 | AH203: 0 | AI203: 0 | AJ203: 0 | AP203: 27 | AQ203: 116 | AR203: 33 | AS203: 18 | AT203: 0 | AU203: 9 | AV203: 0 | AW203: 1 | AX203: 0 | BD203: 0 | BE203: 0
C204: Devon Still | D204: Penn State | E204: 57.8 | F204: 3 | G204: 5.08 | H204: 26 | I204: 29.5 | N204: 13 | O204: 55 | P204: 17 | Q204: 4.5 | R204: 0 | S204: 1 | T204: 1 | U204: 0 | V204: 0 | AB204: 13 | AC204: 39 | AD204: 10 | AE204: 4 | AF204: 0 | AG204: 1 | AH204: 0 | AI204: 0 | AJ204: 0 | AP204: 26 | AQ204: 94 | AR204: 27 | AS204: 8.5 | AT204: 0 | AU204: 2 | AV204: 1 | AW204: 0 | AX204: 0 | BD204: 1 | BE204: 52.02
C205: J.R. Sweezy | D205: North Carolina State | E205: 66.54 | F205: 5 | G205: 5.01 | H205: 21 | I205: 36 | J205: 7.4 | K205: 4.41 | L205: 113 | N205: 9 | O205: 20 | P205: 4 | Q205: 2 | R205: 0 | S205: 0 | T205: 1 | U205: 0 | V205: 0 | AB205: 12 | AC205: 50 | AD205: 11.5 | AE205: 5.5 | AF205: 0 | AG205: 3 | AH205: 1 | AI205: 0 | AJ205: 0 | AP205: 21 | AQ205: 70 | AR205: 15.5 | AS205: 7.5 | AT205: 0 | AU205: 3 | AV205: 2 | AW205: 0 | AX205: 0 | BD205: 1 | BE205: 66.54
C206: Alameda Ta'amu | D206: Washington | F206: 0 | G206: 5.37 | H206: 35 | I206: 26 | L206: 103 | N206: 13 | O206: 30 | P206: 7 | Q206: 3.5 | R206: 0 | S206: 0 | T206: 0 | U206: 0 | V206: 0 | AB206: 13 | AC206: 39 | AD206: 5 | AE206: 1.5 | AF206: 0 | AG206: 1 | AH206: 0 | AI206: 1 | AJ206: 0 | AP206: 26 | AQ206: 69 | AR206: 12 | AS206: 5 | AT206: 0 | AU206: 1 | AV206: 0 | AW206: 1 | AX206: 0 | BD206: 1 | BE206: 0
... 1194 more rows

Sheet ||QB||
F1: NFL Combine | M1: Last College Football Season | AA1: Second-Last College Football Season | AO1: Total College Stats
N2: Passing | W2: Rushing | AB2: Passing | AK2: Rushing | AP2: Passing | AY2: Rushing | BG2: 5 (Years Qualified) | BH2: 4 | BI2: 3 | BJ2: 2 | BK2: 1
A3: Class | B3: Name | C3: College | D3: PFF Score | E3: Years Qualified | F3: 40 Yard Dash | G3: Benchpress | H3: Vertical Jump | I3: Three Cone Drill | J3: 20 Yard Shuttle | K3: Broad Jump | L3: Wonderlic | M3: Games | N3: Completions1 | O3: Attempts1 | P3: Comp. Pct1 | Q3: Yards1 | R3: Y/A1 | S3: AY/A1 | T3: TD1 | U3: Int1 | V3: Rate1 | W3: RAttempts1 | X3: RYards1 | Y3: RAverage1 | Z3: RTD1 | AA3: Games2 | AB3: Completions2 | AC3: Attempts2 | AD3: Comp. Pct2 | AE3: Yards2 | AF3: Y/A2 | AG3: AY/A2 | AH3: TD2 | AI3: Int2 | AJ3: Rate2 | AK3: RAttempts2 | AL3: RYards2 | AM3: RAverage2 | AN3: RTD2 | AO3: Games | AP3: Completions | AQ3: Attempts | AR3: Comp. Pct | AS3: Yards | AT3: Y/A | AU3: AY/A | AV3: TD | AW3: Int | AX3: Rate | AY3: RAttempts | AZ3: RYards | BA3: RAverage | BB3: RTD | BC3: College Mult. | BD3: Weighted PFF | BG3: 1 | BH3: 0.95 | BI3: 0.9 | BJ3: 0.85 | BK3: 0.8
A4: 2012 | B4: B.J. Coleman | C4: Tenn-Chattanooga | E4: 0 | I4: 7.07 | J4: 4.38 | K4: 109 | M4: 7 | N4: 137 | O4: 225 | P4: 60.9 | Q4: 1527 | R4: 6.79 | T4: 9 | U4: 9 | V4: 123.1 | W4: 25 | X4: -34 | Y4: -1.4 | Z4: 1 | AA4: 11 | AB4: 215 | AC4: 382 | AD4: 56.3 | AE4: 2996 | AF4: 7.8 | AH4: 26 | AI4: 13 | AJ4: 137.8 | AK4: 37 | AL4: -17 | AM4: -0.5 | AN4: 4 | AO4: =SUM(M4, AA4) -> 18 | AP4: =SUM(N4,AB4) -> 352 | AQ4: =SUM(O4,AC4) -> 607 | AR4: =(AP4/AQ4)*100 -> 57.99011532 | AS4: =SUM(Q4,AE4) -> 4523 | AT4: =AS4/AQ4 -> 7.451400329 | AU4: =(AS4+(20*AV4)-(45*AW4))/AQ4 -> 6.973640857 | AV4: =SUM(T4,AH4) -> 35 | AW4: =SUM(U4,AI4) -> 22 | AX4: =((8.4*AS4)+(330*AV4)-(200*AW4)+(100*AP4))/AQ4 -> 132.3611203 | AY4: =SUM(W4,AK4) -> 62 | AZ4: =SUM(X4,AL4) -> -51 | BA4: =AZ4/AY4 -> -0.8225806452 | BB4: =SUM(Z4,AN4) -> 5 | BC4: 0 | BD4: =IF(E4=0,D4*0,IF(E4=1,D4*$BK$3,IF(E4=2,D4*$BJ$3,IF(E4=3,D4*$BI$3,IF(E4=4,D4*$BH$3,D4*$BG$3))))) -> 0
B5: Aaron Corp | C5: Richmond | E5: 0 | F5: 4.72 | H5: 31.5 | I5: 7.03 | J5: 4.3 | K5: 106 | M5: 11 | N5: 247 | O5: 388 | P5: 64 | Q5: 2682 | R5: 6.9 | T5: 17 | U5: 13 | V5: 129.5 | W5: 54 | X5: -29 | Y5: -0.5 | Z5: 0 | AA5: 5 | AB5: 67 | AC5: 123 | AD5: 54 | AE5: 645 | AF5: 5.2 | AH5: 3 | AI5: 4 | AJ5: 100.1 | AK5: 19 | AL5: 51 | AM5: 2.7 | AN5: 0 | AO5: 16 | AP5: 314 | AQ5: 511 | AR5: 61.4481409 | AS5: 3327 | AT5: 6.510763209 | AU5: 5.796477495 | AV5: 20 | AW5: 17 | AX5: 122.4007828 | AY5: 73 | AZ5: 22 | BA5: 0.301369863 | BB5: 0 | BC5: 0 | BD5: =IF(E5=0,D5*0,IF(E5=1,D5*$BK$3,IF(E5=2,D5*$BJ$3,IF(E5=3,D5*$BI$3,IF(E5=4,D5*$BH$3,D5*$BG$3))))) -> 0
B6: Kirk Cousins | C6: Michigan State | D6: 81.68 | E6: 5 | F6: 4.93 | H6: 28.5 | I6: 7.05 | J6: 4.5 | K6: 109 | L6: 33 | M6: 14 | N6: 267 | O6: 419 | P6: 63.7 | Q6: 3316 | R6: 7.9 | S6: 8 | T6: 25 | U6: 10 | V6: 145.1 | W6: 37 | X6: -39 | Y6: -1.1 | Z6: 0 | AA6: 13 | AB6: 226 | AC6: 338 | AD6: 66.9 | AE6: 2825 | AF6: 8.4 | AG6: 8.2 | AH6: 20 | AI6: 10 | AJ6: 150.7 | AK6: 40 | AL6: -136 | AM6: -3.4 | AN6: 1 | AO6: 27 | AP6: 493 | AQ6: 757 | AR6: 65.12549538 | AS6: 6141 | AT6: 8.112285337 | AU6: 8.112285337 | AV6: 45 | AW6: 20 | AX6: 147.6015852 | AY6: 77 | AZ6: -175 | BA6: -2.272727273 | BB6: 1 | BC6: 1 | BD6: 81.68
B7: Austin Davis | C7: Southern Miss | D7: 53.9 | E7: 2 | F7: 4.76 | H7: 31 | I7: 6.73 | J7: 4.11 | K7: 109 | M7: 14 | N7: 286 | O7: 475 | P7: 60.2 | Q7: 3496 | R7: 7.4 | S7: 7.6 | T7: 30 | U7: 11 | V7: 138.2 | W7: 110 | X7: 352 | Y7: 3.2 | Z7: 4 | AA7: 13 | AB7: 278 | AC7: 442 | AD7: 62.9 | AE7: 3103 | AF7: 7 | AG7: 7.3 | AH7: 20 | AI7: 6 | AJ7: 134.1 | AK7: 145 | AL7: 452 | AM7: 3.1 | AN7: 10 | AO7: 27 | AP7: 564 | AQ7: 917 | AR7: 61.50490731 | AS7: 6599 | AT7: 7.196292257 | AU7: 7.452562704 | AV7: 50 | AW7: 17 | AX7: 136.2394766 | AY7: 255 | AZ7: 804 | BA7: 3.152941176 | BB7: 14 | BC7: 0 | BD7: 45.815
B8: Nick Foles | C8: Arizona | D8: 72.36 | E8: 5 | F8: 5.14 | H8: 30.5 | K8: 112 | L8: 29 | M8: 12 | N8: 387 | O8: 560 | P8: 69.1 | Q8: 4334 | R8: 7.7 | S8: 7.6 | T8: 28 | U8: 14 | V8: 145.6 | W8: 43 | X8: -103 | Y8: -2.4 | Z8: 0 | AA8: 11 | AB8: 286 | AC8: 426 | AD8: 67.1 | AE8: 3191 | AF8: 7.5 | AG8: 7.4 | AH8: 20 | AI8: 10 | AJ8: 140.9 | AK8: 35 | AL8: -113 | AM8: -3.2 | AN8: 1 | AO8: 23 | AP8: 673 | AQ8: 986 | AR8: 68.25557809 | AS8: 7525 | AT8: 7.631845842 | AU8: 7.510141988 | AV8: 48 | AW8: 24 | AX8: 143.5598377 | AY8: 78 | AZ8: -216 | BA8: -2.769230769 | BB8: 1 | BC8: 1 | BD8: 72.36
B9: Robert Griffin | C9: Baylor | D9: 63.13 | E9: 2 | F9: 4.41 | H9: 39 | K9: 120 | L9: 24 | M9: 13 | N9: 291 | O9: 402 | P9: 72.4 | Q9: 4293 | R9: 10.7 | S9: 11.8 | T9: 37 | U9: 6 | V9: 189.5 | W9: 179 | X9: 699 | Y9: 3.9 | Z9: 10 | AA9: 13 | AB9: 304 | AC9: 454 | AD9: 67 | AE9: 3501 | AF9: 7.7 | AG9: 7.9 | AH9: 22 | AI9: 8 | AJ9: 144.2 | AK9: 149 | AL9: 635 | AM9: 4.3 | AN9: 8 | AO9: 26 | AP9: 595 | AQ9: 856 | AR9: 69.50934579 | AS9: 7794 | AT9: 9.105140187 | AU9: 9.747663551 | AV9: 59 | AW9: 14 | AX9: 165.4668224 | AY9: 328 | AZ9: 1334 | BA9: 4.067073171 | BB9: 18 | BC9: 1 | BD9: 53.6605
B10: Chandler Harnish | C10: Northern Illinois | E10: 0 | F10: 4.76 | H10: 32.5 | I10: 6.78 | J10: 4.15 | K10: 112 | M10: 14 | N10: 237 | O10: 384 | P10: 61.7 | Q10: 3216 | R10: 8.4 | S10: 9.1 | T10: 28 | U10: 6 | V10: 153 | W10: 194 | X10: 1379 | Y10: 7.1 | Z10: 11 | AA10: 13 | AB10: 189 | AC10: 292 | AD10: 64.7 | AE10: 2530 | AF10: 8.7 | AG10: 9.3 | AH10: 21 | AI10: 5 | AJ10: 157.8 | AK10: 137 | AL10: 836 | AM10: 6.1 | AN10: 7 | AO10: 27 | AP10: 426 | AQ10: 676 | AR10: 63.01775148 | AS10: 5746 | AT10: 8.5 | AU10: 9.217455621 | AV10: 49 | AW10: 11 | AX10: 155.083432 | AY10: 331 | AZ10: 2215 | BA10: 6.6918429 | BB10: 18 | BC10: 0 | BD10: 0
B11: Jacory Harris | C11: Miami (FL) | E11: 0 | F11: 4.72 | H11: 37 | I11: 7.1 | J11: 4.4 | K11: 113 | M11: 11 | N11: 195 | O11: 300 | P11: 65 | Q11: 2486 | R11: 8.3 | S11: 8.3 | T11: 20 | U11: 9 | V11: 150.6 | W11: 53 | X11: 88 | Y11: 1.7 | Z11: 0 | AA11: 10 | AB11: 148 | AC11: 270 | AD11: 54.8 | AE11: 1793 | AF11: 6.6 | AG11: 5.2 | AH11: 14 | AI11: 15 | AJ11: 116.6 | AK11: 29 | AL11: 27 | AM11: 0.9 | AN11: 2 | AO11: 21 | AP11: 343 | AQ11: 570 | AR11: 60.1754386 | AS11: 4279 | AT11: 7.507017544 | AU11: 6.805263158 | AV11: 34 | AW11: 24 | AX11: 134.4975439 | AY11: 82 | AZ11: 115 | BA11: 1.402439024 | BB11: 2 | BC11: 1 | BD11: 0
B12: Jordan Jefferson | C12: LSU | E12: 0 | F12: 4.65 | G12: 14 | H12: 36.5 | I12: 6.81 | J12: 4.06 | K12: 116 | M12: 10 | N12: 61 | O12: 100 | P12: 61 | Q12: 747 | R12: 7.4 | S12: 7.7 | T12: 6 | U12: 2 | V12: 138.7 | W12: 75 | X12: 263 | Y12: 3.51 | Z12: 3 | AA12: 13 | AB12: 118 | AC12: 209 | AD12: 56.5 | AE12: 1411 | AF12: 6.8 | AG12: 5.3 | AH12: 7 | AI12: 10 | AJ12: 114.7 | AK12: 123 | AL12: 450 | AM12: 3.7 | AN12: 7 | AO12: 23 | AP12: 179 | AQ12: 309 | AR12: 57.92880259 | AS12: 2158 | AT12: 6.98381877 | AU12: 6.077669903 | AV12: 13 | AW12: 12 | AX12: 122.7093851 | AY12: 198 | AZ12: 713 | BA12: 3.601010101 | BB12: 10 | BC12: 1 | BD12: 0
B13: Case Keenum | C13: Houston | D13: 68.18 | E13: 5 | F13: 4.82 | H13: 32.5 | K13: 103 | M13: 14 | N13: 428 | O13: 603 | P13: 71 | Q13: 5631 | R13: 9.3 | S13: 10.6 | T13: 48 | U13: 5 | V13: 174 | W13: 57 | X13: 35 | Y13: 0.6 | Z13: 3 | AA13: 3 | AB13: 42 | AC13: 64 | AD13: 65.6 | AE13: 636 | AF13: 9.9 | AG13: 8 | AH13: 5 | AI13: 5 | AJ13: 159.3 | AK13: 4 | AL13: 71 | AM13: 17.8 | AN13: 0 | AO13: 17 | AP13: 470 | AQ13: 667 | AR13: 70.46476762 | AS13: 6267 | AT13: 9.395802099 | AU13: 10.31034483 | AV13: 53 | AW13: 10 | AX13: 172.6128936 | AY13: 61 | AZ13: 106 | BA13: 1.737704918 | BB13: 3 | BC13: 0 | BD13: 68.18
B14: Ryan Lindley | C14: San Diego State | D14: 37.35 | E14: 2 | F14: 4.86 | H14: 29.5 | I14: 7.52 | J14: 4.45 | K14: 108 | L14: 35 | M14: 13 | N14: 237 | O14: 447 | P14: 53 | Q14: 3153 | R14: 7.1 | S14: 7.3 | T14: 23 | U14: 8 | V14: 125.7 | W14: 18 | X14: -51 | Y14: -2.8 | Z14: 0 | AA14: 13 | AB14: 243 | AC14: 421 | AD14: 57.7 | AE14: 3830 | AF14: 9.1 | AG14: 8.9 | AH14: 28 | AI14: 14 | AJ14: 149.4 | AK14: 19 | AL14: -31 | AM14: -1.6 | AN14: 0 | AO14: 26 | AP14: 480 | AQ14: 868 | AR14: 55.29953917 | AS14: 6983 | AT14: 8.044930876 | AU14: 8.079493088 | AV14: 51 | AW14: 22 | AX14: 137.197235 | AY14: 37 | AZ14: -82 | BA14: -2.216216216 | BB14: 0 | BC14: 0 | BD14: 31.7475
B15: Andrew Luck | C15: Stanford | D15: 81.06 | E15: 5 | F15: 4.67 | H15: 36 | I15: 6.8 | J15: 4.28 | K15: 124 | L15: 37 | M15: 13 | N15: 288 | O15: 404 | P15: 71.3 | Q15: 3517 | R15: 8.7 | S15: 9.4 | T15: 37 | U15: 10 | V15: 169.7 | W15: 47 | X15: 150 | Y15: 3.2 | Z15: 2 | AA15: 13 | AB15: 263 | AC15: 372 | AD15: 70.7 | AE15: 3338 | AF15: 9 | AG15: 9.7 | AH15: 32 | AI15: 8 | AJ15: 170.2 | AK15: 55 | AL15: 453 | AM15: 8.2 | AN15: 3 | AO15: 26 | AP15: 551 | AQ15: 776 | AR15: 71.00515464 | AS15: 6855 | AT15: 8.833762887 | AU15: 9.568298969 | AV15: 69 | AW15: 18 | AX15: 169.9123711 | AY15: 102 | AZ15: 603 | BA15: 5.911764706 | BB15: 5 | BC15: 1 | BD15: 81.06
B16: Kellen Moore | C16: Boise State | E16: 0 | F16: 4.94 | H16: 27 | I16: 7.41 | J16: 4.56 | K16: 99 | L16: 26 | M16: 13 | N16: 326 | O16: 439 | P16: 74.3 | Q16: 3800 | R16: 8.7 | S16: 9.7 | T16: 43 | U16: 9 | V16: 175.2 | W16: 20 | X16: -66 | Y16: -3.3 | Z16: 0 | AA16: 13 | AB16: 273 | AC16: 383 | AD16: 71.3 | AE16: 3845 | AF16: 10 | AG16: 11.2 | AH16: 35 | AI16: 6 | AJ16: 182.6 | AK16: 19 | AL16: -32 | AM16: -1.7 | AN16: 1 | AO16: 26 | AP16: 599 | AQ16: 822 | AR16: 72.87104623 | AS16: 7645 | AT16: 9.300486618 | AU16: 10.37712895 | AV16: 78 | AW16: 15 | AX16: 178.6593674 | AY16: 39 | AZ16: -98 | BA16: -2.512820513 | BB16: 1 | BC16: 0 | BD16: 0
B17: Brock Osweiler | C17: Arizona State | D17: 53.93 | E17: 4 | F17: 4.83 | L17: 25 | M17: 13 | N17: 326 | O17: 516 | P17: 63.2 | Q17: 4036 | R17: 7.8 | S17: 7.7 | T17: 26 | U17: 13 | V17: 140.5 | W17: 83 | X17: 90 | Y17: 1.1 | Z17: 3 | AA17: 6 | AB17: 62 | AC17: 109 | AD17: 56.9 | AE17: 797 | AF17: 7.3 | AG17: 8.2 | AH17: 5 | AI17: 0 | AJ17: 133.4 | AK17: 80 | AL17: 81 | AM17: 1 | AN17: 2 | AO17: 19 | AP17: 388 | AQ17: 625 | AR17: 62.08 | AS17: 4833 | AT17: 7.7328 | AU17: 7.7888 | AV17: 31 | AW17: 13 | AX17: 139.24352 | AY17: 163 | AZ17: 171 | BA17: 1.049079755 | BB17: 5 | BC17: 1 | BD17: 51.2335
B18: Ryan Tannehill | C18: Texas A&M | D18: 82.2 | E18: 5 | F18: 4.65 | M18: 13 | N18: 327 | O18: 531 | P18: 61.6 | Q18: 3744 | R18: 7.1 | S18: 6.9 | T18: 29 | U18: 15 | V18: 133.2 | W18: 58 | X18: 306 | Y18: 5.3 | Z18: 4 | AA18: 13 | AB18: 152 | AC18: 234 | AD18: 65 | AE18: 1638 | AF18: 7 | AG18: 7 | AH18: 13 | AI18: 6 | AJ18: 137 | AK18: 51 | AL18: 76 | AM18: 1.5 | AN18: 1 | AO18: 26 | AP18: 479 | AQ18: 765 | AR18: 62.61437908 | AS18: 5382 | AT18: 7.035294118 | AU18: 6.898039216 | AV18: 42 | AW18: 21 | AX18: 134.3383007 | AY18: 109 | AZ18: 382 | BA18: 3.504587156 | BB18: 5 | BC18: 1 | BD18: 82.2
B19: Darron Thomas | C19: Oregon | E19: 0 | F19: 4.8 | G19: 14 | H19: 36 | I19: 7.17 | J19: 4.28 | K19: 121 | M19: 13 | N19: 211 | O19: 339 | P19: 62.2 | Q19: 2761 | R19: 8.1 | S19: 9.2 | T19: 33 | U19: 7 | V19: 158.7 | W19: 56 | X19: 206 | Y19: 3.7 | Z19: 3 | AA19: 13 | AB19: 222 | AC19: 361 | AD19: 61.5 | AE19: 2881 | AF19: 8 | AG19: 8.5 | AH19: 30 | AI19: 9 | AJ19: 151 | AK19: 93 | AL19: 486 | AM19: 5.2 | AN19: 5 | AO19: 26 | AP19: 433 | AQ19: 700 | AR19: 61.85714286 | AS19: 5642 | AT19: 8.06 | AU19: 8.831428571 | AV19: 63 | AW19: 16 | AX19: 154.6897143 | AY19: 149 | AZ19: 692 | BA19: 4.644295302 | BB19: 8 | BC19: 1 | BD19: 0
B20: Brandon Weeden | C20: Oklahoma State | D20: 60.17 | E20: 3 | M20: 13 | N20: 409 | O20: 565 | P20: 72.4 | Q20: 4727 | R20: 8.4 | S20: 8.6 | T20: 37 | U20: 13 | V20: 159.7 | W20: 17 | X20: -102 | Y20: -6 | Z20: 1 | AA20: 13 | AB20: 342 | AC20: 511 | AD20: 66.9 | AE20: 4277 | AF20: 8.4 | AG20: 8.6 | AH20: 34 | AI20: 13 | AJ20: 154.1 | AK20: 17 | AL20: -68 | AM20: -4 | AN20: 0 | AO20: 26 | AP20: 751 | AQ20: 1076 | AR20: 69.79553903 | AS20: 9004 | AT20: 8.36802974 | AU20: 8.600371747 | AV20: 71 | AW20: 26 | AX20: 157.029368 | AY20: 34 | AZ20: -170 | BA20: -5 | BB20: 1 | BC20: 1 | BD20: 54.153
B21: Russell Wilson | C21: Wisconsin | D21: 89.14 | E21: 5 | F21: 4.55 | H21: 34 | I21: 6.97 | J21: 4.09 | K21: 118 | M21: 14 | N21: 225 | O21: 309 | P21: 72.8 | Q21: 3175 | R21: 10.3 | S21: 11.8 | T21: 33 | U21: 4 | V21: 191.8 | W21: 79 | X21: 338 | Y21: 4.3 | Z21: 6 | AA21: 13 | AB21: 308 | AC21: 527 | AD21: 58.4 | AE21: 3563 | AF21: 6.8 | AG21: 6.6 | AH21: 28 | AI21: 14 | AJ21: 127.5 | AK21: 143 | AL21: 435 | AM21: 3 | AN21: 9 | AO21: 27 | AP21: 533 | AQ21: 836 | AR21: 63.75598086 | AS21: 6738 | AT21: 8.059808612 | AU21: 8.550239234 | AV21: 61 | AW21: 18 | AX21: 151.2311005 | AY21: 222 | AZ21: 773 | BA21: 3.481981982 | BB21: 15 | BC21: 1 | BD21: 89.14
B22: Patrick Witt | C22: Yale | E22: 0 | H22: 31.5 | I22: 7.14 | J22: 4.37 | K22: 101 | M22: 10 | N22: 199 | O22: 321 | P22: 62 | Q22: 2368 | T22: 17 | AA22: 9 | AB22: 212 | AC22: 351 | AD22: 60.4 | AE22: 2216 | AF22: 6.31 | AH22: 12 | AI22: 12 | AJ22: 117.9 | AK22: 35 | AL22: -98 | AM22: -2.8 | AN22: 2 | AO22: 19 | AP22: 411 | AQ22: 672 | AR22: 61.16071429 | AS22: 4584 | AT22: 6.821428571 | AU22: 6.880952381 | AV22: 29 | AW22: 12 | AX22: 129.1303571 | AY22: 35 | AZ22: -98 | BA22: -2.8 | BB22: 2 | BC22: 0 | BD22: 0
A23: 2013 | B23: Matt Barkley | C23: USC | D23: 73 | E23: 1 | F23: 4.91 | J23: 4.58 | L23: 30 | M23: 11 | N23: 246 | O23: 387 | P23: 63.6 | Q23: 3273 | R23: 8.5 | S23: 8.6 | T23: 36 | U23: 15 | V23: 157.6 | W23: 25 | X23: -72 | Y23: -2.9 | Z23: 0 | AA23: 12 | AB23: 308 | AC23: 446 | AD23: 69.1 | AE23: 3528 | AF23: 7.9 | AG23: 9 | AH23: 39 | AI23: 7 | AJ23: 161.2 | AK23: 28 | AL23: 14 | AM23: 0.5 | AN23: 2 | AO23: =M23+AA23 -> 23 | AP23: =N23+AB23 -> 554 | AQ23: =O23+AC23 -> 833 | AR23: =AVERAGE(P23,AD23) -> 66.35 | AS23: =Q23+AE23 -> 6801 | AT23: =AVERAGE(R23,AF23) -> 8.2 | AU23: =AVERAGE(S23,AG23) -> 8.8 | AV23: =T23+AH23 -> 75 | AW23: =U23+AI23 -> 22 | AX23: =AVERAGE(V23,AJ23) -> 159.4 | AY23: =W23+AK23 -> 53 | AZ23: =X23+AL23 -> -58 | BA23: =AVERAGE(Y23,AM23) -> -1.2 | BB23: =Z23+AN23 -> 2 | BC23: 1 | BD23: 58.4
B24: Tyler Bray | C24: Tennessee | E24: 0 | F24: 5.05 | I24: 7.2 | J24: 4.51 | K24: 100 | L24: 24 | M24: 12 | N24: 268 | O24: 451 | P24: 59.4 | Q24: 3612 | R24: 8 | S24: 8.3 | T24: 34 | U24: 12 | V24: 146.3 | W24: 15 | X24: -34 | Y24: -2.3 | Z24: 0 | AA24: 7 | AB24: 147 | AC24: 247 | AD24: 59.5 | AE24: 1983 | AF24: 8 | AG24: 8.3 | AH24: 17 | AI24: 6 | AJ24: 144.8 | AK24: 26 | AL24: -70 | AM24: -2.7 | AN24: 1 | AO24: 19 | AP24: 415 | AQ24: 698 | AR24: 59.45 | AS24: 5595 | AT24: 8 | AU24: 8.3 | AV24: 51 | AW24: 18 | AX24: 145.55 | AY24: 41 | AZ24: -104 | BA24: -2.5 | BB24: 1 | BC24: 1 | BD24: 0
B25: Colby Cameron | C25: Louisiana Tech | E25: 0 | F25: 4.78 | H25: 30.5 | I25: 6.98 | J25: 4.28 | K25: 112 | M25: 12 | N25: 359 | O25: 522 | P25: 68.8 | Q25: 4147 | R25: 7.9 | S25: 8.7 | T25: 31 | U25: 5 | V25: 153.2 | W25: 61 | X25: 177 | Y25: 2.9 | Z25: 4 | AA25: 7 | AB25: 118 | AC25: 215 | AD25: 54.9 | AE25: 1667 | AF25: 7.8 | AG25: 8.3 | AH25: 13 | AI25: 3 | AJ25: 137 | AK25: 43 | AL25: 180 | AM25: 4.2 | AN25: 0 | AO25: 19 | AP25: 477 | AQ25: 737 | AR25: 61.85 | AS25: 5814 | AT25: 7.85 | AU25: 8.5 | AV25: 44 | AW25: 8 | AX25: 145.1 | AY25: 104 | AZ25: 357 | BA25: 3.55 | BB25: 4 | BC25: 0 | BD25: 0
B26: B.J. Daniels | C26: USF | E26: 0 | F26: 4.63 | G26: 20 | H26: 32.5 | I26: 7.02 | J26: 4.27 | K26: 114 | M26: 9 | N26: 165 | O26: 290 | P26: 56.9 | Q26: 2075 | R26: 7.2 | S26: 6.6 | T26: 14 | U26: 10 | V26: 126 | W26: 104 | X26: 434 | Y26: 4.2 | Z26: 5 | AA26: 11 | AB26: 215 | AC26: 365 | AD26: 58.9 | AE26: 2604 | AF26: 7.1 | AG26: 7 | AH26: 13 | AI26: 7 | AJ26: 126.7 | AK26: 132 | AL26: 601 | AM26: 4.6 | AN26: 6 | AO26: 20 | AP26: 380 | AQ26: 655 | AR26: 57.9 | AS26: 4679 | AT26: 7.15 | AU26: 6.8 | AV26: 27 | AW26: 17 | AX26: 126.35 | AY26: 236 | AZ26: 1035 | BA26: 4.4 | BB26: 11 | BC26: 0 | BD26: 0
B27: Zac Dysert | C27: Miami (OH) | E27: 0 | F27: 4.81 | L27: 24 | M27: 12 | N27: 302 | O27: 480 | P27: 62.9 | Q27: 3483 | R27: 7.3 | S27: 7.2 | T27: 25 | U27: 12 | V27: 136.1 | W27: 108 | X27: 265 | Y27: 2.5 | Z27: 2 | AA27: 12 | AB27: 295 | AC27: 448 | AD27: 65.8 | AE27: 3513 | AF27: 7.8 | AG27: 7.8 | AH27: 23 | AI27: 11 | AJ27: 143.7 | AK27: 125 | AL27: 115 | AM27: 0.9 | AN27: 4 | AO27: 24 | AP27: 597 | AQ27: 928 | AR27: 64.35 | AS27: 6996 | AT27: 7.55 | AU27: 7.5 | AV27: 48 | AW27: 23 | AX27: 139.9 | AY27: 233 | AZ27: 380 | BA27: 1.7 | BB27: 6 | BC27: 0 | BD27: 0
B28: Mike Glennon | C28: North Carolina State | D28: 57.84 | E28: 5 | F28: 4.94 | H28: 26.5 | I28: 7.49 | J28: 4.52 | K28: 102 | L28: 26 | M28: 13 | N28: 330 | O28: 564 | P28: 58.5 | Q28: 4031 | R28: 7.1 | S28: 6.9 | T28: 31 | U28: 17 | V28: 130.7 | W28: 56 | X28: -164 | Y28: -2.9 | Z28: 2 | AA28: 13 | AB28: 283 | AC28: 453 | AD28: 62.5 | AE28: 3054 | AF28: 6.7 | AG28: 6.9 | AH28: 31 | AI28: 12 | AJ28: 136.4 | AK28: 51 | AL28: -110 | AM28: -2.2 | AN28: 1 | AO28: 26 | AP28: 613 | AQ28: 1017 | AR28: 60.5 | AS28: 7085 | AT28: 6.9 | AU28: 6.9 | AV28: 62 | AW28: 29 | AX28: 133.55 | AY28: 107 | AZ28: -274 | BA28: -2.55 | BB28: 3 | BC28: 1 | BD28: 57.84
B29: MarQueis Gray | C29: Minnesota | D29: 56.4 | E29: 4 | F29: 4.73 | G29: 15 | H29: 30 | I29: 7.25 | J29: 4.3 | K29: 111 | M29: 11 | N29: 34 | O29: 59 | P29: 57.6 | Q29: 472 | R29: 8 | S29: 8.2 | T29: 5 | U29: 2 | V29: 146 | W29: 72 | X29: 390 | Y29: 5.4 | Z29: 5 | AA29: 11 | AB29: 108 | AC29: 213 | AD29: 50.7 | AE29: 1495 | AF29: 7 | AG29: 6.1 | AH29: 8 | AI29: 8 | AJ29: 114.5 | AK29: 199 | AL29: 966 | AM29: 4.9 | AN29: 6 | AO29: 22 | AP29: 142 | AQ29: 272 | AR29: 54.15 | AS29: 1967 | AT29: 7.5 | AU29: 7.15 | AV29: 13 | AW29: 10 | AX29: 130.25 | AY29: 271 | AZ29: 1356 | BA29: 5.15 | BB29: 11 | BC29: 1 | BD29: 53.58
B30: Ryan Griffin | C30: Tulane | E30: 0 | F30: 5.2 | H30: 25.5 | I30: 7.64 | J30: 4.78 | K30: 101 | L30: 28 | M30: 9 | N30: 245 | O30: 394 | P30: 62.2 | Q30: 2771 | R30: 7 | S30: 6.8 | T30: 20 | U30: 11 | V30: 132.4 | W30: 32 | X30: -127 | Y30: -4 | Z30: 0 | AA30: 13 | AB30: 227 | AC30: 408 | AD30: 55.6 | AE30: 2502 | AF30: 6.1 | AG30: 5.7 | AH30: 13 | AI30: 10 | AJ30: 112.8 | AK30: 50 | AL30: -10 | AM30: -0.2 | AN30: 0 | AO30: 22 | AP30: 472 | AQ30: 802 | AR30: 58.9 | AS30: 5273 | AT30: 6.55 | AU30: 6.25 | AV30: 33 | AW30: 21 | AX30: 122.6 | AY30: 82 | AZ30: -137 | BA30: -2.1 | BB30: 0 | BC30: 0 | BD30: 0
B31: Landry Jones | C31: Oklahoma | D31: 50.6 | E31: 2 | F31: 5.11 | H31: 31 | I31: 7.12 | J31: 4.3 | K31: 115 | M31: 13 | N31: 367 | O31: 555 | P31: 66.1 | Q31: 4267 | R31: 7.7 | S31: 7.9 | T31: 30 | U31: 11 | V31: 144.6 | W31: 14 | X31: -110 | Y31: -7.9 | Z31: 0 | AA31: 13 | AB31: 355 | AC31: 562 | AD31: 63.2 | AE31: 4463 | AF31: 7.9 | AG31: 7.8 | AH31: 29 | AI31: 15 | AJ31: 141.6 | AK31: 32 | AL31: -24 | AM31: -0.8 | AN31: 2 | AO31: 26 | AP31: 722 | AQ31: 1117 | AR31: 64.65 | AS31: 8730 | AT31: 7.8 | AU31: 7.85 | AV31: 59 | AW31: 26 | AX31: 143.1 | AY31: 46 | AZ31: -134 | BA31: -4.35 | BB31: 2 | BC31: 1 | BD31: 43.01
B32: Collin Klein | C32: Kansas State | E32: 0 | F32: 4.78 | H32: 29 | I32: 7.17 | J32: 4.4 | K32: 111 | L32: 28 | M32: 13 | N32: 197 | O32: 304 | P32: 64.8 | Q32: 2641 | R32: 8.7 | S32: 8.4 | T32: 16 | U32: 9 | V32: 149.2 | W32: 207 | X32: 920 | Y32: 4.4 | Z32: 23 | AA32: 13 | AB32: 161 | AC32: 281 | AD32: 57.3 | AE32: 1918 | AF32: 6.8 | AG32: 6.8 | AH32: 13 | AI32: 6 | AJ32: 125.6 | AK32: 317 | AL32: 1141 | AM32: 3.6 | AN32: 27 | AO32: 26 | AP32: 358 | AQ32: 585 | AR32: 61.05 | AS32: 4559 | AT32: 7.75 | AU32: 7.6 | AV32: 29 | AW32: 15 | AX32: 137.4 | AY32: 524 | AZ32: 2061 | BA32: 4 | BB32: 50 | BC32: 1 | BD32: 0
B33: EJ Manuel | C33: Florida State | D33: 49.87 | E33: 3 | F33: 4.65 | H33: 34 | I33: 7.08 | J33: 4.21 | K33: 118 | L33: 41 | M33: 14 | N33: 263 | O33: 387 | P33: 68 | Q33: 3397 | R33: 8.8 | S33: 8.8 | T33: 23 | U33: 10 | V33: 156.1 | W33: 103 | X33: 310 | Y33: 3 | Z33: 4 | AA33: 12 | AB33: 203 | AC33: 311 | AD33: 65.3 | AE33: 2666 | AF33: 8.6 | AG33: 8.6 | AH33: 18 | AI33: 8 | AJ33: 151.2 | AK33: 110 | AL33: 151 | AM33: 1.4 | AN33: 4 | AO33: 26 | AP33: 466 | AQ33: 698 | AR33: 66.65 | AS33: 6063 | AT33: 8.7 | AU33: 8.7 | AV33: 41 | AW33: 18 | AX33: 153.65 | AY33: 213 | AZ33: 461 | BA33: 2.2 | BB33: 8 | BC33: 1 | BD33: 44.883
B34: Ryan Nassib | C34: Syracuse | E34: 0 | F34: 5.06 | H34: 28.5 | I34: 7.34 | J34: 4.53 | K34: 105 | M34: 13 | N34: 294 | O34: 471 | P34: 62.4 | Q34: 3749 | R34: 8 | S34: 8.1 | T34: 26 | U34: 10 | V34: 143.3 | W34: 84 | X34: 142 | Y34: 1.7 | Z34: 2 | AA34: 12 | AB34: 259 | AC34: 415 | AD34: 62.4 | AE34: 2685 | AF34: 6.5 | AG34: 6.6 | AH34: 22 | AI34: 9 | AJ34: 129.9 | AK34: 65 | AL34: 39 | AM34: 0.6 | AN34: 2 | AO34: 25 | AP34: 553 | AQ34: 886 | AR34: 62.4 | AS34: 6434 | AT34: 7.25 | AU34: 7.35 | AV34: 48 | AW34: 19 | AX34: 136.6 | AY34: 149 | AZ34: 181 | BA34: 1.15 | BB34: 4 | BC34: 1 | BD34: 0
B35: Sean Renfree | C35: Duke | E35: 0 | L35: 22 | M35: 12 | N35: 297 | O35: 441 | P35: 67.3 | Q35: 3113 | R35: 7.1 | S35: 6.9 | T35: 19 | U35: 10 | V35: 136.3 | W35: 38 | X35: -50 | Y35: -1.3 | Z35: 1 | AA35: 12 | AB35: 282 | AC35: 434 | AD35: 65 | AE35: 2891 | AF35: 6.7 | AG35: 6.2 | AH35: 14 | AI35: 11 | AJ35: 126.5 | AK35: 58 | AL35: -58 | AM35: -1 | AN35: 4 | AO35: 24 | AP35: 579 | AQ35: 875 | AR35: 66.15 | AS35: 6004 | AT35: 6.9 | AU35: 6.55 | AV35: 33 | AW35: 21 | AX35: 131.4 | AY35: 96 | AZ35: -108 | BA35: -1.15 | BB35: 5 | BC35: 1 | BD35: 0
B36: Matt Scott | C36: Arizona | E36: 0 | F36: 4.69 | H36: 31 | I36: 6.69 | J36: 3.99 | K36: 118 | L36: 24 | M36: 12 | N36: 301 | O36: 499 | P36: 60.3 | Q36: 3620 | R36: 7.3 | S36: 7.1 | T36: 27 | U36: 14 | V36: 133.5 | W36: 113 | X36: 506 | Y36: 4.5 | Z36: 6 | AA36: 7 | AB36: 66 | AC36: 93 | AD36: 71 | AE36: 776 | AF36: 8.3 | AG36: 8.2 | AH36: 4 | AI36: 2 | AJ36: 151 | AK36: 35 | AL36: 135 | AM36: 3.9 | AN36: 0 | AO36: 19 | AP36: 367 | AQ36: 592 | AR36: 65.65 | AS36: 4396 | AT36: 7.8 | AU36: 7.65 | AV36: 31 | AW36: 16 | AX36: 142.25 | AY36: 148 | AZ36: 641 | BA36: 4.2 | BB36: 6 | BC36: 1 | BD36: =IF(E36=0,D36*0,IF(E36=1,D36*$BK$3,IF(E36=2,D36*$BJ$3,IF(E36=3,D36*$BI$3,IF(E36=4,D36*$BH$3,D36*$BG$3))))) -> 0
B37: Geno Smith | C37: West Virginia | D37: 63.9 | E37: 3 | F37: 4.58 | H37: 33.5 | K37: 124 | M37: 13 | N37: 369 | O37: 518 | P37: 71.2 | Q37: 4205 | R37: 8.1 | S37: 9.2 | T37: 42 | U37: 6 | V37: 163.9 | W37: 66 | X37: 151 | Y37: 2.3 | Z37: 2 | AA37: 13 | AB37: 346 | AC37: 526 | AD37: 65.8 | AE37: 4385 | AF37: 8.3 | AG37: 8.9 | AH37: 31 | AI37: 7 | AJ37: 152.6 | AK37: 56 | AL37: -33 | AM37: -0.6 | AN37: 2 | AO37: 26 | AP37: 715 | AQ37: 1044 | AR37: 68.5 | AS37: 8590 | AT37: 8.2 | AU37: 9.05 | AV37: 73 | AW37: 13 | AX37: 158.25 | AY37: 122 | AZ37: 118 | BA37: 0.85 | BB37: 4 | BC37: 1 | BD37: 57.51
B38: Brad Sorensen | C38: Southern Utah | E38: 0 | F38: 4.97 | H38: 29 | I38: 7.17 | J38: 4.55 | K38: 112 | M38: 11 | N38: 288 | O38: 425 | P38: 67.8 | Q38: 3143 | R38: 7.4 | T38: 17 | U38: 11 | W38: 51 | X38: -21 | Y38: -0.4 | Z38: 1 | AA38: 11 | AB38: 261 | AC38: 390 | AD38: 66.9 | AE38: 3163 | AF38: 8.1 | AH38: 21 | AI38: 6 | AK38: 64 | AL38: 7 | AM38: 0.1 | AN38: 2 | AO38: 22 | AP38: 549 | AQ38: 815 | AR38: 67.35 | AS38: 6306 | AT38: 7.75 | AV38: 38 | AW38: 17 | AY38: 115 | AZ38: -14 | BA38: -0.15 | BB38: 3 | BC38: 0 | BD38: 0
B39: Jeff Tuel | C39: Washington State | D39: 46 | E39: 1 | F39: 4.6 | H39: 32 | I39: 6.9 | J39: 4.12 | K39: 111 | M39: 10 | N39: 211 | O39: 332 | P39: 63.6 | Q39: 2087 | R39: 6.3 | S39: 5.7 | T39: 8 | U39: 8 | V39: 119.5 | W39: 55 | X39: -115 | Y39: -2.1 | Z39: 0 | AA39: 3 | AB39: 29 | AC39: 45 | AD39: 64.4 | AE39: 276 | AF39: 6.1 | AG39: 6.6 | AH39: 1 | AI39: 0 | AJ39: 123.3 | AK39: 17 | AL39: -9 | AM39: -0.5 | AN39: 1 | AO39: 13 | AP39: 240 | AQ39: 377 | AR39: 64 | AS39: 2363 | AT39: 6.2 | AU39: 6.15 | AV39: 9 | AW39: 8 | AX39: 121.4 | AY39: 72 | AZ39: -124 | BA39: -1.3 | BB39: 1 | BC39: 1 | BD39: 36.8
B40: James Vandenberg | C40: Iowa | E40: 0 | F40: 4.92 | H40: 32 | I40: 6.95 | J40: 4.52 | K40: 116 | M40: 12 | N40: 223 | O40: 389 | P40: 57.3 | Q40: 2249 | R40: 5.8 | S40: 5.2 | T40: 7 | U40: 8 | V40: 107.7 | W40: 63 | X40: 16 | Y40: 0.3 | Z40: 4 | AA40: 13 | AB40: 237 | AC40: 404 | AD40: 58.7 | AE40: 3022 | AF40: 7.5 | AG40: 7.9 | AH40: 25 | AI40: 7 | AJ40: 138.5 | AK40: 78 | AL40: 61 | AM40: 0.8 | AN40: 3 | AO40: 25 | AP40: 460 | AQ40: 793 | AR40: 58 | AS40: 5271 | AT40: 6.65 | AU40: 6.55 | AV40: 32 | AW40: 15 | AX40: 123.1 | AY40: 141 | AZ40: 77 | BA40: 0.55 | BB40: 7 | BC40: 1 | BD40: 0
B41: Tyler Wilson | C41: Arkansas | E41: 0 | F41: 4.95 | H41: 28.5 | I41: 7.22 | J41: 4.39 | K41: 112 | L41: 20 | M41: 11 | N41: 249 | O41: 401 | P41: 62.1 | Q41: 3387 | R41: 8.4 | S41: 8 | T41: 21 | U41: 13 | V41: 143.8 | W41: 41 | X41: 7 | Y41: 0.2 | Z41: 0 | AA41: 13 | AB41: 277 | AC41: 438 | AD41: 63.2 | AE41: 3638 | AF41: 8.3 | AG41: 8.8 | AH41: 24 | AI41: 6 | AJ41: 148.4 | AK41: 60 | AL41: -3 | AM41: -0.1 | AN41: 4 | AO41: 24 | AP41: 526 | AQ41: 839 | AR41: 62.65 | AS41: 7025 | AT41: 8.35 | AU41: 8.4 | AV41: 45 | AW41: 19 | AX41: 146.1 | AY41: 101 | AZ41: 4 | BA41: 0.05 | BB41: 4 | BC41: 1 | BD41: 0
A42: 2014 | B42: Blake Bortles | C42: Central Florida | D42: 60.46 | E42: 5 | F42: 4.93 | H42: 32.5 | I42: 7.08 | J42: 4.21 | K42: 115 | L42: 28 | M42: 13 | N42: 259 | O42: 382 | P42: 67.8 | Q42: 3581 | R42: 9.4 | S42: 9.6 | T42: 25 | U42: 9 | V42: 163.4 | W42: 87 | X42: 272 | Y42: 3.1 | Z42: 6 | AA42: 14 | AB42: 251 | AC42: 399 | AD42: 62.9 | AE42: 3059 | AF42: 7.7 | AG42: 8.1 | AH42: 25 | AI42: 7 | AJ42: 144.5 | AK42: 87 | AL42: 285 | AM42: 3.3 | AN42: 8 | AO42: 27 | AP42: 510 | AQ42: 781 | AR42: 65.35 | AS42: 6640 | AT42: 8.55 | AU42: 8.85 | AV42: 50 | AW42: 16 | AX42: 153.95 | AY42: 174 | AZ42: 557 | BA42: 3.2 | BB42: 14 | BC42: 0 | BD42: 60.46
B43: Tajh Boyd | C43: Clemson | E43: 0 | F43: 4.84 | H43: 30.5 | I43: 7.33 | J43: 4.23 | K43: 106 | M43: 13 | N43: 283 | O43: 413 | P43: 68.5 | Q43: 3851 | R43: 9.3 | S43: 9.8 | T43: 34 | U43: 11 | V43: 168.7 | W43: 154 | X43: 400 | Y43: 2.6 | Z43: 10 | AA43: 13 | AB43: 287 | AC43: 427 | AD43: 67.2 | AE43: 3896 | AF43: 9.1 | AG43: 9.4 | AH43: 36 | AI43: 13 | AJ43: 165.6 | AK43: 186 | AL43: 514 | AM43: 2.8 | AN43: 10 | AO43: 26 | AP43: 570 | AQ43: 840 | AR43: 67.85 | AS43: 7747 | AT43: 9.2 | AU43: 9.6 | AV43: 70 | AW43: 24 | AX43: 167.15 | AY43: 340 | AZ43: 914 | BA43: 2.7 | BB43: 20 | BC43: 1 | BD43: 0
B44: Theodore Bridgewater | C44: Louisville | D44: 71.4 | E44: 5 | H44: 30 | I44: 7.17 | J44: 4.2 | K44: 113 | L44: 20 | M44: 13 | N44: 303 | O44: 427 | P44: 71 | Q44: 3970 | R44: 9.3 | S44: 10.3 | T44: 31 | U44: 4 | V44: 171.1 | W44: 63 | X44: 78 | Y44: 1.2 | Z44: 1 | AA44: 13 | AB44: 287 | AC44: 419 | AD44: 68.5 | AE44: 3718 | AF44: 8.9 | AG44: 9.3 | AH44: 27 | AI44: 8 | AJ44: 160.5 | AK44: 74 | AL44: 26 | AM44: 0.4 | AN44: 1 | AO44: 26 | AP44: 590 | AQ44: 846 | AR44: 69.75 | AS44: 7688 | AT44: 9.1 | AU44: 9.8 | AV44: 58 | AW44: 12 | AX44: 165.8 | AY44: 137 | AZ44: 104 | BA44: 0.8 | BB44: 2 | BC44: 1 | BD44: 71.4
B45: Derek Carr | C45: Fresno State | D45: 80.44 | E45: 5 | F45: 4.69 | H45: 34.5 | J45: 4.2 | K45: 110 | L45: 20 | M45: 13 | N45: 454 | O45: 659 | P45: 68.9 | Q45: 5083 | R45: 7.7 | S45: 8.7 | T45: 50 | U45: 8 | V45: 156.3 | W45: 40 | X45: 117 | Y45: 2.9 | Z45: 2 | AA45: 13 | AB45: 344 | AC45: 511 | AD45: 67.3 | AE45: 4104 | AF45: 8 | AG45: 8.9 | AH45: 37 | AI45: 7 | AJ45: 155.9 | AK45: 66 | AL45: 1 | AM45: 0 | AN45: 0 | AO45: 26 | AP45: 798 | AQ45: 1170 | AR45: 68.1 | AS45: 9187 | AT45: 7.85 | AU45: 8.8 | AV45: 87 | AW45: 15 | AX45: 156.1 | AY45: 106 | AZ45: 118 | BA45: 1.45 | BB45: 2 | BC45: 0 | BD45: 80.44
B46: David Fales | C46: San Jose State | E46: 0 | F46: 4.99 | H46: 28 | I46: 7.55 | J46: 4.5 | K46: 103 | M46: 12 | N46: 312 | O46: 487 | P46: 64.1 | Q46: 4189 | R46: 8.6 | S46: 8.8 | T46: 33 | U46: 13 | V46: 153.3 | W46: 48 | X46: 7 | Y46: 0.1 | Z46: 2 | AA46: 13 | AB46: 327 | AC46: 451 | AD46: 72.5 | AE46: 4193 | AF46: 9.3 | AG46: 9.9 | AH46: 33 | AI46: 9 | AJ46: 170.8 | AK46: 42 | AL46: -139 | AM46: -3.3 | AN46: 0 | AO46: 25 | AP46: 639 | AQ46: 938 | AR46: 68.3 | AS46: 8382 | AT46: 8.95 | AU46: 9.35 | AV46: 66 | AW46: 22 | AX46: 162.05 | AY46: 90 | AZ46: -132 | BA46: -1.6 | BB46: 2 | BC46: 0 | BD46: 0
B47: James Garoppolo | C47: East. Illinois | D47: 73.9 | E47: 5 | F47: 4.97 | H47: 30.5 | I47: 7.04 | J47: 4.26 | K47: 110 | L47: 24 | M47: 14 | N47: 375 | O47: 568 | P47: 66 | Q47: 5050 | R47: 8.9 | T47: 53 | U47: 9 | W47: 70 | X47: 62 | Y47: 0.9 | Z47: 4 | AA47: 12 | AB47: 331 | AC47: 540 | AD47: 61.3 | AE47: 3823 | AF47: 7.1 | AH47: 31 | AI47: 15 | AK47: 83 | AL47: 0 | AM47: 0 | AN47: 2 | AO47: 26 | AP47: 706 | AQ47: 1108 | AR47: 63.65 | AS47: 8873 | AT47: =AVERAGE(R47,AF47) -> 8 | AV47: 84 | AW47: 24 | AY47: 153 | AZ47: 62 | BA47: 0.45 | BB47: 6 | BC47: 0 | BD47: 73.9
B48: Jordan Lynch | C48: Northern Illinois | E48: 0 | F48: 4.76 | H48: 29.5 | I48: 6.55 | J48: 4.2 | K48: 109 | M48: 14 | N48: 253 | O48: 404 | P48: 62.6 | Q48: 2892 | R48: 7.2 | S48: 7.5 | T48: 24 | U48: 8 | V48: 138.4 | W48: 292 | X48: 1920 | Y48: 6.6 | Z48: 23 | AA48: 14 | AB48: 237 | AC48: 394 | AD48: 60.2 | AE48: 3138 | AF48: 8 | AG48: 8.5 | AH48: 25 | AI48: 6 | AJ48: 144.9 | AK48: 294 | AL48: 1815 | AM48: 6.2 | AN48: 19 | AO48: 28 | AP48: 490 | AQ48: 798 | AR48: 61.4 | AS48: 6030 | AT48: 7.6 | AU48: =AVERAGE(S48,AG48) -> 8 | AV48: 49 | AW48: 14 | AX48: =AVERAGE(V48,AJ48) -> 141.65 | AY48: 586 | AZ48: 3735 | BA48: 6.4 | BB48: 42 | BC48: 0 | BD48: 0
B49: Johnny Manziel | C49: Texas A&M | D49: 53.3 | E49: 1 | F49: 4.68 | H49: 31.5 | I49: 6.75 | J49: 4.03 | K49: 113 | L49: 32 | M49: 13 | N49: 300 | O49: 429 | P49: 69.9 | Q49: 4114 | R49: 9.6 | S49: 10 | T49: 37 | U49: 13 | V49: 172.9 | W49: 144 | X49: 759 | Y49: 5.3 | Z49: 9 | AA49: 13 | AB49: 295 | AC49: 434 | AD49: 68 | AE49: 3706 | AF49: 8.5 | AG49: 8.8 | AH49: 26 | AI49: 9 | AJ49: 155.3 | AK49: 201 | AL49: 1410 | AM49: 7 | AN49: 21 | AO49: 26 | AP49: 595 | AQ49: 863 | AR49: 68.95 | AS49: 7820 | AT49: 9.05 | AU49: =AVERAGE(S49,AG49) -> 9.4 | AV49: 63 | AW49: 22 | AX49: =AVERAGE(V49,AJ49) -> 164.1 | AY49: 345 | AZ49: 2169 | BA49: 6.15 | BB49: 30 | BC49: 1 | BD49: 42.64
B50: Jeffrey Mathews | C50: Cornell | E50: 0 | F50: 5.26 | H50: 25.5 | I50: 7.14 | J50: 4.36 | K50: 105 | M50: 9 | N50: 228 | O50: 360 | P50: 63.3 | Q50: 2953 | R50: 8.2 | T50: 22 | U50: 13 | W50: 84 | X50: -18 | Y50: -0.2 | Z50: 4 | AA50: 9 | AB50: 251 | AC50: 405 | AD50: 62 | AE50: 3196 | AF50: 7.9 | AH50: 18 | AI50: 11 | AK50: 57 | AL50: -150 | AM50: -2.6 | AN50: 2 | AO50: 18 | AP50: 479 | AQ50: 765 | AR50: 62.65 | AS50: 6149 | AT50: 8.05 | AV50: 40 | AW50: 24 | AY50: 141 | AZ50: -168 | BA50: -1.4 | BB50: 6 | BC50: 0 | BD50: 0
B51: A.J. McCarron | C51: Alabama | D51: 63.3 | E51: 1 | F51: 4.94 | H51: 28 | I51: 7.18 | J51: 4.34 | K51: 99 | M51: 13 | N51: 226 | O51: 336 | P51: 67.3 | Q51: 3063 | R51: 9.1 | S51: 9.8 | T51: 28 | U51: 7 | V51: 167.2 | W51: 34 | X51: -22 | Y51: -0.6 | Z51: 0 | AA51: 14 | AB51: 211 | AC51: 314 | AD51: 67.2 | AE51: 2933 | AF51: 9.3 | AG51: 10.8 | AH51: 30 | AI51: 3 | AJ51: 175.3 | AK51: 49 | AL51: 4 | AM51: 0.1 | AN51: 1 | AO51: 27 | AP51: 437 | AQ51: 650 | AR51: 67.25 | AS51: 5996 | AT51: 9.2 | AU51: =AVERAGE(S51,AG51) -> 10.3 | AV51: 58 | AW51: 10 | AX51: =AVERAGE(V51,AJ51) -> 171.25 | AY51: 83 | AZ51: -18 | BA51: -0.25 | BB51: 1 | BC51: 1 | BD51: 50.64
B52: Zachary Mettenberger | C52: LSU | D52: 47.55 | E52: 2 | M52: 12 | N52: 192 | O52: 296 | P52: 64.9 | Q52: 3082 | R52: 10.4 | S52: 10.7 | T52: 22 | U52: 8 | V52: 171.4 | W52: 34 | X52: -133 | Y52: -3.9 | Z52: 0 | AA52: 13 | AB52: 207 | AC52: 352 | AD52: 58.8 | AE52: 2609 | AF52: 7.4 | AG52: 7.2 | AH52: 12 | AI52: 7 | AJ52: 128.3 | AK52: 47 | AL52: -208 | AM52: -4.4 | AN52: 0 | AO52: 25 | AP52: 399 | AQ52: 648 | AR52: 61.85 | AS52: 5691 | AT52: 8.9 | AU52: 8.95 | AV52: 34 | AW52: 15 | AX52: 149.85 | AY52: 81 | AZ52: -341 | BA52: -4.15 | BB52: 0 | BC52: 1 | BD52: 40.4175
B53: Stephen Morris | C53: Miami (FL) | E53: 0 | F53: 4.63 | H53: 30 | I53: 7.36 | J53: 4.49 | K53: 111 | M53: 13 | N53: 198 | O53: 344 | P53: 57.6 | Q53: 3028 | R53: 8.8 | S53: 8.5 | T53: 21 | U53: 12 | V53: 144.7 | W53: 28 | X53: -88 | Y53: -3.1 | Z53: 0 | AA53: 12 | AB53: 245 | AC53: 421 | AD53: 58.2 | AE53: 3345 | AF53: 7.9 | AG53: 8.2 | AH53: 21 | AI53: 7 | AJ53: 138.1 | AK53: 51 | AL53: 70 | AM53: 1.4 | AN53: 1 | AO53: 25 | AP53: 443 | AQ53: 765 | AR53: 57.9 | AS53: 6373 | AT53: 8.35 | AU53: 8.35 | AV53: 42 | AW53: 19 | AX53: 141.4 | AY53: 79 | AZ53: -18 | BA53: -0.85 | BB53: 1 | BC53: 1 | BD53: 0
B54: Aaron Murray | C54: Georgia | E54: 0 | F54: 4.84 | M54: 11 | N54: 225 | O54: 347 | P54: 64.8 | Q54: 3075 | R54: 8.9 | S54: 9.2 | T54: 26 | U54: 9 | V54: 158.8 | W54: 53 | X54: 186 | Y54: 3.5 | Z54: 7 | AA54: 14 | AB54: 249 | AC54: 386 | AD54: 64.5 | AE54: 3893 | AF54: 10.1 | AG54: 10.8 | AH54: 36 | AI54: 10 | AJ54: 174.8 | AK54: 59 | AL54: -68 | AM54: -1.2 | AN54: 3 | AO54: 25 | AP54: 474 | AQ54: 733 | AR54: 64.65 | AS54: 6968 | AT54: 9.5 | AU54: 10 | AV54: 62 | AW54: 19 | AX54: 166.8 | AY54: 112 | AZ54: 118 | BA54: 1.15 | BB54: 10 | BC54: 1 | BD54: 0
B55: Bryn Renner | C55: North Carolina | E55: 0 | F55: 4.87 | H55: 25.5 | I55: 7.22 | J55: 4.3 | K55: 108 | M55: 7 | N55: 152 | O55: 231 | P55: 65.8 | Q55: 1756 | R55: 7.6 | S55: 7.5 | T55: 10 | U55: 5 | V55: 139.9 | W55: 46 | X55: -43 | Y55: -0.9 | Z55: 2 | AA55: 12 | AB55: 276 | AC55: 422 | AD55: 65.4 | AE55: 3356 | AF55: 8 | AG55: 8.5 | AH55: 28 | AI55: 7 | AJ55: 150.8 | AK55: 61 | AL55: 38 | AM55: 0.6 | AN55: 1 | AO55: =M55+AA55 -> 19 | AP55: =N55+AB55 -> 428 | AQ55: =O55+AC55 -> 653 | AR55: =AVERAGE(P55,AD55) -> 65.6 | AS55: =Q55+AE55 -> 5112 | AT55: 7.8 | AU55: 8 | AV55: =T55+AH55 -> 38 | AW55: =U55+AI55 -> 12 | AX55: 145.35 | AY55: =W55+AK55 -> 107 | AZ55: =X55+AL55 -> -5 | BA55: =AVERAGE(Y55,AM55) -> -0.15 | BB55: =Z55+AN55 -> 3 | BC55: 1 | BD55: 0
B56: Thomas Savage | C56: Pittsburgh | D56: 58.6 | E56: 1 | F56: 4.97 | H56: 27 | I56: 7.33 | J56: 4.36 | K56: 105 | M56: 13 | N56: 238 | O56: 389 | P56: 61.2 | Q56: 2958 | R56: 7.6 | S56: 7.6 | T56: 21 | U56: 9 | V56: 138.2 | W56: 76 | X56: -208 | Y56: -2.7 | Z56: 3 | AO56: 13 | AP56: 238 | AQ56: 389 | AR56: 61.2 | AS56: 2958 | AT56: 7.6 | AU56: 7.6 | AV56: 21 | AW56: 9 | AX56: 138.2 | AY56: 76 | AZ56: -208 | BA56: -2.7 | BB56: 3 | BC56: 1 | BD56: 46.88
B57: Connor Shaw | C57: South Carolina | E57: 0 | F57: 4.66 | H57: 34 | I57: 7.07 | J57: 4.33 | K57: 116 | M57: 13 | N57: 180 | O57: 284 | P57: 63.4 | Q57: 2447 | R57: 8.6 | S57: 10.1 | T57: 24 | U57: 1 | V57: 162.9 | W57: 154 | X57: 558 | Y57: 3.6 | Z57: 6 | AA57: 11 | AB57: 154 | AC57: 228 | AD57: 67.5 | AE57: 1956 | AF57: 8.6 | AG57: 8.7 | AH57: 17 | AI57: 7 | AJ57: 158.1 | AK57: 131 | AL57: 435 | AM57: 3.3 | AN57: 3 | AO57: 24 | AP57: 334 | AQ57: 512 | AR57: 65.45 | AS57: 4403 | AT57: 8.6 | AU57: 9.4 | AV57: 41 | AW57: 8 | AX57: 160.5 | AY57: 285 | AZ57: 993 | BA57: 3.45 | BB57: 9 | BC57: 1 | BD57: 0
B58: Logan Thomas* | C58: Virginia Tech | F58: 4.61 | H58: 35.5 | I58: 7.05 | J58: 4.18 | K58: 118 | M58: 13 | N58: 227 | O58: 402 | P58: 56.5 | Q58: 2907 | R58: 7.2 | S58: 6.5 | T58: 15 | U58: 13 | V58: 123.1 | W58: 162 | X58: 344 | Y58: 2.1 | Z58: 4 | AA58: 13 | AB58: 220 | AC58: 429 | AD58: 51.3 | AE58: 2976 | AF58: 6.9 | AG58: 6.1 | AH58: 18 | AI58: 16 | AJ58: 115.9 | AK58: 174 | AL58: 524 | AM58: 3 | AN58: 9 | AO58: 26 | AP58: 447 | AQ58: 831 | AR58: 53.9 | AS58: 5883 | AT58: 7.05 | AU58: 6.3 | AV58: 33 | AW58: 29 | AX58: 119.5 | AY58: 336 | AZ58: 868 | BA58: 2.55 | BB58: 13 | BC58: 1 | BD58: 0
B59: Dustin Vaughan | C59: West Texas A&M | E59: 0 | F59: 4.95 | H59: 29 | I59: 7.25 | J59: 4.43 | K59: 108 | M59: 14 | N59: 447 | O59: 675 | P59: 66.2 | Q59: 5401 | R59: 8 | T59: 53 | U59: 10 | W59: 58 | X59: -88 | Y59: -1.5 | Z59: 1 | AA59: 15 | AB59: 359 | AC59: 555 | AD59: 64.7 | AE59: 4712 | AF59: 8.5 | AH59: 45 | AI59: 13 | AK59: 71 | AL59: 139 | AM59: 2 | AN59: 0 | AO59: 29 | AP59: 806 | AQ59: 1230 | AR59: 65.45 | AS59: 10113 | AT59: 8.25 | AV59: 98 | AW59: 23 | AY59: 129 | AZ59: 51 | BA59: 0.25 | BB59: 1 | BC59: 0 | BD59: 0
B60: Keith Wenning | C60: Ball State | E60: 0 | F60: 5 | H60: 28 | I60: 7.07 | J60: 4.25 | K60: 100 | M60: 13 | N60: 319 | O60: 498 | P60: 64.1 | Q60: 4148 | R60: 8.3 | S60: 9.1 | T60: 35 | U60: 7 | V60: 154.4 | W60: 45 | X60: 44 | Y60: 1 | Z60: 5 | AA60: 12 | AB60: 301 | AC60: 460 | AD60: 65.4 | AE60: 3095 | AF60: 6.7 | AG60: 6.8 | AH60: 24 | AI60: 10 | AJ60: 134.8 | AK60: 56 | AL60: 105 | AM60: 1.9 | AN60: 3 | AO60: 25 | AP60: 620 | AQ60: 958 | AR60: 64.75 | AS60: 7243 | AT60: 7.5 | AU60: =AVERAGE(S60,AG60) -> 7.95 | AV60: 59 | AW60: 17 | AX60: =AVERAGE(V60,AJ60) -> 144.6 | AY60: 101 | AZ60: 149 | BA60: 1.45 | BB60: 8 | BC60: 0 | BD60: 0 | BE60: FINAL RANKING
A61: 2022 | B61: Brock Purdy | C61: Iowa St. | F61: 4.84 | H61: 27 | I61: 7.21 | J61: 4.45 | M61: 13 | N61: 292 | O61: 407 | P61: 71.7 | Q61: 3188 | R61: 7.8 | T61: 19 | U61: 8 | V61: 149 | W61: 85 | X61: 238 | Y61: 2.8 | Z61: 1 | AA61: 12 | AB61: 243 | AC61: 365 | AD61: 66.6 | AE61: 2750 | AF61: 7.5 | AG61: 7.5 | AH61: 19 | AI61: 9 | AJ61: 142.1 | AK61: 87 | AL61: 382 | AM61: 4.4 | AN61: 5 | AO61: =M61+AA61 -> 25 | AP61: =N61+AB61 -> 535 | AQ61: =O61+AC61 -> 772 | AR61: =AVERAGE(P61,AD61) -> 69.15 | AS61: =Q61+AE61 -> 5938 | AT61: =AVERAGE(R61,AF61) -> 7.65 | AU61: =AVERAGE(S61,AG61) -> 7.5 | AV61: =T61+AH61 -> 38 | AW61: =U61+AI61 -> 17 | AX61: =AVERAGE(V61,AJ61) -> 145.55 | AY61: =W61+AK61 -> 172 | AZ61: =X61+AL61 -> 620 | BA61: =AVERAGE(Y61,AM61) -> 3.6 | BB61: =Z61+AN61 -> 6 | BC61: 1 | BD61: =-54.92115 + (10.69763*S61) + (0.1115618*N61) + (-0.1844265*AV61) + (0.2754226*AX61) + (1.065862*AR61) + (-16.93081*AT61) -> -45.08189117 | BE61: =IF(BC61=1,BD61*1,BD61*0.75) -> -45.08189117 | BG61: =-54.92115 + (10.69763*S61) + (0.1115618*N61) + (-0.1844265*AV61) + (0.2754226*AX61) + (1.065862*AR61) + (-16.93081*AT61) -> -45.08189117
B62: Cole Kelley | C62: Southeastern Louisiana | M62: 13 | N62: 406 | O62: 552 | P62: 73.6 | Q62: 5124 | R62: 9.3 | T62: 44 | U62: 10 | V62: 174.2 | W62: 161 | X62: 491 | Y62: 3 | Z62: 16 | AA62: 7 | AB62: 210 | AC62: 305 | AD62: 68.9 | AE62: 2662 | AF62: 8.7 | AH62: 18 | AI62: 4 | AJ62: 159 | AK62: 76 | AL62: 46 | AM62: 0.6 | AN62: 7 | AO62: 20 | AP62: 616 | AQ62: 857 | AR62: 71.25 | AS62: 7786 | AT62: =AVERAGE(R62,AF62) -> 9 | AV62: 62 | AW62: 14 | AX62: 166.6 | AY62: 237 | AZ62: 537 | BA62: 1.8 | BB62: 23 | BC62: 0 | BD62: -51.61071954 | BE62: -38.70803965
B63: EJ Perry | C63: Brown | F63: 4.65 | H63: 34.5 | I63: 6.85 | J63: 4.18 | K63: 123 | M63: 10 | N63: 296 | O63: 445 | P63: 66.5 | Q63: 3034 | R63: 6.8 | T63: 23 | U63: 14 | V63: 134.6 | W63: 111 | X63: 402 | Y63: 3.6 | Z63: 7 | AA63: 10 | AB63: 249 | AC63: 416 | AD63: 59.9 | AE63: 2938 | AF63: 7.1 | AH63: 22 | AI63: 13 | AJ63: 130.4 | AK63: 141 | AL63: 727 | AM63: 5.2 | AN63: 8 | AO63: 20 | AP63: 545 | AQ63: 861 | AR63: 63.2 | AS63: 5972 | AT63: 6.95 | AV63: 45 | AW63: 27 | AX63: 132.5 | AY63: 252 | AZ63: 1129 | BA63: 4.4 | BB63: 15 | BC63: 0 | BD63: -44.0112063 | BE63: -33.00840472 | BG63: =-95.78724 + (-0.0117968*X61) + ( 0.080479*N61) + (-0.0220446*AV61) + (0.2739022*AX61) + (1.274061*AR61) + (-1.911703*AT61) -> 37.41055021
B64: D'Eriq King | C64: Miami | M64: 3 | N64: 81 | O64: 122 | P64: 66.4 | Q64: 767 | R64: 6.3 | S64: 5.3 | T64: 3 | U64: 4 | V64: 120.8 | W64: 40 | X64: 96 | Y64: 2.4 | Z64: 0 | AA64: 11 | AB64: 211 | AC64: 329 | AD64: 64.1 | AE64: 2686 | AF64: 8.2 | AG64: 8.9 | AH64: 23 | AI64: 5 | AJ64: 152.7 | AK64: 130 | AL64: 538 | AM64: 4.1 | AN64: 4 | AO64: 14 | AP64: 292 | AQ64: 451 | AR64: 65.25 | AS64: 3453 | AT64: 7.25 | AU64: =AVERAGE(S64,AG64) -> 7.1 | AV64: 26 | AW64: 9 | AX64: 136.75 | AY64: 170 | AZ64: 634 | BA64: 3.25 | BB64: 4 | BC64: 1 | BD64: -9.51913065 | BE64: -9.51913065
B65: Kaleb Eleby | C65: Western Michigan | H65: 25.5 | I65: 7.57 | K65: 111 | M65: 13 | N65: 230 | O65: 362 | P65: 63.5 | Q65: 3277 | R65: 9.1 | S65: 9.6 | T65: 23 | U65: 6 | V65: 157.2 | W65: 87 | X65: 64 | Y65: 0.7 | Z65: 6 | AA65: 6 | AB65: 98 | AC65: 152 | AD65: 64.5 | AE65: 1699 | AF65: 11.2 | AG65: 13 | AH65: 18 | AI65: 2 | AJ65: 194.8 | AK65: 34 | AL65: 38 | AM65: 1.1 | AN65: 4 | AO65: 19 | AP65: 328 | AQ65: 514 | AR65: 64 | AS65: 4976 | AT65: 10.15 | AU65: 11.3 | AV65: 41 | AW65: 8 | AX65: 176 | AY65: 121 | AZ65: 102 | BA65: 0.9 | BB65: 10 | BC65: 0 | BD65: 10.7156496 | BE65: 8.0367372
B66: Sam Howell | C66: North Carolina | M66: 12 | N66: 217 | O66: 347 | P66: 62.5 | Q66: 3056 | R66: 8.8 | S66: 9 | T66: 24 | U66: 9 | V66: 154.2 | W66: 183 | X66: 828 | Y66: 4.5 | Z66: 11 | AA66: 12 | AB66: 237 | AC66: 348 | AD66: 68.1 | AE66: 3586 | AF66: 10.3 | AG66: 11.1 | AH66: 30 | AI66: 7 | AJ66: 179.1 | AK66: 92 | AL66: 146 | AM66: 1.6 | AN66: 5 | AO66: 24 | AP66: 454 | AQ66: 695 | AR66: 65.3 | AS66: 6642 | AT66: 9.55 | AU66: 10.05 | AV66: 54 | AW66: 16 | AX66: 166.65 | AY66: 275 | AZ66: 974 | BA66: 3.05 | BB66: 16 | BC66: 1 | BD66: 9.41812899 | BE66: 9.41812899
B67: Malik Willis | C67: Liberty | M67: 13 | N67: 207 | O67: 339 | P67: 61.1 | Q67: 2857 | R67: 8.4 | S67: 8.4 | T67: 27 | U67: 12 | V67: 151.1 | W67: 197 | X67: 878 | Y67: 4.5 | Z67: 13 | AA67: 10 | AB67: 170 | AC67: 265 | AD67: 64.2 | AE67: 2250 | AF67: 8.5 | AG67: 9 | AH67: 20 | AI67: 6 | AJ67: 155.8 | AK67: 141 | AL67: 944 | AM67: 6.7 | AN67: 14 | AO67: 23 | AP67: 377 | AQ67: 604 | AR67: 62.65 | AS67: 5107 | AT67: 8.45 | AU67: 8.7 | AV67: 47 | AW67: 18 | AX67: 153.45 | AY67: 338 | AZ67: 1822 | BA67: 5.6 | BB67: 27 | BC67: 0 | BD67: 15.33869687 | BE67: 11.50402265
B68: Dustin Crum | C68: Kent St. | F68: 4.75 | J68: 4.36 | M68: 14 | N68: 244 | O68: 381 | P68: 64 | Q68: 3206 | R68: 8.4 | S68: 8.8 | T68: 20 | U68: 6 | V68: 148.9 | W68: 161 | X68: 703 | Y68: 4.4 | Z68: 12 | AA68: 4 | AB68: 83 | AC68: 113 | AD68: 73.5 | AE68: 1181 | AF68: 10.5 | AG68: 11.8 | AH68: 12 | AI68: 2 | AJ68: 192.7 | AK68: 44 | AL68: 240 | AM68: 5.5 | AN68: 4 | AO68: 18 | AP68: 327 | AQ68: 494 | AR68: 68.75 | AS68: 4387 | AT68: 9.45 | AU68: 10.3 | AV68: 32 | AW68: 8 | AX68: 170.8 | AY68: 205 | AZ68: 943 | BA68: 4.95 | BB68: 16 | BC68: 0 | BD68: 20.86146328 | BE68: 15.64609746
B69: Matt Corral | C69: Mississippi | M69: 13 | N69: 262 | O69: 386 | P69: 67.9 | Q69: 3349 | R69: 8.7 | S69: 9.1 | T69: 20 | U69: 5 | V69: 155.3 | W69: 152 | X69: 614 | Y69: 4 | Z69: 11 | AA69: 10 | AB69: 231 | AC69: 326 | AD69: 70.9 | AE69: 3337 | AF69: 10.2 | AG69: 10.1 | AH69: 29 | AI69: 14 | AJ69: 177.6 | AK69: 112 | AL69: 506 | AM69: 0.4 | AN69: 4 | AO69: 23 | AP69: 493 | AQ69: 712 | AR69: 69.4 | AS69: 6686 | AT69: 9.45 | AU69: 9.6 | AV69: 49 | AW69: 19 | AX69: 166.45 | AY69: 264 | AZ69: 1120 | BA69: 2.2 | BB69: 15 | BC69: 1 | BD69: 22.43833617 | BE69: 22.43833617
B70: Desmond Ridder | C70: Cincinnati | F70: 4.52 | H70: 36 | I70: 7.15 | J70: 4.29 | K70: 127 | M70: 14 | N70: 251 | O70: 387 | P70: 64.9 | Q70: 3334 | R70: 8.6 | S70: 9.2 | T70: 30 | U70: 8 | V70: 158.7 | W70: 110 | X70: 355 | Y70: 3.2 | Z70: 6 | AA70: 10 | AB70: 186 | AC70: 281 | AD70: 66.2 | AE70: 2296 | AF70: 8.2 | AG70: 8.6 | AH70: 19 | AI70: 6 | AJ70: 152.9 | AK70: 98 | AL70: 592 | AM70: 6 | AN70: 12 | AO70: 24 | AP70: 437 | AQ70: 668 | AR70: 65.55 | AS70: 5630 | AT70: 8.4 | AU70: 8.9 | AV70: 49 | AW70: 14 | AX70: 155.8 | AY70: 208 | AZ70: 947 | BA70: 4.6 | BB70: 18 | BC70: 0 | BD70: 33.02145048 | BE70: 24.76608786
B71: Skylar Thompson | C71: Kansas St. | F71: 4.91 | H71: 31 | I71: 7 | J71: 4.28 | K71: 112 | M71: 10 | N71: 162 | O71: 233 | P71: 69.5 | Q71: 2103 | R71: 9 | S71: 9.3 | T71: 12 | U71: 4 | V71: 158.9 | W71: 48 | X71: 4 | Y71: 0.1 | Z71: 4 | AA71: 13 | AB71: 177 | AC71: 297 | AD71: 59.6 | AE71: 2315 | AF71: 7.8 | AG71: 7.8 | AH71: 12 | AI71: 5 | AJ71: 135 | AK71: 114 | AL71: 405 | AM71: 3.6 | AN71: 11 | AO71: 23 | AP71: 339 | AQ71: 530 | AR71: 64.55 | AS71: 4418 | AT71: 8.4 | AU71: 8.55 | AV71: 24 | AW71: 9 | AX71: 146.95 | AY71: 162 | AZ71: 409 | BA71: 1.85 | BB71: 15 | BC71: 1 | BD71: 25.26952377 | BE71: 25.26952377
B72: Jack Coan | C72: Notre Dame | F72: 4.9 | H72: 33 | I72: 6.95 | J72: 4.39 | K72: 115 | M72: 13 | N72: 253 | O72: 386 | P72: 65.5 | Q72: 3150 | R72: 8.2 | S72: 8.6 | T72: 25 | U72: 7 | V72: 151.8 | W72: 57 | X72: -100 | Y72: -1.8 | Z72: 2 | AA72: 14 | AB72: 236 | AC72: 339 | AD72: 69.6 | AE72: 2727 | AF72: 8 | AH72: 18 | AI72: 5 | AJ72: 151.8 | AK72: 56 | AL72: 22 | AM72: 0.4 | AO72: 27 | AP72: 489 | AQ72: 725 | AR72: 67.55 | AS72: 5877 | AT72: 8.1 | AU72: 8.6 | AV72: 43 | AW72: 12 | AX72: 151.8 | AY72: 113 | AZ72: -78 | BA72: -0.7 | BB72: 2 | BC72: 1 | BD72: 34.04183168 | BE72: 34.04183168
B73: Carson Strong | C73: Nevada | M73: 12 | N73: 366 | O73: 522 | P73: 70.1 | Q73: 4175 | R73: 8 | S73: 8.7 | T73: 36 | U73: 8 | V73: 157 | W73: 51 | X73: -208 | Y73: -4.1 | Z73: 0 | AA73: 9 | AB73: 249 | AC73: 355 | AD73: 70.1 | AE73: 2858 | AF73: 8.1 | AG73: 9.1 | AH73: 27 | AI73: 4 | AJ73: 160.6 | AK73: 33 | AL73: -95 | AM73: -2.9 | AN73: 0 | AO73: 21 | AP73: 615 | AQ73: 877 | AR73: 70.1 | AS73: 7033 | AT73: 8.05 | AU73: 8.9 | AV73: 63 | AW73: 12 | AX73: 158.8 | AY73: 84 | AZ73: -303 | BA73: -3.5 | BB73: 0 | BC73: 0 | BD73: 49.52199488 | BE73: 37.14149616
B74: Kenny Pickett | C74: Pittsburgh | F74: 4.73 | H74: 33.5 | J74: 4.29 | K74: 121 | M74: 13 | N74: 334 | O74: 497 | P74: 67.2 | Q74: 4319 | R74: 8.7 | S74: 9.7 | T74: 42 | U74: 7 | V74: 165.3 | W74: 97 | X74: 241 | Y74: 2.5 | Z74: 5 | AA74: 9 | AB74: 203 | AC74: 332 | AD74: 61.1 | AE74: 2408 | AF74: 7.3 | AG74: 6.8 | AH74: 13 | AI74: 9 | AJ74: 129.6 | AK74: 81 | AL74: 145 | AM74: 1.8 | AN74: 8 | AO74: 22 | AP74: 537 | AQ74: 829 | AR74: 64.15 | AS74: 6727 | AT74: 8 | AU74: 8.25 | AV74: 55 | AW74: 16 | AX74: 147.45 | AY74: 178 | AZ74: 386 | BA74: 2.15 | BB74: 13 | BC74: 1 | BD74: 49.50367437 | BE74: 49.50367437
B75: Bailey Zappe | C75: Western Kentucky | F75: 4.88 | H75: 30 | I75: 7.19 | J75: 4.4 | K75: 109 | M75: 14 | N75: 475 | O75: 686 | P75: 69.2 | Q75: 5967 | R75: 8.7 | S75: 9.8 | T75: 62 | U75: 11 | V75: 168.9 | W75: 51 | X75: 17 | Y75: 0.3 | Z75: 3 | AA75: 12 | AB75: 357 | AC75: 560 | AD75: 63.8 | AE75: 3811 | AF75: 6.8 | AH75: 35 | AI75: 15 | AJ75: 136.2 | AK75: 53 | AL75: 0 | AM75: 0 | AN75: 0 | AO75: 26 | AP75: 832 | AQ75: 1246 | AR75: 66.5 | AS75: 9778 | AT75: 7.75 | AU75: 9.8 | AV75: 97 | AW75: 26 | AX75: 152.55 | AY75: 104 | AZ75: 17 | BA75: 0.15 | BB75: 3 | BC75: 0 | BD75: 66.69987163 | BE75: 50.02490372

Sheet ||RB||
F1: NFL Combine | L1: Last College Football Season | Y1: Second-Last College Football Season | AL1: Total College Stats
M2: Rushing | Q2: Receiving | U2: Scrimmage | Z2: Rushing | AD2: Receiving | AH2: Scrimmage | AM2: Rushing | AQ2: Receiving | AU2: Scrimmage
A3: Class | B3: Name | C3: College | D3: PFF Score | E3: Years Qualified | F3: 40 Yard Dash | G3: Benchpress | H3: Vertical Jump | I3: Three Cone Drill | J3: 20 Yard Shuttle | K3: Broad Jump | L3: Games1 | M3: Attempts1 | N3: RYards1 | O3: RAverage1 | P3: RTD1 | Q3: Receptions1 | R3: CYards1 | S3: CAverage1 | T3: CTD1 | U3: Plays1 | V3: Yards1 | W3: Average1 | X3: TD1 | Y3: Games2 | Z3: Attempts2 | AA3: RYards2 | AB3: RAverage2 | AC3: RTD2 | AD3: Receptions2 | AE3: CYards2 | AF3: CAverage2 | AG3: CTD2 | AH3: Plays2 | AI3: Yards2 | AJ3: Average2 | AK3: TD2 | AL3: Games | AM3: Attempts | AN3: RYards | AO3: RAverage | AP3: RTD | AQ3: Receptions | AR3: CYards | AS3: CAverage | AT3: RTD | AU3: Plays | AV3: Yards | AW3: Average | AX3: TD | AY3: College Mult. | AZ3: Adjusted PFF
A4: 2012 | B4: Edwin Baker | C4: Michigan State | E4: 0 | F4: 4.53 | G4: 20 | H4: 35 | I4: 7.27 | J4: 4.31 | K4: 111 | L4: 14 | M4: 170 | N4: 665 | O4: 3.9 | P4: 5 | Q4: 5 | R4: 60 | S4: 12 | T4: 1 | U4: 175 | V4: 725 | W4: 4.1 | X4: 6 | Y4: 13 | Z4: 207 | AA4: 1201 | AB4: 5.8 | AC4: 13 | AD4: 3 | AE4: 22 | AF4: 7.3 | AG4: 0 | AH4: 210 | AI4: 1223 | AJ4: 5.8 | AK4: 13 | AL4: =SUM(L4,Y4) -> 27 | AM4: =SUM(M4,Z4) -> 377 | AN4: =SUM(N4,AA4) -> 1866 | AO4: =AN4/AM4 -> 4.949602122 | AP4: =SUM(P4,AC4) -> 18 | AQ4: =SUM(Q4,AD4) -> 8 | AR4: =SUM(R4,AE4) -> 82 | AS4: =AR4/AQ4 -> 10.25 | AT4: =SUM(T4,AG4) -> 1 | AU4: =SUM(U4,AH4) -> 385 | AV4: =SUM(V4,AI4) -> 1948 | AW4: =AV4/AU4 -> 5.05974026 | AX4: =SUM(X4,AK4) -> 19 | AY4: 1 | AZ4: 0
A5: 2012 | B5: Mike Ball | C5: Nevada | E5: 0 | F5: 4.65 | G5: 21 | H5: 36 | I5: 7.1 | J5: 4.23 | K5: 112 | L5: 9 | M5: 135 | N5: 704 | O5: 5.2 | P5: 3 | Q5: 11 | R5: 42 | S5: 3.8 | T5: 2 | U5: 146 | V5: 746 | W5: 5.1 | X5: 5 | Y5: 11 | Z5: 38 | AA5: 259 | AB5: 6.8 | AC5: 4 | AD5: 11 | AE5: 73 | AF5: 6.6 | AG5: 2 | AH5: 49 | AI5: 332 | AJ5: 6.8 | AK5: 6 | AL5: 20 | AM5: 173 | AN5: 963 | AO5: 5.566473988 | AP5: 7 | AQ5: 22 | AR5: 115 | AS5: 5.227272727 | AT5: 4 | AU5: 195 | AV5: 1078 | AW5: 5.528205128 | AX5: 11 | AY5: 0 | AZ5: 0
A6: 2012 | B6: Vick Ballard | C6: Mississippi State | D6: 71.4 | E6: 1 | F6: 4.65 | G6: 23 | H6: 33 | I6: 7.03 | J6: 4.19 | K6: 115 | L6: 13 | M6: 193 | N6: 1189 | O6: 6.2 | P6: 10 | Q6: 20 | R6: 187 | S6: 9.4 | T6: 1 | U6: 213 | V6: 1376 | W6: 6.5 | X6: 11 | Y6: 12 | Z6: 186 | AA6: 968 | AB6: 5.2 | AC6: 19 | AD6: 10 | AE6: 106 | AF6: 10.6 | AG6: 1 | AH6: 196 | AI6: 1074 | AJ6: 5.5 | AK6: 20 | AL6: 25 | AM6: 379 | AN6: 2157 | AO6: 5.691292876 | AP6: 29 | AQ6: 30 | AR6: 293 | AS6: 9.766666667 | AT6: 2 | AU6: 409 | AV6: 2450 | AW6: 5.990220049 | AX6: 31 | AY6: 1 | AZ6: 57.12
A7: 2012 | B7: Brandon Bolden | C7: Mississippi | D7: 58.25 | E7: 2 | F7: 4.66 | G7: 21 | H7: 38 | I7: 6.96 | J7: 4.44 | K7: 119 | L7: 10 | M7: 96 | N7: 462 | O7: 4.8 | P7: 4 | Q7: 14 | R7: 147 | S7: 10.5 | T7: 1 | U7: 110 | V7: 609 | W7: 5.5 | X7: 5 | Y7: 12 | Z7: 163 | AA7: 976 | AB7: 6 | AC7: 14 | AD7: 32 | AE7: 344 | AF7: 10.8 | AG7: 3 | AH7: 195 | AI7: 1320 | AJ7: 6.8 | AK7: 17 | AL7: 22 | AM7: 259 | AN7: 1438 | AO7: 5.552123552 | AP7: 18 | AQ7: 46 | AR7: 491 | AS7: 10.67391304 | AT7: 4 | AU7: 305 | AV7: 1929 | AW7: 6.324590164 | AX7: 22 | AY7: 1 | AZ7: 49.5125
A8: 2012 | B8: Lennon Creer | C8: Louisiana Tech | E8: 0 | F8: 4.71 | G8: 21 | H8: 33.5 | I8: 7.26 | J8: 4.4 | K8: 110 | L8: 10 | M8: 198 | N8: 838 | O8: 4.2 | P8: 9 | Q8: 18 | R8: 93 | S8: 5.2 | T8: 1 | U8: 216 | V8: 931 | W8: 4.3 | X8: 10 | Y8: 12 | Z8: 212 | AA8: 1181 | AB8: 5.6 | AC8: 10 | AD8: 25 | AE8: 181 | AF8: 7.2 | AG8: 0 | AH8: 237 | AI8: 1362 | AJ8: 5.7 | AK8: 10 | AL8: 22 | AM8: 410 | AN8: 2019 | AO8: 4.924390244 | AP8: 19 | AQ8: 43 | AR8: 274 | AS8: 6.372093023 | AT8: 1 | AU8: 453 | AV8: 2293 | AW8: 5.061810155 | AX8: 20 | AY8: 0 | AZ8: 0
A9: 2012 | B9: Jeff Demps | C9: Florida | E9: 0 | L9: 12 | M9: 98 | N9: 569 | O9: 5.8 | P9: 6 | Q9: 16 | R9: 172 | S9: 10.8 | T9: 0 | U9: 114 | V9: 741 | W9: 6.5 | X9: 6 | Y9: 11 | Z9: 92 | AA9: 551 | AB9: 6 | AC9: 3 | AD9: 18 | AE9: 116 | AF9: 6.4 | AG9: 0 | AH9: 110 | AI9: 667 | AJ9: 6.1 | AK9: 3 | AL9: 23 | AM9: 190 | AN9: 1120 | AO9: 5.894736842 | AP9: 9 | AQ9: 34 | AR9: 288 | AS9: 8.470588235 | AT9: 0 | AU9: 224 | AV9: 1408 | AW9: 6.285714286 | AX9: 9 | AY9: 1 | AZ9: 0
A10: 2012 | B10: Bradie Ewing | C10: Wisconsin | E10: 0 | F10: 4.76 | G10: 14 | H10: 36.5 | I10: 7.14 | J10: 4.16 | K10: 120 | L10: 14 | M10: 0 | N10: 0 | O10: 0 | P10: 0 | Q10: 20 | R10: 246 | S10: 12.3 | T10: 0 | U10: 20 | V10: 246 | W10: 12.3 | X10: 0 | Y10: 13 | Z10: 3 | AA10: 19 | AB10: 6.3 | AC10: 1 | AD10: 8 | AE10: 82 | AF10: 10.3 | AG10: 2 | AH10: 11 | AI10: 101 | AJ10: 9.18 | AK10: 3 | AL10: 27 | AM10: 3 | AN10: 19 | AO10: 6.333333333 | AP10: 1 | AQ10: 28 | AR10: 328 | AS10: 11.71428571 | AT10: 2 | AU10: 31 | AV10: 347 | AW10: 11.19354839 | AX10: 3 | AY10: 1 | AZ10: 0
A11: 2012 | B11: Terrance Ganaway | C11: Baylor | E11: 0 | F11: 4.67 | H11: 37.5 | I11: 7.15 | J11: 4.25 | K11: 119 | L11: 13 | M11: 250 | N11: 1547 | O11: 6.2 | P11: 21 | Q11: 6 | R11: 52 | S11: 8.7 | T11: 1 | U11: 256 | V11: 1599 | W11: 6.2 | X11: 22 | Y11: 13 | Z11: 46 | AA11: 295 | AB11: 6.4 | AC11: 2 | AD11: 4 | AE11: 44 | AF11: 11 | AG11: 0 | AH11: 50 | AI11: 339 | AJ11: 6.8 | AK11: 2 | AL11: 26 | AM11: 296 | AN11: 1842 | AO11: 6.222972973 | AP11: 23 | AQ11: 10 | AR11: 96 | AS11: 9.6 | AT11: 1 | AU11: 306 | AV11: 1938 | AW11: 6.333333333 | AX11: 24 | AY11: 1 | AZ11: 0
A12: 2012 | B12: Cyrus Gray | C12: Texas A&M | E12: 0 | F12: 4.47 | G12: 21 | H12: 32.5 | I12: 7.17 | K12: 114 | L12: 11 | M12: 198 | N12: 1045 | O12: 5.3 | P12: 12 | Q12: 31 | R12: 239 | S12: 7.7 | T12: 3 | U12: 229 | V12: 1284 | W12: 5.6 | X12: 15 | Y12: 13 | Z12: 200 | AA12: 1133 | AB12: 5.7 | AC12: 12 | AD12: 34 | AE12: 251 | AF12: 7.4 | AG12: 1 | AH12: 234 | AI12: 1384 | AJ12: 5.9 | AK12: 13 | AL12: 24 | AM12: 398 | AN12: 2178 | AO12: 5.472361809 | AP12: 24 | AQ12: 65 | AR12: 490 | AS12: 7.538461538 | AT12: 4 | AU12: 463 | AV12: 2668 | AW12: 5.762419006 | AX12: 28 | AY12: 1 | AZ12: 0
A13: 2012 | B13: Jonas Gray | C13: Notre Dame | D13: 75.75 | E13: 2 | G13: 20 | L13: 11 | M13: 114 | N13: 791 | O13: 6.9 | P13: 12 | Q13: 6 | R13: 38 | S13: 6.3 | T13: 0 | U13: 120 | V13: 829 | W13: 6.9 | X13: 12 | Y13: 7 | Z13: 20 | AA13: 100 | AB13: 5 | AC13: 0 | AD13: 1 | AE13: 13 | AF13: 13 | AG13: 0 | AH13: 21 | AI13: 113 | AJ13: 5.4 | AK13: 0 | AL13: 18 | AM13: 134 | AN13: 891 | AO13: 6.649253731 | AP13: 12 | AQ13: 7 | AR13: 51 | AS13: 7.285714286 | AT13: 0 | AU13: 141 | AV13: 942 | AW13: 6.680851064 | AX13: 12 | AY13: 1 | AZ13: 64.3875
A14: 2012 | B14: Jewel Hampton | C14: Southern Illinois | E14: 0 | G14: 26 | L14: 11 | M14: 230 | N14: 1121 | O14: 4.9 | P14: 17 | Q14: 19 | R14: 163 | S14: 8.6 | T14: 0 | U14: 249 | V14: 1284 | W14: 5.2 | X14: 17 | Y14: 2 | Z14: 27 | AA14: 114 | AB14: 4.2 | AC14: 1 | AD14: 3 | AE14: 6 | AF14: 2 | AG14: 1 | AH14: 30 | AI14: 120 | AJ14: 4 | AK14: 2 | AL14: 13 | AM14: 257 | AN14: 1235 | AO14: 4.805447471 | AP14: 18 | AQ14: 22 | AR14: 169 | AS14: 7.681818182 | AU14: =SUM(U14,AH14) -> 279 | AV14: =SUM(V14,AI14) -> 1404 | AW14: 5.032258065 | AX14: 19 | AY14: 0 | AZ14: 0
A15: 2012 | B15: Dan Herron | C15: Ohio State | D15: 62.5 | E15: 1 | F15: 4.66 | G15: 22 | H15: 35 | I15: 6.97 | J15: 4.04 | K15: 117 | L15: 7 | M15: 134 | N15: 675 | O15: 5 | P15: 3 | Q15: 8 | R15: 34 | S15: 4.3 | T15: 0 | U15: 142 | V15: 709 | W15: 5 | X15: 3 | Y15: 13 | Z15: 216 | AA15: 1155 | AB15: 5.3 | AC15: 16 | AD15: 19 | AE15: 180 | AF15: 9.5 | AG15: 0 | AH15: 235 | AI15: 1335 | AJ15: 5.7 | AK15: 16 | AL15: 20 | AM15: 350 | AN15: 1830 | AO15: 5.228571429 | AP15: 19 | AQ15: 27 | AR15: 214 | AS15: 7.925925926 | AT15: =SUM(T15,AG15) -> 0 | AU15: 377 | AV15: 2044 | AW15: 5.421750663 | AX15: 19 | AY15: 1 | AZ15: 50
A16: 2012 | B16: Ronnie Hillman | C16: San Diego State | D16: 57.58 | E16: 5 | F16: 4.45 | G16: 17 | H16: 37 | L16: 13 | M16: 311 | N16: 1711 | O16: 5.5 | P16: 19 | Q16: 24 | R16: 270 | S16: 11.3 | T16: 1 | U16: 335 | V16: 1981 | W16: 5.9 | X16: 20 | Y16: 13 | Z16: 262 | AA16: 1532 | AB16: 5.8 | AC16: 17 | AD16: 9 | AE16: 68 | AF16: 7.6 | AG16: 1 | AH16: 271 | AI16: 1600 | AJ16: 5.9 | AK16: 18 | AL16: 26 | AM16: 573 | AN16: 3243 | AO16: 5.659685864 | AP16: 36 | AQ16: 33 | AR16: 338 | AS16: 10.24242424 | AT16: 2 | AU16: 606 | AV16: 3581 | AW16: 5.909240924 | AX16: 38 | AY16: 0 | AZ16: 57.58
A17: 2012 | B17: LaMichael James | C17: Oregon | D17: 65.3 | E17: 1 | F17: 4.45 | G17: 15 | H17: 35 | I17: 6.88 | J17: 4.12 | K17: 123 | L17: 12 | M17: 247 | N17: 1805 | O17: 7.3 | P17: 18 | Q17: 17 | R17: 210 | S17: 12.4 | T17: 1 | U17: 264 | V17: 2015 | W17: 7.6 | X17: 19 | Y17: 12 | Z17: 294 | AA17: 1731 | AB17: 5.9 | AC17: 21 | AD17: 17 | AE17: 208 | AF17: 12.2 | AG17: 3 | AH17: 311 | AI17: 1939 | AJ17: 6.2 | AK17: 24 | AL17: 24 | AM17: 541 | AN17: 3536 | AO17: 6.536044362 | AP17: 39 | AQ17: 34 | AR17: 418 | AS17: 12.29411765 | AT17: 4 | AU17: 575 | AV17: 3954 | AW17: 6.876521739 | AX17: 43 | AY17: 1 | AZ17: 52.24
A18: 2012 | B18: Doug Martin | C18: Boise State | D18: 70.6 | E18: 5 | F18: 4.55 | G18: 28 | H18: 36 | I18: 6.79 | J18: 4.16 | K18: 120 | L18: 13 | M18: 263 | N18: 1299 | O18: 4.9 | P18: 16 | Q18: 28 | R18: 255 | S18: 9.1 | T18: 2 | U18: 291 | V18: 1554 | W18: 5.3 | X18: 18 | Y18: 13 | Z18: 201 | AA18: 1260 | AB18: 6.3 | AC18: 12 | AD18: 28 | AE18: 338 | AF18: 12.1 | AG18: 2 | AH18: 229 | AI18: 1598 | AJ18: 7 | AK18: 14 | AL18: 26 | AM18: 464 | AN18: 2559 | AO18: 5.515086207 | AP18: 28 | AQ18: 56 | AR18: 593 | AS18: 10.58928571 | AT18: 4 | AU18: 520 | AV18: 3152 | AW18: 6.061538462 | AX18: 32 | AY18: 0 | AZ18: 70.6
A19: 2012 | B19: Davin Meggett | C19: Maryland | F19: 4.53 | G19: 23 | H19: 35 | I19: 7.14 | J19: 4.32 | K19: 118 | L19: 12 | M19: 171 | N19: 896 | O19: 5.2 | P19: 4 | Q19: 17 | R19: 141 | S19: 8.3 | T19: 1 | U19: 188 | V19: 1037 | W19: 5.5 | X19: 5 | Y19: 13 | Z19: 126 | AA19: 720 | AB19: 5.7 | AC19: 4 | AD19: 6 | AE19: 59 | AF19: 9.8 | AG19: 0 | AH19: 132 | AI19: 779 | AJ19: 5.9 | AK19: 4 | AL19: 25 | AM19: 297 | AN19: 1616 | AO19: 5.441077441 | AP19: 8 | AQ19: 23 | AR19: 200 | AS19: 8.695652174 | AT19: 1 | AU19: 320 | AV19: 1816 | AW19: 5.675 | AX19: 9 | AY19: 1 | AZ19: 0
A20: 2012 | B20: Lamar Miller | C20: Miami (FL) | D20: 72.1 | E20: 5 | F20: 4.4 | H20: 33 | L20: 12 | M20: 227 | N20: 1272 | O20: 5.6 | P20: 9 | Q20: 17 | R20: 85 | S20: 5 | T20: 1 | U20: 244 | V20: 1357 | W20: 5.6 | X20: 10 | Y20: 11 | Z20: 108 | AA20: 646 | AB20: 6 | AC20: 6 | AD20: 11 | AE20: 96 | AF20: 8.7 | AG20: 0 | AH20: 119 | AI20: 742 | AJ20: 6.2 | AK20: 6 | AL20: 23 | AM20: 335 | AN20: 1918 | AO20: 5.725373134 | AP20: 15 | AQ20: 28 | AR20: 181 | AS20: 6.464285714 | AT20: 1 | AU20: 363 | AV20: 2099 | AW20: 5.782369146 | AX20: 16 | AY20: 1 | AZ20: 72.1
A21: 2012 | B21: Alfred Morris | C21: Florida Atlantic | D21: 73.56 | E21: 5 | F21: 4.67 | G21: 16 | H21: 35.5 | I21: 7.01 | J21: 4.19 | K21: 117 | L21: 12 | M21: 236 | N21: 1186 | O21: 5 | P21: 9 | Q21: 15 | R21: 139 | S21: 9.3 | T21: 1 | U21: 251 | V21: 1325 | W21: 5.3 | X21: 10 | Y21: 12 | Z21: 227 | AA21: 928 | AB21: 4.1 | AC21: 7 | AD21: 8 | AE21: 47 | AF21: 5.9 | AG21: 1 | AH21: 235 | AI21: 975 | AJ21: 4.1 | AK21: 8 | AL21: 24 | AM21: 463 | AN21: 2114 | AO21: 4.56587473 | AP21: 16 | AQ21: 23 | AR21: 186 | AS21: 8.086956522 | AT21: 2 | AU21: 486 | AV21: 2300 | AW21: 4.732510288 | AX21: 18 | AY21: 0 | AZ21: 73.56
A22: 2012 | B22: Isaiah Pead | C22: Cincinnati | F22: 4.47 | H22: 33 | I22: 6.95 | J22: 4.32 | K22: 116 | L22: 13 | M22: 237 | N22: 1259 | O22: 5.3 | P22: 12 | Q22: 39 | R22: 319 | S22: 8.2 | T22: 3 | U22: 276 | V22: 1578 | W22: 5.7 | X22: 15 | Y22: 11 | Z22: 157 | AA22: 1029 | AB22: 6.6 | AC22: 6 | AD22: 26 | AE22: 190 | AF22: 7.3 | AG22: 1 | AH22: 183 | AI22: 1219 | AJ22: 6.7 | AK22: 7 | AL22: 24 | AM22: 394 | AN22: 2288 | AO22: 5.807106599 | AP22: 18 | AQ22: 65 | AR22: 509 | AS22: 7.830769231 | AT22: 4 | AU22: 459 | AV22: 2797 | AW22: 6.093681917 | AX22: 22 | AY22: 0 | AZ22: 0
A23: 2012 | B23: Bernard Pierce | C23: Temple | D23: 69.37 | E23: 3 | F23: 4.49 | G23: 17 | H23: 36.5 | I23: 7.07 | J23: 4.28 | K23: 123 | L23: 12 | M23: 273 | N23: 1481 | O23: 5.4 | P23: 27 | Q23: 3 | R23: 52 | S23: 17.3 | T23: 0 | U23: 276 | V23: 1533 | W23: 5.6 | X23: 27 | Y23: 10 | Z23: 154 | AA23: 728 | AB23: 4.7 | AC23: 10 | AD23: 8 | AE23: 87 | AF23: 10.9 | AG23: 1 | AH23: 162 | AI23: 815 | AJ23: 5 | AK23: 11 | AL23: 22 | AM23: 427 | AN23: 2209 | AO23: 5.173302108 | AP23: 37 | AQ23: 11 | AR23: 139 | AS23: 12.63636364 | AT23: 1 | AU23: 438 | AV23: 2348 | AW23: 5.360730594 | AX23: 38 | AY23: 0 | AZ23: 62.433
A24: 2012 | B24: Chris Polk | C24: Washington | D24: 53.4 | E24: 1 | F24: 4.57 | H24: 31.5 | I24: 7.13 | J24: 4.21 | K24: 111 | L24: 13 | M24: 293 | N24: 1488 | O24: 5.1 | P24: 12 | Q24: 31 | R24: 332 | S24: 10.7 | T24: 4 | U24: 324 | V24: 1820 | W24: 5.6 | X24: 16 | Y24: 13 | Z24: 260 | AA24: 1415 | AB24: 5.4 | AC24: 9 | AD24: 22 | AE24: 180 | AF24: 8.2 | AG24: 0 | AH24: 282 | AI24: 1595 | AJ24: 5.7 | AK24: 9 | AL24: 26 | AM24: 553 | AN24: 2903 | AO24: 5.24954792 | AP24: 21 | AQ24: 53 | AR24: 512 | AS24: 9.660377358 | AT24: 4 | AU24: 606 | AV24: 3415 | AW24: 5.635313531 | AX24: 25 | AY24: 1 | AZ24: 42.72
A25: 2012 | B25: Tauren Poole | C25: Tennessee | F25: 4.54 | G25: 24 | H25: 34 | I25: 7.36 | J25: 4.19 | K25: 118 | L25: 12 | M25: 187 | N25: 693 | O25: 3.7 | P25: 5 | Q25: 21 | R25: 164 | S25: 7.8 | T25: 0 | U25: 208 | V25: 857 | W25: 4.1 | X25: 5 | Y25: 13 | Z25: 204 | AA25: 1034 | AB25: 5.1 | AC25: 11 | AD25: 22 | AE25: 171 | AF25: 7.8 | AG25: 1 | AH25: 226 | AI25: 1205 | AJ25: 5.3 | AK25: 12 | AL25: 25 | AM25: 391 | AN25: 1727 | AO25: 4.416879795 | AP25: 16 | AQ25: 43 | AR25: 335 | AS25: 7.790697674 | AT25: 1 | AU25: 434 | AV25: 2062 | AW25: 4.751152074 | AX25: 17 | AY25: 1 | AZ25: 0
A26: 2012 | B26: Chris Rainey | C26: Florida | D26: 50.9 | E26: 1 | F26: 4.45 | G26: 16 | H26: 36.5 | I26: 6.5 | J26: 3.93 | K26: 120 | L26: 12 | M26: 171 | N26: 861 | O26: 5 | P26: 2 | Q26: 31 | R26: 381 | S26: 12.3 | T26: 2 | U26: 202 | V26: 1242 | W26: 6.1 | X26: 4 | Y26: 8 | Z26: 51 | AA26: 366 | AB26: 7.2 | AC26: 2 | AD26: 25 | AE26: 216 | AF26: 8.6 | AG26: 3 | AH26: 76 | AI26: 582 | AJ26: 7.7 | AK26: 5 | AL26: 20 | AM26: 222 | AN26: 1227 | AO26: 5.527027027 | AP26: 4 | AQ26: 56 | AR26: 597 | AS26: 10.66071429 | AT26: 5 | AU26: 278 | AV26: 1824 | AW26: 6.561151079 | AX26: 9 | AY26: 1 | AZ26: 40.72
A27: 2012 | B27: Trent Richardson | C27: Alabama | D27: 65.47 | E27: 3 | L27: 13 | M27: 283 | N27: 1679 | O27: 5.9 | P27: 21 | Q27: 29 | R27: 338 | S27: 11.7 | T27: 3 | U27: 312 | V27: 2017 | W27: 6.5 | X27: 24 | Y27: 11 | Z27: 112 | AA27: 700 | AB27: 6.3 | AC27: 6 | AD27: 23 | AE27: 266 | AF27: 11.6 | AG27: 4 | AH27: 135 | AI27: 966 | AJ27: 7.2 | AK27: 10 | AL27: 24 | AM27: 395 | AN27: 2379 | AO27: 6.02278481 | AP27: 27 | AQ27: 52 | AR27: 604 | AS27: 11.61538462 | AT27: 7 | AU27: 447 | AV27: 2983 | AW27: 6.673378076 | AX27: 34 | AY27: 1 | AZ27: 58.923
A28: 2012 | B28: Darrell Scott | C28: South Florida | F28: 4.73 | H28: 31.5 | L28: 11 | M28: 153 | N28: 814 | O28: 5.3 | P28: 5 | Q28: 15 | R28: 169 | S28: 11.3 | T28: 1 | U28: 168 | V28: 983 | W28: 5.9 | X28: 6 | Y28: 13 | Z28: 122 | AA28: 708 | AB28: 5.8 | AC28: 5 | AD28: 14 | AE28: 170 | AF28: 12.1 | AG28: 3 | AH28: 136 | AI28: 878 | AJ28: 6.5 | AK28: 8 | AL28: 24 | AM28: 275 | AN28: 1522 | AO28: 5.534545455 | AP28: 10 | AQ28: 29 | AR28: 339 | AS28: 11.68965517 | AT28: 4 | AU28: 304 | AV28: 1861 | AW28: 6.121710526 | AX28: 14 | AY28: 1 | AZ28: 0
A29: 2012 | B29: Robert Turbin | C29: Utah State | D29: 69.36 | E29: 5 | F29: 4.5 | G29: 28 | H29: 36 | I29: 7.16 | J29: 4.31 | K29: 122 | L29: 13 | M29: 249 | N29: 1517 | O29: 6.1 | P29: 19 | Q29: 17 | R29: 171 | S29: 10.1 | T29: 4 | U29: 266 | V29: 1688 | W29: 6.3 | X29: 23 | Y29: 12 | Z29: 207 | AA29: 1296 | AB29: 6.3 | AC29: 13 | AD29: 30 | AE29: 418 | AF29: 13.9 | AG29: 5 | AH29: 237 | AI29: 1714 | AJ29: 7.2 | AK29: 18 | AL29: 25 | AM29: 456 | AN29: 2813 | AO29: 6.168859649 | AP29: 32 | AQ29: 47 | AR29: 589 | AS29: 12.53191489 | AT29: 9 | AU29: 503 | AV29: 3402 | AW29: 6.763419483 | AX29: 41 | AY29: 0 | AZ29: 69.36
A30: 2012 | B30: Marc Tyler | C30: USC | F30: 4.76 | G30: 19 | H30: 30.5 | K30: 110 | L30: 10 | M30: 122 | N30: 568 | O30: 4.7 | P30: 4 | Q30: 11 | R30: 108 | S30: 9.8 | T30: 0 | U30: 133 | V30: 676 | W30: 5.1 | X30: 4 | Y30: 13 | Z30: 171 | AA30: 913 | AB30: 5.3 | AC30: 9 | AD30: 17 | AE30: 127 | AF30: 7.5 | AG30: 1 | AH30: 188 | AI30: 1040 | AJ30: 5.5 | AK30: 10 | AL30: 23 | AM30: 293 | AN30: 1481 | AO30: 5.054607509 | AP30: 13 | AQ30: 28 | AR30: 235 | AS30: 8.392857143 | AT30: 1 | AU30: 321 | AV30: 1716 | AW30: 5.345794393 | AX30: 14 | AY30: 1 | AZ30: 0
A31: 2012 | B31: Foswhitt Whittaker | C31: Texas | D31: 62.13 | E31: 3 | G31: 20 | L31: 9 | M31: 66 | N31: 386 | O31: 5.8 | P31: 6 | Q31: 16 | R31: 145 | S31: 9.1 | T31: 1 | U31: 82 | V31: 531 | W31: 6.5 | X31: 7 | Y31: 11 | Z31: 80 | AA31: 351 | AB31: 4.4 | AC31: 2 | AD31: 34 | AE31: 217 | AF31: 6.4 | AG31: 0 | AH31: 114 | AI31: 568 | AJ31: 5 | AK31: 2 | AL31: 20 | AM31: 146 | AN31: 737 | AO31: 5.047945205 | AP31: 8 | AQ31: 50 | AR31: 362 | AS31: 7.24 | AT31: 1 | AU31: 196 | AV31: 1099 | AW31: 5.607142857 | AX31: 9 | AY31: 1 | AZ31: 55.917
A32: 2012 | B32: David Wilson | C32: Virginia Tech | D32: 64.85 | E32: 2 | F32: 4.49 | H32: 41 | I32: 7.09 | J32: 4.12 | K32: 132 | L32: 14 | M32: 290 | N32: 1709 | O32: 5.9 | P32: 9 | Q32: 22 | R32: 129 | S32: 5.9 | T32: 1 | U32: 312 | V32: 1838 | W32: 5.9 | X32: 10 | Y32: 13 | Z32: 113 | AA32: 619 | AB32: 5.5 | AC32: 5 | AD32: 15 | AE32: 234 | AF32: 15.6 | AG32: 4 | AH32: 128 | AI32: 853 | AJ32: 6.7 | AK32: 9 | AL32: 27 | AM32: 403 | AN32: 2328 | AO32: 5.776674938 | AP32: 14 | AQ32: 37 | AR32: 363 | AS32: 9.810810811 | AT32: 5 | AU32: 440 | AV32: 2691 | AW32: 6.115909091 | AX32: 19 | AY32: 1 | AZ32: 55.1225
A33: 2013 | B33: C.J. Anderson | C33: California | D33: 73.36 | E33: 5 | F33: 4.6 | G33: 17 | H33: 32 | I33: 7.15 | J33: 4.12 | K33: 119 | L33: 12 | M33: 126 | N33: 790 | O33: 6.3 | P33: 4 | Q33: 15 | R33: 164 | S33: 10.9 | T33: 1 | U33: 141 | V33: 954 | W33: 6.8 | X33: 5 | Y33: 13 | Z33: 72 | AA33: 345 | AB33: 4.8 | AC33: 8 | AD33: 7 | AE33: 186 | AF33: 26.6 | AG33: 1 | AH33: 79 | AI33: 531 | AJ33: 6.7 | AK33: 9 | AL33: =L33+Y33 -> 25 | AM33: =M33+Z33 -> 198 | AN33: =N33+AA33 -> 1135 | AO33: =AVERAGE(O33,AB33) -> 5.55 | AP33: =P33+AC33 -> 12 | AQ33: =Q33+AD33 -> 22 | AR33: =R33+AE33 -> 350 | AS33: =AVERAGE(S33,AF33) -> 18.75 | AT33: =T33+AG33 -> 2 | AU33: =U33+AH33 -> 220 | AV33: =V33+AI33 -> 1485 | AW33: =AVERAGE(AJ33,W33) -> 6.75 | AX33: =AK33+X33 -> 14 | AY33: 1 | AZ33: 73.36
A34: 2013 | B34: Montee Ball | C34: Wisconsin | D34: 67.35 | E34: 2 | F34: 4.66 | G34: 15 | H34: 32 | I34: 6.88 | J34: 4.4 | K34: 118 | L34: 14 | M34: 356 | N34: 1830 | O34: 5.1 | P34: 22 | Q34: 10 | R34: 72 | S34: 7.2 | T34: 0 | U34: 366 | V34: 1902 | W34: 5.2 | X34: 22 | Y34: 14 | Z34: 307 | AA34: 1923 | AB34: 6.3 | AC34: 33 | AD34: 24 | AE34: 306 | AF34: 12.8 | AG34: 6 | AH34: 331 | AI34: 2229 | AJ34: 6.7 | AK34: 39 | AL34: 28 | AM34: 663 | AN34: 3753 | AO34: 5.7 | AP34: 55 | AQ34: 34 | AR34: 378 | AS34: 10 | AT34: 6 | AU34: 697 | AV34: 4131 | AW34: 5.95 | AX34: 61 | AY34: 1 | AZ34: 57.2475
A35: 2013 | B35: Kenjon Barner | C35: Oregon | D35: DNP | E35: 0 | F35: 4.52 | G35: 20 | H35: 35.5 | I35: 6.87 | J35: 4.2 | K35: 122 | L35: 13 | M35: 278 | N35: 1767 | O35: 6.4 | P35: 21 | Q35: 20 | R35: 256 | S35: 12.8 | T35: 2 | U35: 298 | V35: 2023 | W35: 6.8 | X35: 23 | Y35: 12 | Z35: 152 | AA35: 939 | AB35: 6.2 | AC35: 11 | AD35: 17 | AE35: 184 | AF35: 10.8 | AG35: 3 | AH35: 169 | AI35: 1123 | AJ35: 6.6 | AK35: 14 | AL35: 25 | AM35: 430 | AN35: 2706 | AO35: 6.3 | AP35: 32 | AQ35: 37 | AR35: 440 | AS35: 11.8 | AT35: 5 | AU35: 467 | AV35: 3146 | AW35: 6.7 | AX35: 37 | AY35: 1 | AZ35: 0
A36: 2013 | B36: Le'Veon Bell | C36: Michigan State | D36: 78.62 | E36: 5 | F36: 4.6 | G36: 24 | H36: 31.5 | I36: 6.75 | J36: 4.24 | K36: 118 | L36: 13 | M36: 382 | N36: 1793 | O36: 4.7 | P36: 12 | Q36: 32 | R36: 167 | S36: 5.2 | T36: 1 | U36: 414 | V36: 1960 | W36: 4.7 | X36: 13 | Y36: 14 | Z36: 182 | AA36: 948 | AB36: 5.2 | AC36: 13 | AD36: 35 | AE36: 267 | AF36: 7.6 | AG36: 0 | AH36: 217 | AI36: 1215 | AJ36: 5.6 | AK36: 13 | AL36: 27 | AM36: 564 | AN36: 2741 | AO36: 4.95 | AP36: 25 | AQ36: 67 | AR36: 434 | AS36: 6.4 | AT36: 1 | AU36: 631 | AV36: 3175 | AW36: 5.15 | AX36: 26 | AY36: 1 | AZ36: 78.62
A37: 2013 | B37: Giovani Bernard | C37: North Carolina | D37: 70.78 | E37: 5 | F37: 4.53 | G37: 19 | H37: 33.5 | I37: 6.91 | J37: 4.12 | K37: 122 | L37: 10 | M37: 184 | N37: 1228 | O37: 6.7 | P37: 12 | Q37: 47 | R37: 490 | S37: 10.4 | T37: 5 | U37: 231 | V37: 1718 | W37: 7.4 | X37: 17 | Y37: 13 | Z37: 239 | AA37: 1253 | AB37: 5.2 | AC37: 13 | AD37: 45 | AE37: 362 | AF37: 8 | AG37: 1 | AH37: 284 | AI37: 1615 | AJ37: 5.7 | AK37: 14 | AL37: 23 | AM37: 423 | AN37: 2481 | AO37: 5.95 | AP37: 25 | AQ37: 92 | AR37: 852 | AS37: 9.2 | AT37: 6 | AU37: 515 | AV37: 3333 | AW37: 6.55 | AX37: 31 | AY37: 1 | AZ37: 70.78
A38: 2013 | B38: Tommy Bohanon | C38: Wake Forest | D38: 58.35 | E38: 4 | F38: 4.88 | G38: 36 | H38: 35 | I38: 7.27 | J38: 4.42 | K38: 119 | L38: 12 | M38: 2 | N38: 1 | O38: 0.5 | P38: 1 | Q38: 23 | R38: 208 | S38: 9 | T38: 5 | U38: 25 | V38: 209 | W38: 8.4 | X38: 6 | Y38: 13 | Z38: 15 | AA38: 31 | AB38: 2.1 | AC38: 2 | AD38: 9 | AE38: 56 | AF38: 6.2 | AG38: 1 | AH38: 24 | AI38: 87 | AJ38: 3.6 | AK38: 3 | AL38: 25 | AM38: 17 | AN38: 32 | AO38: 1.3 | AP38: 3 | AQ38: 32 | AR38: 264 | AS38: 7.6 | AT38: 6 | AU38: 49 | AV38: 296 | AW38: 6 | AX38: 9 | AY38: 1 | AZ38: 55.4325
A39: 2013 | B39: Zach Boren | C39: Ohio State | D39: DNP | E39: 0 | F39: 5 | G39: 25 | H39: 32 | I39: 7.28 | J39: 4.44 | K39: 109 | L39: 12 | M39: 11 | N39: 33 | O39: 3 | P39: 2 | Q39: 5 | R39: 42 | S39: 8.4 | T39: 0 | U39: 16 | V39: 75 | W39: 4.7 | X39: 2 | Y39: 13 | Z39: 0 | AA39: 0 | AB39: 0 | AC39: 0 | AD39: 6 | AE39: 60 | AF39: 10 | AG39: 0 | AH39: 6 | AI39: 60 | AJ39: 10 | AK39: 0 | AL39: 25 | AM39: 11 | AN39: 33 | AO39: 1.5 | AP39: 2 | AQ39: 11 | AR39: 102 | AS39: 9.2 | AT39: 0 | AU39: 22 | AV39: 135 | AW39: 7.35 | AX39: 2 | AY39: 1 | AZ39: 0
A40: 2013 | B40: Rex Burkhead | C40: Nebraska | D40: 71.48 | E40: 5 | F40: 4.73 | G40: 21 | H40: 39 | I40: 6.85 | J40: 4.09 | K40: 125 | L40: 8 | M40: 98 | N40: 675 | O40: 6.9 | P40: 5 | Q40: 11 | R40: 92 | S40: 8.4 | T40: 2 | U40: 109 | V40: 767 | W40: 7 | X40: 7 | Y40: 13 | Z40: 284 | AA40: 1357 | AB40: 4.8 | AC40: 15 | AD40: 21 | AE40: 177 | AF40: 8.4 | AG40: 2 | AH40: 305 | AI40: 1534 | AJ40: 5 | AK40: 17 | AL40: 21 | AM40: 382 | AN40: 2032 | AO40: 5.85 | AP40: 20 | AQ40: 32 | AR40: 269 | AS40: 8.4 | AT40: 4 | AU40: 414 | AV40: 2301 | AW40: 6 | AX40: 24 | AY40: 1 | AZ40: 71.48
A41: 2013 | B41: Knile Davis | C41: Arkansas | D41: 49.6 | E41: 2 | F41: 4.37 | G41: 31 | H41: 33.5 | I41: 6.96 | J41: 4.38 | K41: 121 | L41: 10 | M41: 112 | N41: 377 | O41: 3.4 | P41: 2 | Q41: 11 | R41: 157 | S41: 14.3 | T41: 1 | U41: 123 | V41: 534 | W41: 4.3 | X41: 3 | Y41: 13 | Z41: 204 | AA41: 1322 | AB41: 6.5 | AC41: 13 | AD41: 19 | AE41: 136 | AF41: 7.2 | AG41: 1 | AH41: 223 | AI41: 1458 | AJ41: 6.5 | AK41: 14 | AL41: 23 | AM41: 316 | AN41: 1699 | AO41: 4.95 | AP41: 15 | AQ41: 30 | AR41: 293 | AS41: 10.75 | AT41: 2 | AU41: 346 | AV41: 1992 | AW41: 5.4 | AX41: 17 | AY41: 1 | AZ41: 42.16
A42: 2013 | B42: Andre Ellington | C42: Clemson | D42: 66.64 | E42: 5 | F42: 4.61 | H42: 34 | K42: 122 | L42: 13 | M42: 212 | N42: 1081 | O42: 5.1 | P42: 8 | Q42: 14 | R42: 232 | S42: 16.6 | T42: 1 | U42: 226 | V42: 1313 | W42: 5.8 | X42: 9 | Y42: 13 | Z42: 223 | AA42: 1178 | AB42: 5.3 | AC42: 11 | AD42: 22 | AE42: 109 | AF42: 5 | AG42: 0 | AH42: 245 | AI42: 1287 | AJ42: 5.3 | AK42: 11 | AL42: 26 | AM42: 435 | AN42: 2259 | AO42: 5.2 | AP42: 19 | AQ42: 36 | AR42: 341 | AS42: 10.8 | AT42: 1 | AU42: 471 | AV42: 2600 | AW42: 5.55 | AX42: 20 | AY42: 1 | AZ42: 66.64
A43: 2013 | B43: Michael Ford | C43: LSU | D43: DNP | E43: 0 | F43: 4.5 | G43: 25 | H43: 38.5 | I43: 6.87 | J43: 4.25 | K43: 130 | L43: 13 | M43: 71 | N43: 392 | O43: 5.5 | P43: 3 | Q43: 2 | R43: 29 | S43: 14.5 | T43: 0 | U43: 73 | V43: 421 | W43: 5.8 | X43: 3 | Y43: 14 | Z43: 127 | AA43: 756 | AB43: 6 | AC43: 7 | AD43: 4 | AE43: 10 | AF43: 2.5 | AG43: 0 | AH43: 131 | AI43: 766 | AJ43: 5.8 | AK43: 7 | AL43: 27 | AM43: 198 | AN43: 1148 | AO43: 5.75 | AP43: 10 | AQ43: 6 | AR43: 39 | AS43: 8.5 | AT43: 0 | AU43: 204 | AV43: 1187 | AW43: 5.8 | AX43: 10 | AY43: 1 | AZ43: 0
A44: 2013 | B44: Jonathan Franklin | C44: UCLA | D44: DNP | E44: 0 | F44: 4.49 | G44: 18 | H44: 31.5 | I44: 6.89 | J44: 4.31 | K44: 115 | L44: 14 | M44: 282 | N44: 1734 | O44: 6.1 | P44: 13 | Q44: 33 | R44: 323 | S44: 9.8 | T44: 2 | U44: 315 | V44: 2057 | W44: 6.5 | X44: 15 | Y44: 14 | Z44: 166 | AA44: 976 | AB44: 5.9 | AC44: 5 | AD44: 9 | AE44: 74 | AF44: 8.2 | AG44: 1 | AH44: 175 | AI44: 1050 | AJ44: 6 | AK44: 6 | AL44: 28 | AM44: 448 | AN44: 2710 | AO44: 6 | AP44: 18 | AQ44: 42 | AR44: 397 | AS44: 9 | AT44: 3 | AU44: 490 | AV44: 3107 | AW44: 6.25 | AX44: 21 | AY44: 1 | AZ44: 0
A45: 2013 | B45: Mike Gillislee | C45: Florida | D45: 68.9 | E45: 3 | F45: 4.55 | G45: 15 | H45: 30.5 | I45: 7.12 | J45: 4.4 | K45: 119 | L45: 13 | M45: 244 | N45: 1152 | O45: 4.7 | P45: 10 | Q45: 16 | R45: 159 | S45: 9.9 | T45: 1 | U45: 260 | V45: 1311 | W45: 5 | X45: 11 | Y45: 11 | Z45: 56 | AA45: 328 | AB45: 5.9 | AC45: 2 | AD45: 0 | AE45: 0 | AF45: 0 | AG45: 0 | AH45: 56 | AI45: 328 | AJ45: 5.9 | AK45: 2 | AL45: 24 | AM45: 300 | AN45: 1480 | AO45: 5.3 | AP45: 12 | AQ45: 16 | AR45: 159 | AS45: 4.95 | AT45: 1 | AU45: 316 | AV45: 1639 | AW45: 5.45 | AX45: 13 | AY45: 1 | AZ45: 62.01
A46: 2013 | B46: Ray Graham | C46: Pittsburgh | D46: DNP | E46: 0 | F46: 4.8 | G46: 18 | H46: 32.5 | I46: 7.17 | J46: 4.21 | K46: 112 | L46: 13 | M46: 222 | N46: 1042 | O46: 4.7 | P46: 11 | Q46: 36 | R46: 340 | S46: 9.4 | T46: 2 | U46: 258 | V46: 1382 | W46: 5.4 | X46: 13 | Y46: 8 | Z46: 164 | AA46: 958 | AB46: 5.8 | AC46: 9 | AD46: 30 | AE46: 200 | AF46: 6.7 | AG46: 0 | AH46: 194 | AI46: 1158 | AJ46: 6 | AK46: 9 | AL46: 21 | AM46: 386 | AN46: 2000 | AO46: 5.25 | AP46: 20 | AQ46: 66 | AR46: 540 | AS46: 8.05 | AT46: 2 | AU46: 452 | AV46: 2540 | AW46: 5.7 | AX46: 22 | AY46: 1 | AZ46: 0
A47: 2013 | B47: D.J. Harper | C47: Boise State | D47: DNP | E47: 0 | F47: 4.52 | G47: 23 | H47: 33.5 | I47: 7.07 | J47: 4.35 | K47: 120 | L47: 13 | M47: 228 | N47: 1137 | O47: 5 | P47: 15 | Q47: 23 | R47: 163 | S47: 7.1 | T47: 1 | U47: 251 | V47: 1300 | W47: 5.2 | X47: 16 | Y47: 12 | Z47: 115 | AA47: 557 | AB47: 4.8 | AC47: 9 | AD47: 19 | AE47: 140 | AF47: 7.4 | AG47: 1 | AH47: 134 | AI47: 697 | AJ47: 5.2 | AK47: 10 | AL47: 25 | AM47: 343 | AN47: 1694 | AO47: 4.9 | AP47: 24 | AQ47: 42 | AR47: 303 | AS47: 7.25 | AT47: 2 | AU47: 385 | AV47: 1997 | AW47: 5.2 | AX47: 26 | AY47: 0 | AZ47: 0
A48: 2013 | B48: Montel Harris | C48: Temple | D48: DNP | E48: 0 | F48: 4.68 | G48: 19 | H48: 32.5 | I48: 6.95 | J48: 4.18 | K48: 113 | L48: 10 | M48: 186 | N48: 1054 | O48: 5.7 | P48: 12 | Q48: 10 | R48: 90 | S48: 9 | T48: 0 | U48: 196 | V48: 1144 | W48: 5.8 | X48: 12 | Y48: 2 | Z48: 31 | AA48: 135 | AB48: 4.4 | AC48: 0 | AD48: 3 | AE48: 36 | AF48: 12 | AG48: 0 | AH48: 34 | AI48: 171 | AJ48: 5 | AK48: 0 | AL48: 12 | AM48: 217 | AN48: 1189 | AO48: 5.05 | AP48: 12 | AQ48: 13 | AR48: 126 | AS48: 10.5 | AT48: 0 | AU48: 230 | AV48: 1315 | AW48: 5.4 | AX48: 12 | AY48: 0 | AZ48: 0
A49: 2013 | B49: Mike James | C49: Miami (FL) | D49: 87.6 | E49: 1 | F49: 4.53 | G49: 28 | H49: 35 | J49: 4.62 | K49: 115 | L49: 12 | M49: 147 | N49: 621 | O49: 4.2 | P49: 6 | Q49: 30 | R49: 344 | S49: 11.5 | T49: 3 | U49: 177 | V49: 965 | W49: 5.5 | X49: 9 | Y49: 12 | Z49: 72 | AA49: 275 | AB49: 3.8 | AC49: 7 | AD49: 9 | AE49: 80 | AF49: 8.9 | AG49: 1 | AH49: 81 | AI49: 355 | AJ49: 4.4 | AK49: 8 | AL49: 24 | AM49: 219 | AN49: 896 | AO49: 4 | AP49: 13 | AQ49: 39 | AR49: 424 | AS49: 10.2 | AT49: 4 | AU49: 258 | AV49: 1320 | AW49: 4.95 | AX49: 17 | AY49: 1 | AZ49: 70.08
A50: 2013 | B50: Jawan Jamison | C50: Rutgers | D50: DNP | E50: 0 | F50: 4.68 | G50: 20 | H50: 29 | K50: 110 | L50: 13 | M50: 255 | N50: 1075 | O50: 4.2 | P50: 4 | Q50: 28 | R50: 323 | S50: 11.5 | T50: 2 | U50: 283 | V50: 1398 | W50: 4.9 | X50: 6 | Y50: 12 | Z50: 231 | AA50: 897 | AB50: 3.9 | AC50: 9 | AD50: 8 | AE50: 62 | AF50: 7.8 | AG50: 0 | AH50: 239 | AI50: 959 | AJ50: 4 | AK50: 9 | AL50: 25 | AM50: 486 | AN50: 1972 | AO50: 4.05 | AP50: 13 | AQ50: 36 | AR50: 385 | AS50: 9.65 | AT50: 2 | AU50: 522 | AV50: 2357 | AW50: 4.45 | AX50: 15 | AY50: 1 | AZ50: 0
A51: 2013 | B51: Stefphon Jefferson | C51: Nevada | D51: DNP | E51: 0 | F51: 4.68 | G51: 15 | H51: 31 | I51: 6.97 | J51: 4.44 | K51: 117 | L51: 13 | M51: 375 | N51: 1883 | O51: 5 | P51: 24 | Q51: 22 | R51: 170 | S51: 7.7 | T51: 1 | U51: 397 | V51: 2053 | W51: 5.2 | X51: 25 | Y51: 13 | Z51: 70 | AA51: 429 | AB51: 6.1 | AC51: 5 | AD51: 7 | AE51: 48 | AF51: 6.9 | AG51: 0 | AH51: 77 | AI51: 477 | AJ51: 6.2 | AK51: 5 | AL51: 26 | AM51: 445 | AN51: 2312 | AO51: 5.55 | AP51: 29 | AQ51: 29 | AR51: 218 | AS51: 7.3 | AT51: 1 | AU51: 474 | AV51: 2530 | AW51: 5.7 | AX51: 30 | AY51: 0 | AZ51: 0
A52: 2013 | B52: Eddie Lacy | C52: Alabama | D52: 75.08 | E52: 5 | L52: 14 | M52: 204 | N52: 1322 | O52: 6.5 | P52: 17 | Q52: 22 | R52: 189 | S52: 8.6 | T52: 2 | U52: 226 | V52: 1511 | W52: 6.7 | X52: 19 | Y52: 12 | Z52: 95 | AA52: 674 | AB52: 7.1 | AC52: 7 | AD52: 11 | AE52: 131 | AF52: 11.9 | AG52: 0 | AH52: 106 | AI52: 805 | AJ52: 7.6 | AK52: 7 | AL52: 26 | AM52: 299 | AN52: 1996 | AO52: 6.8 | AP52: 24 | AQ52: 33 | AR52: 320 | AS52: 10.25 | AT52: 2 | AU52: 332 | AV52: 2316 | AW52: 7.15 | AX52: 26 | AY52: 1 | AZ52: 75.08
A53: 2013 | B53: Marcus Lattimore | C53: South Carolina | D53: DNP | E53: 0 | L53: 9 | M53: 143 | N53: 662 | O53: 4.6 | P53: 11 | Q53: 26 | R53: 173 | S53: 6.7 | T53: 0 | U53: 169 | V53: 835 | W53: 4.9 | X53: 11 | Y53: 7 | Z53: 163 | AA53: 818 | AB53: 5 | AC53: 10 | AD53: 19 | AE53: 182 | AF53: 9.6 | AG53: 1 | AH53: 182 | AI53: 1000 | AJ53: 5.5 | AK53: 11 | AL53: 16 | AM53: 306 | AN53: 1480 | AO53: 4.8 | AP53: 21 | AQ53: 45 | AR53: 355 | AS53: 8.15 | AT53: 1 | AU53: 351 | AV53: 1835 | AW53: 5.2 | AX53: 22 | AY53: 1 | AZ53: 0
A54: 2013 | B54: Zach Line | C54: SMU | D54: 64.98 | E54: 5 | F54: 4.77 | G54: 26 | H54: 30.5 | K54: 111 | L54: 13 | M54: 277 | N54: 1278 | O54: 4.6 | P54: 13 | Q54: 33 | R54: 229 | S54: 6.9 | T54: 0 | U54: 310 | V54: 1507 | W54: 4.9 | X54: 13 | Y54: 10 | Z54: 208 | AA54: 1224 | AB54: 5.9 | AC54: 17 | AD54: 15 | AE54: 139 | AF54: 9.3 | AG54: 0 | AH54: 223 | AI54: 1363 | AJ54: 6.1 | AK54: 17 | AL54: 23 | AM54: 485 | AN54: 2502 | AO54: 5.25 | AP54: 30 | AQ54: 48 | AR54: 368 | AS54: 8.1 | AT54: 0 | AU54: 533 | AV54: 2870 | AW54: 5.5 | AX54: 30 | AY54: 0 | AZ54: 64.98
A55: 2013 | B55: Miguel Maysonet | C55: Stony Brook | D55: DNP | E55: 0 | G55: 20 | I55: 7.21 | J55: 4.43 | L55: 13 | M55: 267 | N55: 1964 | O55: 7.4 | P55: 21 | Q55: 3 | R55: 43 | S55: 14.3 | T55: 1 | U55: 270 | V55: 2007 | W55: 7.4 | X55: 22 | Y55: 13 | Z55: 252 | AA55: 1633 | AB55: 6.5 | AC55: 15 | AD55: 6 | AE55: 49 | AF55: 8.2 | AG55: 1 | AH55: 258 | AI55: 1682 | AJ55: 6.5 | AK55: 16 | AL55: 26 | AM55: 519 | AN55: 3597 | AO55: 6.95 | AP55: 36 | AQ55: 9 | AR55: 92 | AS55: 11.25 | AT55: 2 | AU55: 528 | AV55: 3689 | AW55: 6.95 | AX55: 38 | AY55: 0 | AZ55: 0
A56: 2013 | B56: Onterio McCalebb | C56: Auburn | D56: DNP | E56: 0 | F56: 4.34 | H56: 34 | K56: 121 | L56: 12 | M56: 94 | N56: 570 | O56: 6.1 | P56: 6 | Q56: 18 | R56: 132 | S56: 7.3 | T56: 0 | U56: 112 | V56: 702 | W56: 6.3 | X56: 6 | Y56: 13 | Z56: 112 | AA56: 641 | AB56: 5.7 | AC56: 5 | AD56: 32 | AE56: 344 | AF56: 10.8 | AG56: 2 | AH56: 144 | AI56: 985 | AJ56: 6.8 | AK56: 7 | AL56: 25 | AM56: 206 | AN56: 1211 | AO56: 5.9 | AP56: 11 | AQ56: 50 | AR56: 476 | AS56: 9.05 | AT56: 2 | AU56: 256 | AV56: 1687 | AW56: 6.55 | AX56: 13 | AY56: 1 | AZ56: 0
A57: 2013 | B57: Christine Michael | C57: Texas A&M | D57: 65.15 | E57: 2 | F57: 4.54 | G57: 27 | H57: 43 | I57: 6.69 | J57: 4.02 | K57: 125 | L57: 11 | M57: 88 | N57: 417 | O57: 4.7 | P57: 12 | Q57: 8 | R57: 48 | S57: 6 | T57: 0 | U57: 96 | V57: 465 | W57: 4.8 | X57: 12 | Y57: 9 | Z57: 149 | AA57: 899 | AB57: 6 | AC57: 8 | AD57: 8 | AE57: 35 | AF57: 4.4 | AG57: 1 | AH57: 157 | AI57: 934 | AJ57: 5.9 | AK57: 9 | AL57: 20 | AM57: 237 | AN57: 1316 | AO57: 5.35 | AP57: 20 | AQ57: 16 | AR57: 83 | AS57: 5.2 | AT57: 1 | AU57: 253 | AV57: 1399 | AW57: 5.35 | AX57: 21 | AY57: 1 | AZ57: 55.3775
A58: 2013 | B58: Lonnie Pryor | C58: Florida State | D58: DNP | E58: 0 | F58: 4.7 | G58: 17 | H58: 30 | I58: 7.28 | J58: 4.55 | K58: 114 | L58: 14 | M58: 47 | N58: 376 | O58: 8 | P58: 8 | Q58: 13 | R58: 117 | S58: 9 | T58: 0 | U58: 60 | V58: 493 | W58: 8.2 | X58: 8 | Y58: 13 | Z58: 27 | AA58: 74 | AB58: 2.7 | AC58: 2 | AD58: 6 | AE58: 61 | AF58: 10.2 | AG58: 1 | AH58: 33 | AI58: 135 | AJ58: 4.1 | AK58: 3 | AL58: 27 | AM58: 74 | AN58: 450 | AO58: 5.35 | AP58: 10 | AQ58: 19 | AR58: 178 | AS58: 9.6 | AT58: 1 | AU58: 93 | AV58: 628 | AW58: 6.15 | AX58: 11 | AY58: 1 | AZ58: 0
A59: 2013 | B59: Joseph Randle | C59: Oklahoma State | D59: =127.2/2 -> 63.6 | E59: 2 | F59: 4.63 | H59: 35 | K59: 123 | L59: 13 | M59: 274 | N59: 1417 | O59: 5.2 | P59: 14 | Q59: 28 | R59: 224 | S59: 8 | T59: 0 | U59: 302 | V59: 1641 | W59: 5.4 | X59: 14 | Y59: 13 | Z59: 208 | AA59: 1216 | AB59: 5.8 | AC59: 24 | AD59: 43 | AE59: 266 | AF59: 6.2 | AG59: 2 | AH59: 251 | AI59: 1482 | AJ59: 5.9 | AK59: 26 | AL59: 26 | AM59: 482 | AN59: 2633 | AO59: 5.5 | AP59: 38 | AQ59: 71 | AR59: 490 | AS59: 7.1 | AT59: 2 | AU59: 553 | AV59: 3123 | AW59: 5.65 | AX59: 40 | AY59: 1 | AZ59: 54.06
A60: 2013 | B60: Theo Riddick | C60: Notre Dame | D60: 75.44 | E60: 5 | F60: 4.68 | H60: 32 | K60: 118 | L60: 13 | M60: 190 | N60: 917 | O60: 4.8 | P60: 5 | Q60: 36 | R60: 370 | S60: 10.3 | T60: 2 | U60: 226 | V60: 1287 | W60: 5.7 | X60: 7 | Y60: 11 | Z60: 14 | AA60: 63 | AB60: 4.5 | AC60: 0 | AD60: 38 | AE60: 436 | AF60: 11.5 | AG60: 3 | AH60: 52 | AI60: 499 | AJ60: 9.6 | AK60: 3 | AL60: 24 | AM60: 204 | AN60: 980 | AO60: 4.65 | AP60: 5 | AQ60: 74 | AR60: 806 | AS60: 10.9 | AT60: 5 | AU60: 278 | AV60: 1786 | AW60: 7.65 | AX60: 10 | AY60: 1 | AZ60: 75.44
A61: 2013 | B61: Denard Robinson | C61: Michigan | D61: DNP | F61: 4.43 | H61: 36.5 | I61: 7.09 | J61: 4.22 | K61: 123 | L61: 11 | M61: 177 | N61: 1266 | O61: 7.2 | P61: 7 | Q61: 3 | R61: 31 | S61: 10.3 | T61: 0 | U61: 180 | V61: 1297 | W61: 7.2 | X61: 7 | Y61: 13 | Z61: 221 | AA61: 1176 | AB61: 5.3 | AC61: 16 | AD61: 0 | AE61: 0 | AF61: 0 | AG61: 0 | AH61: 221 | AI61: 1176 | AJ61: 5.3 | AK61: 16 | AL61: 24 | AM61: 398 | AN61: 2442 | AO61: 6.25 | AP61: 23 | AQ61: 3 | AR61: 31 | AS61: 5.15 | AT61: 0 | AU61: 401 | AV61: 2473 | AW61: 6.25 | AX61: 23 | AY61: 1 | AZ61: 0
A62: 2013 | B62: Robbie Rouse | C62: Fresno State | D62: DNP | E62: 0 | F62: 4.8 | G62: 15 | H62: 34 | I62: 6.97 | J62: 4.25 | K62: 114 | L62: 13 | M62: 282 | N62: 1490 | O62: 5.3 | P62: 12 | Q62: 63 | R62: 435 | S62: 6.9 | T62: 2 | U62: 345 | V62: 1925 | W62: 5.6 | X62: 14 | Y62: 13 | Z62: 329 | AA62: 1549 | AB62: 4.7 | AC62: 13 | AD62: 32 | AE62: 228 | AF62: 7.1 | AG62: 1 | AH62: 361 | AI62: 1777 | AJ62: 4.9 | AK62: 14 | AL62: 26 | AM62: 611 | AN62: 3039 | AO62: 5 | AP62: 25 | AQ62: 95 | AR62: 663 | AS62: 7 | AT62: 3 | AU62: 706 | AV62: 3702 | AX62: 28 | AY62: 0 | AZ62: 0
A63: 2013 | B63: Zac Stacy | C63: Vanderbilt | D63: 65.07 | E63: 3 | F63: 4.55 | G63: 27 | H63: 33 | I63: 6.7 | J63: 4.17 | K63: 122 | L63: 13 | M63: 207 | N63: 1141 | O63: 5.5 | P63: 10 | Q63: 10 | R63: 205 | S63: 20.5 | T63: 0 | U63: 217 | V63: 1346 | W63: 6.2 | X63: 10 | Y63: 13 | Z63: 201 | AA63: 1193 | AB63: 5.9 | AC63: 14 | AD63: 20 | AE63: 106 | AF63: 5.3 | AG63: 0 | AH63: 221 | AI63: 1299 | AJ63: 5.9 | AK63: 14 | AL63: 26 | AM63: 408 | AN63: 2334 | AO63: 5.7 | AP63: 24 | AQ63: 30 | AR63: 311 | AS63: 12.9 | AT63: 0 | AU63: 438 | AV63: 2645 | AW63: =AVERAGE(AJ63,W63) -> 6.05 | AX63: 24 | AY63: 1 | AZ63: 58.563
A64: 2013 | B64: Stepfan Taylor | C64: Stanford | D64: 70.05 | E64: 2 | F64: 4.76 | G64: 17 | H64: 30 | I64: 7.13 | J64: 4.5 | K64: 110 | L64: 14 | M64: 322 | N64: 1530 | O64: 4.8 | P64: 13 | Q64: 41 | R64: 287 | S64: 7 | T64: 2 | U64: 363 | V64: 1817 | W64: 5 | X64: 15 | Y64: 13 | Z64: 242 | AA64: 1330 | AB64: 5.5 | AC64: 10 | AD64: 25 | AE64: 182 | AF64: 7.3 | AG64: 2 | AH64: 267 | AI64: 1512 | AJ64: 5.7 | AK64: 12 | AL64: 27 | AM64: 564 | AN64: 2860 | AO64: 5.15 | AP64: 23 | AQ64: 66 | AR64: 469 | AS64: 7.15 | AT64: 4 | AU64: 630 | AV64: 3329 | AW64: 5.35 | AX64: 27 | AY64: 1 | AZ64: 59.5425
A65: 2013 | B65: Chris Thompson | C65: Florida State | D65: 64.74 | E65: 5 | G65: 21 | L65: 9 | M65: 91 | N65: 687 | O65: 7.5 | P65: 5 | Q65: 21 | R65: 248 | S65: 11.8 | T65: 0 | U65: 112 | V65: 935 | W65: 8.3 | X65: 5 | Y65: 5 | Z65: 29 | AA65: 83 | AB65: 2.9 | AC65: 1 | AD65: 3 | AE65: 17 | AF65: 5.7 | AG65: 0 | AH65: 32 | AI65: 100 | AJ65: 3.1 | AK65: 1 | AL65: =L65+Y65 -> 14 | AM65: =M65+Z65 -> 120 | AN65: =N65+AA65 -> 770 | AO65: =AVERAGE(O65,AB65) -> 5.2 | AP65: =P65+AC65 -> 6 | AQ65: =Q65+AD65 -> 24 | AR65: =R65+AE65 -> 265 | AS65: =AVERAGE(S65,AF65) -> 8.75 | AT65: =T65+AG65 -> 0 | AU65: =U65+AH65 -> 144 | AV65: =V65+AI65 -> 1035 | AW65: 5.7 | AX65: =AK65+X65 -> 6 | AY65: 1 | AZ65: 64.74
A66: 2013 | B66: Matthew Tucker | C66: TCU | D66: DNP | E66: 0 | F66: 4.55 | G66: 17 | H66: 35.5 | K66: 118 | L66: 12 | M66: 118 | N66: 515 | O66: 4.4 | P66: 6 | Q66: 10 | R66: 69 | S66: 6.9 | T66: 1 | U66: 128 | V66: 584 | W66: 4.6 | X66: 7 | Y66: 13 | Z66: 123 | AA66: 702 | AB66: 5.7 | AC66: 12 | AD66: 8 | AE66: 77 | AF66: 9.6 | AG66: 0 | AH66: 131 | AI66: 779 | AJ66: 5.9 | AK66: 12 | AL66: 25 | AM66: 241 | AN66: 1217 | AO66: 5.05 | AP66: 18 | AQ66: 18 | AR66: 146 | AS66: 8.25 | AT66: 1 | AU66: 259 | AV66: 1363 | AW66: 5.25 | AX66: 19 | AY66: 1 | AZ66: 0
A67: 2013 | B67: Spencer Ware | C67: LSU | D67: 71.8 | E67: 4 | L67: 12 | M67: 94 | N67: 367 | O67: 3.9 | P67: 1 | Q67: 18 | R67: 230 | S67: 12.8 | T67: 1 | U67: 112 | V67: 597 | W67: 5.3 | X67: 2 | Y67: 13 | Z67: 177 | AA67: 707 | AB67: 4 | AC67: 8 | AD67: 11 | AE67: 73 | AF67: 6.6 | AG67: 1 | AH67: 188 | AI67: 780 | AJ67: 4.1 | AK67: 9 | AL67: 25 | AM67: 271 | AN67: 1074 | AO67: 3.95 | AP67: 9 | AQ67: 29 | AR67: 303 | AS67: 9.7 | AT67: 2 | AU67: 300 | AV67: 1377 | AW67: 4.7 | AX67: 11 | AY67: 1 | AZ67: 68.21
A68: 2013 | B68: Kerwynn Williams | C68: Utah State | D68: 63.6 | E68: 1 | F68: 4.48 | G68: 17 | H68: 35 | I68: 7.15 | J68: 4.15 | K68: 118 | L68: 13 | M68: 218 | N68: 1512 | O68: 6.9 | P68: 15 | Q68: 45 | R68: 697 | S68: 15.5 | T68: 5 | U68: 263 | V68: 2209 | W68: 8.4 | X68: 20 | Y68: 13 | Z68: 81 | AA68: 542 | AB68: 6.7 | AC68: 3 | AD68: 7 | AE68: 63 | AF68: 9 | AG68: 0 | AH68: 88 | AI68: 605 | AJ68: 6.9 | AK68: 3 | AL68: 26 | AM68: 299 | AN68: 2054 | AO68: 6.8 | AP68: 18 | AQ68: 52 | AR68: 760 | AS68: 12.25 | AT68: 5 | AU68: 351 | AV68: 2814 | AW68: 7.65 | AX68: 23 | AY68: 0 | AZ68: 50.88
A69: 2013 | B69: Braden Wilson | C69: Kansas State | D69: DNP | E69: 0 | F69: 4.81 | G69: 22 | L69: 13 | M69: 218 | N69: 1512 | O69: 6.9 | P69: 15 | Q69: 45 | R69: 697 | S69: 15.5 | T69: 5 | U69: 263 | V69: 2209 | W69: 8.4 | X69: 20 | Y69: 13 | Z69: 81 | AA69: 542 | AB69: 6.7 | AC69: 3 | AD69: 7 | AE69: 63 | AF69: 9 | AG69: 0 | AH69: 88 | AI69: 605 | AJ69: 6.9 | AK69: 3 | AL69: 26 | AM69: 299 | AN69: 2054 | AO69: 6.8 | AP69: 18 | AQ69: 52 | AR69: 760 | AS69: 12.25 | AT69: 5 | AU69: 351 | AV69: 2814 | AW69: 7.65 | AX69: 23 | AY69: 1 | AZ69: 0
A70: 2013 | B70: George Winn | C70: Cincinnati | D70: DNP | E70: 0 | F70: 4.75 | G70: 22 | H70: 34.5 | K70: 119 | L70: 13 | M70: 243 | N70: 1334 | O70: 5.5 | P70: 13 | Q70: 15 | R70: 128 | S70: 8.5 | T70: 0 | U70: 258 | V70: 1462 | W70: 5.7 | X70: 13 | Y70: 13 | Z70: 40 | AA70: 219 | AB70: 5.5 | AC70: 2 | AD70: 2 | AE70: 6 | AF70: 3 | AG70: 0 | AH70: 42 | AI70: 225 | AJ70: 5.4 | AK70: 2 | AL70: 26 | AM70: 283 | AN70: 1553 | AO70: 5.5 | AP70: 15 | AQ70: 17 | AR70: 134 | AS70: 5.75 | AT70: 0 | AU70: 300 | AV70: 1687 | AW70: 5.55 | AX70: 15 | AY70: 0 | AZ70: 0
A71: 2013 | B71: Cierre Wood | C71: Notre Dame | D71: DNP | E71: 0 | F71: 4.56 | G71: 16 | H71: 37.5 | K71: 124 | L71: 11 | M71: 114 | N71: 742 | O71: 6.5 | P71: 4 | Q71: 5 | R71: 25 | S71: 5 | T71: 0 | U71: 119 | V71: 767 | W71: 6.4 | X71: 4 | Y71: 13 | Z71: 217 | AA71: 1102 | AB71: 5.1 | AC71: 9 | AD71: 27 | AE71: 189 | AF71: 7 | AG71: 0 | AH71: 244 | AI71: 1291 | AJ71: 5.3 | AK71: 9 | AL71: 24 | AM71: 331 | AN71: 1844 | AO71: 5.8 | AP71: 13 | AQ71: 32 | AR71: 214 | AS71: 6 | AT71: 0 | AU71: 363 | AV71: 2058 | AW71: 5.85 | AX71: 13 | AY71: 1 | AZ71: 0
A72: 2014 | B72: Antonio Andrews | C72: Western Kentucky | D72: 68.3 | E72: 1 | F72: 4.82 | G72: 20 | H72: 29.5 | I72: 7.24 | J72: 4.49 | K72: 106 | L72: 12 | M72: 267 | N72: 1730 | O72: 6.5 | P72: 16 | Q72: 41 | R72: 478 | S72: 11.7 | T72: 0 | U72: 308 | V72: 2208 | W72: 7.2 | X72: 16 | Y72: 13 | Z72: 304 | AA72: 1728 | AB72: 5.7 | AC72: 11 | AD72: 37 | AE72: 432 | AF72: 11.7 | AG72: 3 | AH72: 341 | AI72: 2160 | AJ72: 6.3 | AK72: 14 | AL72: 25 | AM72: 571 | AN72: 3458 | AO72: 6.1 | AP72: 27 | AQ72: 78 | AR72: 910 | AS72: 11.7 | AT72: 3 | AU72: 649 | AV72: 4368 | AW72: 6.75 | AX72: 30 | AY72: 0 | AZ72: 54.64
A73: 2014 | B73: George Atkinson | C73: Notre Dame | E73: 0 | F73: 4.48 | G73: 19 | H73: 38 | I73: 7.07 | J73: 4.46 | K73: 121 | L73: 12 | M73: 93 | N73: 555 | O73: 6 | P73: 3 | Q73: 7 | R73: 51 | S73: 7.3 | T73: 0 | U73: 100 | V73: 606 | W73: 6.1 | X73: 3 | Y73: 12 | Z73: 51 | AA73: 555 | AB73: 6 | AC73: 3 | AD73: 7 | AE73: 51 | AF73: 7.3 | AG73: 0 | AH73: 53 | AI73: 365 | AJ73: 6.9 | AK73: 5 | AL73: 24 | AM73: 144 | AN73: 1110 | AO73: 6 | AP73: 6 | AQ73: 14 | AR73: 102 | AS73: 7.3 | AT73: 0 | AU73: 153 | AV73: 971 | AW73: 6.5 | AX73: 8 | AY73: 1 | AZ73: 0
A74: 2014 | B74: Kapri Bibbs | C74: Colorado State | D74: 58.6 | E74: 1 | F74: 4.67 | G74: 24 | H74: 29 | K74: 106 | L74: 14 | M74: 281 | N74: 1741 | O74: 6.2 | P74: 31 | Q74: 8 | R74: 59 | S74: 7.4 | T74: 0 | U74: 289 | V74: 1800 | W74: 6.2 | X74: 31 | AL74: 14 | AM74: 281 | AN74: 1741 | AO74: 6.2 | AP74: 31 | AQ74: 8 | AR74: 59 | AS74: 7.4 | AT74: 0 | AU74: 289 | AV74: 1800 | AW74: 6.2 | AX74: 31 | AY74: 1 | AZ74: 46.88
A75: 2014 | B75: Alfred Blue | C75: LSU | D75: 61.72 | E75: 5 | F75: 4.63 | G75: 13 | H75: 32 | I75: 7.15 | J75: 4.5 | K75: 121 | L75: 13 | M75: 71 | N75: 343 | O75: 4.8 | P75: 1 | Q75: 5 | R75: 62 | S75: 12.4 | T75: 0 | U75: 76 | V75: 405 | W75: 5.4 | X75: 1 | Y75: 4 | Z75: 40 | AA75: 270 | AB75: 6.8 | AC75: 2 | AD75: 7 | AE75: 45 | AF75: 6.4 | AG75: 0 | AH75: 47 | AI75: 315 | AJ75: 6.7 | AK75: 2 | AL75: 17 | AM75: 111 | AN75: 613 | AO75: 5.8 | AP75: 3 | AQ75: 12 | AR75: 107 | AS75: 9.4 | AT75: 0 | AU75: 123 | AV75: 720 | AW75: 6.05 | AX75: 3 | AY75: 1 | AZ75: 61.72
A76: 2014 | B76: Ka'Deem Carey | C76: Arizona | E76: 0 | F76: 4.69 | G76: 19 | H76: 32.5 | I76: 7.08 | J76: 4.38 | K76: 115 | L76: 12 | M76: 349 | N76: 1885 | O76: 5.4 | P76: 19 | Q76: 26 | R76: 173 | S76: 6.7 | T76: 1 | U76: 375 | V76: 2058 | W76: 5.5 | X76: 20 | Y76: 13 | Z76: 303 | AA76: 1929 | AB76: 6.4 | AC76: 23 | AD76: 36 | AE76: 303 | AF76: 8.4 | AG76: 1 | AH76: 339 | AI76: 2232 | AJ76: 6.6 | AK76: 24 | AL76: 25 | AM76: 652 | AN76: 3814 | AO76: 5.9 | AP76: 42 | AQ76: 62 | AR76: 476 | AS76: 7.55 | AT76: 2 | AU76: 714 | AV76: 4290 | AW76: 6.05 | AX76: 44 | AY76: 1 | AZ76: 0
A77: 2014 | B77: Tim Cornett | C77: UNLV | E77: 0 | F77: 4.48 | H77: 34.5 | I77: 7.01 | J77: 4.26 | K77: 125 | L77: 13 | M77: 264 | N77: 1284 | O77: 4.9 | P77: 15 | Q77: 30 | R77: 164 | S77: 5.5 | T77: 0 | U77: 294 | V77: 1448 | W77: 4.9 | X77: 15 | Y77: 13 | Z77: 242 | AA77: 1232 | AB77: 5.1 | AC77: 7 | AD77: 14 | AE77: 108 | AF77: 7.7 | AG77: 0 | AH77: 256 | AI77: 1340 | AJ77: 5.2 | AK77: 7 | AL77: 26 | AM77: 506 | AN77: 2516 | AO77: 5 | AP77: 22 | AQ77: 44 | AR77: 272 | AS77: 6.6 | AT77: 0 | AU77: 550 | AV77: 2788 | AW77: 5.05 | AX77: 22 | AY77: 0 | AZ77: 0
A78: 2014 | B78: Isaiah Crowell | C78: Arkansas | D78: 63.64 | E78: 5 | F78: 4.57 | G78: 23 | H78: 38 | K78: 117 | L78: 13 | M78: 138 | N78: 874 | O78: 6.3 | P78: 13 | Q78: 5 | R78: 18 | S78: 3.6 | T78: 0 | U78: 156 | V78: 892 | W78: 5.7 | X78: 13 | Y78: 11 | Z78: 159 | AA78: 842 | AB78: 5.3 | AC78: 15 | AD78: 11 | AE78: 95 | AF78: 8.6 | AG78: 0 | AH78: 170 | AI78: 919 | AJ78: 5.4 | AK78: 15 | AL78: 24 | AM78: 297 | AN78: 1716 | AO78: 5.8 | AP78: 28 | AQ78: 16 | AR78: 113 | AS78: 6.1 | AT78: 0 | AU78: 326 | AV78: 1811 | AW78: 5.55 | AX78: 28 | AY78: 1 | AZ78: 63.64
A79: 2014 | B79: Tim Flanders | C79: SMU | E79: 0 | F79: 4.75 | G79: 20 | H79: 32 | I79: 7.07 | K79: 113 | L79: 14 | M79: 241 | N79: 1430 | O79: 5.9 | P79: 14 | Q79: 6 | R79: 63 | S79: 10.5 | T79: 1 | U79: 247 | V79: 1493 | W79: 6 | X79: 15 | Y79: 15 | Z79: 288 | AA79: 1642 | AB79: 5.7 | AC79: 17 | AD79: 13 | AE79: 128 | AF79: 9.8 | AG79: 1 | AH79: 301 | AI79: 1770 | AJ79: 5.9 | AK79: 18 | AL79: 29 | AM79: 529 | AN79: 3072 | AO79: 5.8 | AP79: 31 | AQ79: 19 | AR79: 191 | AS79: 10.15 | AT79: 2 | AU79: 548 | AV79: 3263 | AW79: 5.95 | AX79: 33 | AY79: 0 | AZ79: 0
A80: 2014 | B80: David Fluellen | C80: Toledo | E80: 0 | F80: 4.72 | H80: 36.5 | I80: 6.9 | K80: 120 | L80: 9 | M80: 167 | N80: 1121 | O80: 6.7 | P80: 10 | Q80: 27 | R80: 222 | S80: 8.2 | T80: 0 | U80: 194 | V80: 1343 | W80: 6.9 | X80: 10 | Y80: 12 | Z80: 259 | AA80: 1498 | AB80: 5.8 | AC80: 13 | AD80: 32 | AE80: 246 | AF80: 7.7 | AG80: 0 | AH80: 291 | AI80: 1744 | AJ80: 6 | AK80: 13 | AL80: 21 | AM80: 426 | AN80: 2619 | AO80: 6.25 | AP80: 23 | AQ80: 59 | AR80: 468 | AS80: 7.95 | AT80: 0 | AU80: 485 | AV80: 3087 | AW80: 6.45 | AX80: 23 | AY80: 0 | AZ80: 0
A81: 2014 | B81: Devonta Freeman | C81: Florida State | D81: 70.1 | E81: 5 | F81: 4.58 | H81: 31.5 | I81: 7.11 | J81: 4.26 | K81: 118 | L81: 14 | M81: 173 | N81: 1016 | O81: 5.9 | P81: 14 | Q81: 22 | R81: 278 | S81: 12.6 | T81: 1 | U81: 195 | V81: 1294 | W81: 6.6 | X81: 15 | Y81: 14 | Z81: 111 | AA81: 660 | AB81: 5.9 | AC81: 8 | AD81: 10 | AE81: 86 | AF81: 8.6 | AG81: 0 | AH81: 121 | AI81: 746 | AJ81: 6.2 | AK81: 8 | AL81: 28 | AM81: 284 | AN81: 1676 | AO81: 5.9 | AP81: 22 | AQ81: 32 | AR81: 364 | AS81: 10.6 | AT81: 1 | AU81: 316 | AV81: 2040 | AW81: 6.4 | AX81: 23 | AY81: 1 | AZ81: 70.1
A82: 2014 | B82: Tyler Gaffney | C82: Stanford | E82: 0 | F82: 4.49 | H82: 36.5 | I82: 6.78 | J82: 4.18 | K82: 116 | L82: 14 | M82: 330 | N82: 1709 | O82: 5.2 | P82: 21 | Q82: 15 | R82: 86 | S82: 5.7 | T82: 1 | U82: 345 | V82: 1795 | W82: 5.2 | X82: 22 | AL82: 14 | AM82: 330 | AN82: 1709 | AO82: 5.2 | AP82: 21 | AQ82: 15 | AR82: 86 | AS82: 5.7 | AT82: 1 | AU82: 345 | AV82: 1795 | AW82: 5.2 | AX82: 22 | AY82: 1 | AZ82: 0
A83: 2014 | B83: Marion Grice | C83: Arizona State | E83: 0 | F83: 4.67 | L83: 11 | M83: 191 | N83: 996 | O83: 5.2 | P83: 14 | Q83: 50 | R83: 438 | S83: 8.8 | T83: 6 | U83: 241 | V83: 1434 | W83: 6 | X83: 20 | Y83: 13 | Z83: 103 | AA83: 679 | AB83: 6.6 | AC83: 11 | AD83: 41 | AE83: 425 | AF83: 10.4 | AG83: 8 | AH83: 144 | AI83: 1104 | AJ83: 7.7 | AK83: 19 | AL83: 24 | AM83: 294 | AN83: 1675 | AO83: 5.9 | AP83: 25 | AQ83: 91 | AR83: 863 | AS83: 9.6 | AT83: 14 | AU83: 385 | AV83: 2538 | AW83: 6.85 | AX83: 39 | AY83: 1 | AZ83: 0
A84: 2014 | B84: Jeremy Hill | C84: LSU | D84: 61.57 | E84: 3 | F84: 4.56 | G84: 20 | H84: 29 | K84: 113 | L84: 12 | M84: 203 | N84: 1401 | O84: 6.9 | P84: 16 | Q84: 18 | R84: 181 | S84: 10.1 | T84: 0 | U84: 221 | V84: 1582 | W84: 7.2 | X84: 16 | Y84: 12 | Z84: 142 | AA84: 755 | AB84: 5.3 | AC84: 12 | AD84: 8 | AE84: 73 | AF84: 9.1 | AG84: 0 | AH84: 150 | AI84: 828 | AJ84: 5.5 | AK84: 12 | AL84: 24 | AM84: 345 | AN84: 2156 | AO84: 6.1 | AP84: 28 | AQ84: 26 | AR84: 254 | AS84: 9.6 | AT84: 0 | AU84: 371 | AV84: 2410 | AW84: 6.35 | AX84: 28 | AY84: 1 | AZ84: 55.413
A85: 2014 | B85: Carlos Hyde | C85: Ohio State | D85: 68.44 | E85: 5 | F85: 4.62 | G85: 19 | H85: 34.5 | K85: 114 | L85: 11 | M85: 208 | N85: 1521 | O85: 7.3 | P85: 15 | Q85: 16 | R85: 147 | S85: 9.2 | T85: 3 | U85: 224 | V85: 1668 | W85: 7.4 | X85: 18 | Y85: 10 | Z85: 185 | AA85: 970 | AB85: 5.2 | AC85: 16 | AD85: 8 | AE85: 51 | AF85: 6.4 | AG85: 1 | AH85: 193 | AI85: 1021 | AJ85: 5.3 | AK85: 17 | AL85: 21 | AM85: 393 | AN85: 2491 | AO85: 6.25 | AP85: 31 | AQ85: 24 | AR85: 198 | AS85: 7.8 | AT85: 4 | AU85: 417 | AV85: 2689 | AW85: 6.35 | AX85: 35 | AY85: 1 | AZ85: 68.44
A86: 2014 | B86: Storm Johnson | C86: Central Florida | E86: 0 | F86: 4.6 | G86: 16 | H86: 35.5 | K86: 118 | L86: 13 | M86: 213 | N86: 1139 | O86: 5.3 | P86: 14 | Q86: 30 | R86: 260 | S86: 8.7 | T86: 3 | U86: 243 | V86: 1399 | W86: 5.8 | X86: 17 | Y86: 13 | Z86: 113 | AA86: 507 | AB86: 4.5 | AC86: 4 | AD86: 10 | AE86: 20 | AF86: 2 | AG86: 0 | AH86: 123 | AI86: 527 | AJ86: 4.3 | AK86: 4 | AL86: 26 | AM86: 326 | AN86: 1646 | AO86: 4.9 | AP86: 18 | AQ86: 40 | AR86: 280 | AS86: 5.35 | AT86: 3 | AU86: 366 | AV86: 1926 | AW86: 5.05 | AX86: 21 | AY86: 0 | AZ86: 0
A87: 2014 | B87: Henry Josey | C87: Missouri | E87: 0 | F87: 4.43 | G87: 20 | H87: 34.5 | I87: 7.07 | J87: 4.13 | K87: 118 | L87: 14 | M87: 174 | N87: 1166 | O87: 6.7 | P87: 16 | Q87: 10 | R87: 65 | S87: 6.5 | T87: 1 | U87: 184 | V87: 1231 | W87: 6.7 | X87: 17 | AL87: 14 | AM87: 174 | AN87: 1166 | AO87: 6.7 | AP87: 16 | AQ87: 10 | AR87: 65 | AS87: 6.5 | AT87: 1 | AU87: 184 | AV87: 1231 | AW87: 6.7 | AX87: 17 | AY87: 1 | AZ87: 0
A88: 2014 | B88: James Wilder Jr | C88: Florida State | E88: 0 | F88: 4.65 | G88: 18 | H88: 35 | I88: 6.92 | J88: 4.24 | K88: 121 | L88: 13 | M88: 81 | N88: 563 | O88: 7 | P88: 8 | Q88: 3 | R88: 27 | S88: 9 | T88: 0 | U88: 84 | V88: 590 | W88: 7 | X88: 8 | Y88: 14 | Z88: 110 | AA88: 640 | AB88: 5.8 | AC88: 11 | AD88: 19 | AE88: 141 | AF88: 7.4 | AG88: 2 | AH88: 129 | AI88: 781 | AJ88: 6.1 | AK88: 13 | AL88: 27 | AM88: 191 | AN88: 1203 | AO88: 6.4 | AP88: 19 | AQ88: 22 | AR88: 168 | AS88: 8.2 | AT88: 2 | AU88: 213 | AV88: 1371 | AW88: 6.55 | AX88: 21 | AY88: 1 | AZ88: 0
A89: 2014 | B89: Tre Mason | C89: Auburn | D89: 62.65 | E89: 2 | F89: 4.5 | H89: 38.5 | J89: 4.15 | K89: 126 | L89: 14 | M89: 317 | N89: 1816 | O89: 5.7 | P89: 23 | Q89: 12 | R89: 163 | S89: 13.6 | T89: 1 | U89: 329 | V89: 1979 | W89: 6 | X89: 24 | Y89: 12 | Z89: 171 | AA89: 1002 | AB89: 5.9 | AC89: 8 | AD89: 7 | AE89: 86 | AF89: 12.3 | AG89: 0 | AH89: 178 | AI89: 1088 | AJ89: 6.1 | AK89: 8 | AL89: 26 | AM89: 488 | AN89: 2818 | AO89: 5.8 | AP89: 31 | AQ89: 19 | AR89: 249 | AS89: 12.95 | AT89: 1 | AU89: 507 | AV89: 3067 | AW89: 6.05 | AX89: 32 | AY89: 1 | AZ89: 53.2525
A90: 2014 | B90: Jerick McKinnon | C90: Georgia Southern | D90: 72.34 | E90: 5 | F90: 4.41 | G90: 32 | H90: 40.5 | I90: 6.83 | J90: 4.12 | K90: 132 | L90: 10 | M90: 161 | N90: 1050 | O90: 6.5 | P90: 12 | Q90: 3 | R90: 23 | S90: 7.7 | T90: 0 | U90: 164 | V90: 1073 | W90: 6.5 | X90: 12 | Y90: 14 | Z90: 269 | AA90: 1817 | AB90: 6.8 | AC90: 20 | AD90: 1 | AE90: 15 | AF90: 15 | AG90: 0 | AH90: 270 | AI90: 1832 | AJ90: 6.8 | AK90: 20 | AL90: 24 | AM90: 430 | AN90: 2867 | AO90: 6.65 | AP90: 32 | AQ90: 4 | AR90: 38 | AS90: 11.35 | AT90: 0 | AU90: 434 | AV90: 2905 | AW90: 6.65 | AX90: 32 | AY90: 0 | AZ90: 72.34
A91: 2014 | B91: Adam Muema | C91: San Diego State | E91: 0 | F91: 4.56 | L91: 13 | M91: 256 | N91: 1244 | O91: 4.9 | P91: 15 | Q91: 18 | R91: 98 | S91: 5.4 | T91: 0 | U91: 274 | V91: 1342 | W91: 4.9 | X91: 15 | Y91: 13 | Z91: 237 | AA91: 1458 | AB91: 6.2 | AC91: 16 | AD91: 9 | AE91: 147 | AF91: 16.3 | AG91: 1 | AH91: 246 | AI91: 1605 | AJ91: 6.5 | AK91: 17 | AL91: 26 | AM91: 493 | AN91: 2702 | AO91: 5.55 | AP91: 31 | AQ91: 27 | AR91: 245 | AS91: 10.85 | AT91: 1 | AU91: 520 | AV91: 2947 | AW91: 5.7 | AX91: 32 | AY91: 0 | AZ91: 0
A92: 2014 | B92: LaDarius Perkins | C92: Mississippi State | E92: 0 | F92: 4.46 | G92: 23 | H92: 35.5 | I92: 7.08 | J92: 4.3 | K92: 124 | L92: 12 | M92: 137 | N92: 542 | O92: 4 | P92: 2 | Q92: 27 | R92: 248 | S92: 9.2 | T92: 3 | U92: 164 | V92: 790 | W92: 4.8 | X92: 5 | Y92: 12 | Z92: 205 | AA92: 1024 | AB92: 5 | AC92: 8 | AD92: 19 | AE92: 160 | AF92: 8.4 | AG92: 2 | AH92: 224 | AI92: 1184 | AJ92: 5.3 | AK92: 10 | AL92: 24 | AM92: 342 | AN92: 1566 | AO92: 4.5 | AP92: 10 | AQ92: 46 | AR92: 408 | AS92: 8.8 | AT92: 5 | AU92: 388 | AV92: 1974 | AW92: 5.05 | AX92: 15 | AY92: 1 | AZ92: 0
A93: 2014 | B93: Silas Redd | C93: USC | E93: 0 | F93: 4.7 | G93: 18 | H93: 37 | K93: 122 | L93: 6 | M93: 81 | N93: 376 | O93: 4.6 | P93: 1 | Q93: 10 | R93: 45 | S93: 4.5 | T93: 1 | U93: 91 | V93: 421 | W93: 4.6 | X93: 2 | Y93: 12 | Z93: 167 | AA93: 905 | AB93: 5.4 | AC93: 9 | AD93: 9 | AE93: 113 | AF93: 12.6 | AG93: 1 | AH93: 176 | AI93: 1018 | AJ93: 5.8 | AK93: 10 | AL93: 18 | AM93: 248 | AN93: 1281 | AO93: 5 | AP93: 10 | AQ93: 19 | AR93: 158 | AS93: 8.55 | AT93: 2 | AU93: 267 | AV93: 1439 | AW93: 5.2 | AX93: 12 | AY93: 1 | AZ93: 0
A94: 2014 | B94: Bishop Sankey | C94: Washington | D94: 58.05 | E94: 2 | F94: 4.49 | G94: 26 | H94: 35.5 | I94: 6.75 | J94: 4 | K94: 126 | L94: 13 | M94: 327 | N94: 1870 | O94: 5.7 | P94: 20 | Q94: 28 | R94: 304 | S94: 10.9 | T94: 1 | U94: 355 | V94: 2174 | W94: 6.1 | X94: 21 | Y94: 13 | Z94: 289 | AA94: 1439 | AB94: 5 | AC94: 16 | AD94: 33 | AE94: 249 | AF94: 7.5 | AG94: 0 | AH94: 322 | AI94: 1688 | AJ94: 5.2 | AK94: 16 | AL94: 26 | AM94: 616 | AN94: 3309 | AO94: 5.35 | AP94: 36 | AQ94: 61 | AR94: 553 | AS94: 9.2 | AT94: 1 | AU94: 677 | AV94: 3862 | AW94: 5.65 | AX94: 37 | AY94: 1 | AZ94: 49.3425
A95: 2014 | B95: Lache Seastrunk | C95: Baylor | E95: 0 | F95: 4.51 | G95: 15 | H95: 41.5 | K95: 134 | L95: 11 | M95: 158 | N95: 1177 | O95: 7.4 | P95: 11 | Q95: 0 | R95: 0 | T95: 0 | U95: 158 | V95: 1177 | W95: 7.4 | X95: 11 | Y95: 13 | Z95: 131 | AA95: 1012 | AB95: 7.7 | AC95: 7 | AD95: 9 | AE95: 107 | AF95: 11.9 | AG95: 1 | AH95: 140 | AI95: 1119 | AJ95: 8 | AK95: 8 | AL95: 24 | AM95: 289 | AN95: 2189 | AO95: 7.55 | AP95: 18 | AQ95: 9 | AR95: 107 | AS95: 11.9 | AT95: 1 | AU95: 298 | AV95: 2296 | AW95: 7.7 | AX95: 19 | AY95: 1 | AZ95: 0
A96: 2014 | B96: Charles Sims | C96: West Virginia | D96: 63.5 | E96: 4 | F96: 4.48 | G96: 17 | H96: 37.5 | I96: 7.16 | J96: 4.3 | K96: 126 | L96: 12 | M96: 208 | N96: 1095 | O96: 5.3 | P96: 11 | Q96: 45 | R96: 401 | S96: 8.9 | T96: 3 | U96: 253 | V96: 1496 | W96: 5.9 | X96: 14 | Y96: 9 | Z96: 142 | AA96: 851 | AB96: 6 | AC96: 11 | AD96: 37 | AE96: 373 | AF96: 10.1 | AG96: 3 | AH96: 179 | AI96: 1224 | AJ96: 6.8 | AK96: 14 | AL96: 21 | AM96: 350 | AN96: 1946 | AO96: 5.65 | AP96: 22 | AQ96: 82 | AR96: 774 | AS96: 9.5 | AT96: 6 | AU96: 432 | AV96: 2720 | AW96: 6.35 | AX96: 28 | AY96: 1 | AZ96: 60.325
A97: 2014 | B97: Jerome Smith | C97: Syracuse | E97: 0 | F97: 4.84 | G97: 14 | H97: 36 | I97: 7.53 | J97: 4.6 | K97: 118 | L97: 13 | M97: 200 | N97: 914 | O97: 4.6 | P97: 12 | Q97: 8 | R97: 74 | S97: 9.3 | T97: 1 | U97: 208 | V97: 988 | W97: 4.8 | X97: 13 | Y97: 13 | Z97: 227 | AA97: 1171 | AB97: 5.2 | AC97: 3 | AD97: 8 | AE97: 83 | AF97: 10.4 | AG97: 0 | AH97: 235 | AI97: 1254 | AJ97: 5.3 | AK97: 3 | AL97: =L97+Y97 -> 26 | AM97: =M97+Z97 -> 427 | AN97: =N97+AA97 -> 2085 | AO97: =AVERAGE(O97,AB97) -> 4.9 | AP97: =P97+AC97 -> 15 | AQ97: =Q97+AD97 -> 16 | AR97: =R97+AE97 -> 157 | AS97: 9.85 | AT97: =T97+AG97 -> 1 | AU97: =U97+AH97 -> 443 | AV97: =V97+AI97 -> 2242 | AW97: 5.05 | AX97: =AK97+X97 -> 16 | AY97: 1 | AZ97: 0
A98: 2014 | B98: Lorenzo Taliaferro | C98: Coastal Carolina | E98: 0 | F98: 4.58 | G98: 18 | H98: 33 | I98: 6.88 | J98: 4.22 | K98: 118 | L98: 15 | M98: 276 | N98: 1729 | O98: 6.3 | P98: 27 | Q98: 23 | R98: 153 | S98: 6.7 | T98: 2 | U98: 299 | V98: 1882 | W98: 6.3 | X98: 29 | Y98: 12 | Z98: 80 | AA98: 357 | AB98: 4.5 | AC98: 5 | AD98: 4 | AE98: 38 | AF98: 9.5 | AG98: 0 | AH98: 84 | AI98: 395 | AJ98: 4.7 | AK98: 5 | AL98: 27 | AM98: 356 | AN98: 2086 | AO98: 5.4 | AP98: 32 | AQ98: 27 | AR98: 191 | AS98: 8.1 | AT98: 2 | AU98: 383 | AV98: 2277 | AW98: 5.5 | AX98: 34 | AY98: 0 | AZ98: 0
A99: 2014 | B99: De'Anthony Thomas | C99: Oregon | D99: 66.23 | E99: 3 | F99: 4.39 | G99: 8 | H99: 32 | K99: 124 | L99: 10 | M99: 96 | N99: 594 | O99: 6.2 | P99: 8 | Q99: 22 | R99: 246 | S99: 11.2 | T99: 1 | U99: 118 | V99: 840 | W99: 7.1 | X99: 9 | Y99: 13 | Z99: 92 | AA99: 701 | AB99: 7.6 | AC99: 11 | AD99: 45 | AE99: 445 | AF99: 9.9 | AG99: 5 | AH99: 137 | AI99: 1146 | AJ99: 8.4 | AK99: 16 | AL99: 23 | AM99: 188 | AN99: 1295 | AO99: 6.9 | AP99: 19 | AQ99: 67 | AR99: 691 | AS99: 10.55 | AT99: 6 | AU99: 255 | AV99: 1986 | AW99: 7.75 | AX99: 25 | AY99: 1 | AZ99: 59.607
A100: 2014 | B100: Terrance West | C100: Towson | D100: 66.4 | E100: 2 | F100: 4.56 | G100: 16 | H100: 33.5 | K100: 120 | Z100: 195 | AA100: 1046 | AB100: 5.4 | AC100: 14 | AL100: 0 | AM100: 195 | AN100: 1046 | AO100: 5.4 | AP100: 14 | AQ100: 0 | AR100: 0 | AT100: 0 | AU100: 0 | AV100: 0 | AX100: 0 | AY100: 0 | AZ100: 56.44
A101: 2014 | B101: James White | C101: Wisconsin | D101: 71.14 | E101: 5 | F101: 4.57 | G101: 23 | H101: 32 | I101: 7.05 | J101: 4.2 | K101: 114 | L101: 13 | M101: 221 | N101: 1444 | O101: 6.5 | P101: 13 | Q101: 39 | R101: 300 | S101: 7.7 | T101: 2 | U101: 260 | V101: 1744 | W101: 6.7 | X101: 15 | Y101: 14 | Z101: 125 | AA101: 806 | AB101: 6.4 | AC101: 12 | AD101: 8 | AE101: 132 | AF101: 16.5 | AG101: 1 | AH101: 133 | AI101: 938 | AJ101: 7.1 | AK101: 13 | AL101: 27 | AM101: 346 | AN101: 2250 | AO101: 6.45 | AP101: 25 | AQ101: 47 | AR101: 432 | AS101: =AVERAGE(S101,AF101) -> 12.1 | AT101: 3 | AU101: 393 | AV101: 2682 | AW101: =AVERAGE(AJ101,W101) -> 6.9 | AX101: 28 | AY101: 1 | AZ101: 71.14
A102: 2014 | B102: Andre Williams | C102: Boston Col. | D102: 55.3 | E102: 2 | F102: 4.56 | H102: 38 | I102: 7.27 | J102: 4.06 | K102: 129 | L102: 13 | M102: 355 | N102: 2177 | O102: 6.1 | P102: 18 | Q102: 0 | R102: 0 | T102: 0 | U102: 355 | V102: 2177 | W102: 6.1 | X102: 18 | Y102: 9 | Z102: 130 | AA102: 584 | AB102: 4.5 | AC102: 4 | AD102: 4 | AE102: 34 | AF102: 8.5 | AG102: 0 | AH102: 134 | AI102: 618 | AJ102: 4.6 | AK102: 4 | AL102: 22 | AM102: 485 | AN102: 2761 | AO102: 5.3 | AP102: 22 | AQ102: 4 | AR102: 34 | AS102: =AVERAGE(S102,AF102) -> 8.5 | AT102: 0 | AU102: 489 | AV102: 2795 | AW102: 5.35 | AX102: 22 | AY102: 1 | AZ102: 47.005
A103: 2014 | B103: Damien Williams | C103: Oklahoma | D103: 74.74 | E103: 5 | F103: 4.45 | G103: 16 | H103: 35.5 | I103: 7.37 | J103: 4.25 | K103: 121 | L103: 9 | M103: 114 | N103: 553 | O103: 4.9 | P103: 7 | Q103: 9 | R103: 90 | S103: 10 | T103: 0 | U103: 123 | V103: 643 | W103: 5.2 | X103: 7 | Y103: 13 | Z103: 176 | AA103: 946 | AB103: 5.4 | AC103: 11 | AD103: 34 | AE103: 320 | AF103: 9.4 | AG103: 1 | AH103: 210 | AI103: 1266 | AJ103: 6 | AK103: 12 | AL103: 22 | AM103: 290 | AN103: 1499 | AO103: 5.15 | AP103: 18 | AQ103: 43 | AR103: 410 | AS103: =AVERAGE(S103,AF103) -> 9.7 | AT103: 1 | AU103: 333 | AV103: 1909 | AW103: 5.6 | AX103: 19 | AY103: 1 | AZ103: 74.74
A104: 2014 | B104: J.C. Copeland | C104: LSU | E104: 0 | F104: 4.95 | G104: 23 | H104: 28.5 | I104: 7.68 | J104: 4.58 | K104: 111 | L104: 8 | M104: 13 | N104: 25 | O104: 1.9 | P104: 3 | Q104: 4 | R104: 31 | S104: 7.8 | T104: 0 | U104: 17 | V104: 56 | W104: 3.3 | X104: 3 | Y104: 13 | Z104: 21 | AA104: 67 | AB104: 3.2 | AC104: 4 | AD104: 3 | AE104: 54 | AF104: 18 | AG104: 0 | AH104: 24 | AI104: 121 | AJ104: 5 | AK104: 4 | AL104: =L104+Y104 -> 21 | AM104: =Z104+M104 -> 34 | AN104: 92 | AO104: =AVERAGE(AB104,O104) -> 2.55 | AP104: =P104+AC104 -> 7 | AQ104: =AD104+Q104 -> 7 | AR104: 85 | AS104: =AVERAGE(AF104,S104) -> 12.9 | AT104: =AG104+T104 -> 0 | AU104: 41 | AV104: 177 | AW104: 4.15 | AX104: 7 | AY104: 1 | AZ104: 0
A105: 2014 | B105: Ryan Hewitt | C105: Stanford | D105: 66.5 | E105: 4 | F105: 4.87 | H105: 33 | I105: 7.04 | J105: 4.35 | K105: 109 | L105: 12 | M105: 5 | N105: 8 | O105: 1.6 | P105: 0 | Q105: 9 | R105: 46 | S105: 5.1 | T105: 0 | U105: 14 | V105: 54 | W105: 3.9 | X105: 0 | Y105: 12 | Z105: 13 | AA105: 32 | AB105: 2.5 | AC105: 1 | AD105: 14 | AE105: 129 | AF105: 9.2 | AG105: 1 | AH105: 27 | AI105: 161 | AJ105: 6 | AK105: 2 | AL105: 24 | AM105: 18 | AN105: 40 | AO105: =AVERAGE(AB105,O105) -> 2.05 | AP105: 1 | AQ105: 23 | AR105: 175 | AS105: =AVERAGE(AF105,S105) -> 7.15 | AT105: 1 | AU105: 41 | AV105: 215 | AW105: 4.95 | AX105: 2 | AY105: 1 | AZ105: 63.175
A106: 2014 | B106: Reggie Jordan | C106: Missouri Western State | E106: 0 | F106: 4.77 | G106: 24 | H106: 30 | I106: 7.22 | J106: 4.3 | K106: 116 | L106: 11 | M106: 3 | N106: 22 | O106: 7.3 | P106: 0 | Q106: 23 | R106: 366 | S106: 15.9 | T106: 4 | U106: 26 | V106: 388 | W106: 14.9 | X106: 4 | Y106: 14 | Z106: 2 | AA106: 100 | AB106: 50 | AC106: 1 | AD106: 23 | AE106: 230 | AF106: 10 | AG106: 11 | AH106: 25 | AI106: 330 | AJ106: 13.2 | AK106: 12 | AL106: 25 | AM106: 5 | AN106: 122 | AO106: =AVERAGE(AB106,O106) -> 28.65 | AP106: 1 | AQ106: 46 | AR106: 596 | AS106: =AVERAGE(AF106,S106) -> 12.95 | AT106: 15 | AU106: 51 | AV106: 718 | AW106: 14.05 | AX106: 16 | AY106: 0 | AZ106: 0
A107: 2014 | B107: Trey Millard | C107: Oklahoma | E107: 0 | F107: 4.64 | L107: 8 | M107: 17 | N107: 97 | O107: 5.7 | P107: 1 | Q107: 11 | R107: 78 | S107: 7.1 | T107: 1 | U107: 28 | V107: 175 | W107: 6.3 | X107: 2 | Y107: 13 | Z107: 33 | AA107: 198 | AB107: 6 | AC107: 0 | AD107: 30 | AE107: 337 | AF107: 11.2 | AG107: 4 | AH107: 63 | AI107: 535 | AJ107: 8.5 | AK107: 4 | AL107: 21 | AM107: 50 | AN107: 295 | AO107: =AVERAGE(AB107,O107) -> 5.85 | AP107: 1 | AQ107: 41 | AR107: 415 | AS107: =AVERAGE(AF107,S107) -> 9.15 | AT107: 5 | AU107: 91 | AV107: 710 | AW107: 7.4 | AX107: 6 | AY107: 1 | AZ107: 0 | BA107: FINAL RANKING
A108: 2022 | B108: ZaQuandre White | C108: South Carolina | F108: 4.63 | L108: 10 | M108: 88 | N108: 583 | O108: 6.6 | P108: 2 | Q108: 19 | R108: 202 | S108: 10.6 | T108: 3 | U108: 107 | V108: 785 | W108: 7.3 | X108: 5 | Y108: 5 | Z108: 16 | AA108: 59 | AB108: 3.7 | AC108: 0 | AD108: 2 | AE108: -4 | AF108: -2 | AG108: 0 | AH108: 18 | AI108: 55 | AJ108: 3.1 | AK108: 0 | AL108: =L108+Y108 -> 15 | AM108: =M108+Z108 -> 104 | AN108: =N108+AA108 -> 642 | AO108: =AN108/AM108 -> 6.173076923 | AP108: =P108+AC108 -> 2 | AQ108: =Q108+AD108 -> 21 | AR108: =R108+AE108 -> 198 | AS108: =AR108/AQ108 -> 9.428571429 | AT108: =AG108+T108 -> 3 | AU108: =U108+AH108 -> 125 | AV108: =V108+AI108 -> 840 | AW108: =AV108/AU108 -> 6.72 | AX108: =X108+AK108 -> 5 | AY108: 1 | AZ108: =205.8369 + (0.004949*AN108) + (0.0266096*AR108) + (0.1202005*P108) + (-2.359478*O108) + (-39.67212*F108) -> 15.2687894 | BA108: =IF(AY108=1,AZ108*1,AZ108*0.75) -> 15.2687894
B109: CJ Verdell | C109: Oregon | F109: 4.65 | H109: 29.5 | K109: 118 | L109: 5 | M109: 78 | N109: 406 | O109: 5.2 | P109: 6 | Q109: 8 | R109: 74 | S109: 9.3 | T109: 1 | U109: 86 | V109: 480 | W109: 5.6 | X109: 7 | Y109: 5 | Z109: 65 | AA109: 285 | AB109: 4.4 | AC109: 3 | AD109: 9 | AE109: 96 | AF109: 10.7 | AG109: 0 | AH109: 74 | AI109: 381 | AJ109: 5.1 | AK109: 3 | AL109: 10 | AM109: 143 | AN109: 691 | AO109: 4.832167832 | AP109: 9 | AQ109: 17 | AR109: 170 | AS109: 10 | AT109: 1 | AU109: 160 | AV109: 861 | AW109: 5.38125 | AX109: 10 | AY109: 1 | AZ109: 17.7568504 | BA109: 17.7568504
B110: Greg Bell | C110: San Diego St. | F110: 4.63 | G110: 17 | H110: 31 | K110: 120 | L110: 14 | M110: 245 | N110: 1091 | O110: 4.5 | P110: 9 | Q110: 4 | R110: 5 | S110: 1.3 | T110: 0 | U110: 249 | V110: 1096 | W110: 4.4 | X110: 9 | Y110: 7 | Z110: 113 | AA110: 637 | AB110: 5.6 | AC110: 6 | AD110: 11 | AE110: 114 | AF110: 10.4 | AG110: 1 | AH110: 124 | AI110: 751 | AJ110: 6.1 | AK110: 7 | AL110: 21 | AM110: 358 | AN110: 1728 | AO110: 4.826815642 | AP110: 15 | AQ110: 15 | AR110: 119 | AS110: 7.933333333 | AT110: 1 | AU110: 373 | AV110: 1847 | AW110: 4.951742627 | AX110: 16 | AY110: 0 | AZ110: 24.3375523 | BA110: 18.25316423
B111: D'vonte Price | C111: Florida International | F111: 4.38 | H111: 34 | K111: 119 | L111: 9 | M111: 129 | N111: 682 | O111: 5.3 | P111: 6 | Q111: 10 | R111: 83 | S111: 8.3 | T111: 0 | U111: 139 | V111: 765 | W111: 5.5 | X111: 6 | Y111: 5 | Z111: 85 | AA111: 581 | AB111: 6.8 | AC111: 4 | AD111: 5 | AE111: 14 | AF111: 2.8 | AG111: 1 | AH111: 90 | AI111: 595 | AJ111: 6.6 | AK111: 5 | AL111: 14 | AM111: 214 | AN111: 1263 | AO111: 5.901869159 | AP111: 10 | AQ111: 15 | AR111: 97 | AS111: 6.466666667 | AT111: 1 | AU111: 229 | AV111: 1360 | AW111: 5.938864629 | AX111: 11 | AY111: 0 | AZ111: 29.1207022 | BA111: 21.84052665
B112: Abram Smith | C112: Baylor | F112: 4.54 | L112: 14 | M112: 257 | N112: 1601 | O112: 6.2 | P112: 12 | Q112: 13 | R112: 75 | S112: 5.8 | T112: 0 | U112: 270 | V112: 1676 | W112: 6.2 | X112: 12 | Y112: 3 | Z112: 8 | AA112: 35 | AB112: 4.4 | AC112: 1 | AD112: 0 | AE112: 0 | AF112: 0 | AG112: 0 | AH112: 8 | AI112: 35 | AJ112: 4.4 | AK112: 1 | AL112: 17 | AM112: 265 | AN112: 1636 | AO112: 6.173584906 | AP112: 13 | AQ112: 13 | AR112: 75 | AS112: 5.769230769 | AT112: 0 | AU112: 278 | AV112: 1711 | AW112: 6.154676259 | AX112: 13 | AY112: 1 | AZ112: 22.6314016 | BA112: 22.6314016
B113: Snoop Conner | C113: Mississippi | F113: 4.59 | G113: 25 | H113: 29.5 | K113: 118 | L113: 13 | M113: 130 | N113: 647 | O113: 5 | P113: 13 | Q113: 14 | R113: 82 | S113: 5.9 | T113: 0 | U113: 144 | V113: 729 | W113: 5.1 | X113: 13 | Y113: 10 | Z113: 93 | AA113: 421 | AB113: 4.5 | AC113: 8 | AD113: 12 | AE113: 83 | AF113: 6.9 | AG113: 0 | AH113: 105 | AI113: 504 | AJ113: 4.8 | AK113: 8 | AL113: 23 | AM113: 223 | AN113: 1068 | AO113: 4.789237668 | AP113: 21 | AQ113: 26 | AR113: 165 | AS113: 6.346153846 | AT113: 0 | AU113: 249 | AV113: 1233 | AW113: 4.951807229 | AX113: 21 | AY113: 1 | AZ113: 23.1832017 | BA113: 23.1832017
B114: Jashaun Corbin | C114: Florida St. | F114: 4.59 | L114: 12 | M114: 143 | N114: 887 | O114: 6.2 | P114: 7 | Q114: 25 | R114: 144 | S114: 5.8 | T114: 1 | U114: 168 | V114: 1031 | W114: 6.1 | X114: 8 | Y114: 9 | Z114: 81 | AA114: 401 | AB114: 5 | AC114: 5 | AD114: 19 | AE114: 115 | AF114: 6.1 | AG114: 0 | AH114: 100 | AI114: 516 | AJ114: 5.2 | AK114: 5 | AL114: 21 | AM114: 224 | AN114: 1288 | AO114: 5.75 | AP114: 12 | AQ114: 44 | AR114: 259 | AS114: 5.886363636 | AT114: 1 | AU114: 268 | AV114: 1547 | AW114: 5.77238806 | AX114: 13 | AY114: 1 | AZ114: 23.2207075 | BA114: 23.2207075
B115: Hassan Haskins | C115: Michigan | F115: 4.65 | G115: 27 | L115: 14 | M115: 270 | N115: 1327 | O115: 4.9 | P115: 20 | Q115: 18 | R115: 131 | S115: 7.3 | T115: 0 | U115: 288 | V115: 1458 | W115: 5.1 | X115: 20 | Y115: 6 | Z115: 61 | AA115: 375 | AB115: 6.1 | AC115: 6 | AD115: 0 | AE115: 0 | AG115: 0 | AH115: 61 | AI115: 375 | AJ115: 6.1 | AK115: 6 | AL115: 20 | AM115: 331 | AN115: 1702 | AO115: 5.141993958 | AP115: 26 | AQ115: 18 | AR115: 131 | AS115: 7.277777778 | AT115: 0 | AU115: 349 | AV115: 1833 | AW115: 5.252148997 | AX115: 26 | AY115: 1 | AZ115: 24.1131654 | BA115: 24.1131654
B116: Jerome Ford | C116: Cincinnati | F116: 4.46 | H116: 31 | K116: 118 | L116: 13 | M116: 215 | N116: 1319 | O116: 6.1 | P116: 19 | Q116: 21 | R116: 220 | S116: 10.5 | T116: 1 | U116: 236 | V116: 1539 | W116: 6.5 | X116: 20 | Y116: 10 | Z116: 73 | AA116: 483 | AB116: 6.6 | AC116: 8 | AD116: 8 | AE116: 51 | AF116: 6.4 | AG116: 0 | AH116: 81 | AI116: 534 | AJ116: 6.6 | AK116: 8 | AL116: 23 | AM116: 288 | AN116: 1802 | AO116: 6.256944444 | AP116: 27 | AQ116: 29 | AR116: 271 | AS116: 9.344827586 | AT116: 1 | AU116: 317 | AV116: 2073 | AW116: 6.539432177 | AX116: 28 | AY116: 0 | AZ116: 32.9195381 | BA116: 24.68965358
B117: Keaontay Ingram | C117: USC | F117: 4.53 | H117: 34.5 | K117: 122 | L117: 10 | M117: 156 | N117: 911 | O117: 5.8 | P117: 5 | Q117: 22 | R117: 156 | S117: 7.1 | T117: 0 | U117: 178 | V117: 1067 | W117: 6 | X117: 5 | Y117: 6 | Z117: 53 | AA117: 250 | AB117: 4.7 | AC117: 1 | AD117: 11 | AE117: 103 | AF117: 9.4 | AG117: 1 | AH117: 64 | AI117: 353 | AJ117: 5.5 | AK117: 4 | AL117: 16 | AM117: 209 | AN117: 1161 | AO117: 5.555023923 | AP117: 6 | AQ117: 33 | AR117: 259 | AS117: 7.848484848 | AT117: 1 | AU117: 242 | AV117: 1420 | AW117: 5.867768595 | AX117: 9 | AY117: 1 | AZ117: 25.6759019 | BA117: 25.6759019
B118: Kennedy Brooks | C118: Oklahoma | F118: 4.59 | H118: 31 | K118: 120 | L118: 13 | M118: 198 | N118: 1253 | O118: 6.3 | P118: 13 | Q118: 9 | R118: 73 | S118: 8.1 | T118: 0 | U118: 207 | V118: 1326 | W118: 6.4 | X118: 13 | Y118: 13 | Z118: 155 | AA118: 1011 | AB118: 6.5 | AC118: 6 | AD118: 10 | AE118: 79 | AF118: 7.9 | AG118: 0 | AH118: 165 | AI118: 1090 | AJ118: 6.6 | AK118: 6 | AL118: 26 | AM118: 353 | AN118: 2264 | AO118: 6.413597734 | AP118: 19 | AQ118: 19 | AR118: 152 | AS118: 8 | AT118: 0 | AU118: 372 | AV118: 2416 | AW118: 6.494623656 | AX118: 19 | AY118: 1 | AZ118: 25.6889595 | BA118: 25.6889595
B119: Pierre Strong | C119: South Dakota St. | F119: 4.37 | H119: 36 | K119: 124 | L119: 15 | M119: 240 | N119: 1673 | O119: 7 | P119: 18 | Q119: 22 | R119: 150 | S119: 6.8 | T119: 0 | U119: 262 | V119: 1823 | W119: 7 | X119: 18 | Y119: 5 | Z119: 79 | AA119: 434 | AB119: 5.5 | AC119: 2 | AD119: 13 | AE119: 107 | AF119: 8.2 | AG119: 1 | AH119: 92 | AI119: 541 | AJ119: 5.9 | AK119: 3 | AL119: 20 | AM119: 319 | AN119: 2107 | AO119: 6.605015674 | AP119: 20 | AQ119: 35 | AR119: 257 | AS119: 7.342857143 | AT119: 1 | AU119: 354 | AV119: 2364 | AW119: 6.677966102 | AX119: 21 | AY119: 0 | AZ119: 35.3832088 | BA119: 26.5374066
B120: Tyler Allgeier | C120: BYU | F120: 4.6 | H120: 33 | K120: 120 | L120: 13 | M120: 276 | N120: 1601 | O120: 5.8 | P120: 23 | Q120: 28 | R120: 199 | S120: 7.1 | T120: 0 | U120: 304 | V120: 1800 | W120: 5.9 | X120: 23 | Y120: 11 | Z120: 150 | AA120: 1130 | AB120: 7.5 | AC120: 13 | AD120: 14 | AE120: 174 | AF120: 12.4 | AG120: 0 | AH120: 164 | AI120: 1304 | AJ120: 8 | AK120: 13 | AL120: 24 | AM120: 426 | AN120: 2731 | AO120: 6.410798122 | AP120: 36 | AQ120: 42 | AR120: 373 | AS120: 8.880952381 | AT120: 0 | AU120: 468 | AV120: 3104 | AW120: 6.632478632 | AX120: 36 | AY120: 0 | AZ120: 35.8658869 | BA120: 26.89941518
B121: Dameon Pierce | C121: Florida | F121: 4.59 | G121: 21 | H121: 34.5 | K121: 119 | L121: 13 | M121: 100 | N121: 574 | O121: 5.7 | P121: 13 | Q121: 19 | R121: 216 | S121: 11.4 | T121: 3 | U121: 119 | V121: 790 | W121: 6.6 | X121: 16 | Y121: 12 | Z121: 106 | AA121: 503 | AB121: 4.7 | AC121: 4 | AD121: 17 | AE121: 156 | AF121: 9.2 | AG121: 1 | AH121: 123 | AI121: 659 | AJ121: 5.4 | AK121: 5 | AL121: 25 | AM121: 206 | AN121: 1077 | AO121: 5.22815534 | AP121: 17 | AQ121: 36 | AR121: 372 | AS121: 10.33333333 | AT121: 4 | AU121: 242 | AV121: 1449 | AW121: 5.987603306 | AX121: 21 | AY121: 1 | AZ121: 27.0842953 | BA121: 27.0842953
B122: Zonovan Knight | C122: North Carolina St. | F122: 4.58 | H122: 31 | K122: 114 | L122: 12 | M122: 140 | N122: 753 | O122: 5.4 | P122: 3 | Q122: 21 | R122: 156 | S122: 7.4 | T122: 0 | U122: 161 | V122: 909 | W122: 5.6 | X122: 3 | Y122: 12 | Z122: 143 | AA122: 788 | AB122: 5.5 | AC122: 10 | AD122: 20 | AE122: 136 | AF122: 6.8 | AG122: 0 | AH122: 163 | AI122: 924 | AJ122: 5.7 | AK122: 10 | AL122: 24 | AM122: 283 | AN122: 1541 | AO122: 5.445229682 | AP122: 13 | AQ122: 41 | AR122: 292 | AS122: 7.12195122 | AT122: 0 | AU122: 324 | AV122: 1833 | AW122: 5.657407407 | AX122: 13 | AY122: 1 | AZ122: 27.1544229 | BA122: 27.1544229
B123: Ronnie Rivers | C123: Fresno St. | F123: 4.6 | H123: 36.5 | K123: 119 | L123: 11 | M123: 171 | N123: 788 | O123: 4.6 | P123: 5 | Q123: 34 | R123: 364 | S123: 10.7 | T123: 2 | U123: 205 | V123: 1152 | W123: 5.6 | X123: 7 | Y123: 6 | Z123: 100 | AA123: 507 | AB123: 5.1 | AC123: 7 | AD123: 27 | AE123: 265 | AF123: 9.8 | AG123: 2 | AH123: 127 | AI123: 772 | AJ123: 6.1 | AK123: 9 | AL123: 17 | AM123: 271 | AN123: 1295 | AO123: 4.778597786 | AP123: 12 | AQ123: 61 | AR123: 629 | AS123: 10.31147541 | AT123: 4 | AU123: 332 | AV123: 1924 | AW123: 5.795180723 | AX123: 16 | AY123: 0 | AZ123: 36.2389451 | BA123: 27.17920882
B124: Sincere McCormick | C124: Texas-San Antonio | F124: 4.6 | H124: 33.5 | K124: 116 | L124: 13 | M124: 298 | N124: 1479 | O124: 5 | P124: 15 | Q124: 22 | R124: 184 | S124: 8.4 | T124: 0 | U124: 320 | V124: 1663 | W124: 5.2 | X124: 15 | Y124: 11 | Z124: 249 | AA124: 1467 | AB124: 5.9 | AC124: 11 | AD124: 20 | AE124: 131 | AF124: 6.6 | AG124: 0 | AH124: 269 | AI124: 1598 | AJ124: 5.9 | AK124: 11 | AL124: 24 | AM124: 547 | AN124: 2946 | AO124: 5.385740402 | AP124: 26 | AQ124: 42 | AR124: 315 | AS124: 7.5 | AT124: 0 | AU124: 589 | AV124: 3261 | AW124: 5.536502547 | AX124: 26 | AY124: 0 | AZ124: 36.3125435 | BA124: 27.23440763
B125: Tyrion Davis-Price | C125: LSU | F125: 4.48 | H125: 30 | K125: 117 | L125: 12 | M125: 211 | N125: 1003 | O125: 4.8 | P125: 6 | Q125: 10 | R125: 64 | S125: 6.4 | T125: 0 | U125: 221 | V125: 1067 | W125: 4.8 | X125: 6 | Y125: 9 | Z125: 104 | AA125: 446 | AB125: 4.3 | AC125: 3 | AD125: 8 | AE125: 47 | AF125: 5.9 | AG125: 0 | AH125: 112 | AI125: 493 | AJ125: 4.4 | AK125: 3 | AL125: 21 | AM125: 315 | AN125: 1449 | AO125: 4.6 | AP125: 9 | AQ125: 18 | AR125: 111 | AS125: 6.166666667 | AT125: 0 | AU125: 333 | AV125: 1560 | AW125: 4.684684685 | AX125: 9 | AY125: 1 | AZ125: 27.6262776 | BA125: 27.6262776
B126: Kevin Harris | C126: South Carolina | F126: 4.62 | G126: 21 | H126: 38.5 | K126: 126 | L126: 12 | M126: 152 | N126: 660 | O126: 4.3 | P126: 4 | Q126: 11 | R126: 89 | S126: 8.1 | T126: 0 | U126: 163 | V126: 749 | W126: 4.6 | X126: 4 | Y126: 10 | Z126: 185 | AA126: 1138 | AB126: 6.2 | AC126: 15 | AD126: 21 | AE126: 159 | AF126: 7.6 | AG126: 1 | AH126: 206 | AI126: 1297 | AJ126: 6.3 | AK126: 16 | AL126: 22 | AM126: 337 | AN126: 1798 | AO126: 5.335311573 | AP126: 19 | AQ126: 32 | AR126: 248 | AS126: 7.75 | AT126: 1 | AU126: 369 | AV126: 2046 | AW126: 5.544715447 | AX126: 20 | AY126: 1 | AZ126: 28.384235 | BA126: 28.384235
B127: Jaylen Warren | C127: Oklahoma St. | F127: 4.55 | H127: 31.5 | K127: 119 | L127: 13 | M127: 256 | N127: 1216 | O127: 4.8 | P127: 11 | Q127: 25 | R127: 225 | S127: 9 | T127: 0 | U127: 281 | V127: 1441 | W127: 5.1 | X127: 11 | Y127: 3 | Z127: 39 | AA127: 252 | AB127: 6.5 | AC127: 3 | AD127: 5 | AE127: 33 | AF127: 6.6 | AG127: 0 | AH127: 44 | AI127: 285 | AJ127: 6.5 | AK127: 3 | AL127: 16 | AM127: 295 | AN127: 1468 | AO127: 4.976271186 | AP127: 14 | AQ127: 30 | AR127: 258 | AS127: 8.6 | AT127: 0 | AU127: 325 | AV127: 1726 | AW127: 5.310769231 | AX127: 14 | AY127: 1 | AZ127: 29.4558739 | BA127: 29.4558739
B128: Isaiah Spiller | C128: Texas A&M | F128: 4.63 | H128: 30 | K128: 114 | L128: 12 | M128: 179 | N128: 1011 | O128: 5.6 | P128: 6 | Q128: 25 | R128: 189 | S128: 7.6 | T128: 1 | U128: 204 | V128: 1200 | W128: 5.9 | X128: 7 | Y128: 10 | Z128: 188 | AA128: 1036 | AB128: 5.5 | AC128: 9 | AD128: 20 | AE128: 193 | AF128: 9.7 | AG128: 0 | AH128: 208 | AI128: 1229 | AJ128: 5.9 | AK128: 9 | AL128: 22 | AM128: 367 | AN128: 2047 | AO128: 5.577656676 | AP128: 15 | AQ128: 45 | AR128: 382 | AS128: 8.488888889 | AT128: 1 | AU128: 412 | AV128: 2429 | AW128: 5.895631068 | AX128: 16 | AY128: 1 | AZ128: 29.9585808 | BA128: 29.9585808
B129: Jerrion Ealy | C129: Mississippi | F129: 4.52 | H129: 34.5 | K129: 128 | L129: 12 | M129: 133 | N129: 768 | O129: 5.8 | P129: 5 | Q129: 32 | R129: 218 | S129: 6.8 | T129: 2 | U129: 165 | V129: 986 | W129: 6 | X129: 7 | Y129: 9 | Z129: 147 | AA129: 745 | AB129: 5.1 | AC129: 9 | AD129: 15 | AE129: 155 | AF129: 10.3 | AG129: 1 | AH129: 162 | AI129: 900 | AJ129: 5.6 | AK129: 10 | AL129: 21 | AM129: 280 | AN129: 1513 | AO129: 5.403571429 | AP129: 14 | AQ129: 47 | AR129: 373 | AS129: 7.936170213 | AT129: 3 | AU129: 327 | AV129: 1886 | AW129: 5.767584098 | AX129: 17 | AY129: 1 | AZ129: 30.8481655 | BA129: 30.8481655
B130: Zamir White | C130: Georgia | F130: 4.4 | H130: 33.5 | K130: 128 | L130: 15 | M130: 160 | N130: 856 | O130: 5.4 | P130: 11 | Q130: 9 | R130: 75 | S130: 8.3 | T130: 0 | U130: 169 | V130: 931 | W130: 5.5 | X130: 11 | Y130: 10 | Z130: 144 | AA130: 779 | AB130: 5.4 | AC130: 11 | AD130: 6 | AE130: 37 | AF130: 6.2 | AG130: 0 | AH130: 150 | AI130: 816 | AJ130: 5.4 | AK130: 11 | AL130: 25 | AM130: 304 | AN130: 1635 | AO130: 5.378289474 | AP130: 22 | AQ130: 15 | AR130: 112 | AS130: 7.466666667 | AT130: 0 | AU130: 319 | AV130: 1747 | AW130: 5.476489028 | AX130: 22 | AY130: 1 | AZ130: 30.9324865 | BA130: 30.9324865
B131: Max Borghi | C131: Washington St. | F131: 4.51 | G131: 20 | L131: 12 | M131: 160 | N131: 880 | O131: 5.5 | P131: 12 | Q131: 16 | R131: 156 | S131: 9.8 | T131: 0 | U131: 176 | V131: 1036 | W131: 5.9 | X131: 12 | Y131: 13 | Z131: 127 | AA131: 817 | AB131: 6.4 | AC131: 11 | AD131: 86 | AE131: 597 | AF131: 6.9 | AG131: 5 | AH131: 213 | AI131: 1414 | AJ131: 6.6 | AK131: 16 | AL131: 25 | AM131: 287 | AN131: 1697 | AO131: 5.912891986 | AP131: 23 | AQ131: 102 | AR131: 753 | AS131: 7.382352941 | AT131: 5 | AU131: 389 | AV131: 2450 | AW131: 6.298200514 | AX131: 28 | AY131: 0 | AZ131: 43.8163976 | BA131: 32.8622982
B132: Leddie Brown | C132: West Virginia | F132: 4.64 | H132: 30 | K132: 118 | L132: 12 | M132: 223 | N132: 1065 | O132: 4.8 | P132: 13 | Q132: 36 | R132: 217 | S132: 6 | T132: 1 | U132: 259 | V132: 1282 | W132: 4.9 | X132: 14 | Y132: 10 | Z132: 199 | AA132: 1010 | AB132: 5.1 | AC132: 9 | AD132: 31 | AE132: 202 | AF132: 6.5 | AG132: 2 | AH132: 230 | AI132: 1212 | AJ132: 5.3 | AK132: 11 | AL132: 22 | AM132: 422 | AN132: 2075 | AO132: 4.917061611 | AP132: 22 | AQ132: 67 | AR132: 419 | AS132: 6.253731343 | AT132: 3 | AU132: 489 | AV132: 2494 | AW132: 5.100204499 | AX132: 25 | AY132: 1 | AZ132: 33.4139727 | BA132: 33.4139727
B133: Brian Robinson | C133: Alabama | F133: 4.53 | H133: 30 | K133: 119 | L133: 14 | M133: 271 | N133: 1343 | O133: 5 | P133: 14 | Q133: 35 | R133: 296 | S133: 8.5 | T133: 2 | U133: 306 | V133: 1639 | W133: 5.4 | X133: 16 | Y133: 13 | Z133: 91 | AA133: 483 | AB133: 5.3 | AC133: 6 | AD133: 6 | AE133: 26 | AF133: 4.3 | AG133: 0 | AH133: 97 | AI133: 509 | AJ133: 5.2 | AK133: 6 | AL133: 27 | AM133: 362 | AN133: 1826 | AO133: 5.044198895 | AP133: 20 | AQ133: 41 | AR133: 322 | AS133: 7.853658537 | AT133: 2 | AU133: 403 | AV133: 2148 | AW133: 5.330024814 | AX133: 22 | AY133: 1 | AZ133: 33.6127786 | BA133: 33.6127786
B134: Kenneth Walker | C134: Michigan St. | F134: 4.38 | H134: 34 | K134: 122 | L134: 12 | M134: 263 | N134: 1636 | O134: 6.2 | P134: 18 | Q134: 13 | R134: 89 | S134: 6.8 | T134: 1 | U134: 276 | V134: 1725 | W134: 6.3 | X134: 19 | Y134: 7 | Z134: 119 | AA134: 579 | AB134: 4.9 | AC134: 13 | AD134: 3 | AE134: 30 | AF134: 10 | AG134: 0 | AH134: 122 | AI134: 609 | AJ134: 5 | AK134: 13 | AL134: 19 | AM134: 382 | AN134: 2215 | AO134: 5.798429319 | AP134: 31 | AQ134: 16 | AR134: 119 | AS134: 7.4375 | AT134: 1 | AU134: 398 | AV134: 2334 | AW134: 5.864321608 | AX134: 32 | AY134: 1 | AZ134: 33.7364372 | BA134: 33.7364372
B135: Isiah Pacheco | C135: Rutgers | F135: 4.37 | H135: 33 | K135: 118 | L135: 12 | M135: 167 | N135: 647 | O135: 3.9 | P135: 5 | Q135: 13 | R135: 25 | S135: 1.9 | T135: 0 | U135: 180 | V135: 672 | W135: 3.7 | X135: 5 | Y135: 9 | Z135: 116 | AA135: 515 | AB135: 4.4 | AC135: 3 | AD135: 19 | AE135: 130 | AF135: 6.8 | AG135: 1 | AH135: 135 | AI135: 645 | AJ135: 4.8 | AK135: 4 | AL135: 21 | AM135: 283 | AN135: 1162 | AO135: 4.106007067 | AP135: 8 | AQ135: 32 | AR135: 155 | AS135: 4.84375 | AT135: 1 | AU135: 315 | AV135: 1317 | AW135: 4.180952381 | AX135: 9 | AY135: 1 | AZ135: 33.7439999 | BA135: 33.7439999
B136: James Cook | C136: Georgia | F136: 4.42 | H136: 33 | K136: 124 | L136: 15 | M136: 113 | N136: 728 | O136: 6.4 | P136: 7 | Q136: 27 | R136: 284 | S136: 10.5 | T136: 4 | U136: 140 | V136: 1012 | W136: 7.2 | X136: 11 | Y136: 8 | Z136: 45 | AA136: 303 | AB136: 6.7 | AC136: 3 | AD136: 16 | AE136: 225 | AF136: 14.1 | AG136: 2 | AH136: 61 | AI136: 528 | AJ136: 8.7 | AK136: 5 | AL136: 23 | AM136: 158 | AN136: 1031 | AO136: 6.525316456 | AP136: 10 | AQ136: 43 | AR136: 509 | AS136: 11.8372093 | AT136: 6 | AU136: 201 | AV136: 1540 | AW136: 7.661691542 | AX136: 16 | AY136: 1 | AZ136: 34.8735793 | BA136: 34.8735793
B137: Tykevious Chandler | C137: North Carolina | F137: 4.38 | H137: 31 | K137: 121 | L137: 13 | M137: 182 | N137: 1092 | O137: 6 | P137: 13 | Q137: 15 | R137: 216 | S137: 14.4 | T137: 1 | U137: 197 | V137: 1308 | W137: 6.6 | X137: 14 | Y137: 10 | Z137: 100 | AA137: 456 | AB137: 4.6 | AC137: 4 | AD137: 16 | AE137: 111 | AF137: 6.9 | AG137: 0 | AH137: 116 | AI137: 567 | AJ137: 4.9 | AK137: 4 | AL137: 23 | AM137: 282 | AN137: 1548 | AO137: 5.489361702 | AP137: 17 | AQ137: 31 | AR137: 327 | AS137: 10.5483871 | AT137: 1 | AU137: 313 | AV137: 1875 | AW137: 5.990415335 | AX137: 18 | AY137: 1 | AZ137: 35.8411441 | BA137: 35.8411441
B138: Trestan Ebner | C138: Baylor | F138: 4.43 | H138: 30 | L138: 14 | M138: 148 | N138: 799 | O138: 5.4 | P138: 2 | Q138: 28 | R138: 284 | S138: 10.1 | T138: 2 | U138: 176 | V138: 1083 | W138: 6.2 | X138: 4 | Y138: 9 | Z138: 50 | AA138: 107 | AB138: 2.1 | AC138: 1 | AD138: 26 | AE138: 299 | AF138: 11.5 | AG138: 3 | AH138: 76 | AI138: 406 | AJ138: 5.3 | AK138: 4 | AL138: 23 | AM138: 198 | AN138: 906 | AO138: 4.575757576 | AP138: 3 | AQ138: 54 | AR138: 583 | AS138: 10.7962963 | AT138: 5 | AU138: 252 | AV138: 1489 | AW138: 5.908730159 | AX138: 8 | AY138: 1 | AZ138: 37.585819 | BA138: 37.585819
B139: Kyren Williams | C139: Notre Dame | F139: 4.65 | H139: 32 | K139: 116 | L139: 12 | M139: 204 | N139: 1002 | O139: 4.9 | P139: 14 | Q139: 42 | R139: 359 | S139: 8.5 | T139: 3 | U139: 246 | V139: 1361 | W139: 5.5 | X139: 17 | Y139: 12 | Z139: 211 | AA139: 1125 | AB139: 5.3 | AC139: 13 | AD139: 35 | AE139: 313 | AF139: 8.9 | AG139: 1 | AH139: 246 | AI139: 1438 | AJ139: 5.8 | AK139: 14 | AL139: 24 | AM139: 415 | AN139: 2127 | AO139: 5.125301205 | AP139: 27 | AQ139: 77 | AR139: 672 | AS139: 8.727272727 | AT139: 4 | AU139: 492 | AV139: 2799 | AW139: 5.68902439 | AX139: 31 | AY139: 1 | AZ139: 39.891081 | BA139: 39.891081
B140: Rachaad White | C140: Arizona St. | F140: 4.48 | H140: 38 | K140: 125 | L140: 11 | M140: 182 | N140: 1000 | O140: 5.5 | P140: 15 | Q140: 43 | R140: 456 | S140: 10.6 | T140: 1 | U140: 225 | V140: 1456 | W140: 6.5 | X140: 16 | Y140: 4 | Z140: 42 | AA140: 420 | AB140: 10 | AC140: 5 | AD140: 8 | AE140: 151 | AF140: 18.9 | AG140: 1 | AH140: 50 | AI140: 571 | AJ140: 11.4 | AK140: 6 | AL140: 15 | AM140: 224 | AN140: 1420 | AO140: 6.339285714 | AP140: 20 | AQ140: 51 | AR140: 607 | AS140: 11.90196078 | AT140: 2 | AU140: 275 | AV140: 2027 | AW140: 7.370909091 | AX140: 22 | AY140: 1 | AZ140: 40.1112881 | BA140: 40.1112881
B141: Tyler Goodson | C141: Iowa | F141: 4.42 | H141: 36.5 | K141: 123 | L141: 13 | M141: 256 | N141: 1151 | O141: 4.5 | P141: 6 | Q141: 31 | R141: 247 | S141: 8 | T141: 1 | U141: 287 | V141: 1398 | W141: 4.9 | X141: 7 | Y141: 8 | Z141: 143 | AA141: 762 | AB141: 5.3 | AC141: 7 | AD141: 15 | AE141: 152 | AF141: 10.1 | AG141: 0 | AH141: 158 | AI141: 914 | AJ141: 5.8 | AK141: 7 | AL141: 21 | AM141: 399 | AN141: 1913 | AO141: 4.794486216 | AP141: 13 | AQ141: 46 | AR141: 399 | AS141: 8.673913043 | AT141: 1 | AU141: 445 | AV141: 2312 | AW141: 5.195505618 | AX141: 14 | AY141: 1 | AZ141: 40.674349 | BA141: 40.674349
B142: Tyler Badie | C142: Missouri | F142: 4.45 | H142: 33.5 | K142: 121 | L142: 12 | M142: 268 | N142: 1604 | O142: 6 | P142: 14 | Q142: 54 | R142: 330 | S142: 6.1 | T142: 4 | U142: 322 | V142: 1934 | W142: 6 | X142: 18 | Y142: 10 | Z142: 48 | AA142: 242 | AB142: 5 | AC142: 4 | AD142: 28 | AE142: 333 | AF142: 11.9 | AG142: 2 | AH142: 76 | AI142: 575 | AJ142: 7.6 | AK142: 6 | AL142: 22 | AM142: 316 | AN142: 1846 | AO142: 5.841772152 | AP142: 18 | AQ142: 82 | AR142: 663 | AS142: 8.085365854 | AT142: 6 | AU142: 398 | AV142: 2509 | AW142: 6.304020101 | AX142: 24 | AY142: 1 | AZ142: 43.5999238 | BA142: 43.5999238
B143: Breece Hall | C143: Iowa St. | F143: 4.39 | H143: 40 | K143: 126 | L143: 12 | M143: 253 | N143: 1472 | O143: 5.8 | P143: 20 | Q143: 36 | R143: 302 | S143: 8.4 | T143: 3 | U143: 289 | V143: 1774 | W143: 6.1 | X143: 23 | Y143: 12 | Z143: 279 | AA143: 1572 | AB143: 5.6 | AC143: 21 | AD143: 23 | AE143: 180 | AF143: 7.8 | AG143: 2 | AH143: 302 | AI143: 1752 | AJ143: 5.8 | AK143: 23 | AL143: 24 | AM143: 532 | AN143: 3044 | AO143: 5.721804511 | AP143: 41 | AQ143: 59 | AR143: 482 | AS143: 8.169491525 | AT143: 5 | AU143: 591 | AV143: 3526 | AW143: 5.966159052 | AX143: 46 | AY143: 1 | AZ143: 48.285914 | BA143: 48.285914

Sheet ||WR||
F1: NFL Combine | M1: Last College Football Season | AA1: Second-Last College Football Season | AO1: Total College Stats
N2: Receiving | R2: Rushing | V2: Scrimmage | AB2: Receiving | AF2: Rushing | AJ2: Scrimmage | AP2: Receiving | AT2: Rushing | AX2: Scrimmage
A3: Class | B3: Name | C3: College | D3: PFF Score | E3: Years Qualified | F3: 40 Yard Dash | G3: Benchpress | H3: Vertical Jump | I3: Three Cone Drill | J3: 20 Yard Shuttle | K3: Broad Jump | L3: Wonderlic | M3: Games | N3: Receptions | O3: Yards | P3: Average | Q3: TD | R3: Attempts | S3: Yards | T3: Average | U3: TD | V3: Plays | W3: Yards | X3: Average | Y3: TD | AA3: Games | AB3: Receptions | AC3: Yards | AD3: Average | AE3: TD | AF3: Attempts | AG3: Yards | AH3: Average | AI3: TD | AJ3: Plays | AK3: Yards | AL3: Average | AM3: TD | AO3: Games | AP3: Receptions | AQ3: Yards | AR3: Average | AS3: TD | AT3: Attempts | AU3: Yards | AV3: Average | AW3: TD | AX3: Plays | AY3: Yards | AZ3: Average | BA3: TD | BB3: College Mult. | BC3: Adjusted PFF
A4: 2012 | B4: Joe Adams | C4: Arkansas | E4: 0 | F4: 4.55 | H4: 36 | I4: 7.09 | K4: 123 | M4: 13 | N4: 54 | O4: 652 | P4: 12.1 | Q4: 3 | R4: 10 | S4: 139 | T4: 13.9 | U4: 1 | V4: 64 | W4: 791 | X4: 12.4 | Y4: 4 | AA4: 12 | AB4: 50 | AC4: 813 | AD4: 16.3 | AE4: 6 | AF4: 6 | AG4: 32 | AH4: 5.3 | AI4: 0 | AJ4: 56 | AK4: 845 | AL4: 15.1 | AM4: 6 | AO4: =SUM(M4,AA4) -> 25 | AP4: =SUM(N4,AB4) -> 104 | AQ4: =SUM(O4,AC4) -> 1465 | AR4: =AQ4/AP4 -> 14.08653846 | AS4: =SUM(Q4,AE4) -> 9 | AT4: =SUM(R4,AF4) -> 16 | AU4: =SUM(S4,AG4) -> 171 | AV4: =AU4/AT4 -> 10.6875 | AW4: =SUM(U4,AI4) -> 1 | AX4: =SUM(V4,AJ4) -> 120 | AY4: =SUM(W4,AK4) -> 1636 | AZ4: =AY4/AX4 -> 13.63333333 | BA4: =SUM(Y4,AM4) -> 10 | BB4: 1 | BC4: 0
B5: Tim Benford | C5: Tennessee Tech | E5: 0 | F5: 4.59 | G5: 15 | AO5: 0 | AP5: 0 | AQ5: 0 | AS5: 0 | AT5: 0 | AU5: 0 | AV5: 0 | AW5: 0 | AX5: 0 | AY5: 0 | AZ5: =0 -> 0 | BA5: 0 | BB5: 0 | BC5: 0
B6: Travis Benjamin | C6: Miami (FL) | D6: 67.12 | E6: 5 | F6: 4.36 | G6: 14 | H6: 38 | K6: 119 | M6: 11 | N6: 41 | O6: 609 | P6: 14.9 | Q6: 3 | R6: 8 | S6: 19 | T6: 2.4 | U6: 0 | V6: 49 | W6: 628 | X6: 12.8 | Y6: 3 | AA6: 13 | AB6: 43 | AC6: 743 | AD6: 17.3 | AE6: 3 | AF6: 3 | AG6: 44 | AH6: 14.7 | AI6: 0 | AJ6: 46 | AK6: 787 | AL6: 17.1 | AM6: 3 | AO6: 24 | AP6: 84 | AQ6: 1352 | AR6: 16.0952381 | AS6: 6 | AT6: 11 | AU6: 63 | AV6: =AU6/AT6 -> 5.727272727 | AW6: 0 | AX6: 95 | AY6: 1415 | AZ6: 14.89473684 | BA6: 6 | BB6: 1 | BC6: 67.12
B7: Justin Blackmon | C7: Oklahoma State | D7: 68.8 | E7: 2 | G7: 14 | M7: 13 | N7: 122 | O7: 1522 | P7: 12.5 | Q7: 18 | R7: 4 | S7: 7 | T7: 1.8 | U7: 0 | V7: 126 | W7: 1529 | X7: 12.1 | Y7: 18 | AA7: 12 | AB7: 111 | AC7: 1782 | AD7: 16.1 | AE7: 20 | AF7: 4 | AG7: 77 | AH7: 19.3 | AI7: 1 | AJ7: 115 | AK7: 1859 | AL7: 16.2 | AM7: 21 | AO7: 25 | AP7: 233 | AQ7: 3304 | AR7: 14.18025751 | AS7: 38 | AT7: 8 | AU7: 84 | AV7: =AU7/AT7 -> 10.5 | AW7: 1 | AX7: 241 | AY7: 3388 | AZ7: 14.05809129 | BA7: 39 | BB7: 1 | BC7: 58.48
B8: Jarrett Boykin | C8: Virginia Tech | D8: 58.7 | E8: 2 | F8: 4.74 | G8: 11 | H8: 36 | I8: 7.12 | J8: 4.28 | K8: 123 | M8: 13 | N8: 61 | O8: 761 | P8: 12.5 | Q8: 5 | R8: 0 | S8: 0 | T8: 0 | U8: 0 | V8: 61 | W8: 761 | X8: 12.5 | Y8: 5 | AA8: 14 | AB8: 53 | AC8: 847 | AD8: 16 | AE8: 6 | AF8: 0 | AG8: 0 | AH8: 0 | AI8: 0 | AJ8: 53 | AK8: 847 | AL8: 16 | AM8: 6 | AO8: 27 | AP8: 114 | AQ8: 1608 | AR8: 14.10526316 | AS8: 11 | AT8: 0 | AU8: 0 | AV8: 0 | AW8: 0 | AX8: 114 | AY8: 1608 | AZ8: 14.10526316 | BA8: 11 | BB8: 1 | BC8: 49.895
B9: LaVon Brazill | C9: Ohio | D9: 61.15 | E9: 2 | F9: 4.48 | G9: 11 | H9: 32.5 | M9: 14 | N9: 72 | O9: 1150 | P9: 16 | Q9: 11 | R9: 5 | S9: 73 | T9: 14.6 | U9: 1 | V9: 77 | W9: 1223 | X9: 15.9 | Y9: 12 | AA9: 3 | AB9: 12 | AC9: 78 | AD9: 6.5 | AE9: 0 | AF9: 3 | AG9: 5 | AH9: 1.7 | AI9: 0 | AJ9: 15 | AK9: 83 | AL9: 5.5 | AM9: 0 | AO9: 17 | AP9: 84 | AQ9: 1228 | AR9: 14.61904762 | AS9: 11 | AT9: 8 | AU9: 78 | AV9: =AU9/AT9 -> 9.75 | AW9: 1 | AX9: 92 | AY9: 1306 | AZ9: 14.19565217 | BA9: 12 | BB9: 0 | BC9: 51.9775
B10: Ryan Broyles | C10: Oklahoma | D10: 60.95 | E10: 2 | G10: 21 | M10: 9 | N10: 83 | O10: 1157 | P10: 13.9 | Q10: 10 | R10: 1 | S10: 3 | T10: 3 | U10: 0 | V10: 84 | W10: 1160 | X10: 13.8 | Y10: 10 | AA10: 14 | AB10: 131 | AC10: 1622 | AD10: 12.4 | AE10: 14 | AF10: 0 | AG10: 0 | AH10: 0 | AI10: 0 | AJ10: 131 | AK10: 1622 | AL10: 12.4 | AM10: 14 | AO10: 23 | AP10: 214 | AQ10: 2779 | AR10: 12.98598131 | AS10: 24 | AT10: 1 | AU10: 3 | AV10: =AU10/AT10 -> 3 | AW10: 0 | AX10: 215 | AY10: 2782 | AZ10: 12.93953488 | BA10: 24 | BB10: 1 | BC10: 51.8075
B11: Greg Childs | C11: Arkansas | E11: 0 | F11: 4.55 | G11: 19 | H11: 36.5 | K11: 125 | M11: 11 | N11: 21 | O11: 240 | P11: 11.4 | Q11: 0 | R11: 0 | S11: 0 | T11: 0 | U11: 0 | V11: 21 | W11: 240 | X11: 11.4 | Y11: 0 | AA11: 8 | AB11: 46 | AC11: 659 | AD11: 14.3 | AE11: 6 | AF11: 0 | AG11: 0 | AH11: 0 | AI11: 0 | AJ11: 46 | AK11: 659 | AL11: 14.3 | AM11: 6 | AO11: 19 | AP11: 67 | AQ11: 899 | AR11: 13.41791045 | AS11: 6 | AT11: 0 | AU11: 0 | AV11: 0 | AW11: 0 | AX11: 67 | AY11: 899 | AZ11: 13.41791045 | BA11: 6 | BB11: 1 | BC11: 0
B12: Danny Coale | C12: Virginia Tech | E12: 0 | F12: 4.5 | G12: 12 | H12: 35 | I12: 6.69 | J12: 4.15 | K12: 115 | M12: 14 | N12: 60 | O12: 904 | P12: 15.1 | Q12: 3 | R12: 4 | S12: 26 | T12: 6.5 | U12: 0 | V12: 64 | W12: 930 | X12: 14.5 | Y12: 3 | AA12: 14 | AB12: 39 | AC12: 732 | AD12: 18.8 | AE12: 3 | AF12: 1 | AG12: -3 | AH12: -3 | AI12: 0 | AJ12: 40 | AK12: 729 | AL12: 18.2 | AM12: 3 | AO12: 28 | AP12: 99 | AQ12: 1636 | AR12: 16.52525253 | AS12: 6 | AT12: 5 | AU12: 23 | AV12: =AU12/AT12 -> 4.6 | AW12: 0 | AX12: 104 | AY12: 1659 | AZ12: 15.95192308 | BA12: 6 | BB12: 1 | BC12: 0
B13: Josh Cooper | C13: Oklahoma State | D13: 67.9 | E13: 1 | G13: 11 | M13: 12 | N13: 71 | O13: 715 | P13: 10.1 | Q13: 3 | R13: 2 | S13: 3 | T13: 1.5 | U13: 0 | V13: 73 | W13: 718 | X13: 9.8 | Y13: 3 | AA13: 13 | AB13: 68 | AC13: 736 | AD13: 10.8 | AE13: 5 | AF13: 3 | AG13: 39 | AH13: 13 | AI13: 0 | AJ13: 71 | AK13: 775 | AL13: 10.9 | AM13: 5 | AO13: 25 | AP13: 139 | AQ13: 1451 | AR13: 10.43884892 | AS13: 8 | AT13: 5 | AU13: 42 | AV13: 8.4 | AW13: 0 | AX13: 144 | AY13: 1493 | AZ13: 10.36805556 | BA13: 8 | BB13: 1 | BC13: 54.32
B14: Juron Criner | C14: Arizona | D14: 72.4 | E14: 1 | F14: 4.68 | G14: 17 | H14: 38 | I14: 7.15 | J14: 4.3 | K14: 117 | M14: 11 | N14: 75 | O14: 956 | P14: 12.7 | Q14: 11 | R14: 1 | S14: 0 | T14: 0 | U14: 0 | V14: 76 | W14: 956 | X14: 12.6 | Y14: 11 | AA14: 13 | AB14: 82 | AC14: 1233 | AD14: 15 | AE14: 11 | AF14: 8 | AG14: 66 | AH14: 8.3 | AI14: 0 | AJ14: 90 | AK14: 1299 | AL14: 14.4 | AM14: 11 | AO14: 24 | AP14: 157 | AQ14: 2189 | AR14: 13.94267516 | AS14: 22 | AT14: 9 | AU14: 66 | AV14: 7.333333333 | AW14: 0 | AX14: 166 | AY14: 2255 | AZ14: 13.58433735 | BA14: 22 | BB14: 1 | BC14: 57.92
B15: B.J. Cunningham | C15: Michigan State | E15: 0 | F15: 4.59 | G15: 12 | H15: 31.5 | I15: 7.1 | K15: 116 | M15: 14 | N15: 79 | O15: 1306 | P15: 16.5 | Q15: 12 | R15: 3 | S15: 26 | T15: 8.7 | U15: 0 | V15: 82 | W15: 1332 | X15: 16.2 | Y15: 12 | AA15: 12 | AB15: 50 | AC15: 611 | AD15: 12.2 | AE15: 9 | AF15: 1 | AG15: 0 | AH15: 0 | AI15: 0 | AJ15: 51 | AK15: 611 | AL15: 12 | AM15: 9 | AO15: 26 | AP15: 129 | AQ15: 1917 | AR15: 14.86046512 | AS15: 21 | AT15: 4 | AU15: 26 | AV15: 6.5 | AW15: 0 | AX15: 133 | AY15: 1943 | AZ15: 14.60902256 | BA15: 21 | BB15: 1 | BC15: 0
B16: Pat Edwards | C16: Houston | D16: 57.3 | E16: 1 | M16: 14 | N16: 89 | O16: 1752 | P16: 19.7 | Q16: 20 | R16: 2 | S16: 6 | T16: 3 | U16: 0 | V16: 91 | W16: 1758 | X16: 19.3 | Y16: 20 | AA16: 12 | AB16: 71 | AC16: 1100 | AD16: 15.5 | AE16: 13 | AF16: 1 | AG16: -9 | AH16: -9 | AI16: 0 | AJ16: 72 | AK16: 1091 | AL16: 15.2 | AM16: 13 | AO16: 26 | AP16: 160 | AQ16: 2852 | AR16: 17.825 | AS16: 33 | AT16: 3 | AU16: -3 | AV16: -1 | AW16: 0 | AX16: 163 | AY16: 2849 | AZ16: 17.47852761 | BA16: 33 | BB16: 0 | BC16: 45.84
B17: Michael Floyd | C17: Notre Dame | D17: 72.06 | E17: 5 | F17: 4.47 | G17: 16 | H17: 36.5 | K17: 122 | M17: 13 | N17: 100 | O17: 1147 | P17: 11.5 | Q17: 9 | R17: 2 | S17: 13 | T17: 6.5 | U17: 1 | V17: 102 | W17: 1160 | X17: 11.4 | Y17: 10 | AA17: 12 | AB17: 79 | AC17: 1025 | AD17: 13 | AE17: 12 | AF17: 1 | AG17: 9 | AH17: 9 | AI17: 0 | AJ17: 80 | AK17: 1034 | AL17: 12.9 | AM17: 12 | AO17: 25 | AP17: 179 | AQ17: 2172 | AR17: 12.13407821 | AS17: 21 | AT17: 3 | AU17: 22 | AV17: 7.333333333 | AW17: 1 | AX17: 182 | AY17: 2194 | AZ17: 12.05494505 | BA17: 22 | BB17: 1 | BC17: 72.06
B18: Jeff Fuller | C18: Texas A&M | E18: 0 | G18: 17 | M18: 13 | N18: 70 | O18: 828 | P18: 11.8 | Q18: 6 | R18: 0 | S18: 0 | T18: 0 | U18: 0 | V18: 70 | W18: 828 | X18: 11.8 | Y18: 6 | AA18: 13 | AB18: 72 | AC18: 1066 | AD18: 14.8 | AE18: 12 | AF18: 0 | AG18: 0 | AH18: 0 | AI18: 0 | AJ18: 72 | AK18: 1066 | AL18: 14.8 | AM18: 12 | AO18: 26 | AP18: 142 | AQ18: 1894 | AR18: 13.33802817 | AS18: 18 | AT18: 0 | AU18: 0 | AV18: 0 | AW18: 0 | AX18: 142 | AY18: 1894 | AZ18: 13.33802817 | BA18: 18 | BB18: 1 | BC18: 0
B19: Chris Givens | C19: Wake Forest | D19: 62.03 | E19: 4 | F19: 4.41 | G19: 19 | H19: 33.5 | I19: 6.97 | J19: 4.23 | K19: 118 | M19: 13 | N19: 83 | O19: 1330 | P19: 16 | Q19: 9 | R19: 14 | S19: 77 | T19: 5.5 | U19: 0 | V19: 97 | W19: 1407 | X19: 14.5 | Y19: 9 | AA19: 11 | AB19: 35 | AC19: 514 | AD19: 14.7 | AE19: 4 | AF19: 16 | AG19: 63 | AH19: 3.9 | AI19: 2 | AJ19: 51 | AK19: 577 | AL19: 11.3 | AM19: 6 | AO19: 24 | AP19: 118 | AQ19: 1844 | AR19: 15.62711864 | AS19: 13 | AT19: 30 | AU19: 140 | AV19: =AU19/AT19 -> 4.666666667 | AW19: 2 | AX19: 148 | AY19: 1984 | AZ19: 13.40540541 | BA19: 15 | BB19: 1 | BC19: 58.9285
B20: T.J. Graham | C20: North Carolina State | D20: 56.33 | E20: 3 | F20: 4.41 | G20: 8 | H20: 33.5 | I20: 6.77 | J20: 4.18 | K20: 120 | M20: 13 | N20: 46 | O20: 757 | P20: 16.5 | Q20: 7 | R20: 2 | S20: -5 | T20: -2.5 | U20: 0 | V20: 48 | W20: 752 | X20: 15.7 | Y20: 7 | AA20: 13 | AB20: 25 | AC20: 316 | AD20: 12.6 | AE20: 4 | AF20: 1 | AG20: -7 | AH20: -7 | AI20: 0 | AJ20: 26 | AK20: 309 | AL20: 11.9 | AM20: 4 | AO20: 26 | AP20: 71 | AQ20: 1073 | AR20: 15.11267606 | AS20: 11 | AT20: 3 | AU20: -12 | AV20: =AU20/AT20 -> -4 | AW20: 0 | AX20: 74 | AY20: 1061 | AZ20: 14.33783784 | BA20: 11 | BB20: 1 | BC20: 50.697
B21: Darius Hanks | C21: Alabama | E21: 0 | F21: 4.66 | G21: 11 | H21: 34 | K21: 117 | M21: 10 | N21: 26 | O21: 328 | P21: 12.6 | Q21: 1 | R21: 0 | S21: 0 | T21: 0 | U21: 0 | V21: 26 | W21: 328 | X21: 12.6 | Y21: 1 | AA21: 13 | AB21: 32 | AC21: 456 | AD21: 14.3 | AE21: 3 | AF21: 2 | AG21: 7 | AH21: 3.5 | AI21: 0 | AJ21: 34 | AK21: 463 | AL21: 13.6 | AM21: 3 | AO21: 23 | AP21: 58 | AQ21: 784 | AR21: 13.51724138 | AS21: 4 | AT21: 2 | AU21: 7 | AV21: =AU21/AT21 -> 3.5 | AW21: 0 | AX21: 60 | AY21: 791 | AZ21: 13.18333333 | BA21: 4 | BB21: 1 | BC21: 0
B22: Junior Hemingway | C22: Michigan | D22: 54.6 | E22: 2 | F22: 4.53 | G22: 21 | H22: 35.5 | I22: 6.59 | J22: 3.98 | K22: 124 | M22: 13 | N22: 34 | O22: 699 | P22: 20.6 | Q22: 4 | R22: 0 | S22: 0 | T22: 0 | U22: 0 | V22: 34 | W22: 699 | X22: 20.6 | Y22: 4 | AA22: 10 | AB22: 32 | AC22: 593 | AD22: 18.5 | AE22: 4 | AF22: 0 | AG22: 0 | AH22: 0 | AI22: 0 | AJ22: 32 | AK22: 593 | AL22: 18.5 | AM22: 4 | AO22: 23 | AP22: 66 | AQ22: 1292 | AR22: 19.57575758 | AS22: 8 | AT22: 0 | AU22: 0 | AV22: 0 | AW22: 0 | AX22: 66 | AY22: 1292 | AZ22: 19.57575758 | BA22: 8 | BB22: 1 | BC22: 46.41
B23: Stephen Hill | C23: Georgia Tech | D23: 58.6 | E23: 2 | F23: 4.36 | G23: 14 | H23: 39.5 | I23: 6.88 | J23: 4.48 | K23: 133 | M23: 13 | N23: 28 | O23: 820 | P23: 29.3 | Q23: 5 | R23: 4 | S23: 29 | T23: 7.3 | U23: 0 | V23: 32 | W23: 849 | X23: 26.5 | Y23: 5 | AA23: 12 | AB23: 15 | AC23: 291 | AD23: 19.4 | AE23: 3 | AF23: 3 | AG23: 34 | AH23: 11.3 | AI23: 0 | AJ23: 18 | AK23: 325 | AL23: 18.1 | AM23: 3 | AO23: 25 | AP23: 43 | AQ23: 1111 | AR23: 25.8372093 | AS23: 8 | AT23: 7 | AU23: 63 | AV23: =AU23/AT23 -> 9 | AW23: 0 | AX23: 50 | AY23: 1174 | AZ23: 23.48 | BA23: 8 | BB23: 1 | BC23: 49.81
B24: T.Y. Hilton | C24: Florida International | D24: 83.68 | E24: 5 | M24: 13 | N24: 72 | O24: 1038 | P24: 14.4 | Q24: 7 | R24: 19 | S24: 124 | T24: 6.5 | U24: 1 | V24: 91 | W24: 1162 | X24: 12.8 | Y24: 8 | AA24: 13 | AB24: 59 | AC24: 848 | AD24: 14.4 | AE24: 5 | AF24: 30 | AG24: 282 | AH24: 9.4 | AI24: 4 | AJ24: 89 | AK24: 1130 | AL24: 12.7 | AM24: 9 | AO24: 26 | AP24: 131 | AQ24: 1886 | AR24: 14.39694656 | AS24: 12 | AT24: 49 | AU24: 406 | AV24: =AU24/AT24 -> 8.285714286 | AW24: 5 | AX24: 180 | AY24: 2292 | AZ24: 12.73333333 | BA24: 17 | BB24: 0 | BC24: 83.68
B25: Jerrell Jackson | C25: Missouri | E25: 0 | F25: 4.62 | G25: 22 | H25: 41 | I25: 6.82 | J25: 4.11 | K25: 127 | M25: 11 | N25: 17 | O25: 222 | P25: 13.1 | Q25: 1 | R25: 2 | S25: 8 | T25: 4 | U25: 0 | V25: 19 | W25: 230 | X25: 12.1 | Y25: 1 | AA25: 12 | AB25: 50 | AC25: 656 | AD25: 13.1 | AE25: 3 | AF25: 4 | AG25: 22 | AH25: 5.5 | AI25: 1 | AJ25: 54 | AK25: 678 | AL25: 12.6 | AM25: 4 | AO25: 23 | AP25: 67 | AQ25: 878 | AR25: 13.10447761 | AS25: 4 | AT25: 6 | AU25: 30 | AV25: =AU25/AT25 -> 5 | AW25: 1 | AX25: 73 | AY25: 908 | AZ25: 12.43835616 | BA25: 5 | BB25: 1 | BC25: 0
B26: Alshon Jeffery | C26: South Carolina | D26: 82.3 | M26: 13 | N26: 49 | O26: 762 | P26: 15.6 | Q26: 8 | R26: 0 | S26: 0 | T26: 0 | U26: 0 | V26: 49 | W26: 762 | X26: 15.6 | Y26: 8 | AA26: 14 | AB26: 88 | AC26: 1517 | AD26: 17.2 | AE26: 9 | AF26: 0 | AG26: 0 | AH26: 0 | AI26: 0 | AJ26: 88 | AK26: 1517 | AL26: 17.2 | AM26: 9 | AO26: 27 | AP26: 137 | AQ26: 2279 | AR26: 16.6350365 | AS26: 17 | AT26: 0 | AU26: 0 | AV26: 0 | AW26: 0 | AX26: 137 | AY26: 2279 | AZ26: 16.6350365 | BA26: 17 | BB26: 1 | BC26: 0
B27: A.J. Jenkins | C27: Illinois | D27: 56.3 | E27: 2 | F27: 4.39 | G27: 12 | H27: 38.5 | K27: 124 | M27: 13 | N27: 90 | O27: 1276 | P27: 14.2 | Q27: 8 | R27: 5 | S27: 26 | T27: 5.2 | U27: 0 | V27: 95 | W27: 1302 | X27: 13.7 | Y27: 8 | AA27: 13 | AB27: 56 | AC27: 746 | AD27: 13.3 | AE27: 7 | AF27: 0 | AG27: 0 | AH27: 0 | AI27: 0 | AJ27: 56 | AK27: 746 | AL27: 13.3 | AM27: 7 | AO27: 26 | AP27: 146 | AQ27: 2022 | AR27: 13.84931507 | AS27: 15 | AT27: 5 | AU27: 26 | AV27: =AU27/AT27 -> 5.2 | AW27: 0 | AX27: 151 | AY27: 2048 | AZ27: 13.56291391 | BA27: 15 | BB27: 1 | BC27: 47.855
B28: Dwight Jones | C28: North Carolina | E28: 0 | F28: 4.55 | G28: 14 | H28: 33 | K28: 109 | M28: 13 | N28: 85 | O28: 1196 | P28: 14.1 | Q28: 12 | R28: 2 | S28: 11 | T28: 5.5 | U28: 0 | V28: 87 | W28: 1207 | X28: 13.9 | Y28: 12 | AA28: 13 | AB28: 62 | AC28: 946 | AD28: 15.3 | AE28: 4 | AF28: 0 | AG28: 0 | AH28: 0 | AI28: 0 | AJ28: 62 | AK28: 946 | AL28: 15.3 | AM28: 4 | AO28: 26 | AP28: 147 | AQ28: 2142 | AR28: 14.57142857 | AS28: 16 | AT28: 2 | AU28: 11 | AV28: 5.5 | AW28: 0 | AX28: 149 | AY28: 2153 | AZ28: 14.44966443 | BA28: 16 | BB28: 1 | BC28: 0
B29: Marvin Jones | C29: California | D29: 76.58 | E29: 5 | F29: 4.46 | G29: 22 | H29: 33 | I29: 6.81 | J29: 4.11 | K29: 112 | M29: 13 | N29: 62 | O29: 846 | P29: 13.6 | Q29: 3 | R29: 5 | S29: 22 | T29: 4.4 | U29: 0 | V29: 67 | W29: 868 | X29: 13 | Y29: 3 | AA29: 12 | AB29: 50 | AC29: 765 | AD29: 15.3 | AE29: 4 | AF29: 6 | AG29: 94 | AH29: 15.7 | AI29: 1 | AJ29: 56 | AK29: 859 | AL29: 15.3 | AM29: 5 | AO29: 25 | AP29: 112 | AQ29: 1611 | AR29: 14.38392857 | AS29: 7 | AT29: 11 | AU29: 116 | AV29: 10.54545455 | AW29: 1 | AX29: 123 | AY29: 1727 | AZ29: 14.04065041 | BA29: 8 | BB29: 1 | BC29: 76.58
B30: Jermaine Kearse | C30: Washington | D30: 69.02 | E30: 5 | F30: 4.58 | G30: 14 | H30: 34 | I30: 7.03 | J30: 4.12 | K30: 119 | M30: 13 | N30: 47 | O30: 699 | P30: 14.9 | Q30: 7 | R30: 2 | S30: 13 | T30: 6.5 | U30: 1 | V30: 49 | W30: 712 | X30: 14.5 | Y30: 8 | AA30: 13 | AB30: 63 | AC30: 1005 | AD30: 16 | AE30: 12 | AF30: 0 | AG30: 0 | AH30: 0 | AI30: 0 | AJ30: 63 | AK30: 1005 | AL30: 16 | AM30: 12 | AO30: 26 | AP30: 110 | AQ30: 1704 | AR30: 15.49090909 | AS30: 19 | AT30: 2 | AU30: 13 | AV30: 6.5 | AW30: 1 | AX30: 112 | AY30: 1717 | AZ30: 15.33035714 | BA30: 20 | BB30: 1 | BC30: 69.02
B31: Keshawn Martin | C31: Michigan State | D31: 55.93 | E31: 4 | F31: 4.45 | G31: 13 | H31: 39.5 | I31: 6.85 | J31: 4.13 | K31: 122 | M31: 14 | N31: 66 | O31: 777 | P31: 11.8 | Q31: 4 | R31: 19 | S31: 113 | T31: 5.9 | U31: 2 | V31: 85 | W31: 890 | X31: 10.5 | Y31: 6 | AA31: 11 | AB31: 32 | AC31: 394 | AD31: 12.3 | AE31: 1 | AF31: 18 | AG31: 157 | AH31: 8.7 | AI31: 0 | AJ31: 50 | AK31: 551 | AL31: 11 | AM31: 1 | AO31: 25 | AP31: 98 | AQ31: 1171 | AR31: 11.94897959 | AS31: 5 | AT31: 37 | AU31: 270 | AV31: 7.297297297 | AW31: 2 | AX31: 135 | AY31: 1441 | AZ31: 10.67407407 | BA31: 7 | BB31: 1 | BC31: 53.1335
B32: Rishard Matthews | C32: Nevada | D32: 72.1 | E32: 5 | F32: 4.62 | G32: 20 | H32: 36 | I32: 6.88 | J32: 4.19 | M32: 12 | N32: 91 | O32: 1364 | P32: 15 | Q32: 8 | R32: 5 | S32: -1 | T32: -0.2 | U32: 0 | V32: 96 | W32: 1363 | X32: 14.2 | Y32: 8 | AA32: 14 | AB32: 56 | AC32: 879 | AD32: 15.7 | AE32: 5 | AF32: 5 | AG32: 76 | AH32: 15.2 | AI32: 2 | AJ32: 61 | AK32: 955 | AL32: 15.7 | AM32: 7 | AO32: 26 | AP32: 147 | AQ32: 2243 | AR32: 15.2585034 | AS32: 13 | AT32: 10 | AU32: 75 | AV32: 7.5 | AW32: 2 | AX32: 157 | AY32: 2318 | AZ32: 14.76433121 | BA32: 15 | BB32: 0 | BC32: 72.1
B33: Maquis Maze | C33: Alabama | E33: 0 | F33: 4.51 | H33: 33.5 | K33: 112 | M33: 13 | N33: 56 | O33: 627 | P33: 11.2 | Q33: 1 | R33: 6 | S33: -6 | T33: -1 | U33: 0 | V33: 62 | W33: 621 | X33: 10 | Y33: 1 | AA33: 13 | AB33: 38 | AC33: 557 | AD33: 14.7 | AE33: 3 | AF33: 3 | AG33: 15 | AH33: 5 | AI33: 0 | AJ33: 41 | AK33: 572 | AL33: 14 | AM33: 3 | AO33: 26 | AP33: 94 | AQ33: 1184 | AR33: 12.59574468 | AS33: 4 | AT33: 9 | AU33: 9 | AV33: 1 | AW33: 0 | AX33: 103 | AY33: 1193 | AZ33: 11.58252427 | BA33: 4 | BB33: 1 | BC33: 0
B34: Marvin McNutt | C34: Iowa | E34: 0 | F34: 4.54 | H34: 37 | I34: 7.15 | J34: 4.07 | K34: 122 | M34: 13 | N34: 82 | O34: 1315 | P34: 16 | Q34: 12 | R34: 6 | S34: 58 | T34: 9.7 | U34: 0 | V34: 88 | W34: 1373 | X34: 15.6 | Y34: 12 | AA34: 13 | AB34: 53 | AC34: 861 | AD34: 16.2 | AE34: 8 | AF34: 1 | AG34: 5 | AH34: 5 | AI34: 0 | AJ34: 54 | AK34: 866 | AL34: 16 | AM34: 8 | AO34: 26 | AP34: 135 | AQ34: 2176 | AR34: 16.11851852 | AS34: 20 | AT34: 7 | AU34: 63 | AV34: 9 | AW34: 0 | AX34: 142 | AY34: 2239 | AZ34: 15.76760563 | BA34: 20 | BB34: 1 | BC34: 0
B35: Kashif Moore | C35: Connecticut | E35: 0 | F35: 4.42 | G35: 19 | H35: 43.5 | I35: 6.82 | J35: 4.05 | K35: 126 | M35: 12 | N35: 41 | O35: 604 | P35: 14.7 | Q35: 5 | R35: 9 | S35: 25 | T35: 2.8 | U35: 1 | V35: 50 | W35: 629 | X35: 12.6 | Y35: 6 | AA35: 13 | AB35: 36 | AC35: 452 | AD35: 12.6 | AE35: 4 | AF35: 5 | AG35: 5 | AH35: 1 | AI35: 0 | AJ35: 41 | AK35: 457 | AL35: 11.1 | AM35: 4 | AO35: 25 | AP35: 77 | AQ35: 1056 | AR35: 13.71428571 | AS35: 9 | AT35: 14 | AU35: 30 | AV35: 2.142857143 | AW35: 1 | AX35: 91 | AY35: 1086 | AZ35: 11.93406593 | BA35: 10 | BB35: 1 | BC35: 0
B36: Derek Moye | C36: Penn State | E36: 0 | F36: 4.52 | G36: 10 | H36: 33.5 | J36: 4.23 | K36: 115 | M36: 11 | N36: 40 | O36: 654 | P36: 16.4 | Q36: 3 | R36: 2 | S36: 8 | T36: 4 | U36: 0 | V36: 42 | W36: 662 | X36: 15.8 | Y36: 3 | AA36: 13 | AB36: 53 | AC36: 885 | AD36: 16.7 | AE36: 8 | AF36: 2 | AG36: 39 | AH36: 19.5 | AI36: 0 | AJ36: 55 | AK36: 924 | AL36: 16.8 | AM36: 8 | AO36: 24 | AP36: 93 | AQ36: 1539 | AR36: 16.5483871 | AS36: 11 | AT36: 4 | AU36: 47 | AV36: 11.75 | AW36: 0 | AX36: 97 | AY36: 1586 | AZ36: 16.35051546 | BA36: 11 | BB36: 1 | BC36: 0
B37: Chris Owusu | C37: Stanford | D37: 60.9 | E37: 3 | F37: 4.36 | G37: 19 | H37: 40.5 | I37: 6.85 | J37: 4.11 | K37: 129 | M37: 10 | N37: 35 | O37: 376 | P37: 10.7 | Q37: 2 | R37: 2 | S37: 78 | T37: 39 | U37: 0 | V37: 37 | W37: 454 | X37: 12.3 | Y37: 2 | AA37: 7 | AB37: 25 | AC37: 396 | AD37: 15.8 | AE37: 3 | AF37: 2 | AG37: 32 | AH37: 16 | AI37: 0 | AJ37: 27 | AK37: 428 | AL37: 15.9 | AM37: 3 | AO37: 17 | AP37: 60 | AQ37: 772 | AR37: 12.86666667 | AS37: 5 | AT37: 4 | AU37: 110 | AV37: 27.5 | AW37: 0 | AX37: 64 | AY37: 882 | AZ37: 13.78125 | BA37: 5 | BB37: 1 | BC37: 54.81
B38: Eric Page | C38: Toledo | E38: 0 | F38: 4.6 | G38: 15 | H38: 30 | I38: 6.95 | J38: 3.98 | K38: 112 | M38: 13 | N38: 125 | O38: 1182 | P38: 9.5 | Q38: 10 | R38: 3 | S38: 10 | T38: 3.3 | U38: 0 | V38: 128 | W38: 1192 | X38: 9.3 | Y38: 10 | AA38: 13 | AB38: 99 | AC38: 1105 | AD38: 11.2 | AE38: 8 | AF38: 2 | AG38: -13 | AH38: -6.5 | AI38: 0 | AJ38: 101 | AK38: 1092 | AL38: 10.8 | AM38: 8 | AO38: 26 | AP38: 224 | AQ38: 2287 | AR38: 10.20982143 | AS38: 18 | AT38: 5 | AU38: -3 | AV38: -0.6 | AW38: 0 | AX38: 229 | AY38: 2284 | AZ38: 9.973799127 | BA38: 18 | BB38: 0 | BC38: 0
B39: DeVier Posey | C39: Ohio State | D39: 57.35 | E39: 2 | F39: 4.5 | G39: 14 | H39: 36.5 | I39: 7.03 | J39: 4.15 | K39: 123 | M39: 4 | N39: 12 | O39: 162 | P39: 13.5 | Q39: 2 | R39: 1 | S39: -6 | T39: -6 | U39: 0 | V39: 13 | W39: 156 | X39: 12 | Y39: 2 | AA39: 13 | AB39: 53 | AC39: 848 | AD39: 16 | AE39: 7 | AF39: 0 | AG39: 0 | AH39: 0 | AI39: 0 | AJ39: 53 | AK39: 848 | AL39: 16 | AM39: 7 | AO39: 17 | AP39: 65 | AQ39: 1010 | AR39: 15.53846154 | AS39: 9 | AT39: 1 | AU39: -6 | AV39: -6 | AW39: 0 | AX39: 66 | AY39: 1004 | AZ39: 15.21212121 | BA39: 9 | BB39: 1 | BC39: 48.7475
B40: Brian Quick | C40: Appalachian State | D40: 61.72 | E40: 5 | F40: 4.55 | G40: 15 | H40: 34 | I40: 7.1 | J40: 4.23 | K40: 119 | M40: 12 | N40: 71 | O40: 1096 | P40: 15.4 | Q40: 11 | R40: 0 | S40: 0 | T40: 0 | U40: 0 | V40: 71 | W40: 1096 | X40: 15.4 | Y40: 11 | AA40: 13 | AB40: 47 | AC40: 844 | AD40: 18 | AE40: 9 | AF40: 0 | AG40: 0 | AH40: 0 | AI40: 0 | AJ40: 47 | AK40: 844 | AL40: 18 | AM40: 9 | AO40: 25 | AP40: 118 | AQ40: 1940 | AR40: 16.44067797 | AS40: 20 | AT40: 0 | AU40: 0 | AV40: 0 | AW40: 0 | AX40: 118 | AY40: 1940 | AZ40: 16.44067797 | BA40: 20 | BB40: 0 | BC40: 61.72
B41: Rueben Randle | C41: LSU | D41: 71.53 | E41: 4 | F41: 4.55 | G41: 15 | H41: 31 | I41: 6.99 | J41: 4.36 | K41: 121 | M41: 14 | N41: 53 | O41: 917 | P41: 17.3 | Q41: 8 | R41: 0 | S41: 0 | T41: 0 | U41: 0 | V41: 53 | W41: 917 | X41: 17.3 | Y41: 8 | AA41: 13 | AB41: 33 | AC41: 544 | AD41: 16.5 | AE41: 3 | AF41: 0 | AG41: 0 | AH41: 0 | AI41: 0 | AJ41: 33 | AK41: 544 | AL41: 16.5 | AM41: 3 | AO41: 27 | AP41: 86 | AQ41: 1461 | AR41: 16.98837209 | AS41: 11 | AT41: 0 | AU41: 0 | AV41: 0 | AW41: 0 | AX41: 86 | AY41: 1461 | AZ41: 16.98837209 | BA41: 11 | BB41: 1 | BC41: 67.9535
B42: Gerell Robinson | C42: Arizona State | E42: 0 | F42: 4.62 | H42: 35.5 | J42: 4.15 | K42: 113 | M42: 13 | N42: 77 | O42: 1397 | P42: 18.1 | Q42: 7 | R42: 0 | S42: 0 | T42: 0 | U42: 0 | V42: 77 | W42: 1397 | X42: 18.1 | Y42: 7 | AA42: 11 | AB42: 29 | AC42: 387 | AD42: 13.3 | AE42: 5 | AF42: 0 | AG42: 0 | AH42: 0 | AI42: 0 | AJ42: 29 | AK42: 387 | AL42: 13.3 | AM42: 5 | AO42: 24 | AP42: 106 | AQ42: 1784 | AR42: 16.83018868 | AS42: 12 | AT42: 0 | AU42: 0 | AV42: 0 | AW42: 0 | AX42: 106 | AY42: 1784 | AZ42: 16.83018868 | BA42: 12 | BB42: 1 | BC42: 0
B43: James Rodgers | C43: Oregon State | E43: 0 | F43: 4.67 | G43: 19 | H43: 37 | J43: 4.23 | K43: 115 | M43: 9 | N43: 45 | O43: 514 | P43: 11.4 | Q43: 3 | R43: 11 | S43: 75 | T43: 6.8 | U43: 0 | V43: 56 | W43: 589 | X43: 10.5 | Y43: 3 | AA43: 4 | AB43: 16 | AC43: 215 | AD43: 13.4 | AE43: 2 | AF43: 8 | AG43: 38 | AH43: 4.8 | AI43: 0 | AJ43: 24 | AK43: 253 | AL43: 10.5 | AM43: 2 | AO43: 13 | AP43: 61 | AQ43: 729 | AR43: 11.95081967 | AS43: 5 | AT43: 19 | AU43: 113 | AV43: =AU43/AT43 -> 5.947368421 | AW43: 0 | AX43: 80 | AY43: 842 | AZ43: 10.525 | BA43: 5 | BB43: 1 | BC43: 0
B44: Mohamed Sanu | C44: Rutgers | D44: 73.56 | E44: 5 | F44: 4.67 | G44: 19 | H44: 36 | I44: 6.88 | J44: 4.22 | K44: 126 | M44: 13 | N44: 115 | O44: 1206 | P44: 10.5 | Q44: 7 | R44: 4 | S44: -2 | T44: -0.5 | U44: 0 | V44: 119 | W44: 1204 | X44: 10.1 | Y44: 7 | AA44: 12 | AB44: 44 | AC44: 418 | AD44: 9.5 | AE44: 2 | AF44: 59 | AG44: 309 | AH44: 5.2 | AI44: 4 | AJ44: 103 | AK44: 727 | AL44: 7.1 | AM44: 6 | AO44: 25 | AP44: 159 | AQ44: 1624 | AR44: 10.21383648 | AS44: 9 | AT44: 63 | AU44: 307 | AV44: =AU44/AT44 -> 4.873015873 | AW44: 4 | AX44: 222 | AY44: 1931 | AZ44: 8.698198198 | BA44: 13 | BB44: 1 | BC44: 73.56
B45: Tommy Streeter | C45: Miami (FL) | E45: 0 | F45: 4.4 | G45: 17 | H45: 33 | I45: 7.08 | K45: 125 | M45: 12 | N45: 46 | O45: 811 | P45: 17.6 | Q45: 8 | R45: 0 | S45: 0 | T45: 0 | U45: 0 | V45: 46 | W45: 811 | X45: 17.6 | Y45: 8 | AA45: 8 | AB45: 1 | AC45: 42 | AD45: 42 | AE45: 1 | AF45: 0 | AG45: 0 | AH45: 0 | AI45: 0 | AJ45: 1 | AK45: 42 | AL45: 42 | AM45: 1 | AO45: 20 | AP45: 47 | AQ45: 853 | AR45: 18.14893617 | AS45: 9 | AT45: 0 | AU45: 0 | AV45: 0 | AW45: 0 | AX45: 47 | AY45: 853 | AZ45: 18.14893617 | BA45: 9 | BB45: 1 | BC45: 0
B46: Nick Toon | C46: Wisconsin | D46: 58.05 | E46: 2 | F46: 4.54 | G46: 18 | H46: 37.5 | M46: 13 | N46: 64 | O46: 926 | P46: 14.5 | Q46: 10 | R46: 0 | S46: 0 | T46: 0 | U46: 0 | V46: 64 | W46: 926 | X46: 14.5 | Y46: 10 | AA46: 9 | AB46: 36 | AC46: 459 | AD46: 12.8 | AE46: 3 | AF46: 2 | AG46: 10 | AH46: 5 | AI46: 0 | AJ46: 38 | AK46: 469 | AL46: 12.3 | AM46: 3 | AO46: 22 | AP46: 100 | AQ46: 1385 | AR46: 13.85 | AS46: 13 | AT46: 2 | AU46: 10 | AV46: =AU46/AT46 -> 5 | AW46: 0 | AX46: 102 | AY46: 1395 | AZ46: 13.67647059 | BA46: 13 | BB46: 1 | BC46: 49.3425
B47: Jordan White | C47: West. Michigan | E47: 0 | F47: 4.69 | G47: 14 | H47: 35 | I47: 6.84 | J47: 4.13 | K47: 119 | M47: 13 | N47: 140 | O47: 1911 | P47: 13.7 | Q47: 17 | R47: 1 | S47: 27 | T47: 27 | U47: 0 | V47: 141 | W47: 1938 | X47: 13.7 | Y47: 17 | AA47: 12 | AB47: 94 | AC47: 1378 | AD47: 14.7 | AE47: 10 | AF47: 3 | AG47: 29 | AH47: 9.7 | AI47: 0 | AJ47: 97 | AK47: 1407 | AL47: 14.5 | AM47: 10 | AO47: 25 | AP47: 234 | AQ47: 3289 | AR47: 14.05555556 | AS47: 27 | AT47: 4 | AU47: 56 | AV47: 14 | AW47: 0 | AX47: 238 | AY47: 3345 | AZ47: 14.05462185 | BA47: 27 | BB47: 0 | BC47: 0
B48: Jarius Wright | C48: Arkansas | D48: 69.54 | E48: 5 | F48: 4.42 | G48: 11 | H48: 38 | I48: 6.93 | J48: 4.03 | K48: 120 | M48: 12 | N48: 66 | O48: 1117 | P48: 16.9 | Q48: 12 | R48: 0 | S48: 0 | T48: 0 | U48: 0 | V48: 66 | W48: 1117 | X48: 16.9 | Y48: 12 | AA48: 13 | AB48: 42 | AC48: 788 | AD48: 18.8 | AE48: 5 | AF48: 1 | AG48: 9 | AH48: 9 | AI48: 0 | AJ48: 43 | AK48: 797 | AL48: 18.5 | AM48: 5 | AO48: 25 | AP48: 108 | AQ48: 1905 | AR48: 17.63888889 | AS48: 17 | AT48: 1 | AU48: 9 | AV48: 9 | AW48: 0 | AX48: 109 | AY48: 1914 | AZ48: 17.55963303 | BA48: 17 | BB48: 1 | BC48: 69.54
B49: Kendall Wright | C49: Baylor | D49: 73.44 | E49: 5 | F49: 4.61 | H49: 38.5 | I49: 6.93 | J49: 4.18 | K49: 121 | M49: 13 | N49: 108 | O49: 1663 | P49: 15.4 | Q49: 14 | R49: 10 | S49: 72 | T49: 7.2 | U49: 0 | V49: 118 | W49: 1735 | X49: 14.7 | Y49: 14 | AA49: 13 | AB49: 78 | AC49: 952 | AD49: 12.2 | AE49: 7 | AF49: 8 | AG49: 53 | AH49: 6.6 | AI49: 0 | AJ49: 86 | AK49: 1005 | AL49: 11.7 | AM49: 7 | AO49: 26 | AP49: 186 | AQ49: 2615 | AR49: 14.05913978 | AS49: 21 | AT49: 18 | AU49: 125 | AV49: 6.944444444 | AW49: 0 | AX49: 204 | AY49: 2740 | AZ49: 13.43137255 | BA49: 21 | BB49: 1 | BC49: 73.44
B50: Devon Wylie | C50: Fresno State | E50: 0 | F50: 4.39 | G50: 17 | H50: 39 | K50: 123 | M50: 13 | N50: 56 | O50: 716 | P50: 12.8 | Q50: 1 | R50: 8 | S50: 48 | T50: 6 | U50: 0 | V50: 64 | W50: 764 | X50: 11.9 | Y50: 1 | AT50: =SUM(R50,AF50) -> 8 | AU50: =SUM(S50,AG50) -> 48 | AV50: 6 | AW50: =SUM(U50,AI50) -> 0 | BB50: 0 | BC50: 0
A51: 2013 | B51: Keenan Allen | C51: California | D51: 85.8 | E51: 5 | M51: 9 | N51: 61 | O51: 737 | P51: 12.1 | Q51: 6 | R51: 3 | S51: 39 | T51: 13 | U51: 1 | V51: 64 | W51: 776 | X51: 12.1 | Y51: 7 | AA51: 13 | AB51: 98 | AC51: 1343 | AD51: 13.7 | AE51: 6 | AF51: 9 | AG51: 55 | AH51: 6.1 | AI51: 0 | AJ51: 107 | AK51: 1398 | AL51: 13.1 | AM51: 6 | AO51: =AA51+M51 -> 22 | AP51: =AB51+N51 -> 159 | AQ51: =O51+AC51 -> 2080 | AR51: =AVERAGE(P51,AD51) -> 12.9 | AS51: =AE51+Q51 -> 12 | AT51: =AF51+R51 -> 12 | AU51: =AG51+S51 -> 94 | AV51: 7.833333333 | AW51: =AI51+U51 -> 1 | AX51: =AJ51+V51 -> 171 | AY51: =AK51+W51 -> 2174 | AZ51: =AVERAGE(AL51,X51) -> 12.6 | BA51: =AM51+Y51 -> 13 | BB51: 1 | BC51: 85.8
B52: Tavon Austin | C52: West Virginia | D52: 67.3 | E52: 5 | F52: 4.34 | G52: 14 | H52: 32 | J52: 4.01 | K52: 120 | M52: 13 | N52: 114 | O52: 1289 | P52: 11.3 | Q52: 12 | R52: 72 | S52: 643 | T52: 8.9 | U52: 3 | V52: 186 | W52: 1932 | X52: 10.4 | Y52: 15 | AA52: 13 | AB52: 101 | AC52: 1186 | AD52: 11.7 | AE52: 8 | AF52: 16 | AG52: 182 | AH52: 11.4 | AI52: 1 | AJ52: 117 | AK52: 1368 | AL52: 11.7 | AM52: 9 | AO52: 26 | AP52: 215 | AQ52: 2475 | AR52: 11.5 | AS52: 20 | AT52: 88 | AU52: 825 | AV52: 9.375 | AW52: 4 | AX52: 303 | AY52: 3300 | AZ52: 11.05 | BA52: 24 | BB52: 1 | BC52: 67.3
B53: Stedman Bailey | C53: West Virginia | D53: 68.1 | E53: 3 | F53: 4.52 | G53: 11 | H53: 34.5 | I53: 6.81 | J53: 4.09 | K53: 117 | M53: 13 | N53: 114 | O53: 1622 | P53: 14.2 | Q53: 25 | R53: 2 | S53: 13 | T53: 6.5 | U53: 0 | V53: 116 | W53: 1635 | X53: 14.1 | Y53: 25 | AA53: 13 | AB53: 72 | AC53: 1279 | AD53: 17.8 | AE53: 12 | AF53: 0 | AG53: 0 | AH53: 0 | AI53: 0 | AJ53: 72 | AK53: 1279 | AL53: 17.8 | AM53: 12 | AO53: 26 | AP53: 186 | AQ53: 2901 | AR53: 16 | AS53: 37 | AT53: 2 | AU53: 13 | AV53: 6.5 | AW53: 0 | AX53: 188 | AY53: 2914 | AZ53: 15.95 | BA53: 37 | BB53: 1 | BC53: 61.29
B54: Alan Bonner | C54: Jacksonville State | E54: 0 | F54: 4.59 | G54: 14 | H54: 33 | J54: 4.15 | K54: 117 | M54: 11 | N54: 50 | O54: 859 | P54: 17.2 | Q54: 8 | R54: 9 | S54: 46 | T54: 5.1 | U54: 1 | V54: 59 | W54: 905 | X54: 15.3 | Y54: 9 | AA54: 11 | AB54: 33 | AC54: 582 | AD54: 17.6 | AE54: 3 | AF54: 3 | AG54: 12 | AH54: 4 | AI54: 0 | AJ54: 36 | AK54: 594 | AL54: 16.4 | AM54: 3 | AO54: 22 | AP54: 83 | AQ54: 1441 | AR54: 17.4 | AS54: 11 | AT54: 12 | AU54: 58 | AV54: 4.833333333 | AW54: 1 | AX54: 95 | AY54: 1499 | AZ54: 15.85 | BA54: 12 | BB54: 0 | BC54: 0
B55: Josh Boyce | C55: TCU | D55: 60.8 | E55: 1 | F55: 4.38 | G55: 22 | H55: 34 | I55: 6.68 | J55: 4.1 | K55: 131 | M55: 13 | N55: 66 | O55: 891 | P55: 13.5 | Q55: 7 | R55: 3 | S55: 6 | T55: 2 | U55: 1 | V55: 69 | W55: 897 | X55: 13 | Y55: 8 | AA55: 13 | AB55: 61 | AC55: 998 | AD55: 16.4 | AE55: 9 | AF55: 1 | AG55: 1 | AH55: 1 | AI55: 0 | AJ55: 62 | AK55: 999 | AL55: 16.1 | AM55: 9 | AO55: 26 | AP55: 127 | AQ55: 1889 | AR55: 14.95 | AS55: 16 | AT55: 4 | AU55: 7 | AV55: 1.75 | AW55: 1 | AX55: 131 | AY55: 1896 | AZ55: 14.55 | BA55: 17 | BB55: 1 | BC55: 48.64
B56: Marlon Brown | C56: Georgia | D56: 61.43 | E56: 3 | M56: 8 | N56: 27 | O56: 469 | P56: 17.4 | Q56: 4 | R56: 0 | S56: 0 | T56: 0 | U56: 0 | V56: 27 | W56: 469 | X56: 17.4 | Y56: 4 | AA56: 12 | AB56: 15 | AC56: 234 | AD56: 15.6 | AE56: 3 | AF56: 0 | AG56: 0 | AH56: 0 | AI56: 0 | AJ56: 15 | AK56: 234 | AL56: 15.6 | AM56: 3 | AO56: 20 | AP56: 42 | AQ56: 703 | AR56: 16.5 | AS56: 7 | AT56: 0 | AU56: 0 | AV56: 0 | AW56: 0 | AX56: 42 | AY56: 703 | AZ56: 16.5 | BA56: 7 | BB56: 1 | BC56: 55.287
B57: Marcus Davis | C57: Virginia Tech | E57: 0 | F57: 4.56 | G57: 19 | H57: 39.5 | I57: 7.15 | K57: 120 | M57: 13 | N57: 51 | O57: 953 | P57: 18.7 | Q57: 5 | R57: 5 | S57: 72 | T57: 14.4 | U57: 0 | V57: 56 | W57: 1025 | X57: 18.3 | Y57: 5 | AA57: 14 | AB57: 30 | AC57: 510 | AD57: 17 | AE57: 5 | AF57: 2 | AG57: -5 | AH57: -2.5 | AI57: 0 | AJ57: 32 | AK57: 505 | AL57: 15.8 | AM57: 5 | AO57: 27 | AP57: 81 | AQ57: 1463 | AR57: 17.85 | AS57: 10 | AT57: 7 | AU57: 67 | AV57: =AU57/AT57 -> 9.571428571 | AW57: 0 | AX57: 88 | AY57: 1530 | AZ57: 17.05 | BA57: 10 | BB57: 1 | BC57: 0
B58: Aaron Dobson | C58: Marshall | D58: 62 | E58: 2 | M58: 10 | N58: 57 | O58: 679 | P58: 11.9 | Q58: 3 | R58: 0 | S58: 0 | T58: 0 | U58: 0 | V58: 57 | W58: 679 | X58: 11.9 | Y58: 3 | AA58: 13 | AB58: 49 | AC58: 668 | AD58: 13.6 | AE58: 12 | AF58: 1 | AG58: 1 | AH58: 1 | AI58: 0 | AJ58: 50 | AK58: 669 | AL58: 13.4 | AM58: 12 | AO58: 23 | AP58: 106 | AQ58: 1347 | AR58: 12.75 | AS58: 15 | AT58: 1 | AU58: 1 | AV58: =AU58/AT58 -> 1 | AW58: 0 | AX58: 107 | AY58: 1348 | AZ58: 12.65 | BA58: 15 | BB58: 0 | BC58: 52.7
B59: Corey Fuller | C59: Virginia Tech | D59: 56.3 | E59: 2 | F59: 4.43 | G59: 12 | H59: 31.5 | K59: 120 | M59: 13 | N59: 43 | O59: 815 | P59: 19 | Q59: 6 | R59: 1 | S59: 10 | T59: 10 | U59: 0 | V59: 44 | W59: 825 | X59: 18.8 | Y59: 6 | AA59: 7 | AB59: 2 | AC59: 19 | AD59: 9.5 | AE59: 0 | AF59: 0 | AG59: 0 | AH59: 0 | AI59: 0 | AJ59: 2 | AK59: 19 | AL59: 9.5 | AM59: 0 | AO59: 20 | AP59: 45 | AQ59: 834 | AR59: 14.25 | AS59: 6 | AT59: 1 | AU59: 10 | AV59: =AU59/AT59 -> 10 | AW59: 0 | AX59: 46 | AY59: 844 | AZ59: 14.15 | BA59: 6 | BB59: 1 | BC59: 47.855
B60: Tyrone Goard | C60: East. Kentucky | E60: 0 | F60: 4.5 | G60: 10 | H60: 36 | I60: 6.9 | J60: 4.39 | K60: 123 | M60: 10 | N60: 41 | O60: 900 | P60: 22 | Q60: 8 | R60: 0 | S60: 0 | T60: 0 | U60: 0 | V60: 41 | W60: 900 | X60: 22 | Y60: 8 | AA60: 12 | AB60: 39 | AC60: 627 | AD60: 16.1 | AE60: 11 | AF60: 4 | AG60: 63 | AH60: 15.8 | AI60: 0 | AJ60: 43 | AK60: 690 | AL60: 16 | AM60: 11 | AO60: 22 | AP60: 80 | AQ60: 1527 | AR60: 19.05 | AS60: 19 | AT60: 4 | AU60: 63 | AV60: =AU60/AT60 -> 15.75 | AW60: 0 | AX60: 84 | AY60: 1590 | AZ60: 19 | BA60: 19 | BB60: 0 | BC60: 0
B61: Marquise Goodwin | C61: Texas | D61: 66.62 | E61: 5 | F61: 4.27 | G61: 13 | K61: 132 | M61: 13 | N61: 26 | O61: 340 | P61: 13.1 | Q61: 3 | R61: 13 | S61: 140 | T61: 10.8 | U61: 3 | V61: 39 | W61: 480 | X61: 12.3 | Y61: 6 | AA61: 12 | AB61: 33 | AC61: 421 | AD61: 12.8 | AE61: 2 | AF61: 22 | AG61: 220 | AH61: 10 | AI61: 0 | AJ61: 55 | AK61: 641 | AL61: 11.7 | AM61: 2 | AO61: 25 | AP61: 59 | AQ61: 761 | AR61: 12.95 | AS61: 5 | AT61: 35 | AU61: 360 | AV61: =AU61/AT61 -> 10.28571429 | AW61: 3 | AX61: 94 | AY61: 1121 | AZ61: 12 | BA61: 8 | BB61: 11 | BC61: 66.62
B62: Cobi Hamilton | C62: Arkansas | D62: 62.6 | E62: 1 | F62: 4.56 | G62: 11 | H62: 29.5 | J62: 4.31 | K62: 107 | M62: 12 | N62: 90 | O62: 1335 | P62: 14.8 | Q62: 5 | R62: 0 | S62: 0 | T62: 0 | U62: 0 | V62: 90 | W62: 1335 | X62: 14.8 | Y62: 5 | AA62: 13 | AB62: 34 | AC62: 542 | AD62: 15.9 | AE62: 4 | AF62: 0 | AG62: 0 | AH62: 0 | AI62: 0 | AJ62: 34 | AK62: 542 | AL62: 15.9 | AM62: 4 | AO62: 25 | AP62: 124 | AQ62: 1877 | AR62: 15.35 | AS62: 9 | AT62: 0 | AU62: 0 | AV62: 0 | AW62: 0 | AX62: 124 | AY62: 1877 | AZ62: 15.35 | BA62: 9 | BB62: 1 | BC62: 50.08
B63: Chris Harper | C63: Kansas State | E63: 0 | F63: 4.55 | G63: 20 | H63: 35.5 | I63: 6.89 | J63: 4.39 | K63: 116 | M63: 13 | N63: 58 | O63: 857 | P63: 14.8 | Q63: 3 | R63: 0 | S63: 0 | T63: 0 | U63: 0 | V63: 58 | W63: 850 | X63: 14.7 | Y63: 3 | AA63: 13 | AB63: 40 | AC63: 547 | AD63: 13.7 | AE63: 5 | AF63: 3 | AG63: 5 | AH63: 1.7 | AI63: 0 | AJ63: 43 | AK63: 552 | AL63: 12.8 | AM63: 5 | AO63: 26 | AP63: 98 | AQ63: 1404 | AR63: 14.25 | AS63: 8 | AT63: 3 | AU63: 5 | AV63: =AU63/AT63 -> 1.666666667 | AW63: 0 | AX63: 101 | AY63: 1402 | AZ63: 13.75 | BA63: 8 | BB63: 1 | BC63: 0
B64: Mark Harrison | C64: Rutgers | E64: 0 | F64: 4.46 | G64: 17 | H64: 38.5 | I64: 6.99 | J64: 4.33 | K64: 129 | M64: 13 | N64: 44 | O64: 583 | P64: 13.3 | Q64: 6 | R64: 0 | S64: 0 | T64: 0 | U64: 0 | V64: 44 | W64: 583 | X64: 13.3 | Y64: 6 | AA64: 12 | AB64: 14 | AC64: 274 | AD64: 19.6 | AE64: 2 | AF64: 0 | AG64: 0 | AH64: 0 | AI64: 0 | AJ64: 14 | AK64: 274 | AL64: 19.6 | AM64: 2 | AO64: 25 | AP64: 58 | AQ64: 857 | AR64: 16.45 | AS64: 8 | AT64: 0 | AU64: 0 | AV64: 0 | AW64: 0 | AX64: 58 | AY64: 857 | AZ64: 16.45 | BA64: 8 | BB64: 1 | BC64: 0
B65: DeAndre Hopkins | C65: Clemson | D65: 89.48 | E65: 5 | F65: 4.57 | G65: 15 | H65: 36 | J65: 4.5 | K65: 115 | M65: 13 | N65: 82 | O65: 1405 | P65: 17.1 | Q65: 18 | R65: 0 | S65: 0 | T65: 0 | U65: 0 | V65: 82 | W65: 1405 | X65: 17.1 | Y65: 18 | AA65: 14 | AB65: 72 | AC65: 978 | AD65: 13.6 | AE65: 5 | AF65: 0 | AG65: 0 | AH65: 0 | AI65: 0 | AJ65: 72 | AK65: 978 | AL65: 13.6 | AM65: 5 | AO65: 27 | AP65: 154 | AQ65: 2383 | AR65: 15.35 | AS65: 23 | AT65: 0 | AU65: 0 | AV65: 0 | AW65: 0 | AX65: 154 | AY65: 2383 | AZ65: 15.35 | BA65: 23 | BB65: 1 | BC65: 89.48
B66: Justin Hunter | C66: Tennessee | D66: 61.98 | E66: 5 | F66: 4.44 | H66: 39.5 | J66: 4.33 | K66: 136 | M66: 12 | N66: 73 | O66: 1083 | P66: 14.8 | Q66: 9 | R66: 0 | S66: 0 | T66: 0 | U66: 0 | V66: 73 | W66: 1083 | X66: 14.8 | Y66: 9 | AA66: 3 | AB66: 17 | AC66: 314 | AD66: 18.5 | AE66: 2 | AF66: 0 | AG66: 0 | AH66: 0 | AI66: 0 | AJ66: 17 | AK66: 314 | AL66: 18.5 | AM66: 2 | AO66: 15 | AP66: 90 | AQ66: 1397 | AR66: 16.65 | AS66: 11 | AT66: 0 | AU66: 0 | AV66: 0 | AW66: 0 | AX66: 90 | AY66: 1397 | AZ66: 16.65 | BA66: 11 | BB66: 0 | BC66: 61.98
B67: Darius Johnson | C67: SMU | D67: 55.2 | E67: 1 | F67: 4.6 | G67: 6 | H67: 32 | J67: 4.53 | K67: 109 | M67: 11 | N67: 64 | O67: 787 | P67: 12.3 | Q67: 5 | R67: 0 | S67: 0 | T67: 0 | U67: 0 | V67: 64 | W67: 787 | X67: 12.3 | Y67: 5 | AA67: 13 | AB67: 79 | AC67: 1118 | AD67: 14.2 | AE67: 8 | AF67: 1 | AG67: 1 | AH67: 1 | AI67: 0 | AJ67: 80 | AK67: 1119 | AL67: 14 | AM67: 8 | AO67: 24 | AP67: 143 | AQ67: 1905 | AR67: 13.25 | AS67: 13 | AT67: 1 | AU67: 1 | AV67: =AU67/AT67 -> 1 | AW67: 0 | AX67: 144 | AY67: 1906 | AZ67: 13.15 | BA67: 13 | BB67: 0 | BC67: 44.16
B68: Brandon Kaufman | C68: East. Washington | E68: 0 | F68: 4.67 | G68: 9 | H68: 33.5 | I68: 7.11 | J68: 4.44 | K68: 115 | M68: 14 | N68: 93 | O68: 1850 | P68: 19.9 | Q68: 16 | R68: 0 | S68: 0 | T68: 0 | U68: 0 | V68: 93 | W68: 1850 | X68: 19.9 | Y68: 16 | AA68: 4 | AB68: 29 | AC68: 373 | AD68: 12.9 | AE68: 1 | AF68: 0 | AG68: 0 | AH68: 0 | AI68: 0 | AJ68: 29 | AK68: 373 | AL68: 12.9 | AM68: 1 | AO68: 18 | AP68: 122 | AQ68: 2223 | AR68: 16.4 | AS68: 17 | AT68: 0 | AU68: 0 | AV68: 0 | AW68: 0 | AX68: 122 | AY68: 2223 | AZ68: 16.4 | BA68: 17 | BB68: 1 | BC68: 0
B69: Tavarres King | C69: Georgia | D69: 62.3 | E69: 1 | F69: 4.47 | G69: 11 | H69: 36.5 | I69: 6.91 | J69: 4.33 | K69: 123 | M69: 14 | N69: 42 | O69: 950 | P69: 22.6 | Q69: 9 | R69: 1 | S69: 0 | T69: 0 | U69: 0 | V69: 43 | W69: 950 | X69: 22.1 | Y69: 9 | AA69: 14 | AB69: 47 | AC69: 705 | AD69: 15 | AE69: 8 | AF69: 2 | AG69: 5 | AH69: 2.5 | AI69: 0 | AJ69: 49 | AK69: 710 | AL69: 14.5 | AM69: 8 | AO69: 28 | AP69: 89 | AQ69: 1655 | AR69: 18.8 | AS69: 17 | AT69: 3 | AU69: 5 | AV69: =AU69/AT69 -> 1.666666667 | AW69: 0 | AX69: 92 | AY69: 1660 | AZ69: 18.3 | BA69: 17 | BB69: 1 | BC69: 49.84
B70: Alec Lemon | C70: Syracuse | E70: 0 | F70: 4.59 | G70: 7 | H70: 32 | I70: 7.04 | J70: 4.29 | K70: 112 | M70: 12 | N70: 72 | O70: 1070 | P70: 14.9 | Q70: 7 | R70: 4 | S70: 13 | T70: 3.3 | U70: 1 | V70: 76 | W70: 1083 | X70: 14.3 | Y70: 8 | AA70: 12 | AB70: 68 | AC70: 834 | AD70: 12.3 | AE70: 6 | AF70: 1 | AG70: 1 | AH70: 1 | AI70: 0 | AJ70: 69 | AK70: 835 | AL70: 12.1 | AM70: 6 | AO70: 24 | AP70: 140 | AQ70: 1904 | AR70: 13.6 | AS70: 13 | AT70: 5 | AU70: 14 | AV70: 2.8 | AW70: 1 | AX70: 145 | AY70: 1918 | AZ70: 13.2 | BA70: 14 | BB70: 0 | BC70: 0
B71: Aaron Mellette | C71: Elon | E71: 0 | F71: 4.54 | G71: 9 | H71: 33.5 | I71: 7.11 | J71: 4.41 | K71: 123 | M71: 11 | N71: 97 | O71: 1398 | P71: 14.4 | Q71: 18 | R71: 2 | S71: 5 | T71: 2.5 | U71: 0 | V71: 99 | W71: 1403 | X71: 14.2 | Y71: 18 | AA71: 11 | AB71: 113 | AC71: 1639 | AD71: 14.5 | AE71: 12 | AF71: 9 | AG71: 33 | AH71: 3.7 | AI71: 0 | AJ71: 122 | AK71: 1672 | AL71: 13.7 | AM71: 12 | AO71: 22 | AP71: 210 | AQ71: 3037 | AR71: 14.45 | AS71: 30 | AT71: 11 | AU71: 38 | AV71: 3.454545455 | AW71: 0 | AX71: 221 | AY71: 3075 | AZ71: 13.95 | BA71: 30 | BB71: 1 | BC71: 0
B72: T.J. Moe | C72: Missouri | E72: 0 | F72: 4.74 | G72: 26 | H72: 36 | I72: 6.53 | J72: 3.96 | K72: 120 | M72: 12 | N72: 40 | O72: 399 | P72: 10 | Q72: 1 | R72: 7 | S72: 26 | T72: 3.7 | U72: 0 | V72: 47 | W72: 425 | X72: 9 | Y72: 1 | AA72: 13 | AB72: 54 | AC72: 649 | AD72: 12 | AE72: 4 | AF72: 11 | AG72: 61 | AH72: 5.5 | AI72: 0 | AJ72: 65 | AK72: 710 | AL72: 10.9 | AM72: 4 | AO72: 25 | AP72: 94 | AQ72: 1048 | AR72: 11 | AS72: 5 | AT72: 18 | AU72: 87 | AV72: 4.833333333 | AW72: 0 | AX72: 112 | AY72: 1135 | AZ72: 9.95 | BA72: 5 | BB72: 1 | BC72: 0
B73: Cordarrelle Patterson | C73: Tennessee | D73: 74.4 | E73: 5 | F73: 4.42 | H73: 37 | K73: 128 | M73: 12 | N73: 46 | O73: 778 | P73: 16.9 | Q73: 5 | R73: 25 | S73: 308 | T73: 12.3 | U73: 3 | V73: 71 | W73: 1086 | X73: 15.3 | Y73: 8 | AA73: 12 | AB73: 61 | AC73: 924 | AD73: 15.1 | AE73: 15 | AF73: 32 | AG73: 379 | AH73: 11.8 | AI73: 6 | AJ73: 93 | AK73: 1303 | AL73: 14 | AM73: 21 | AO73: 24 | AP73: 107 | AQ73: 1702 | AR73: 16 | AS73: 20 | AT73: 57 | AU73: 687 | AV73: 12.05263158 | AW73: 9 | AX73: 164 | AY73: 2389 | AZ73: 14.65 | BA73: 29 | BB73: 0 | BC73: 74.4
B74: Quinton Patton | C74: Louisiana Tech | D74: 63.95 | E74: 2 | F74: 4.53 | G74: 8 | H74: 33 | I74: 6.91 | J74: 4.02 | K74: 118 | M74: 12 | N74: 104 | O74: 1392 | P74: 13.4 | Q74: 13 | R74: 1 | S74: -5 | T74: -5 | U74: 0 | V74: 105 | W74: 1387 | X74: 13.2 | Y74: 13 | AA74: 13 | AB74: 79 | AC74: 1202 | AD74: 15.2 | AE74: 11 | AF74: 10 | AG74: 42 | AH74: 4.2 | AI74: 0 | AJ74: 89 | AK74: 1244 | AL74: 14 | AM74: 11 | AO74: 25 | AP74: 183 | AQ74: 2594 | AR74: 14.3 | AS74: 24 | AT74: 11 | AU74: 37 | AV74: 3.363636364 | AW74: 0 | AX74: 194 | AY74: 2631 | AZ74: 13.6 | BA74: 24 | BB74: 0 | BC74: 54.3575
B75: Da'Rick Rogers | C75: Tennessee Tech | D75: 59.9 | E75: 1 | F75: 4.52 | G75: 10 | H75: 39.5 | I75: 6.71 | J75: 4.06 | K75: 132 | M75: 12 | N75: 67 | O75: 1040 | P75: 15.5 | Q75: 9 | R75: 3 | S75: 10 | T75: 3.3 | U75: 0 | V75: 70 | W75: 1050 | X75: 15 | Y75: 9 | AA75: 13 | AB75: 11 | AC75: 167 | AD75: 15.2 | AE75: 2 | AF75: 16 | AG75: 117 | AH75: 7.3 | AI75: 0 | AJ75: 27 | AK75: 284 | AL75: 10.5 | AM75: 2 | AO75: 25 | AP75: 78 | AQ75: 1207 | AR75: 15.35 | AS75: 11 | AT75: 19 | AU75: 127 | AV75: 6.684210526 | AW75: 0 | AX75: 97 | AY75: 1334 | AZ75: 12.75 | BA75: 11 | BB75: 0 | BC75: 47.92
B76: Lanear Sampson | C76: Baylor | E76: 0 | F76: 4.46 | G76: 20 | H76: 33.5 | I76: 7.1 | J76: 4.38 | K76: 119 | M76: 13 | N76: 52 | O76: 646 | P76: 12.4 | Q76: 6 | R76: 0 | S76: 0 | T76: 0 | U76: 0 | V76: 52 | W76: 646 | X76: 12.4 | Y76: 6 | AA76: 13 | AB76: 42 | AC76: 572 | AD76: 13.6 | AE76: 3 | AF76: 0 | AG76: 0 | AH76: 0 | AI76: 0 | AJ76: 42 | AK76: 572 | AL76: 13.6 | AM76: 3 | AO76: 26 | AP76: 94 | AQ76: 1218 | AR76: 13 | AS76: 9 | AT76: 0 | AU76: 0 | AV76: 0 | AW76: 0 | AX76: 94 | AY76: 1218 | AZ76: 13 | BA76: 9 | BB76: 1 | BC76: 0
B77: Ace Sanders | C77: South Carolina | D77: 61.9 | E77: 1 | F77: 4.58 | G77: 7 | H77: 32 | I77: 6.81 | J77: 4.37 | K77: 117 | M77: 13 | N77: 45 | O77: 531 | P77: 11.8 | Q77: 9 | R77: 3 | S77: 1 | T77: 0.3 | U77: 0 | V77: 48 | W77: 532 | X77: 11.1 | Y77: 9 | AA77: 13 | AB77: 29 | AC77: 383 | AD77: 13.2 | AE77: 2 | AF77: 4 | AG77: 15 | AH77: 3.8 | AI77: 0 | AJ77: 33 | AK77: 398 | AL77: 12.1 | AM77: 2 | AO77: 26 | AP77: 74 | AQ77: 914 | AR77: 12.5 | AS77: 11 | AT77: 7 | AU77: 16 | AV77: =AU77/AT77 -> 2.285714286 | AW77: 0 | AX77: 81 | AY77: 930 | AZ77: 11.6 | BA77: 11 | BB77: 1 | BC77: 49.52
B78: Rodney Smith | C78: Florida State | E78: 0 | F78: 4.51 | H78: 34.5 | I78: 7.03 | J78: 4.07 | K78: 120 | M78: 14 | N78: 38 | O78: 524 | P78: 13.8 | Q78: 3 | R78: 0 | S78: 0 | T78: 0 | U78: 0 | V78: 38 | W78: 524 | X78: 13.8 | Y78: 3 | AA78: 13 | AB78: 36 | AC78: 561 | AD78: 15.6 | AE78: 4 | AF78: 0 | AG78: 0 | AH78: 0 | AI78: 0 | AJ78: 36 | AK78: 561 | AL78: 15.6 | AM78: 4 | AO78: 27 | AP78: 74 | AQ78: 1085 | AR78: 14.7 | AS78: 7 | AT78: 0 | AU78: 0 | AV78: 0 | AW78: 0 | AX78: 74 | AY78: 1085 | AZ78: 14.7 | BA78: 7 | BB78: 1 | BC78: 0
B79: Ryan Spadola | C79: Lehigh | E79: 0 | F79: 4.48 | G79: 15 | H79: 33.5 | I79: 6.72 | J79: 4.07 | K79: 119 | M79: 9 | N79: 57 | O79: 851 | P79: 14.9 | Q79: 4 | R79: 10 | S79: 52 | T79: 5.2 | U79: 0 | V79: 67 | W79: 903 | X79: 13.5 | Y79: 4 | AA79: 12 | AB79: 96 | AC79: 1614 | AD79: 16.8 | AE79: 11 | AF79: 11 | AG79: 89 | AH79: 8.1 | AI79: 0 | AJ79: 107 | AK79: 1703 | AL79: 15.9 | AM79: 11 | AO79: 21 | AP79: 153 | AQ79: 2465 | AR79: 15.85 | AS79: 15 | AT79: 21 | AU79: 141 | AV79: =AU79/AT79 -> 6.714285714 | AW79: 0 | AX79: 174 | AY79: 2606 | AZ79: 14.7 | BA79: 15 | BB79: 0 | BC79: 0
B80: Kenny Stills | C80: Oklahoma | D80: 69.06 | E80: 5 | F80: 4.38 | G80: 16 | H80: 33.5 | J80: 4.35 | K80: 124 | M80: 13 | N80: 82 | O80: 959 | P80: 11.7 | Q80: 11 | R80: 2 | S80: 22 | T80: 11 | U80: 0 | V80: 84 | W80: 981 | X80: 11.7 | Y80: 11 | AA80: 11 | AB80: 61 | AC80: 849 | AD80: 13.9 | AE80: 8 | AF80: 1 | AG80: 1 | AH80: 1 | AI80: 0 | AJ80: 62 | AK80: 850 | AL80: 13.7 | AM80: 8 | AO80: 24 | AP80: 143 | AQ80: 1808 | AR80: 12.8 | AS80: 19 | AT80: 3 | AU80: 23 | AV80: =AU80/AT80 -> 7.666666667 | AW80: 0 | AX80: 146 | AY80: 1831 | AZ80: 12.7 | BA80: 19 | BB80: 1 | BC80: 69.06
B81: Ryan Swope | C81: Texas A&M | E81: 0 | F81: 4.34 | G81: 16 | H81: 37 | I81: 6.76 | J81: 4.25 | K81: 125 | M81: 13 | N81: 72 | O81: 913 | P81: 12.7 | Q81: 8 | R81: 1 | S81: -2 | T81: -2 | U81: 0 | V81: 73 | W81: 911 | X81: 12.5 | Y81: 8 | AA81: 13 | AB81: 89 | AC81: 1207 | AD81: 13.6 | AE81: 11 | AF81: 7 | AG81: 3 | AH81: 0.4 | AI81: 0 | AJ81: 96 | AK81: 1210 | AL81: 12.6 | AM81: 11 | AO81: 26 | AP81: 161 | AQ81: 2120 | AR81: 13.15 | AS81: 19 | AT81: 8 | AU81: 1 | AV81: =AU81/AT81 -> 0.125 | AW81: 0 | AX81: 169 | AY81: 2121 | AZ81: 12.55 | BA81: 19 | BB81: 1 | BC81: 0
B82: Kenbrell Thompkins | C82: Cincinnati | D82: 62.13 | E82: 3 | F82: 4.54 | G82: 8 | H82: 33.5 | I82: 6.88 | J82: 4.21 | K82: 121 | M82: 13 | N82: 34 | O82: 541 | P82: 15.9 | Q82: 2 | R82: 0 | S82: 0 | T82: 0 | U82: 0 | V82: 34 | W82: 541 | X82: 15.9 | Y82: 2 | AA82: 13 | AB82: 44 | AC82: 536 | AD82: 12.2 | AE82: 2 | AF82: 0 | AG82: 0 | AH82: 0 | AI82: 0 | AJ82: 44 | AK82: 536 | AL82: 12.2 | AM82: 2 | AO82: 26 | AP82: 78 | AQ82: 1077 | AR82: 14.05 | AS82: 4 | AT82: 0 | AU82: 0 | AV82: 0 | AW82: 0 | AX82: 78 | AY82: 1077 | AZ82: 14.05 | BA82: 4 | BB82: 0 | BC82: 55.917
B83: Conner Vernon | C83: Duke | E83: 0 | F83: 4.68 | H83: 32.5 | I83: 6.93 | J83: 4.22 | K83: 125 | M83: 13 | N83: 85 | O83: 1074 | P83: 12.6 | Q83: 8 | R83: 3 | S83: -2 | T83: -0.7 | U83: 0 | V83: 88 | W83: 1072 | X83: 12.2 | Y83: 8 | AA83: 12 | AB83: 70 | AC83: 956 | AD83: 13.7 | AE83: 6 | AF83: 3 | AG83: 0 | AH83: 0 | AI83: 0 | AJ83: 73 | AK83: 956 | AL83: 13.1 | AM83: 6 | AO83: =AA83+M83 -> 25 | AP83: =AB83+N83 -> 155 | AQ83: =O83+AC83 -> 2030 | AR83: =AVERAGE(P83,AD83) -> 13.15 | AS83: =AE83+Q83 -> 14 | AT83: =AF83+R83 -> 6 | AU83: =AG83+S83 -> -2 | AV83: =AU83/AT83 -> -0.3333333333 | AW83: =AI83+U83 -> 0 | AX83: =AJ83+V83 -> 161 | AY83: =AK83+W83 -> 2028 | AZ83: =AVERAGE(AL83,X83) -> 12.65 | BA83: =AM83+Y83 -> 14 | BB83: 1 | BC83: 0
B84: Markus Wheaton | C84: Oregon State | D84: 60.93 | E84: 4 | F84: 4.45 | G84: 20 | H84: 37 | I84: 6.8 | J84: 4.02 | K84: 120 | M84: 13 | N84: 91 | O84: 1244 | P84: 13.7 | Q84: 11 | R84: 20 | S84: 142 | T84: 7.1 | U84: 2 | V84: 111 | W84: 1386 | X84: 12.5 | Y84: 13 | AA84: 12 | AB84: 73 | AC84: 986 | AD84: 13.5 | AE84: 1 | AF84: 25 | AG84: 190 | AH84: 7.6 | AI84: 0 | AJ84: 98 | AK84: 1176 | AL84: 12 | AM84: 1 | AO84: 25 | AP84: 164 | AQ84: 2230 | AR84: 13.6 | AS84: 12 | AT84: 45 | AU84: 332 | AV84: =AU84/AT84 -> 7.377777778 | AW84: 2 | AX84: 209 | AY84: 2562 | AZ84: 12.25 | BA84: 14 | BB84: 1 | BC84: 57.8835
B85: Terrance Williams | C85: Baylor | D85: 67.86 | E85: 5 | F85: 4.52 | G85: 11 | H85: 32.5 | I85: 7.01 | J85: 4.32 | K85: 119 | M85: 13 | N85: 97 | O85: 1832 | P85: 18.9 | Q85: 12 | R85: 2 | S85: 14 | T85: 7 | U85: 0 | V85: 99 | W85: 1846 | X85: 18.6 | Y85: 12 | AA85: 13 | AB85: 59 | AC85: 957 | AD85: 16.2 | AE85: 11 | AF85: 0 | AG85: 0 | AH85: 0 | AI85: 0 | AJ85: 59 | AK85: 957 | AL85: 16.2 | AM85: 11 | AO85: 26 | AP85: 156 | AQ85: 2789 | AR85: 17.55 | AS85: 23 | AT85: 2 | AU85: 14 | AV85: =AU85/AT85 -> 7 | AW85: 0 | AX85: 158 | AY85: 2803 | AZ85: 17.4 | BA85: 23 | BB85: 1 | BC85: 67.86
B86: Marquess Wilson | C86: Washington State | D86: 58.45 | E86: 2 | F86: 4.51 | G86: 7 | H86: 34.5 | I86: 6.65 | J86: 4.33 | K86: 122 | M86: 9 | N86: 52 | O86: 813 | P86: 15.6 | Q86: 5 | R86: 0 | S86: 0 | T86: 0 | U86: 0 | V86: 52 | W86: 813 | X86: 15.6 | Y86: 5 | AA86: 12 | AB86: 82 | AC86: 1388 | AD86: 16.9 | AE86: 12 | AF86: 3 | AG86: 10 | AH86: 3.3 | AI86: 0 | AJ86: 85 | AK86: 1398 | AL86: 16.4 | AM86: 12 | AO86: 21 | AP86: 134 | AQ86: 2201 | AR86: 16.25 | AS86: 17 | AT86: 3 | AU86: 10 | AV86: =AU86/AT86 -> 3.333333333 | AW86: 0 | AX86: 137 | AY86: 2211 | AZ86: 16 | BA86: 17 | BB86: 0 | BC86: 49.6825
B87: Robert Woods | C87: USC | D87: 79.26 | E87: 5 | F87: 4.51 | G87: 14 | H87: 33.5 | I87: 7.15 | J87: 4.47 | K87: 117 | M87: 13 | N87: 76 | O87: 846 | P87: 11.1 | Q87: 11 | R87: 1 | S87: 76 | T87: 76 | U87: 0 | V87: 77 | W87: 922 | X87: 12 | Y87: 11 | AA87: 12 | AB87: 111 | AC87: 1292 | AD87: 11.6 | AE87: 15 | AF87: 7 | AG87: 16 | AH87: 2.3 | AI87: 0 | AJ87: 118 | AK87: 1308 | AL87: 11.1 | AM87: 15 | AO87: 25 | AP87: 187 | AQ87: 2138 | AR87: 11.35 | AS87: 26 | AT87: 8 | AU87: 92 | AV87: =AU87/AT87 -> 11.5 | AW87: 0 | AX87: 195 | AY87: 2230 | AZ87: 11.55 | BA87: 26 | BB87: 1 | BC87: 79.26
A88: 2014 | B88: Jared Abbrederis | C88: Wisconsin | D88: 61.3 | E88: 1 | F88: 4.5 | G88: 4 | H88: 30.5 | I88: 6.8 | J88: 4.08 | K88: 117 | M88: 13 | N88: 78 | O88: 1081 | P88: 13.9 | Q88: 7 | R88: 6 | S88: 119 | T88: 19.8 | U88: 2 | V88: 84 | W88: 1200 | X88: 14.3 | Y88: 9 | AA88: 13 | AB88: 49 | AC88: 837 | AD88: 17.1 | AE88: 5 | AF88: 8 | AG88: 83 | AH88: 10.4 | AI88: 0 | AJ88: 57 | AK88: 920 | AL88: 16.1 | AM88: 5 | AO88: 26 | AP88: 127 | AQ88: 1918 | AR88: 15.5 | AS88: 12 | AT88: 14 | AU88: 202 | AV88: =AVERAGE(AH88,T88) -> 15.1 | AW88: 2 | AX88: 141 | AY88: 2120 | AZ88: 15.2 | BA88: 14 | BB88: 1 | BC88: 49.04
B89: Davante Adams | C89: Fresno State | D89: 88.2 | E89: 5 | F89: 4.56 | G89: 14 | H89: 39.5 | I89: 6.82 | J89: 4.3 | K89: 123 | M89: 13 | N89: 131 | O89: 1719 | P89: 13.1 | Q89: 24 | R89: 0 | S89: 0 | U89: 0 | V89: 131 | W89: 1719 | X89: 13.1 | Y89: 24 | AA89: 13 | AB89: 102 | AC89: 1312 | AD89: 12.9 | AE89: 14 | AF89: 0 | AG89: 0 | AH89: 0 | AI89: 0 | AJ89: 102 | AK89: 1312 | AL89: 12.9 | AM89: 14 | AO89: 26 | AP89: 233 | AQ89: 3031 | AR89: 13 | AS89: 38 | AT89: 0 | AU89: 0 | AV89: 0 | AW89: 0 | AX89: 233 | AY89: 3031 | AZ89: 13 | BA89: 38 | BB89: 0 | BC89: 88.2
B90: Dri Archer | C90: Kent State | E90: 0 | F90: 4.26 | G90: 20 | H90: 38 | I90: 6.86 | J90: 4.06 | K90: 122 | M90: 10 | N90: 25 | O90: 327 | P90: 13.1 | Q90: 4 | R90: 68 | S90: 527 | T90: 7.8 | U90: 6 | V90: 93 | W90: 854 | X90: 9.2 | Y90: 10 | AA90: 14 | AB90: 39 | AC90: 561 | AD90: 14.4 | AE90: 4 | AF90: 159 | AG90: 1429 | AH90: 9 | AI90: 16 | AJ90: 198 | AK90: 1990 | AL90: 10.1 | AM90: 20 | AO90: 24 | AP90: 64 | AQ90: 888 | AR90: 13.75 | AS90: 8 | AT90: 227 | AU90: 1956 | AV90: 8.4 | AW90: 22 | AX90: 291 | AY90: 2844 | AZ90: 9.65 | BA90: 30 | BB90: 0 | BC90: 0
B91: Kelvin Benjamin | C91: Florida State | D91: 69.58 | E91: 4 | F91: 4.61 | G91: 13 | H91: 32.5 | I91: 7.33 | J91: 4.39 | K91: 119 | M91: 14 | N91: 54 | O91: 1011 | P91: 18.7 | Q91: 15 | R91: 0 | S91: 0 | U91: 0 | V91: 54 | W91: 1011 | X91: 18.7 | Y91: 15 | AA91: 14 | AB91: 30 | AC91: 495 | AD91: 16.5 | AE91: 4 | AF91: 2 | AG91: 33 | AH91: 16.5 | AI91: 0 | AJ91: 32 | AK91: 528 | AL91: 16.5 | AM91: 4 | AO91: 28 | AP91: 84 | AQ91: 1506 | AR91: 17.6 | AS91: 19 | AT91: 2 | AU91: 33 | AV91: 16.5 | AW91: 0 | AX91: 86 | AY91: 1539 | AZ91: 17.6 | BA91: 19 | BB91: 1 | BC91: 66.101
B92: Chris Boyd | C92: Vanderbilt | E92: 0 | F92: 4.73 | G92: 12 | AA92: 13 | AB92: 50 | AC92: 774 | AD92: 15.5 | AE92: 5 | AF92: 0 | AG92: 0 | AH92: 0 | AI92: 0 | AJ92: 50 | AK92: 774 | AL92: 15.5 | AM92: 5 | AO92: 13 | AP92: 50 | AQ92: 774 | AR92: 15.5 | AS92: 5 | AT92: 0 | AU92: 0 | AV92: 0 | AW92: 0 | AX92: 50 | AY92: 774 | AZ92: 15.5 | BA92: 5 | BB92: 1 | BC92: 0
B93: John Brown | C93: Pittsburg State | D93: 71.86 | E93: 5 | F93: 4.34 | H93: 36.5 | I93: 6.91 | J93: 4.12 | K93: 119 | M93: 12 | N93: 61 | O93: 1198 | P93: 19.6 | Q93: 14 | R93: 17 | S93: 100 | T93: 5.9 | U93: 2 | V93: 78 | W93: 1298 | X93: 16.6 | Y93: 17 | AA93: 9 | AB93: 60 | AC93: 901 | AD93: 15 | AE93: 8 | AF93: 8 | AG93: 136 | AH93: 17 | AI93: 0 | AJ93: 68 | AK93: 1037 | AL93: 15.25 | AM93: 8 | AO93: 21 | AP93: 121 | AQ93: 2099 | AR93: 17.3 | AS93: 22 | AT93: 25 | AU93: 236 | AV93: 11.45 | AW93: 2 | AX93: 146 | AY93: 2335 | AZ93: 15.925 | BA93: 25 | BB93: 0 | BC93: 71.86
B94: Corey Brown | C94: Ohio State | D94: 65.53 | E94: 3 | F94: 4.51 | H94: 33 | I94: 7.16 | J94: 4.22 | K94: 116 | M94: 14 | N94: 63 | O94: 771 | P94: 12.2 | Q94: 10 | R94: 4 | S94: 42 | T94: 10.5 | U94: 0 | V94: 67 | W94: 813 | X94: 12.1 | Y94: 10 | AA94: 12 | AB94: 60 | AC94: 669 | AD94: 11.2 | AE94: 3 | AF94: 11 | AG94: 96 | AH94: 8.7 | AI94: 1 | AJ94: 71 | AK94: 765 | AL94: 10.8 | AM94: 4 | AO94: 26 | AP94: 123 | AQ94: 1440 | AR94: 11.7 | AS94: 13 | AT94: 15 | AU94: 138 | AV94: 9.6 | AW94: 1 | AX94: 138 | AY94: 1578 | AZ94: 11.45 | BA94: 14 | BB94: 1 | BC94: 58.977
B95: Martavis Bryant | C95: Clemson | D95: 70.08 | E95: 4 | F95: 4.42 | G95: 16 | H95: 39 | I95: 7.18 | J95: 4.15 | K95: 124 | M95: 13 | N95: 42 | O95: 828 | P95: 19.7 | Q95: 7 | R95: 0 | S95: 0 | U95: 0 | V95: 42 | W95: 828 | X95: 19.7 | Y95: 7 | AA95: 10 | AB95: 10 | AC95: 305 | AD95: 30.5 | AE95: 4 | AF95: 1 | AG95: 17 | AH95: 17 | AI95: 0 | AJ95: 11 | AK95: 322 | AL95: 29.3 | AM95: 4 | AO95: 23 | AP95: 52 | AQ95: 1133 | AR95: 25.1 | AS95: 11 | AT95: 1 | AU95: 17 | AV95: 17 | AW95: 0 | AX95: 53 | AY95: 1150 | AZ95: 24.5 | BA95: 11 | BB95: 1 | BC95: 66.576
B96: Isaiah Burse | C96: Fresno State | E96: 0 | F96: 4.58 | G96: 16 | H96: 31 | I96: 6.74 | J96: 3.94 | K96: 115 | M96: 13 | N96: 100 | O96: 1026 | P96: 10.3 | Q96: 6 | R96: 9 | S96: 81 | T96: 9 | U96: 2 | V96: 109 | W96: 1107 | X96: 10.2 | Y96: 8 | AA96: 13 | AB96: 57 | AC96: 851 | AD96: 14.9 | AE96: 6 | AF96: 7 | AG96: 39 | AH96: 5.6 | AI96: 1 | AJ96: 64 | AK96: 890 | AL96: 13.9 | AM96: 7 | AO96: 26 | AP96: 157 | AQ96: 1877 | AR96: 12.6 | AS96: 12 | AT96: 16 | AU96: 120 | AV96: 7.3 | AW96: 3 | AX96: 173 | AY96: 1997 | AZ96: 12.05 | BA96: 15 | BB96: 0 | BC96: 0
B97: Trey Burton | C97: Florida | D97: 65.52 | E97: 5 | F97: 4.62 | H97: 30 | I97: 7.14 | J97: 4.32 | K97: 112 | M97: 12 | N97: 38 | O97: 445 | P97: 11.7 | Q97: 1 | R97: 12 | S97: 56 | T97: 4.7 | U97: 0 | V97: 50 | W97: 501 | X97: 10 | Y97: 1 | AA97: 13 | AB97: 18 | AC97: 172 | AD97: 9.6 | AE97: 1 | AF97: 29 | AG97: 190 | AH97: 6.6 | AI97: 2 | AJ97: 47 | AK97: 362 | AL97: 7.7 | AM97: 3 | AO97: 25 | AP97: 56 | AQ97: 617 | AR97: 10.65 | AS97: 2 | AT97: 41 | AU97: 246 | AV97: 5.65 | AW97: 2 | AX97: 97 | AY97: 863 | AZ97: 8.85 | BA97: 4 | BB97: 1 | BC97: 65.52
B98: Michael Campanaro | C98: Wake Forest | D98: 60.7 | E98: 1 | F98: 4.46 | G98: 20 | H98: 39 | I98: 6.77 | J98: 4.01 | K98: 122 | M98: 8 | N98: 67 | O98: 803 | P98: 12 | Q98: 6 | R98: 4 | S98: 10 | T98: 2.5 | U98: 0 | V98: 71 | W98: 813 | X98: 11.5 | Y98: 6 | AA98: 10 | AB98: 79 | AC98: 763 | AD98: 9.7 | AE98: 6 | AF98: 16 | AG98: 82 | AH98: 5.1 | AI98: 1 | AJ98: 95 | AK98: 845 | AL98: 8.9 | AM98: 7 | AO98: 18 | AP98: 146 | AQ98: 1566 | AR98: 10.85 | AS98: 12 | AT98: 20 | AU98: 92 | AV98: 3.8 | AW98: 1 | AX98: 166 | AY98: 1658 | AZ98: 10.2 | BA98: 13 | BB98: 1 | BC98: 48.56
B99: Brandon Coleman | C99: Rutgers | D99: 65.57 | E99: 3 | F99: 4.56 | G99: 21 | H99: 32.5 | I99: 7.33 | J99: 4.51 | M99: 12 | N99: 34 | O99: 538 | P99: 15.8 | Q99: 4 | R99: 0 | S99: 0 | U99: 0 | V99: 34 | W99: 538 | X99: 15.8 | Y99: 4 | AA99: 13 | AB99: 43 | AC99: 718 | AD99: 16.7 | AE99: 10 | AF99: 0 | AG99: 0 | AH99: 0 | AI99: 0 | AJ99: 43 | AK99: 718 | AL99: 16.7 | AM99: 10 | AO99: 25 | AP99: 77 | AQ99: 1256 | AR99: 16.25 | AS99: 14 | AT99: 0 | AU99: 0 | AV99: 0 | AW99: 0 | AX99: 77 | AY99: 1256 | AZ99: 16.25 | BA99: 14 | BB99: 1 | BC99: 59.013
B100: Kain Colter | C100: Northwestern | E100: 0 | F100: 4.71 | M100: 10 | N100: 3 | O100: 16 | P100: 5.3 | Q100: 1 | R100: 115 | S100: 489 | T100: 4.3 | U100: 5 | V100: 118 | W100: 505 | X100: 4.3 | Y100: 6 | AA100: 13 | AB100: 16 | AC100: 169 | AD100: 10.6 | AE100: 0 | AF100: 170 | AG100: 894 | AH100: 5.3 | AI100: 12 | AJ100: 186 | AK100: 1063 | AL100: 5.7 | AM100: 12 | AO100: 23 | AP100: 19 | AQ100: 185 | AR100: 7.95 | AS100: 1 | AT100: 285 | AU100: 1383 | AV100: 4.8 | AW100: 17 | AX100: 304 | AY100: 1568 | AZ100: 5 | BA100: 18 | BB100: 1 | BC100: 0
B101: Brandin Cooks | C101: Oregon State | D101: 77.16 | E101: 5 | F101: 4.33 | G101: 16 | H101: 36 | I101: 6.76 | J101: 3.81 | K101: 120 | M101: 13 | N101: 128 | O101: 1730 | P101: 13.5 | Q101: 16 | R101: 32 | S101: 217 | T101: 6.8 | U101: 2 | V101: 160 | W101: 1947 | X101: 12.2 | Y101: 18 | AA101: 13 | AB101: 67 | AC101: 1151 | AD101: 17.2 | AE101: 5 | AF101: 19 | AG101: 82 | AH101: 4.3 | AI101: 0 | AJ101: 86 | AK101: 1233 | AL101: 14.3 | AM101: 5 | AO101: 26 | AP101: 195 | AQ101: 2881 | AR101: 15.35 | AS101: 21 | AT101: 51 | AU101: 299 | AV101: 5.55 | AW101: 2 | AX101: 246 | AY101: 3180 | AZ101: 13.25 | BA101: 23 | BB101: 1 | BC101: 77.16
B102: Damian Copeland | C102: Louisville | E102: 0 | F102: 4.5 | G102: 12 | H102: 40 | I102: 6.53 | J102: 3.9 | K102: 120 | M102: 13 | N102: 58 | O102: 780 | P102: 13.4 | Q102: 5 | R102: 3 | S102: 21 | T102: 7 | U102: 0 | V102: 61 | W102: 801 | X102: 13.1 | Y102: 5 | AA102: 13 | AB102: 50 | AC102: 628 | AD102: 12.6 | AE102: 2 | AF102: 1 | AG102: 3 | AH102: 3 | AI102: 0 | AJ102: 51 | AK102: 631 | AL102: 12.4 | AM102: 2 | AO102: 26 | AP102: 108 | AQ102: 1408 | AR102: 13 | AS102: 7 | AT102: 4 | AU102: 24 | AV102: 5 | AW102: 0 | AX102: 112 | AY102: 1432 | AZ102: 12.75 | BA102: 7 | BB102: 1 | BC102: 0
B103: Mike Davis | C103: Texas | E103: 0 | F103: 4.52 | G103: 10 | M103: 12 | N103: 34 | O103: 352 | P103: 10.4 | Q103: 0 | R103: 203 | S103: 1183 | T103: 5.8 | U103: 11 | V103: 237 | W103: 1535 | X103: 6.5 | Y103: 11 | AA103: 13 | AB103: 57 | AC103: 939 | AD103: 16.5 | AE103: 7 | AF103: 0 | AG103: 0 | AH103: 0 | AI103: 0 | AJ103: 57 | AK103: 939 | AL103: 16.5 | AM103: 7 | AO103: 25 | AP103: 91 | AQ103: 1291 | AR103: 13.45 | AS103: 7 | AT103: 203 | AU103: 1183 | AV103: 2.9 | AW103: 11 | AX103: 294 | AY103: 2474 | AZ103: 11.5 | BA103: 18 | BB103: 1 | BC103: 0
B104: Bruce Ellington | C104: South Carolina | D104: 62.65 | E104: 2 | F104: 4.45 | G104: 15 | H104: 39.5 | I104: 6.69 | J104: 3.95 | K104: 120 | M104: 12 | N104: 49 | O104: 775 | P104: 15.8 | Q104: 8 | R104: 3 | S104: 14 | T104: 4.7 | U104: 0 | V104: 52 | W104: 789 | X104: 15.2 | Y104: 8 | AA104: 13 | AB104: 40 | AC104: 600 | AD104: 15 | AE104: 7 | AF104: 5 | AG104: 28 | AH104: 5.6 | AI104: 0 | AJ104: 45 | AK104: 628 | AL104: 14 | AM104: 7 | AO104: 25 | AP104: 89 | AQ104: 1375 | AR104: 15.4 | AS104: 15 | AT104: 8 | AU104: 42 | AV104: 5.15 | AW104: 0 | AX104: 97 | AY104: 1417 | AZ104: 14.6 | BA104: 15 | BB104: 1 | BC104: 53.2525
B105: Quincy Enunwa | C105: Nebraska | D105: 63.77 | E105: 3 | F105: 4.41 | G105: 19 | M105: 12 | N105: 51 | O105: 753 | P105: 14.8 | Q105: 12 | R105: 3 | S105: -1 | T105: -0.3 | U105: 0 | V105: 54 | W105: 752 | X105: 13.9 | Y105: 12 | AA105: 14 | AB105: 42 | AC105: 470 | AD105: 11.2 | AE105: 1 | AF105: 0 | AG105: 0 | AH105: 0 | AI105: 0 | AJ105: 42 | AK105: 470 | AL105: 11.2 | AM105: 1 | AO105: 26 | AP105: 93 | AQ105: 1223 | AR105: 13 | AS105: 13 | AT105: 3 | AU105: -1 | AV105: -0.15 | AW105: 0 | AX105: 96 | AY105: 1222 | AZ105: 12.55 | BA105: 13 | BB105: 1 | BC105: 57.393
B106: Shaquelle Evans | C106: Texas A&M | E106: 0 | F106: 4.51 | G106: 13 | H106: 34.5 | I106: 7.07 | J106: 4.21 | K106: 122 | M106: 13 | N106: 47 | O106: 709 | P106: 15.1 | Q106: 9 | R106: 0 | S106: 0 | U106: 0 | V106: 47 | W106: 709 | X106: 15.1 | Y106: 9 | AA106: 14 | AB106: 60 | AC106: 877 | AD106: 14.6 | AE106: 3 | AF106: 2 | AG106: 6 | AH106: 3 | AI106: 0 | AJ106: 62 | AK106: 883 | AL106: 14.2 | AM106: 3 | AO106: 27 | AP106: 107 | AQ106: 1586 | AR106: 14.85 | AS106: 12 | AT106: 2 | AU106: 6 | AV106: 3 | AW106: 0 | AX106: 109 | AY106: 1592 | AZ106: 14.65 | BA106: 12 | BB106: 1 | BC106: 0
B107: Mike Evans | C107: UCLA | D107: 85.96 | E107: 5 | F107: 4.53 | G107: 12 | H107: 37 | I107: 7.08 | J107: 4.26 | M107: 13 | N107: 69 | O107: 1394 | P107: 20.2 | Q107: 12 | R107: 0 | S107: 0 | U107: 0 | V107: 69 | W107: 1394 | X107: 20.2 | Y107: 12 | AA107: 13 | AB107: 82 | AC107: 1105 | AD107: 13.5 | AE107: 5 | AF107: 0 | AG107: 0 | AH107: 0 | AI107: 0 | AJ107: 82 | AK107: 1105 | AL107: 13.5 | AM107: 5 | AO107: 26 | AP107: 151 | AQ107: 2499 | AR107: 16.85 | AS107: 17 | AT107: 0 | AU107: 0 | AV107: 0 | AW107: 0 | AX107: 151 | AY107: 2499 | AZ107: 16.85 | BA107: 17 | BB107: 1 | BC107: 85.96
B108: Bennie Fowler | C108: Michigan State | D108: 58.94 | E108: 5 | F108: 4.52 | H108: 36 | I108: 7.06 | J108: 4.18 | K108: 126 | M108: 12 | N108: 36 | O108: 622 | P108: 17.3 | Q108: 6 | R108: 5 | S108: 20 | T108: 4 | U108: 0 | V108: 41 | W108: 642 | X108: 15.7 | Y108: 6 | AA108: 13 | AB108: 41 | AC108: 524 | AD108: 12.8 | AE108: 4 | AF108: 3 | AG108: 14 | AH108: 4.7 | AI108: 0 | AJ108: 44 | AK108: 538 | AL108: 12.2 | AM108: 4 | AO108: 25 | AP108: 77 | AQ108: 1146 | AR108: 15.05 | AS108: 10 | AT108: 8 | AU108: 34 | AV108: 4.35 | AW108: 0 | AX108: 85 | AY108: 1180 | AZ108: 13.95 | BA108: 10 | BB108: 1 | BC108: 58.94
B109: Austin Franklin | C109: New Mexico State | E109: 0 | F109: 4.56 | G109: 7 | H109: 36 | I109: 7.07 | J109: 4.33 | K109: 124 | M109: 8 | N109: 52 | O109: 670 | P109: 12.9 | Q109: 7 | R109: 14 | S109: 69 | T109: 4.9 | U109: 0 | V109: 66 | W109: 739 | X109: 11.2 | Y109: 7 | AA109: 12 | AB109: 74 | AC109: 1245 | AD109: 16.8 | AE109: 9 | AF109: 10 | AG109: 39 | AH109: 3.9 | AI109: 0 | AJ109: 84 | AK109: 1284 | AL109: 15.3 | AM109: 9 | AO109: 20 | AP109: 126 | AQ109: 1915 | AR109: 14.85 | AS109: 16 | AT109: 24 | AU109: 108 | AV109: 4.4 | AW109: 0 | AX109: 150 | AY109: 2023 | AZ109: 13.25 | BA109: 16 | BB109: 0 | BC109: 0
B110: Jeremy Gallon | C110: Michigan | E110: 0 | F110: 4.49 | G110: 15 | M110: 13 | N110: 89 | O110: 1373 | P110: 15.4 | Q110: 9 | R110: 3 | S110: 4 | T110: 1.3 | U110: 0 | V110: 92 | W110: 1377 | X110: 15 | Y110: 9 | AA110: 13 | AB110: 49 | AC110: 829 | AD110: 16.9 | AE110: 4 | AF110: 11 | AG110: 67 | AH110: 6.1 | AI110: 0 | AJ110: 60 | AK110: 896 | AL110: 14.9 | AM110: 4 | AO110: 26 | AP110: 138 | AQ110: 2202 | AR110: 16.15 | AS110: 13 | AT110: 14 | AU110: 71 | AV110: 3.7 | AW110: 0 | AX110: 152 | AY110: 2273 | AZ110: 14.95 | BA110: 13 | BB110: 1 | BC110: 0
B111: Ryan Grant | C111: Tulane | D111: 59.6 | E111: 5 | F111: 4.64 | G111: 8 | H111: 35.5 | I111: 6.68 | J111: 4.11 | K111: 119 | M111: 13 | N111: 77 | O111: 1039 | P111: 13.5 | Q111: 9 | R111: 0 | S111: 0 | U111: 0 | V111: 77 | W111: 1039 | X111: 13.5 | Y111: 9 | AA111: 12 | AB111: 76 | AC111: 1149 | AD111: 15.1 | AE111: 6 | AF111: 0 | AG111: 0 | AH111: 0 | AI111: 0 | AJ111: 76 | AK111: 1149 | AL111: 15.1 | AM111: 6 | AO111: 25 | AP111: 153 | AQ111: 2188 | AR111: 14.3 | AS111: 15 | AT111: 0 | AU111: 0 | AV111: 0 | AW111: 0 | AX111: 153 | AY111: 2188 | AZ111: 14.3 | BA111: 15 | BB111: 0 | BC111: 59.6
B112: Matt Hazel | C112: Coastal Carolina | E112: 0 | F112: 4.5 | G112: 15 | H112: 36.5 | I112: 7.08 | J112: 4.2 | K112: 118 | M112: 14 | N112: 70 | O112: 990 | P112: 14.1 | Q112: 9 | R112: 2 | S112: 25 | T112: 12.5 | U112: 1 | V112: 72 | W112: 1015 | X112: 14.1 | Y112: 10 | AA112: 13 | AB112: 61 | AC112: 799 | AD112: 13.1 | AE112: 8 | AF112: 1 | AG112: -5 | AH112: -5 | AI112: 0 | AJ112: 62 | AK112: 794 | AL112: 12.8 | AM112: 8 | AO112: 27 | AP112: 131 | AQ112: 1789 | AR112: 13.6 | AS112: 17 | AT112: 3 | AU112: 20 | AV112: 3.75 | AW112: 1 | AX112: 134 | AY112: 1809 | AZ112: 13.45 | BA112: 18 | BB112: 0 | BC112: 0
B113: Robert Herron | C113: Wyoming | E113: 0 | F113: 4.48 | G113: 18 | H113: 35.5 | I113: 6.84 | J113: 4.27 | K113: 125 | M113: 12 | N113: 72 | O113: 932 | P113: 12.9 | Q113: 9 | R113: 2 | S113: 12 | T113: 6 | U113: 0 | V113: 74 | W113: 944 | X113: 12.8 | Y113: 9 | AA113: 8 | AB113: 31 | AC113: 657 | AD113: 21.2 | AE113: 8 | AF113: 4 | AG113: 10 | AH113: 2.5 | AI113: 0 | AJ113: 35 | AK113: 667 | AL113: 19.1 | AM113: 8 | AO113: 20 | AP113: 103 | AQ113: 1589 | AR113: 17.05 | AS113: 17 | AT113: 6 | AU113: 22 | AV113: 4.25 | AW113: 0 | AX113: 109 | AY113: 1611 | AZ113: 15.95 | BA113: 17 | BB113: 0 | BC113: 0
B114: Cody Hoffman | C114: BYU | E114: 0 | F114: 4.65 | G114: 13 | H114: 27.5 | I114: 6.89 | J114: 4.2 | K114: 108 | M114: 11 | N114: 57 | O114: 894 | P114: 15.7 | Q114: 5 | R114: 0 | S114: 0 | U114: 0 | V114: 57 | W114: 894 | X114: 15.7 | Y114: 5 | AA114: 13 | AB114: 100 | AC114: 1248 | AD114: 12.5 | AE114: 11 | AF114: 0 | AG114: 0 | AH114: 0 | AI114: 0 | AJ114: 100 | AK114: 1248 | AL114: 12.5 | AM114: 11 | AO114: 24 | AP114: 157 | AQ114: 2142 | AR114: 14.1 | AS114: 16 | AT114: 0 | AU114: 0 | AV114: 0 | AW114: 0 | AX114: 157 | AY114: 2142 | AZ114: 14.1 | BA114: 16 | BB114: 0 | BC114: 0
B115: Josh Huff | C115: Oregon | D115: 62.03 | E115: 3 | F115: 4.51 | G115: 14 | H115: 35.5 | K115: 116 | M115: 13 | N115: 62 | O115: 1140 | P115: 18.4 | Q115: 12 | R115: 6 | S115: 28 | T115: 4.7 | U115: 0 | V115: 68 | W115: 1168 | X115: 17.2 | Y115: 12 | AA115: 11 | AB115: 32 | AC115: 493 | AD115: 15.4 | AE115: 7 | AF115: 0 | AG115: 0 | AH115: 0 | AI115: 0 | AJ115: 32 | AK115: 493 | AL115: 15.4 | AM115: 7 | AO115: =AA115+M115 -> 24 | AP115: =AB115+N115 -> 94 | AQ115: =O115+AC115 -> 1633 | AR115: =AVERAGE(P115,AD115) -> 16.9 | AS115: =AE115+Q115 -> 19 | AT115: =AF115+R115 -> 6 | AU115: =AG115+S115 -> 28 | AV115: 2.35 | AW115: =AI115+U115 -> 0 | AX115: =AJ115+V115 -> 100 | AY115: =AK115+W115 -> 1661 | AZ115: =AVERAGE(AL115,X115) -> 16.3 | BA115: =AM115+Y115 -> 19 | BB115: 1 | BC115: 55.827
B116: Allen Hurns | C116: Miami (FL) | D116: 67.46 | E116: 5 | F116: 4.55 | G116: 14 | H116: 31 | I116: 7.23 | J116: 4.5 | K116: 120 | M116: 13 | N116: 62 | O116: 1162 | P116: 18.7 | Q116: 6 | R116: 1 | S116: 13 | T116: 13 | U116: 0 | V116: 63 | W116: 1175 | X116: 18.7 | Y116: 6 | AA116: 11 | AB116: 28 | AC116: 314 | AD116: 11.2 | AE116: 4 | AF116: 0 | AG116: 0 | AH116: 0 | AI116: 0 | AJ116: 28 | AK116: 314 | AL116: 11.2 | AM116: 4 | AO116: 24 | AP116: 90 | AQ116: 1476 | AR116: 14.95 | AS116: 10 | AT116: 1 | AU116: 13 | AV116: 6.5 | AW116: 0 | AX116: 91 | AY116: 1489 | AZ116: 14.95 | BA116: 10 | BB116: 1 | BC116: 67.46
B117: Jeff Janis | C117: Saginaw Valley State | D117: 61.25 | E117: 2 | F117: 4.42 | G117: 20 | H117: 37.5 | I117: 6.64 | J117: 3.98 | K117: 123 | M117: 12 | N117: 83 | O117: 1572 | P117: 18.9 | Q117: 14 | R117: 4 | S117: 49 | T117: 12.3 | U117: 2 | V117: 87 | W117: 1621 | X117: 18.6 | Y117: 16 | AA117: 11 | AB117: 106 | AC117: 1635 | AD117: 15.4 | AE117: 17 | AF117: 1 | AG117: 15 | AH117: 15 | AI117: 1 | AJ117: 107 | AK117: 1650 | AL117: 15.4 | AM117: 18 | AO117: 23 | AP117: 189 | AQ117: 3207 | AR117: 17.15 | AS117: 31 | AT117: 5 | AU117: 64 | AV117: 13.65 | AW117: 3 | AX117: 194 | AY117: 3271 | AZ117: 17 | BA117: 34 | BB117: 0 | BC117: 52.0625
B118: T.J. Jones | C118: Notre Dame | D118: 62.3 | E118: 3 | F118: 4.46 | H118: 33 | I118: 6.82 | J118: 4.27 | K118: 119 | M118: 13 | N118: 70 | O118: 1108 | P118: 15.8 | Q118: 9 | R118: 9 | S118: 67 | T118: 7.4 | U118: 2 | V118: 79 | W118: 1175 | X118: 14.9 | Y118: 11 | AA118: 13 | AB118: 50 | AC118: 649 | AD118: 13 | AE118: 4 | AF118: 1 | AG118: 8 | AH118: 8 | AI118: 0 | AJ118: 51 | AK118: 657 | AL118: 12.9 | AM118: 4 | AO118: 26 | AP118: 120 | AQ118: 1757 | AR118: 14.4 | AS118: 13 | AT118: 10 | AU118: 75 | AV118: 7.7 | AW118: 2 | AX118: 130 | AY118: 1832 | AZ118: 13.9 | BA118: 15 | BB118: 1 | BC118: 56.07
B119: Odell Beckham, Jr. | C119: LSU | D119: 85.76 | E119: 5 | F119: 4.38 | G119: 7 | H119: 38.5 | I119: 6.69 | J119: 3.94 | K119: 122 | M119: 13 | N119: 59 | O119: 1152 | P119: 19.5 | Q119: 8 | R119: 5 | S119: 58 | T119: 11.6 | U119: 0 | V119: 64 | W119: 1210 | X119: 18.9 | Y119: 8 | AA119: 13 | AB119: 43 | AC119: 713 | AD119: 16.6 | AE119: 2 | AF119: 0 | AG119: 0 | AH119: 0 | AI119: 0 | AJ119: 43 | AK119: 713 | AL119: 16.6 | AM119: 2 | AO119: 26 | AP119: 102 | AQ119: 1865 | AR119: 18.05 | AS119: 10 | AT119: 5 | AU119: 58 | AV119: 5.8 | AW119: 0 | AX119: 107 | AY119: 1923 | AZ119: 17.75 | BA119: 10 | BB119: 1 | BC119: 85.76
B120: Jarvis Landry | C120: LSU | D120: 83 | E120: 5 | F120: 4.65 | G120: 12 | H120: 28.5 | K120: 110 | M120: 13 | N120: 77 | O120: 1193 | P120: 15.5 | Q120: 10 | R120: 0 | S120: 0 | U120: 0 | V120: 77 | W120: 1193 | X120: 15.5 | Y120: 10 | AA120: 13 | AB120: 56 | AC120: 573 | AD120: 10.2 | AE120: 5 | AF120: 0 | AG120: 0 | AH120: 0 | AI120: 0 | AJ120: 56 | AK120: 573 | AL120: 10.2 | AM120: 5 | AO120: 26 | AP120: 133 | AQ120: 1766 | AR120: 12.85 | AS120: 15 | AT120: 0 | AU120: 0 | AV120: =AVERAGE(AH120,T120) -> 0 | AW120: 0 | AX120: 133 | AY120: 1766 | AZ120: 12.85 | BA120: 15 | BB120: 1 | BC120: 83
B121: Cody Latimer | C121: Indiana | D121: 66.08 | E121: 5 | F121: 4.52 | G121: 23 | M121: 12 | N121: 72 | O121: 1096 | P121: 15.2 | Q121: 9 | R121: 0 | S121: 0 | U121: 0 | V121: 72 | W121: 1096 | X121: 15.2 | Y121: 9 | AA121: 12 | AB121: 51 | AC121: 805 | AD121: 15.8 | AE121: 6 | AF121: 0 | AG121: 0 | AH121: 0 | AI121: 0 | AJ121: 51 | AK121: 805 | AL121: 15.8 | AM121: 6 | AO121: 24 | AP121: 123 | AQ121: 1901 | AR121: 15.5 | AS121: 15 | AT121: 0 | AU121: 0 | AV121: 0 | AW121: 0 | AX121: 123 | AY121: 1901 | AZ121: 15.5 | BA121: 15 | BB121: 1 | BC121: 66.08
B122: Marqise Lee | C122: USC | D122: 67.73 | E122: 4 | F122: 4.52 | H122: 38 | J122: 4.01 | K122: 127 | M122: 11 | N122: 57 | O122: 791 | P122: 13.9 | Q122: 4 | R122: 6 | S122: 7 | T122: 1.2 | U122: 0 | V122: 63 | W122: 798 | X122: 12.7 | Y122: 4 | AA122: 13 | AB122: 118 | AC122: 1721 | AD122: 14.6 | AE122: 14 | AF122: 13 | AG122: 106 | AH122: 8.2 | AI122: 0 | AJ122: 131 | AK122: 1827 | AL122: 13.9 | AM122: 14 | AO122: 24 | AP122: 175 | AQ122: 2512 | AR122: 14.25 | AS122: 18 | AT122: 19 | AU122: 113 | AV122: 4.7 | AW122: 0 | AX122: 194 | AY122: 2625 | AZ122: 13.3 | BA122: 18 | BB122: 1 | BC122: 64.3435
B123: Marcus Lucas | C123: Missouri | E123: 0 | F123: 4.6 | G123: 20 | H123: 36 | I123: 7.07 | J123: 4.25 | K123: 124 | M123: 14 | N123: 58 | O123: 692 | P123: 11.9 | Q123: 3 | R123: 0 | S123: 0 | U123: 0 | V123: 58 | W123: 692 | X123: 11.9 | Y123: 3 | AA123: 12 | AB123: 46 | AC123: 509 | AD123: 11.1 | AE123: 3 | AF123: 0 | AG123: 0 | AH123: 0 | AI123: 0 | AJ123: 46 | AK123: 509 | AL123: 11.1 | AM123: 3 | AO123: 26 | AP123: 104 | AQ123: 1201 | AR123: 11.5 | AS123: 6 | AT123: 0 | AU123: 0 | AV123: 0 | AW123: 0 | AX123: 104 | AY123: 1201 | AZ123: 11.5 | BA123: 6 | BB123: 1 | BC123: 0
B124: Jordan Matthews | C124: Vanderbilt | D124: 65 | E124: 5 | F124: 4.46 | G124: 21 | H124: 35.5 | I124: 6.95 | J124: 4.18 | K124: 120 | M124: 13 | N124: 112 | O124: 1477 | P124: 13.2 | Q124: 7 | R124: 6 | S124: 54 | T124: 9 | U124: 0 | V124: 118 | W124: 1531 | X124: 13 | Y124: 7 | AA124: 13 | AB124: 94 | AC124: 1323 | AD124: 14.1 | AE124: 8 | AF124: 3 | AG124: 61 | AH124: 20.3 | AI124: 1 | AJ124: 97 | AK124: 1384 | AL124: 14.3 | AM124: 9 | AO124: 26 | AP124: 206 | AQ124: 2800 | AR124: 13.65 | AS124: 15 | AT124: 9 | AU124: 115 | AV124: 14.65 | AW124: 1 | AX124: 215 | AY124: 2915 | AZ124: 13.65 | BA124: 16 | BB124: 1 | BC124: 65
B125: Donte Moncrief | C125: Mississippi | D125: 68 | E125: 5 | F125: 4.4 | G125: 13 | H125: 39.5 | I125: 7.02 | J125: 4.3 | K125: 132 | M125: 13 | N125: 59 | O125: 938 | P125: 15.9 | Q125: 6 | R125: 0 | S125: 0 | U125: 0 | V125: 59 | W125: 938 | X125: 15.9 | Y125: 6 | AA125: 13 | AB125: 66 | AC125: 979 | AD125: 14.8 | AE125: 10 | AF125: 0 | AG125: 0 | AH125: 0 | AI125: 0 | AJ125: 66 | AK125: 979 | AL125: 14.8 | AM125: 10 | AO125: 26 | AP125: 125 | AQ125: 1917 | AR125: 15.35 | AS125: 16 | AT125: 0 | AU125: 0 | AV125: 0 | AW125: 0 | AX125: 125 | AY125: 1917 | AZ125: 15.35 | BA125: 16 | BB125: 1 | BC125: 68
B126: Kevin Norwood | C126: Alabama | D126: 66.8 | E126: 1 | F126: 4.48 | G126: 8 | H126: 33 | I126: 6.68 | J126: 4.32 | K126: 121 | M126: 12 | N126: 38 | O126: 568 | P126: 14.9 | Q126: 7 | R126: 0 | S126: 0 | U126: 0 | V126: 38 | W126: 568 | X126: 14.9 | Y126: 7 | AA126: 13 | AB126: 29 | AC126: 461 | AD126: 15.9 | AE126: 4 | AF126: 0 | AG126: 0 | AH126: 0 | AI126: 0 | AJ126: 29 | AK126: 461 | AL126: 15.9 | AM126: 4 | AO126: 25 | AP126: 67 | AQ126: 1029 | AR126: 15.4 | AS126: 11 | AT126: 0 | AU126: 0 | AV126: 0 | AW126: 0 | AX126: 67 | AY126: 1029 | AZ126: 15.4 | BA126: 11 | BB126: 1 | BC126: 53.44
B127: Tevin Reese | C127: Baylor | E127: 0 | F127: 4.46 | H127: 41 | I127: 6.63 | J127: 4.18 | K127: 132 | M127: 8 | N127: 38 | O127: 867 | P127: 22.8 | Q127: 8 | R127: 0 | S127: 0 | U127: 0 | V127: 38 | W127: 867 | X127: 22.8 | Y127: 8 | AA127: 13 | AB127: 53 | AC127: 957 | AD127: 18.1 | AE127: 9 | AF127: 4 | AG127: 21 | AH127: 5.3 | AI127: 0 | AJ127: 57 | AK127: 978 | AL127: 17.2 | AM127: 9 | AO127: 21 | AP127: 91 | AQ127: 1824 | AR127: 20.45 | AS127: 17 | AT127: 4 | AU127: 21 | AV127: 5.3 | AW127: 0 | AX127: 95 | AY127: 1845 | AZ127: 20 | BA127: 17 | BB127: 1 | BC127: 0
B128: Paul Richardson | C128: Colorado | D128: 67.04 | E128: 4 | F128: 4.4 | H128: 38 | I128: 7.09 | K128: 124 | M128: 12 | N128: 83 | O128: 1343 | P128: 16.2 | Q128: 10 | R128: 1 | S128: 7 | T128: 7 | U128: 0 | V128: 84 | W128: 1350 | X128: 16.1 | Y128: 10 | AA128: 9 | AB128: 39 | AC128: 555 | AD128: 14.2 | AE128: 5 | AF128: 2 | AG128: 24 | AH128: 12 | AI128: 0 | AJ128: 41 | AK128: 579 | AL128: 14.1 | AM128: 5 | AO128: 21 | AP128: 122 | AQ128: 1898 | AR128: 15.2 | AS128: 15 | AT128: 3 | AU128: 31 | AV128: 9.5 | AW128: 0 | AX128: 125 | AY128: 1929 | AZ128: 15.1 | BA128: 15 | BB128: 0 | BC128: 63.688
B129: Allen Robinson | C129: Penn State | D129: 80.12 | E129: 5 | F129: 4.6 | H129: 39 | I129: 7 | J129: 4 | K129: 127 | M129: 12 | N129: 97 | O129: 1432 | P129: 14.8 | Q129: 6 | R129: 6 | S129: 36 | T129: 6 | U129: 0 | V129: 103 | W129: 1468 | X129: 14.3 | Y129: 6 | AA129: 12 | AB129: 77 | AC129: 1018 | AD129: 13.2 | AE129: 11 | AF129: 0 | AG129: 0 | AH129: 0 | AI129: 0 | AJ129: 77 | AK129: 1018 | AL129: 13.2 | AM129: 11 | AO129: 24 | AP129: 174 | AQ129: 2450 | AR129: 14 | AS129: 17 | AT129: 6 | AU129: 36 | AV129: 3 | AW129: 0 | AX129: 180 | AY129: 2486 | AZ129: 13.75 | BA129: 17 | BB129: 1 | BC129: 80.12
B130: Jalen Saunders | C130: Oklahoma | E130: 0 | F130: 4.44 | H130: 34 | K130: 122 | M130: 13 | N130: 61 | O130: 729 | P130: 12 | Q130: 8 | R130: 5 | S130: 44 | T130: 8.8 | U130: 0 | V130: 66 | W130: 773 | X130: 11.7 | Y130: 8 | AA130: 9 | AB130: 62 | AC130: 829 | AD130: 13.4 | AE130: 3 | AF130: 0 | AG130: 0 | AH130: 0 | AI130: 0 | AJ130: 62 | AK130: 829 | AL130: 13.4 | AM130: 3 | AO130: 22 | AP130: 123 | AQ130: 1558 | AR130: 12.7 | AS130: 11 | AT130: 5 | AU130: 44 | AV130: 4.4 | AW130: 0 | AX130: 128 | AY130: 1602 | AZ130: 12.55 | BA130: 11 | BB130: 1 | BC130: 0
B131: Willie Snead | C131: Ball State | D131: 70.18 | E131: 5 | F131: 4.62 | G131: 11 | H131: 33.5 | I131: 7.19 | J131: 4.39 | K131: 113 | M131: 13 | N131: 106 | O131: 1516 | P131: 14.3 | Q131: 15 | R131: 0 | S131: 0 | U131: 0 | V131: 106 | W131: 1516 | X131: 14.3 | Y131: 15 | AA131: 13 | AB131: 89 | AC131: 1148 | AD131: 12.9 | AE131: 9 | AF131: 0 | AG131: 0 | AH131: 0 | AI131: 0 | AJ131: 89 | AK131: 1148 | AL131: 12.9 | AM131: 9 | AO131: 26 | AP131: 195 | AQ131: 2664 | AR131: 13.6 | AS131: 24 | AT131: 0 | AU131: 0 | AV131: 0 | AW131: 0 | AX131: 195 | AY131: 2664 | AZ131: 13.6 | BA131: 24 | BB131: 0 | BC131: 70.18
B132: Josh Stewart | C132: Oklahoma State | E132: 0 | F132: 4.69 | G132: 11 | H132: 35 | I132: 7.1 | J132: 4.33 | K132: 117 | M132: 12 | N132: 60 | O132: 703 | P132: 11.7 | Q132: 3 | R132: 10 | S132: 49 | T132: 4.9 | U132: 0 | V132: 70 | W132: 752 | X132: 10.7 | Y132: 3 | AA132: 13 | AB132: 101 | AC132: 1210 | AD132: 12 | AE132: 7 | AF132: 8 | AG132: 120 | AH132: 15 | AI132: 1 | AJ132: 109 | AK132: 1330 | AL132: 12.2 | AM132: 8 | AO132: 25 | AP132: 161 | AQ132: 1913 | AR132: 11.85 | AS132: 10 | AT132: 18 | AU132: 169 | AV132: 9.95 | AW132: 1 | AX132: 179 | AY132: 2082 | AZ132: 11.45 | BA132: 11 | BB132: 1 | BC132: 0
B133: Devin Street | C133: Pittsburgh | D133: 55 | E133: 2 | F133: 4.55 | H133: 37 | I133: 6.89 | J133: 4.01 | K133: 124 | M133: 10 | N133: 51 | O133: 854 | P133: 16.7 | Q133: 7 | R133: 3 | S133: 6 | T133: 2 | U133: 0 | V133: 54 | W133: 860 | X133: 15.9 | Y133: 7 | AA133: 13 | AB133: 73 | AC133: 975 | AD133: 13.4 | AE133: 5 | AF133: 3 | AG133: 30 | AH133: 10 | AI133: 0 | AJ133: 76 | AK133: 1005 | AL133: 13.2 | AM133: 5 | AO133: 23 | AP133: 124 | AQ133: 1829 | AR133: 15.05 | AS133: 12 | AT133: 6 | AU133: 36 | AV133: 6 | AW133: 0 | AX133: 130 | AY133: 1865 | AZ133: 14.55 | BA133: 12 | BB133: 1 | BC133: 46.75
B134: L'Damian Washington | C134: Missouri | E134: 0 | F134: 4.46 | G134: 8 | H134: 32 | I134: 7.19 | J134: 4.35 | K134: 115 | M134: 13 | N134: 50 | O134: 893 | P134: 17.9 | Q134: 10 | R134: 0 | S134: 0 | U134: 0 | V134: 50 | W134: 893 | X134: 17.9 | Y134: 10 | AA134: 12 | AB134: 25 | AC134: 443 | AD134: 17.7 | AE134: 2 | AF134: 0 | AG134: 0 | AH134: 0 | AI134: 0 | AJ134: 25 | AK134: 443 | AL134: 17.7 | AM134: 2 | AO134: 25 | AP134: 75 | AQ134: 1336 | AR134: 17.8 | AS134: 12 | AT134: 0 | AU134: 0 | AV134: 0 | AW134: 0 | AX134: 75 | AY134: 1336 | AZ134: 17.8 | BA134: 12 | BB134: 1 | BC134: 0
B135: Sammy Watkins | C135: Clemson | D135: 75.12 | E135: 5 | F135: 4.43 | G135: 16 | H135: 34 | I135: 6.95 | J135: 4.34 | K135: 126 | M135: 13 | N135: 101 | O135: 1464 | P135: 14.5 | Q135: 12 | R135: 6 | S135: 11 | T135: 1.8 | U135: 0 | V135: 107 | W135: 1475 | X135: 13.8 | Y135: 12 | AA135: 10 | AB135: 57 | AC135: 708 | AD135: 12.4 | AE135: 3 | AF135: 14 | AG135: 97 | AH135: 6.9 | AI135: 1 | AJ135: 71 | AK135: 805 | AL135: 11.3 | AM135: 4 | AO135: 23 | AP135: 158 | AQ135: 2172 | AR135: 13.45 | AS135: 15 | AT135: 20 | AU135: 108 | AV135: 4.35 | AW135: 1 | AX135: 178 | AY135: 2280 | AZ135: 12.55 | BA135: 16 | BB135: 1 | BC135: 75.12
B136: Albert Wilson | C136: Georgia State | D136: 69.9 | E136: 5 | F136: 4.43 | G136: 10 | H136: 37.5 | I136: 7 | J136: 4.21 | K136: 123 | M136: 12 | N136: 71 | O136: 1177 | P136: 16.6 | Q136: 8 | R136: 24 | S136: 251 | T136: 10.5 | U136: 1 | V136: 95 | W136: 1428 | X136: 15 | Y136: 9 | AO136: 12 | AP136: 71 | AQ136: 1177 | AR136: 16.6 | AS136: 8 | AT136: 24 | AU136: 251 | AV136: 10.5 | AW136: 1 | AX136: 95 | AY136: 1428 | AZ136: 15 | BA136: 9 | BB136: 0 | BC136: 69.9 | BD136: FINAL RANKING
A137: 2022 | B137: Slade Bolden | C137: Alabama | F137: 4.66 | H137: 32 | K137: 116 | M137: 15 | N137: 42 | O137: 408 | P137: 9.7 | Q137: 3 | R137: 1 | S137: 0 | T137: 0 | U137: 0 | V137: 43 | W137: 408 | X137: 9.5 | Y137: 3 | AA137: 8 | AB137: 24 | AC137: 270 | AD137: 11.3 | AE137: 1 | AF137: 1 | AG137: 1 | AH137: 1 | AI137: 0 | AJ137: 25 | AK137: 271 | AL137: 10.8 | AM137: 1 | AO137: =M137+AA137 -> 23 | AP137: =N137+AB137 -> 66 | AQ137: =O137+AC137 -> 678 | AR137: =AQ137/AP137 -> 10.27272727 | AS137: =Q137+AE137 -> 4 | AT137: =R137+AF137 -> 2 | AU137: =S137+AG137 -> 1 | AV137: =AU137/AT137 -> 0.5 | AW137: =U137+AI137 -> 0 | AX137: =V137+AJ137 -> 68 | AY137: =W137+AK137 -> 679 | AZ137: =AY137/AX137 -> 9.985294118 | BA137: =Y137+AM137 -> 4 | BB137: 1 | BC137: =355.509+(-0.0469172*AP137)+(0.0229469*O137)+(0.661927*AS137)+(-75.91023*F137) -> 10.6808362 | BD137: =IF(BB137=1,BC137*1,BC137*0.75) -> 10.6808362
B138: Johnny Johnson III | C138: Oregon | F138: 4.6 | H138: 32 | I138: 7.21 | J138: 4.54 | K138: 121 | M138: 9 | N138: 25 | O138: 311 | P138: 12.4 | Q138: 1 | R138: 0 | S138: 0 | T138: 0 | U138: 0 | V138: 25 | W138: 311 | X138: 12.4 | Y138: 1 | AA138: 7 | AB138: 19 | AC138: 267 | AD138: 14.1 | AE138: 2 | AF138: 0 | AG138: 0 | AH138: 0 | AI138: 0 | AJ138: 19 | AK138: 267 | AL138: 14.1 | AM138: 2 | AO138: 16 | AP138: 44 | AQ138: 578 | AR138: 13.13636364 | AS138: 3 | AT138: 0 | AU138: 0 | AV138: 0 | AW138: 0 | AX138: 44 | AY138: 578 | AZ138: 13.13636364 | BA138: 3 | BB138: 1 | BC138: 13.3798521 | BD138: 13.3798521
B139: Devon Williams | C139: Oregon | F139: 4.65 | H139: 33 | K139: 133 | M139: 10 | N139: 35 | O139: 557 | P139: 15.9 | Q139: 4 | R139: 0 | S139: 0 | T139: 0 | U139: 0 | V139: 35 | W139: 557 | X139: 15.9 | Y139: 4 | AA139: 5 | AB139: 15 | AC139: 286 | AD139: 19.1 | AE139: 2 | AF139: 0 | AG139: 0 | AI139: 0 | AJ139: 15 | AK139: 286 | AL139: 19.1 | AM139: 2 | AO139: 15 | AP139: 50 | AQ139: 843 | AR139: 16.86 | AS139: 6 | AT139: 0 | AU139: 0 | AV139: 0 | AW139: 0 | AX139: 50 | AY139: 843 | AZ139: 16.86 | BA139: 6 | BB139: 1 | BC139: 16.9335558 | BD139: 16.9335558
